Workbook

Sheet CAT
A1: Simulação CAT
A3: Habilidade: | B3: 0
A4: Itens: | B4: 5
A6: Item | B6: 1 | C6: 2 | D6: 3 | E6: 4 | F6: 5 | G6: 6 | H6: 7 | I6: 8 | J6: 9 | K6: 10 | L6: 11 | M6: 12 | N6: 13 | O6: 14 | P6: 15
A7: a | B7: 1.024868429 | C7: 0.9687001109 | D7: 0.763792932 | E7: 1.089163005 | F7: 1.195115507
A8: b | B8: 1.602669954 | C8: -1.211007357 | D8: -1.323947668 | E8: 2.916558981 | F8: 2.880019426
A9: c | B9: 0.01605135798 | C9: 0.1868090093 | D9: 0.2489404857 | E9: 0.2732892931 | F9: 0.07317940593
A11: Resposta | B11: 0 | C11: 1 | D11: 1 | E11: 1 | F11: 0
A13: Estimativa | F13: 0.44
A15: Prox. Item | B15: a | C15: b | D15: c | E15: Informação
A16: Candidato1
A17: Candidato2
A18: Candidato3
A19: Candidato4
A20: Candidato5

Sheet Vero
A1: Itens apresentados: | D1: 1 | E1: 2 | F1: 3 | G1: 4 | H1: 5 | I1: 6 | J1: 7 | K1: 8 | L1: 9 | M1: 10 | N1: 11 | O1: 12 | P1: 13 | Q1: 14 | R1: 15 | S1: 16 | T1: 17 | U1: 18 | V1: 19 | W1: 20 | X1: 21 | Y1: 22 | Z1: 23 | AA1: 24 | AB1: 25 | AC1: 26 | AD1: 27 | AE1: 28 | AF1: 29 | AG1: 30
C2: a | D2: =IF(CAT!B7<>"",CAT!B7,"") -> 1.024868429 | E2: =IF(CAT!C7<>"",CAT!C7,"") -> 0.9687001109 | F2: =IF(CAT!D7<>"",CAT!D7,"") -> 0.763792932 | G2: =IF(CAT!E7<>"",CAT!E7,"") -> 1.089163005 | H2: =IF(CAT!F7<>"",CAT!F7,"") -> 1.195115507 | I2: =IF(CAT!G7<>"",CAT!G7,"") ->  | J2: =IF(CAT!H7<>"",CAT!H7,"") ->  | K2: =IF(CAT!I7<>"",CAT!I7,"") ->  | L2: =IF(CAT!J7<>"",CAT!J7,"") ->  | M2: =IF(CAT!K7<>"",CAT!K7,"") ->  | N2: =IF(CAT!L7<>"",CAT!L7,"") ->  | O2: =IF(CAT!M7<>"",CAT!M7,"") ->  | P2: =IF(CAT!N7<>"",CAT!N7,"") ->  | Q2: =IF(CAT!O7<>"",CAT!O7,"") ->  | R2: =IF(CAT!P7<>"",CAT!P7,"") ->  | S2: =IF(CAT!Q7<>"",CAT!Q7,"") ->  | T2: =IF(CAT!R7<>"",CAT!R7,"") ->  | U2: =IF(CAT!S7<>"",CAT!S7,"") ->  | V2: =IF(CAT!T7<>"",CAT!T7,"") ->  | W2: =IF(CAT!U7<>"",CAT!U7,"") ->  | X2: =IF(CAT!V7<>"",CAT!V7,"") ->  | Y2: =IF(CAT!W7<>"",CAT!W7,"") ->  | Z2: =IF(CAT!X7<>"",CAT!X7,"") ->  | AA2: =IF(CAT!Y7<>"",CAT!Y7,"") ->  | AB2: =IF(CAT!Z7<>"",CAT!Z7,"") ->  | AC2: =IF(CAT!AA7<>"",CAT!AA7,"") ->  | AD2: =IF(CAT!AB7<>"",CAT!AB7,"") ->  | AE2: =IF(CAT!AC7<>"",CAT!AC7,"") ->  | AF2: =IF(CAT!AD7<>"",CAT!AD7,"") ->  | AG2: =IF(CAT!AE7<>"",CAT!AE7,"") -> 
C3: b | D3: =IF(CAT!B8<>"",CAT!B8,"") -> 1.602669954 | E3: =IF(CAT!C8<>"",CAT!C8,"") -> -1.211007357 | F3: =IF(CAT!D8<>"",CAT!D8,"") -> -1.323947668 | G3: =IF(CAT!E8<>"",CAT!E8,"") -> 2.916558981 | H3: =IF(CAT!F8<>"",CAT!F8,"") -> 2.880019426 | I3: =IF(CAT!G8<>"",CAT!G8,"") ->  | J3: =IF(CAT!H8<>"",CAT!H8,"") ->  | K3: =IF(CAT!I8<>"",CAT!I8,"") ->  | L3: =IF(CAT!J8<>"",CAT!J8,"") ->  | M3: =IF(CAT!K8<>"",CAT!K8,"") ->  | N3: =IF(CAT!L8<>"",CAT!L8,"") ->  | O3: =IF(CAT!M8<>"",CAT!M8,"") ->  | P3: =IF(CAT!N8<>"",CAT!N8,"") ->  | Q3: =IF(CAT!O8<>"",CAT!O8,"") ->  | R3: =IF(CAT!P8<>"",CAT!P8,"") ->  | S3: =IF(CAT!Q8<>"",CAT!Q8,"") ->  | T3: =IF(CAT!R8<>"",CAT!R8,"") ->  | U3: =IF(CAT!S8<>"",CAT!S8,"") ->  | V3: =IF(CAT!T8<>"",CAT!T8,"") ->  | W3: =IF(CAT!U8<>"",CAT!U8,"") ->  | X3: =IF(CAT!V8<>"",CAT!V8,"") ->  | Y3: =IF(CAT!W8<>"",CAT!W8,"") ->  | Z3: =IF(CAT!X8<>"",CAT!X8,"") ->  | AA3: =IF(CAT!Y8<>"",CAT!Y8,"") ->  | AB3: =IF(CAT!Z8<>"",CAT!Z8,"") ->  | AC3: =IF(CAT!AA8<>"",CAT!AA8,"") ->  | AD3: =IF(CAT!AB8<>"",CAT!AB8,"") ->  | AE3: =IF(CAT!AC8<>"",CAT!AC8,"") ->  | AF3: =IF(CAT!AD8<>"",CAT!AD8,"") ->  | AG3: =IF(CAT!AE8<>"",CAT!AE8,"") -> 
C4: c | D4: =IF(CAT!B9<>"",CAT!B9,"") -> 0.01605135798 | E4: =IF(CAT!C9<>"",CAT!C9,"") -> 0.1868090093 | F4: =IF(CAT!D9<>"",CAT!D9,"") -> 0.2489404857 | G4: =IF(CAT!E9<>"",CAT!E9,"") -> 0.2732892931 | H4: =IF(CAT!F9<>"",CAT!F9,"") -> 0.07317940593 | I4: =IF(CAT!G9<>"",CAT!G9,"") ->  | J4: =IF(CAT!H9<>"",CAT!H9,"") ->  | K4: =IF(CAT!I9<>"",CAT!I9,"") ->  | L4: =IF(CAT!J9<>"",CAT!J9,"") ->  | M4: =IF(CAT!K9<>"",CAT!K9,"") ->  | N4: =IF(CAT!L9<>"",CAT!L9,"") ->  | O4: =IF(CAT!M9<>"",CAT!M9,"") ->  | P4: =IF(CAT!N9<>"",CAT!N9,"") ->  | Q4: =IF(CAT!O9<>"",CAT!O9,"") ->  | R4: =IF(CAT!P9<>"",CAT!P9,"") ->  | S4: =IF(CAT!Q9<>"",CAT!Q9,"") ->  | T4: =IF(CAT!R9<>"",CAT!R9,"") ->  | U4: =IF(CAT!S9<>"",CAT!S9,"") ->  | V4: =IF(CAT!T9<>"",CAT!T9,"") ->  | W4: =IF(CAT!U9<>"",CAT!U9,"") ->  | X4: =IF(CAT!V9<>"",CAT!V9,"") ->  | Y4: =IF(CAT!W9<>"",CAT!W9,"") ->  | Z4: =IF(CAT!X9<>"",CAT!X9,"") ->  | AA4: =IF(CAT!Y9<>"",CAT!Y9,"") ->  | AB4: =IF(CAT!Z9<>"",CAT!Z9,"") ->  | AC4: =IF(CAT!AA9<>"",CAT!AA9,"") ->  | AD4: =IF(CAT!AB9<>"",CAT!AB9,"") ->  | AE4: =IF(CAT!AC9<>"",CAT!AC9,"") ->  | AF4: =IF(CAT!AD9<>"",CAT!AD9,"") ->  | AG4: =IF(CAT!AE9<>"",CAT!AE9,"") -> 
C6: Respostas | D6: =IF(CAT!B11<>"",CAT!B11,"") -> 0 | E6: =IF(CAT!C11<>"",CAT!C11,"") -> 1 | F6: =IF(CAT!D11<>"",CAT!D11,"") -> 1 | G6: =IF(CAT!E11<>"",CAT!E11,"") -> 1 | H6: =IF(CAT!F11<>"",CAT!F11,"") -> 0 | I6: =IF(CAT!G11<>"",CAT!G11,"") ->  | J6: =IF(CAT!H11<>"",CAT!H11,"") ->  | K6: =IF(CAT!I11<>"",CAT!I11,"") ->  | L6: =IF(CAT!J11<>"",CAT!J11,"") ->  | M6: =IF(CAT!K11<>"",CAT!K11,"") ->  | N6: =IF(CAT!L11<>"",CAT!L11,"") ->  | O6: =IF(CAT!M11<>"",CAT!M11,"") ->  | P6: =IF(CAT!N11<>"",CAT!N11,"") ->  | Q6: =IF(CAT!O11<>"",CAT!O11,"") ->  | R6: =IF(CAT!P11<>"",CAT!P11,"") ->  | S6: =IF(CAT!Q11<>"",CAT!Q11,"") ->  | T6: =IF(CAT!R11<>"",CAT!R11,"") ->  | U6: =IF(CAT!S11<>"",CAT!S11,"") ->  | V6: =IF(CAT!T11<>"",CAT!T11,"") ->  | W6: =IF(CAT!U11<>"",CAT!U11,"") ->  | X6: =IF(CAT!V11<>"",CAT!V11,"") ->  | Y6: =IF(CAT!W11<>"",CAT!W11,"") ->  | Z6: =IF(CAT!X11<>"",CAT!X11,"") ->  | AA6: =IF(CAT!Y11<>"",CAT!Y11,"") ->  | AB6: =IF(CAT!Z11<>"",CAT!Z11,"") ->  | AC6: =IF(CAT!AA11<>"",CAT!AA11,"") ->  | AD6: =IF(CAT!AB11<>"",CAT!AB11,"") ->  | AE6: =IF(CAT!AC11<>"",CAT!AC11,"") ->  | AF6: =IF(CAT!AD11<>"",CAT!AD11,"") ->  | AG6: =IF(CAT!AE11<>"",CAT!AE11,"") -> 
C7: Estimativa | H7: =VLOOKUP(MAX(Vero!B10:B810),Vero!B10:C810,2,FALSE) -> 0.44
A9: Posição | B9: Vero | C9: Habilidade | D9: 1 | E9: 2 | F9: 3 | G9: 4 | H9: 5 | I9: 6 | J9: 7 | K9: 8 | L9: 9 | M9: 10 | N9: 11 | O9: 12 | P9: 13 | Q9: 14 | R9: 15 | S9: 16 | T9: 17 | U9: 18 | V9: 19 | W9: 20 | X9: 21 | Y9: 22 | Z9: 23 | AA9: 24 | AB9: 25 | AC9: 26 | AD9: 27 | AE9: 28 | AF9: 29 | AG9: 30
A10: 1 | B10: 0.01319123651 | C10: -4 | D10: =IFERROR(D$4+(1-D$4)/(1+EXP(-1.7*D$2*($C10-D$3))),"") -> 0.01610806354 | E10: =IFERROR(E$4+(1-E$4)/(1+EXP(-1.7*E$2*($C10-E$3))),"") -> 0.194958925 | F10: =IFERROR(F$4+(1-F$4)/(1+EXP(-1.7*F$2*($C10-F$3))),"") -> 0.2715025378 | G10: =IFERROR(G$4+(1-G$4)/(1+EXP(-1.7*G$2*($C10-G$3))),"") -> 0.2732912862 | H10: =IFERROR(H$4+(1-H$4)/(1+EXP(-1.7*H$2*($C10-H$3))),"") -> 0.07318019366 | I10: =IFERROR(I$4+(1-I$4)/(1+EXP(-1.7*I$2*($C10-I$3))),"") ->  | J10: =IFERROR(J$4+(1-J$4)/(1+EXP(-1.7*J$2*($C10-J$3))),"") ->  | K10: =IFERROR(K$4+(1-K$4)/(1+EXP(-1.7*K$2*($C10-K$3))),"") ->  | L10: =IFERROR(L$4+(1-L$4)/(1+EXP(-1.7*L$2*($C10-L$3))),"") ->  | M10: =IFERROR(M$4+(1-M$4)/(1+EXP(-1.7*M$2*($C10-M$3))),"") ->  | N10: =IFERROR(N$4+(1-N$4)/(1+EXP(-1.7*N$2*($C10-N$3))),"") ->  | O10: =IFERROR(O$4+(1-O$4)/(1+EXP(-1.7*O$2*($C10-O$3))),"") ->  | P10: =IFERROR(P$4+(1-P$4)/(1+EXP(-1.7*P$2*($C10-P$3))),"") ->  | Q10: =IFERROR(Q$4+(1-Q$4)/(1+EXP(-1.7*Q$2*($C10-Q$3))),"") ->  | R10: =IFERROR(R$4+(1-R$4)/(1+EXP(-1.7*R$2*($C10-R$3))),"") ->  | S10: =IFERROR(S$4+(1-S$4)/(1+EXP(-1.7*S$2*($C10-S$3))),"") ->  | T10: =IFERROR(T$4+(1-T$4)/(1+EXP(-1.7*T$2*($C10-T$3))),"") ->  | U10: =IFERROR(U$4+(1-U$4)/(1+EXP(-1.7*U$2*($C10-U$3))),"") ->  | V10: =IFERROR(V$4+(1-V$4)/(1+EXP(-1.7*V$2*($C10-V$3))),"") ->  | W10: =IFERROR(W$4+(1-W$4)/(1+EXP(-1.7*W$2*($C10-W$3))),"") ->  | X10: =IFERROR(X$4+(1-X$4)/(1+EXP(-1.7*X$2*($C10-X$3))),"") ->  | Y10: =IFERROR(Y$4+(1-Y$4)/(1+EXP(-1.7*Y$2*($C10-Y$3))),"") ->  | Z10: =IFERROR(Z$4+(1-Z$4)/(1+EXP(-1.7*Z$2*($C10-Z$3))),"") ->  | AA10: =IFERROR(AA$4+(1-AA$4)/(1+EXP(-1.7*AA$2*($C10-AA$3))),"") ->  | AB10: =IFERROR(AB$4+(1-AB$4)/(1+EXP(-1.7*AB$2*($C10-AB$3))),"") ->  | AC10: =IFERROR(AC$4+(1-AC$4)/(1+EXP(-1.7*AC$2*($C10-AC$3))),"") ->  | AD10: =IFERROR(AD$4+(1-AD$4)/(1+EXP(-1.7*AD$2*($C10-AD$3))),"") ->  | AE10: =IFERROR(AE$4+(1-AE$4)/(1+EXP(-1.7*AE$2*($C10-AE$3))),"") ->  | AF10: =IFERROR(AF$4+(1-AF$4)/(1+EXP(-1.7*AF$2*($C10-AF$3))),"") ->  | AG10: =IFERROR(AG$4+(1-AG$4)/(1+EXP(-1.7*AG$2*($C10-AG$3))),"") -> 
A11: 2 | B11: 0.01321418774 | C11: =C10+0.01 -> -3.99 | D11: =IFERROR(D$4+(1-D$4)/(1+EXP(-1.7*D$2*($C11-D$3))),"") -> 0.0161090601 | E11: =IFERROR(E$4+(1-E$4)/(1+EXP(-1.7*E$2*($C11-E$3))),"") -> 0.1950928697 | F11: =IFERROR(F$4+(1-F$4)/(1+EXP(-1.7*F$2*($C11-F$3))),"") -> 0.2717884344 | G11: =IFERROR(G$4+(1-G$4)/(1+EXP(-1.7*G$2*($C11-G$3))),"") -> 0.2732913235 | H11: =IFERROR(H$4+(1-H$4)/(1+EXP(-1.7*H$2*($C11-H$3))),"") -> 0.07318020983 | I11: =IFERROR(I$4+(1-I$4)/(1+EXP(-1.7*I$2*($C11-I$3))),"") ->  | J11: =IFERROR(J$4+(1-J$4)/(1+EXP(-1.7*J$2*($C11-J$3))),"") ->  | K11: =IFERROR(K$4+(1-K$4)/(1+EXP(-1.7*K$2*($C11-K$3))),"") ->  | L11: =IFERROR(L$4+(1-L$4)/(1+EXP(-1.7*L$2*($C11-L$3))),"") ->  | M11: =IFERROR(M$4+(1-M$4)/(1+EXP(-1.7*M$2*($C11-M$3))),"") ->  | N11: =IFERROR(N$4+(1-N$4)/(1+EXP(-1.7*N$2*($C11-N$3))),"") ->  | O11: =IFERROR(O$4+(1-O$4)/(1+EXP(-1.7*O$2*($C11-O$3))),"") ->  | P11: =IFERROR(P$4+(1-P$4)/(1+EXP(-1.7*P$2*($C11-P$3))),"") ->  | Q11: =IFERROR(Q$4+(1-Q$4)/(1+EXP(-1.7*Q$2*($C11-Q$3))),"") ->  | R11: =IFERROR(R$4+(1-R$4)/(1+EXP(-1.7*R$2*($C11-R$3))),"") ->  | S11: =IFERROR(S$4+(1-S$4)/(1+EXP(-1.7*S$2*($C11-S$3))),"") ->  | T11: =IFERROR(T$4+(1-T$4)/(1+EXP(-1.7*T$2*($C11-T$3))),"") ->  | U11: =IFERROR(U$4+(1-U$4)/(1+EXP(-1.7*U$2*($C11-U$3))),"") ->  | V11: =IFERROR(V$4+(1-V$4)/(1+EXP(-1.7*V$2*($C11-V$3))),"") ->  | W11: =IFERROR(W$4+(1-W$4)/(1+EXP(-1.7*W$2*($C11-W$3))),"") ->  | X11: =IFERROR(X$4+(1-X$4)/(1+EXP(-1.7*X$2*($C11-X$3))),"") ->  | Y11: =IFERROR(Y$4+(1-Y$4)/(1+EXP(-1.7*Y$2*($C11-Y$3))),"") ->  | Z11: =IFERROR(Z$4+(1-Z$4)/(1+EXP(-1.7*Z$2*($C11-Z$3))),"") ->  | AA11: =IFERROR(AA$4+(1-AA$4)/(1+EXP(-1.7*AA$2*($C11-AA$3))),"") ->  | AB11: =IFERROR(AB$4+(1-AB$4)/(1+EXP(-1.7*AB$2*($C11-AB$3))),"") ->  | AC11: =IFERROR(AC$4+(1-AC$4)/(1+EXP(-1.7*AC$2*($C11-AC$3))),"") ->  | AD11: =IFERROR(AD$4+(1-AD$4)/(1+EXP(-1.7*AD$2*($C11-AD$3))),"") ->  | AE11: =IFERROR(AE$4+(1-AE$4)/(1+EXP(-1.7*AE$2*($C11-AE$3))),"") ->  | AF11: =IFERROR(AF$4+(1-AF$4)/(1+EXP(-1.7*AF$2*($C11-AF$3))),"") ->  | AG11: =IFERROR(AG$4+(1-AG$4)/(1+EXP(-1.7*AG$2*($C11-AG$3))),"") -> 
A12: 3 | B12: 0.01323747617 | C12: =C11+0.01 -> -3.98 | D12: =IFERROR(D$4+(1-D$4)/(1+EXP(-1.7*D$2*($C12-D$3))),"") -> 0.01611007418 | E12: =IFERROR(E$4+(1-E$4)/(1+EXP(-1.7*E$2*($C12-E$3))),"") -> 0.1952289927 | F12: =IFERROR(F$4+(1-F$4)/(1+EXP(-1.7*F$2*($C12-F$3))),"") -> 0.2720778387 | G12: =IFERROR(G$4+(1-G$4)/(1+EXP(-1.7*G$2*($C12-G$3))),"") -> 0.2732913614 | H12: =IFERROR(H$4+(1-H$4)/(1+EXP(-1.7*H$2*($C12-H$3))),"") -> 0.07318022633 | I12: =IFERROR(I$4+(1-I$4)/(1+EXP(-1.7*I$2*($C12-I$3))),"") ->  | J12: =IFERROR(J$4+(1-J$4)/(1+EXP(-1.7*J$2*($C12-J$3))),"") ->  | K12: =IFERROR(K$4+(1-K$4)/(1+EXP(-1.7*K$2*($C12-K$3))),"") ->  | L12: =IFERROR(L$4+(1-L$4)/(1+EXP(-1.7*L$2*($C12-L$3))),"") ->  | M12: =IFERROR(M$4+(1-M$4)/(1+EXP(-1.7*M$2*($C12-M$3))),"") ->  | N12: =IFERROR(N$4+(1-N$4)/(1+EXP(-1.7*N$2*($C12-N$3))),"") ->  | O12: =IFERROR(O$4+(1-O$4)/(1+EXP(-1.7*O$2*($C12-O$3))),"") ->  | P12: =IFERROR(P$4+(1-P$4)/(1+EXP(-1.7*P$2*($C12-P$3))),"") ->  | Q12: =IFERROR(Q$4+(1-Q$4)/(1+EXP(-1.7*Q$2*($C12-Q$3))),"") ->  | R12: =IFERROR(R$4+(1-R$4)/(1+EXP(-1.7*R$2*($C12-R$3))),"") ->  | S12: =IFERROR(S$4+(1-S$4)/(1+EXP(-1.7*S$2*($C12-S$3))),"") ->  | T12: =IFERROR(T$4+(1-T$4)/(1+EXP(-1.7*T$2*($C12-T$3))),"") ->  | U12: =IFERROR(U$4+(1-U$4)/(1+EXP(-1.7*U$2*($C12-U$3))),"") ->  | V12: =IFERROR(V$4+(1-V$4)/(1+EXP(-1.7*V$2*($C12-V$3))),"") ->  | W12: =IFERROR(W$4+(1-W$4)/(1+EXP(-1.7*W$2*($C12-W$3))),"") ->  | X12: =IFERROR(X$4+(1-X$4)/(1+EXP(-1.7*X$2*($C12-X$3))),"") ->  | Y12: =IFERROR(Y$4+(1-Y$4)/(1+EXP(-1.7*Y$2*($C12-Y$3))),"") ->  | Z12: =IFERROR(Z$4+(1-Z$4)/(1+EXP(-1.7*Z$2*($C12-Z$3))),"") ->  | AA12: =IFERROR(AA$4+(1-AA$4)/(1+EXP(-1.7*AA$2*($C12-AA$3))),"") ->  | AB12: =IFERROR(AB$4+(1-AB$4)/(1+EXP(-1.7*AB$2*($C12-AB$3))),"") ->  | AC12: =IFERROR(AC$4+(1-AC$4)/(1+EXP(-1.7*AC$2*($C12-AC$3))),"") ->  | AD12: =IFERROR(AD$4+(1-AD$4)/(1+EXP(-1.7*AD$2*($C12-AD$3))),"") ->  | AE12: =IFERROR(AE$4+(1-AE$4)/(1+EXP(-1.7*AE$2*($C12-AE$3))),"") ->  | AF12: =IFERROR(AF$4+(1-AF$4)/(1+EXP(-1.7*AF$2*($C12-AF$3))),"") ->  | AG12: =IFERROR(AG$4+(1-AG$4)/(1+EXP(-1.7*AG$2*($C12-AG$3))),"") -> 
A13: 4 | B13: 0.01326110694 | C13: -3.97 | D13: =IFERROR(D$4+(1-D$4)/(1+EXP(-1.7*D$2*($C13-D$3))),"") -> 0.01611110608 | E13: =IFERROR(E$4+(1-E$4)/(1+EXP(-1.7*E$2*($C13-E$3))),"") -> 0.1953673288 | F13: =IFERROR(F$4+(1-F$4)/(1+EXP(-1.7*F$2*($C13-F$3))),"") -> 0.2723707908 | G13: =IFERROR(G$4+(1-G$4)/(1+EXP(-1.7*G$2*($C13-G$3))),"") -> 0.2732914001 | H13: =IFERROR(H$4+(1-H$4)/(1+EXP(-1.7*H$2*($C13-H$3))),"") -> 0.07318024317 | I13: =IFERROR(I$4+(1-I$4)/(1+EXP(-1.7*I$2*($C13-I$3))),"") ->  | J13: =IFERROR(J$4+(1-J$4)/(1+EXP(-1.7*J$2*($C13-J$3))),"") ->  | K13: =IFERROR(K$4+(1-K$4)/(1+EXP(-1.7*K$2*($C13-K$3))),"") ->  | L13: =IFERROR(L$4+(1-L$4)/(1+EXP(-1.7*L$2*($C13-L$3))),"") ->  | M13: =IFERROR(M$4+(1-M$4)/(1+EXP(-1.7*M$2*($C13-M$3))),"") ->  | N13: =IFERROR(N$4+(1-N$4)/(1+EXP(-1.7*N$2*($C13-N$3))),"") ->  | O13: =IFERROR(O$4+(1-O$4)/(1+EXP(-1.7*O$2*($C13-O$3))),"") ->  | P13: =IFERROR(P$4+(1-P$4)/(1+EXP(-1.7*P$2*($C13-P$3))),"") ->  | Q13: =IFERROR(Q$4+(1-Q$4)/(1+EXP(-1.7*Q$2*($C13-Q$3))),"") ->  | R13: =IFERROR(R$4+(1-R$4)/(1+EXP(-1.7*R$2*($C13-R$3))),"") ->  | S13: =IFERROR(S$4+(1-S$4)/(1+EXP(-1.7*S$2*($C13-S$3))),"") ->  | T13: =IFERROR(T$4+(1-T$4)/(1+EXP(-1.7*T$2*($C13-T$3))),"") ->  | U13: =IFERROR(U$4+(1-U$4)/(1+EXP(-1.7*U$2*($C13-U$3))),"") ->  | V13: =IFERROR(V$4+(1-V$4)/(1+EXP(-1.7*V$2*($C13-V$3))),"") ->  | W13: =IFERROR(W$4+(1-W$4)/(1+EXP(-1.7*W$2*($C13-W$3))),"") ->  | X13: =IFERROR(X$4+(1-X$4)/(1+EXP(-1.7*X$2*($C13-X$3))),"") ->  | Y13: =IFERROR(Y$4+(1-Y$4)/(1+EXP(-1.7*Y$2*($C13-Y$3))),"") ->  | Z13: =IFERROR(Z$4+(1-Z$4)/(1+EXP(-1.7*Z$2*($C13-Z$3))),"") ->  | AA13: =IFERROR(AA$4+(1-AA$4)/(1+EXP(-1.7*AA$2*($C13-AA$3))),"") ->  | AB13: =IFERROR(AB$4+(1-AB$4)/(1+EXP(-1.7*AB$2*($C13-AB$3))),"") ->  | AC13: =IFERROR(AC$4+(1-AC$4)/(1+EXP(-1.7*AC$2*($C13-AC$3))),"") ->  | AD13: =IFERROR(AD$4+(1-AD$4)/(1+EXP(-1.7*AD$2*($C13-AD$3))),"") ->  | AE13: =IFERROR(AE$4+(1-AE$4)/(1+EXP(-1.7*AE$2*($C13-AE$3))),"") ->  | AF13: =IFERROR(AF$4+(1-AF$4)/(1+EXP(-1.7*AF$2*($C13-AF$3))),"") ->  | AG13: =IFERROR(AG$4+(1-AG$4)/(1+EXP(-1.7*AG$2*($C13-AG$3))),"") -> 
A14: 5 | B14: 0.01328508524 | C14: -3.96 | D14: =IFERROR(D$4+(1-D$4)/(1+EXP(-1.7*D$2*($C14-D$3))),"") -> 0.01611215611 | E14: =IFERROR(E$4+(1-E$4)/(1+EXP(-1.7*E$2*($C14-E$3))),"") -> 0.1955079131 | F14: =IFERROR(F$4+(1-F$4)/(1+EXP(-1.7*F$2*($C14-F$3))),"") -> 0.2726673312 | G14: =IFERROR(G$4+(1-G$4)/(1+EXP(-1.7*G$2*($C14-G$3))),"") -> 0.2732914395 | H14: =IFERROR(H$4+(1-H$4)/(1+EXP(-1.7*H$2*($C14-H$3))),"") -> 0.07318026035 | I14: =IFERROR(I$4+(1-I$4)/(1+EXP(-1.7*I$2*($C14-I$3))),"") ->  | J14: =IFERROR(J$4+(1-J$4)/(1+EXP(-1.7*J$2*($C14-J$3))),"") ->  | K14: =IFERROR(K$4+(1-K$4)/(1+EXP(-1.7*K$2*($C14-K$3))),"") ->  | L14: =IFERROR(L$4+(1-L$4)/(1+EXP(-1.7*L$2*($C14-L$3))),"") ->  | M14: =IFERROR(M$4+(1-M$4)/(1+EXP(-1.7*M$2*($C14-M$3))),"") ->  | N14: =IFERROR(N$4+(1-N$4)/(1+EXP(-1.7*N$2*($C14-N$3))),"") ->  | O14: =IFERROR(O$4+(1-O$4)/(1+EXP(-1.7*O$2*($C14-O$3))),"") ->  | P14: =IFERROR(P$4+(1-P$4)/(1+EXP(-1.7*P$2*($C14-P$3))),"") ->  | Q14: =IFERROR(Q$4+(1-Q$4)/(1+EXP(-1.7*Q$2*($C14-Q$3))),"") ->  | R14: =IFERROR(R$4+(1-R$4)/(1+EXP(-1.7*R$2*($C14-R$3))),"") ->  | S14: =IFERROR(S$4+(1-S$4)/(1+EXP(-1.7*S$2*($C14-S$3))),"") ->  | T14: =IFERROR(T$4+(1-T$4)/(1+EXP(-1.7*T$2*($C14-T$3))),"") ->  | U14: =IFERROR(U$4+(1-U$4)/(1+EXP(-1.7*U$2*($C14-U$3))),"") ->  | V14: =IFERROR(V$4+(1-V$4)/(1+EXP(-1.7*V$2*($C14-V$3))),"") ->  | W14: =IFERROR(W$4+(1-W$4)/(1+EXP(-1.7*W$2*($C14-W$3))),"") ->  | X14: =IFERROR(X$4+(1-X$4)/(1+EXP(-1.7*X$2*($C14-X$3))),"") ->  | Y14: =IFERROR(Y$4+(1-Y$4)/(1+EXP(-1.7*Y$2*($C14-Y$3))),"") ->  | Z14: =IFERROR(Z$4+(1-Z$4)/(1+EXP(-1.7*Z$2*($C14-Z$3))),"") ->  | AA14: =IFERROR(AA$4+(1-AA$4)/(1+EXP(-1.7*AA$2*($C14-AA$3))),"") ->  | AB14: =IFERROR(AB$4+(1-AB$4)/(1+EXP(-1.7*AB$2*($C14-AB$3))),"") ->  | AC14: =IFERROR(AC$4+(1-AC$4)/(1+EXP(-1.7*AC$2*($C14-AC$3))),"") ->  | AD14: =IFERROR(AD$4+(1-AD$4)/(1+EXP(-1.7*AD$2*($C14-AD$3))),"") ->  | AE14: =IFERROR(AE$4+(1-AE$4)/(1+EXP(-1.7*AE$2*($C14-AE$3))),"") ->  | AF14: =IFERROR(AF$4+(1-AF$4)/(1+EXP(-1.7*AF$2*($C14-AF$3))),"") ->  | AG14: =IFERROR(AG$4+(1-AG$4)/(1+EXP(-1.7*AG$2*($C14-AG$3))),"") -> 
A15: 6 | B15: 0.01330941637 | C15: -3.95 | D15: =IFERROR(D$4+(1-D$4)/(1+EXP(-1.7*D$2*($C15-D$3))),"") -> 0.0161132246 | E15: =IFERROR(E$4+(1-E$4)/(1+EXP(-1.7*E$2*($C15-E$3))),"") -> 0.1956507814 | F15: =IFERROR(F$4+(1-F$4)/(1+EXP(-1.7*F$2*($C15-F$3))),"") -> 0.2729675007 | G15: =IFERROR(G$4+(1-G$4)/(1+EXP(-1.7*G$2*($C15-G$3))),"") -> 0.2732914796 | H15: =IFERROR(H$4+(1-H$4)/(1+EXP(-1.7*H$2*($C15-H$3))),"") -> 0.07318027789 | I15: =IFERROR(I$4+(1-I$4)/(1+EXP(-1.7*I$2*($C15-I$3))),"") ->  | J15: =IFERROR(J$4+(1-J$4)/(1+EXP(-1.7*J$2*($C15-J$3))),"") ->  | K15: =IFERROR(K$4+(1-K$4)/(1+EXP(-1.7*K$2*($C15-K$3))),"") ->  | L15: =IFERROR(L$4+(1-L$4)/(1+EXP(-1.7*L$2*($C15-L$3))),"") ->  | M15: =IFERROR(M$4+(1-M$4)/(1+EXP(-1.7*M$2*($C15-M$3))),"") ->  | N15: =IFERROR(N$4+(1-N$4)/(1+EXP(-1.7*N$2*($C15-N$3))),"") ->  | O15: =IFERROR(O$4+(1-O$4)/(1+EXP(-1.7*O$2*($C15-O$3))),"") ->  | P15: =IFERROR(P$4+(1-P$4)/(1+EXP(-1.7*P$2*($C15-P$3))),"") ->  | Q15: =IFERROR(Q$4+(1-Q$4)/(1+EXP(-1.7*Q$2*($C15-Q$3))),"") ->  | R15: =IFERROR(R$4+(1-R$4)/(1+EXP(-1.7*R$2*($C15-R$3))),"") ->  | S15: =IFERROR(S$4+(1-S$4)/(1+EXP(-1.7*S$2*($C15-S$3))),"") ->  | T15: =IFERROR(T$4+(1-T$4)/(1+EXP(-1.7*T$2*($C15-T$3))),"") ->  | U15: =IFERROR(U$4+(1-U$4)/(1+EXP(-1.7*U$2*($C15-U$3))),"") ->  | V15: =IFERROR(V$4+(1-V$4)/(1+EXP(-1.7*V$2*($C15-V$3))),"") ->  | W15: =IFERROR(W$4+(1-W$4)/(1+EXP(-1.7*W$2*($C15-W$3))),"") ->  | X15: =IFERROR(X$4+(1-X$4)/(1+EXP(-1.7*X$2*($C15-X$3))),"") ->  | Y15: =IFERROR(Y$4+(1-Y$4)/(1+EXP(-1.7*Y$2*($C15-Y$3))),"") ->  | Z15: =IFERROR(Z$4+(1-Z$4)/(1+EXP(-1.7*Z$2*($C15-Z$3))),"") ->  | AA15: =IFERROR(AA$4+(1-AA$4)/(1+EXP(-1.7*AA$2*($C15-AA$3))),"") ->  | AB15: =IFERROR(AB$4+(1-AB$4)/(1+EXP(-1.7*AB$2*($C15-AB$3))),"") ->  | AC15: =IFERROR(AC$4+(1-AC$4)/(1+EXP(-1.7*AC$2*($C15-AC$3))),"") ->  | AD15: =IFERROR(AD$4+(1-AD$4)/(1+EXP(-1.7*AD$2*($C15-AD$3))),"") ->  | AE15: =IFERROR(AE$4+(1-AE$4)/(1+EXP(-1.7*AE$2*($C15-AE$3))),"") ->  | AF15: =IFERROR(AF$4+(1-AF$4)/(1+EXP(-1.7*AF$2*($C15-AF$3))),"") ->  | AG15: =IFERROR(AG$4+(1-AG$4)/(1+EXP(-1.7*AG$2*($C15-AG$3))),"") -> 
A16: 7 | B16: 0.01333410572 | C16: -3.94 | D16: =IFERROR(D$4+(1-D$4)/(1+EXP(-1.7*D$2*($C16-D$3))),"") -> 0.01611431186 | E16: =IFERROR(E$4+(1-E$4)/(1+EXP(-1.7*E$2*($C16-E$3))),"") -> 0.1957959698 | F16: =IFERROR(F$4+(1-F$4)/(1+EXP(-1.7*F$2*($C16-F$3))),"") -> 0.2732713407 | G16: =IFERROR(G$4+(1-G$4)/(1+EXP(-1.7*G$2*($C16-G$3))),"") -> 0.2732915204 | H16: =IFERROR(H$4+(1-H$4)/(1+EXP(-1.7*H$2*($C16-H$3))),"") -> 0.07318029578 | I16: =IFERROR(I$4+(1-I$4)/(1+EXP(-1.7*I$2*($C16-I$3))),"") ->  | J16: =IFERROR(J$4+(1-J$4)/(1+EXP(-1.7*J$2*($C16-J$3))),"") ->  | K16: =IFERROR(K$4+(1-K$4)/(1+EXP(-1.7*K$2*($C16-K$3))),"") ->  | L16: =IFERROR(L$4+(1-L$4)/(1+EXP(-1.7*L$2*($C16-L$3))),"") ->  | M16: =IFERROR(M$4+(1-M$4)/(1+EXP(-1.7*M$2*($C16-M$3))),"") ->  | N16: =IFERROR(N$4+(1-N$4)/(1+EXP(-1.7*N$2*($C16-N$3))),"") ->  | O16: =IFERROR(O$4+(1-O$4)/(1+EXP(-1.7*O$2*($C16-O$3))),"") ->  | P16: =IFERROR(P$4+(1-P$4)/(1+EXP(-1.7*P$2*($C16-P$3))),"") ->  | Q16: =IFERROR(Q$4+(1-Q$4)/(1+EXP(-1.7*Q$2*($C16-Q$3))),"") ->  | R16: =IFERROR(R$4+(1-R$4)/(1+EXP(-1.7*R$2*($C16-R$3))),"") ->  | S16: =IFERROR(S$4+(1-S$4)/(1+EXP(-1.7*S$2*($C16-S$3))),"") ->  | T16: =IFERROR(T$4+(1-T$4)/(1+EXP(-1.7*T$2*($C16-T$3))),"") ->  | U16: =IFERROR(U$4+(1-U$4)/(1+EXP(-1.7*U$2*($C16-U$3))),"") ->  | V16: =IFERROR(V$4+(1-V$4)/(1+EXP(-1.7*V$2*($C16-V$3))),"") ->  | W16: =IFERROR(W$4+(1-W$4)/(1+EXP(-1.7*W$2*($C16-W$3))),"") ->  | X16: =IFERROR(X$4+(1-X$4)/(1+EXP(-1.7*X$2*($C16-X$3))),"") ->  | Y16: =IFERROR(Y$4+(1-Y$4)/(1+EXP(-1.7*Y$2*($C16-Y$3))),"") ->  | Z16: =IFERROR(Z$4+(1-Z$4)/(1+EXP(-1.7*Z$2*($C16-Z$3))),"") ->  | AA16: =IFERROR(AA$4+(1-AA$4)/(1+EXP(-1.7*AA$2*($C16-AA$3))),"") ->  | AB16: =IFERROR(AB$4+(1-AB$4)/(1+EXP(-1.7*AB$2*($C16-AB$3))),"") ->  | AC16: =IFERROR(AC$4+(1-AC$4)/(1+EXP(-1.7*AC$2*($C16-AC$3))),"") ->  | AD16: =IFERROR(AD$4+(1-AD$4)/(1+EXP(-1.7*AD$2*($C16-AD$3))),"") ->  | AE16: =IFERROR(AE$4+(1-AE$4)/(1+EXP(-1.7*AE$2*($C16-AE$3))),"") ->  | AF16: =IFERROR(AF$4+(1-AF$4)/(1+EXP(-1.7*AF$2*($C16-AF$3))),"") ->  | AG16: =IFERROR(AG$4+(1-AG$4)/(1+EXP(-1.7*AG$2*($C16-AG$3))),"") -> 
A17: 8 | B17: 0.01335915874 | C17: -3.93 | D17: =IFERROR(D$4+(1-D$4)/(1+EXP(-1.7*D$2*($C17-D$3))),"") -> 0.01611541823 | E17: =IFERROR(E$4+(1-E$4)/(1+EXP(-1.7*E$2*($C17-E$3))),"") -> 0.1959435153 | F17: =IFERROR(F$4+(1-F$4)/(1+EXP(-1.7*F$2*($C17-F$3))),"") -> 0.2735788927 | G17: =IFERROR(G$4+(1-G$4)/(1+EXP(-1.7*G$2*($C17-G$3))),"") -> 0.2732915621 | H17: =IFERROR(H$4+(1-H$4)/(1+EXP(-1.7*H$2*($C17-H$3))),"") -> 0.07318031405 | I17: =IFERROR(I$4+(1-I$4)/(1+EXP(-1.7*I$2*($C17-I$3))),"") ->  | J17: =IFERROR(J$4+(1-J$4)/(1+EXP(-1.7*J$2*($C17-J$3))),"") ->  | K17: =IFERROR(K$4+(1-K$4)/(1+EXP(-1.7*K$2*($C17-K$3))),"") ->  | L17: =IFERROR(L$4+(1-L$4)/(1+EXP(-1.7*L$2*($C17-L$3))),"") ->  | M17: =IFERROR(M$4+(1-M$4)/(1+EXP(-1.7*M$2*($C17-M$3))),"") ->  | N17: =IFERROR(N$4+(1-N$4)/(1+EXP(-1.7*N$2*($C17-N$3))),"") ->  | O17: =IFERROR(O$4+(1-O$4)/(1+EXP(-1.7*O$2*($C17-O$3))),"") ->  | P17: =IFERROR(P$4+(1-P$4)/(1+EXP(-1.7*P$2*($C17-P$3))),"") ->  | Q17: =IFERROR(Q$4+(1-Q$4)/(1+EXP(-1.7*Q$2*($C17-Q$3))),"") ->  | R17: =IFERROR(R$4+(1-R$4)/(1+EXP(-1.7*R$2*($C17-R$3))),"") ->  | S17: =IFERROR(S$4+(1-S$4)/(1+EXP(-1.7*S$2*($C17-S$3))),"") ->  | T17: =IFERROR(T$4+(1-T$4)/(1+EXP(-1.7*T$2*($C17-T$3))),"") ->  | U17: =IFERROR(U$4+(1-U$4)/(1+EXP(-1.7*U$2*($C17-U$3))),"") ->  | V17: =IFERROR(V$4+(1-V$4)/(1+EXP(-1.7*V$2*($C17-V$3))),"") ->  | W17: =IFERROR(W$4+(1-W$4)/(1+EXP(-1.7*W$2*($C17-W$3))),"") ->  | X17: =IFERROR(X$4+(1-X$4)/(1+EXP(-1.7*X$2*($C17-X$3))),"") ->  | Y17: =IFERROR(Y$4+(1-Y$4)/(1+EXP(-1.7*Y$2*($C17-Y$3))),"") ->  | Z17: =IFERROR(Z$4+(1-Z$4)/(1+EXP(-1.7*Z$2*($C17-Z$3))),"") ->  | AA17: =IFERROR(AA$4+(1-AA$4)/(1+EXP(-1.7*AA$2*($C17-AA$3))),"") ->  | AB17: =IFERROR(AB$4+(1-AB$4)/(1+EXP(-1.7*AB$2*($C17-AB$3))),"") ->  | AC17: =IFERROR(AC$4+(1-AC$4)/(1+EXP(-1.7*AC$2*($C17-AC$3))),"") ->  | AD17: =IFERROR(AD$4+(1-AD$4)/(1+EXP(-1.7*AD$2*($C17-AD$3))),"") ->  | AE17: =IFERROR(AE$4+(1-AE$4)/(1+EXP(-1.7*AE$2*($C17-AE$3))),"") ->  | AF17: =IFERROR(AF$4+(1-AF$4)/(1+EXP(-1.7*AF$2*($C17-AF$3))),"") ->  | AG17: =IFERROR(AG$4+(1-AG$4)/(1+EXP(-1.7*AG$2*($C17-AG$3))),"") -> 
A18: 9 | B18: 0.01338458098 | C18: -3.92 | D18: =IFERROR(D$4+(1-D$4)/(1+EXP(-1.7*D$2*($C18-D$3))),"") -> 0.01611654404 | E18: =IFERROR(E$4+(1-E$4)/(1+EXP(-1.7*E$2*($C18-E$3))),"") -> 0.1960934552 | F18: =IFERROR(F$4+(1-F$4)/(1+EXP(-1.7*F$2*($C18-F$3))),"") -> 0.2738901989 | G18: =IFERROR(G$4+(1-G$4)/(1+EXP(-1.7*G$2*($C18-G$3))),"") -> 0.2732916045 | H18: =IFERROR(H$4+(1-H$4)/(1+EXP(-1.7*H$2*($C18-H$3))),"") -> 0.07318033269 | I18: =IFERROR(I$4+(1-I$4)/(1+EXP(-1.7*I$2*($C18-I$3))),"") ->  | J18: =IFERROR(J$4+(1-J$4)/(1+EXP(-1.7*J$2*($C18-J$3))),"") ->  | K18: =IFERROR(K$4+(1-K$4)/(1+EXP(-1.7*K$2*($C18-K$3))),"") ->  | L18: =IFERROR(L$4+(1-L$4)/(1+EXP(-1.7*L$2*($C18-L$3))),"") ->  | M18: =IFERROR(M$4+(1-M$4)/(1+EXP(-1.7*M$2*($C18-M$3))),"") ->  | N18: =IFERROR(N$4+(1-N$4)/(1+EXP(-1.7*N$2*($C18-N$3))),"") ->  | O18: =IFERROR(O$4+(1-O$4)/(1+EXP(-1.7*O$2*($C18-O$3))),"") ->  | P18: =IFERROR(P$4+(1-P$4)/(1+EXP(-1.7*P$2*($C18-P$3))),"") ->  | Q18: =IFERROR(Q$4+(1-Q$4)/(1+EXP(-1.7*Q$2*($C18-Q$3))),"") ->  | R18: =IFERROR(R$4+(1-R$4)/(1+EXP(-1.7*R$2*($C18-R$3))),"") ->  | S18: =IFERROR(S$4+(1-S$4)/(1+EXP(-1.7*S$2*($C18-S$3))),"") ->  | T18: =IFERROR(T$4+(1-T$4)/(1+EXP(-1.7*T$2*($C18-T$3))),"") ->  | U18: =IFERROR(U$4+(1-U$4)/(1+EXP(-1.7*U$2*($C18-U$3))),"") ->  | V18: =IFERROR(V$4+(1-V$4)/(1+EXP(-1.7*V$2*($C18-V$3))),"") ->  | W18: =IFERROR(W$4+(1-W$4)/(1+EXP(-1.7*W$2*($C18-W$3))),"") ->  | X18: =IFERROR(X$4+(1-X$4)/(1+EXP(-1.7*X$2*($C18-X$3))),"") ->  | Y18: =IFERROR(Y$4+(1-Y$4)/(1+EXP(-1.7*Y$2*($C18-Y$3))),"") ->  | Z18: =IFERROR(Z$4+(1-Z$4)/(1+EXP(-1.7*Z$2*($C18-Z$3))),"") ->  | AA18: =IFERROR(AA$4+(1-AA$4)/(1+EXP(-1.7*AA$2*($C18-AA$3))),"") ->  | AB18: =IFERROR(AB$4+(1-AB$4)/(1+EXP(-1.7*AB$2*($C18-AB$3))),"") ->  | AC18: =IFERROR(AC$4+(1-AC$4)/(1+EXP(-1.7*AC$2*($C18-AC$3))),"") ->  | AD18: =IFERROR(AD$4+(1-AD$4)/(1+EXP(-1.7*AD$2*($C18-AD$3))),"") ->  | AE18: =IFERROR(AE$4+(1-AE$4)/(1+EXP(-1.7*AE$2*($C18-AE$3))),"") ->  | AF18: =IFERROR(AF$4+(1-AF$4)/(1+EXP(-1.7*AF$2*($C18-AF$3))),"") ->  | AG18: =IFERROR(AG$4+(1-AG$4)/(1+EXP(-1.7*AG$2*($C18-AG$3))),"") -> 
A19: 10 | B19: 0.01341037809 | C19: -3.91 | D19: =IFERROR(D$4+(1-D$4)/(1+EXP(-1.7*D$2*($C19-D$3))),"") -> 0.01611768964 | E19: =IFERROR(E$4+(1-E$4)/(1+EXP(-1.7*E$2*($C19-E$3))),"") -> 0.1962458275 | F19: =IFERROR(F$4+(1-F$4)/(1+EXP(-1.7*F$2*($C19-F$3))),"") -> 0.2742053016 | G19: =IFERROR(G$4+(1-G$4)/(1+EXP(-1.7*G$2*($C19-G$3))),"") -> 0.2732916477 | H19: =IFERROR(H$4+(1-H$4)/(1+EXP(-1.7*H$2*($C19-H$3))),"") -> 0.07318035171 | I19: =IFERROR(I$4+(1-I$4)/(1+EXP(-1.7*I$2*($C19-I$3))),"") ->  | J19: =IFERROR(J$4+(1-J$4)/(1+EXP(-1.7*J$2*($C19-J$3))),"") ->  | K19: =IFERROR(K$4+(1-K$4)/(1+EXP(-1.7*K$2*($C19-K$3))),"") ->  | L19: =IFERROR(L$4+(1-L$4)/(1+EXP(-1.7*L$2*($C19-L$3))),"") ->  | M19: =IFERROR(M$4+(1-M$4)/(1+EXP(-1.7*M$2*($C19-M$3))),"") ->  | N19: =IFERROR(N$4+(1-N$4)/(1+EXP(-1.7*N$2*($C19-N$3))),"") ->  | O19: =IFERROR(O$4+(1-O$4)/(1+EXP(-1.7*O$2*($C19-O$3))),"") ->  | P19: =IFERROR(P$4+(1-P$4)/(1+EXP(-1.7*P$2*($C19-P$3))),"") ->  | Q19: =IFERROR(Q$4+(1-Q$4)/(1+EXP(-1.7*Q$2*($C19-Q$3))),"") ->  | R19: =IFERROR(R$4+(1-R$4)/(1+EXP(-1.7*R$2*($C19-R$3))),"") ->  | S19: =IFERROR(S$4+(1-S$4)/(1+EXP(-1.7*S$2*($C19-S$3))),"") ->  | T19: =IFERROR(T$4+(1-T$4)/(1+EXP(-1.7*T$2*($C19-T$3))),"") ->  | U19: =IFERROR(U$4+(1-U$4)/(1+EXP(-1.7*U$2*($C19-U$3))),"") ->  | V19: =IFERROR(V$4+(1-V$4)/(1+EXP(-1.7*V$2*($C19-V$3))),"") ->  | W19: =IFERROR(W$4+(1-W$4)/(1+EXP(-1.7*W$2*($C19-W$3))),"") ->  | X19: =IFERROR(X$4+(1-X$4)/(1+EXP(-1.7*X$2*($C19-X$3))),"") ->  | Y19: =IFERROR(Y$4+(1-Y$4)/(1+EXP(-1.7*Y$2*($C19-Y$3))),"") ->  | Z19: =IFERROR(Z$4+(1-Z$4)/(1+EXP(-1.7*Z$2*($C19-Z$3))),"") ->  | AA19: =IFERROR(AA$4+(1-AA$4)/(1+EXP(-1.7*AA$2*($C19-AA$3))),"") ->  | AB19: =IFERROR(AB$4+(1-AB$4)/(1+EXP(-1.7*AB$2*($C19-AB$3))),"") ->  | AC19: =IFERROR(AC$4+(1-AC$4)/(1+EXP(-1.7*AC$2*($C19-AC$3))),"") ->  | AD19: =IFERROR(AD$4+(1-AD$4)/(1+EXP(-1.7*AD$2*($C19-AD$3))),"") ->  | AE19: =IFERROR(AE$4+(1-AE$4)/(1+EXP(-1.7*AE$2*($C19-AE$3))),"") ->  | AF19: =IFERROR(AF$4+(1-AF$4)/(1+EXP(-1.7*AF$2*($C19-AF$3))),"") ->  | AG19: =IFERROR(AG$4+(1-AG$4)/(1+EXP(-1.7*AG$2*($C19-AG$3))),"") -> 
A20: 11 | B20: 0.01343655579 | C20: -3.9 | D20: =IFERROR(D$4+(1-D$4)/(1+EXP(-1.7*D$2*($C20-D$3))),"") -> 0.01611885536 | E20: =IFERROR(E$4+(1-E$4)/(1+EXP(-1.7*E$2*($C20-E$3))),"") -> 0.1964006705 | F20: =IFERROR(F$4+(1-F$4)/(1+EXP(-1.7*F$2*($C20-F$3))),"") -> 0.2745242437 | G20: =IFERROR(G$4+(1-G$4)/(1+EXP(-1.7*G$2*($C20-G$3))),"") -> 0.2732916917 | H20: =IFERROR(H$4+(1-H$4)/(1+EXP(-1.7*H$2*($C20-H$3))),"") -> 0.07318037112 | I20: =IFERROR(I$4+(1-I$4)/(1+EXP(-1.7*I$2*($C20-I$3))),"") ->  | J20: =IFERROR(J$4+(1-J$4)/(1+EXP(-1.7*J$2*($C20-J$3))),"") ->  | K20: =IFERROR(K$4+(1-K$4)/(1+EXP(-1.7*K$2*($C20-K$3))),"") ->  | L20: =IFERROR(L$4+(1-L$4)/(1+EXP(-1.7*L$2*($C20-L$3))),"") ->  | M20: =IFERROR(M$4+(1-M$4)/(1+EXP(-1.7*M$2*($C20-M$3))),"") ->  | N20: =IFERROR(N$4+(1-N$4)/(1+EXP(-1.7*N$2*($C20-N$3))),"") ->  | O20: =IFERROR(O$4+(1-O$4)/(1+EXP(-1.7*O$2*($C20-O$3))),"") ->  | P20: =IFERROR(P$4+(1-P$4)/(1+EXP(-1.7*P$2*($C20-P$3))),"") ->  | Q20: =IFERROR(Q$4+(1-Q$4)/(1+EXP(-1.7*Q$2*($C20-Q$3))),"") ->  | R20: =IFERROR(R$4+(1-R$4)/(1+EXP(-1.7*R$2*($C20-R$3))),"") ->  | S20: =IFERROR(S$4+(1-S$4)/(1+EXP(-1.7*S$2*($C20-S$3))),"") ->  | T20: =IFERROR(T$4+(1-T$4)/(1+EXP(-1.7*T$2*($C20-T$3))),"") ->  | U20: =IFERROR(U$4+(1-U$4)/(1+EXP(-1.7*U$2*($C20-U$3))),"") ->  | V20: =IFERROR(V$4+(1-V$4)/(1+EXP(-1.7*V$2*($C20-V$3))),"") ->  | W20: =IFERROR(W$4+(1-W$4)/(1+EXP(-1.7*W$2*($C20-W$3))),"") ->  | X20: =IFERROR(X$4+(1-X$4)/(1+EXP(-1.7*X$2*($C20-X$3))),"") ->  | Y20: =IFERROR(Y$4+(1-Y$4)/(1+EXP(-1.7*Y$2*($C20-Y$3))),"") ->  | Z20: =IFERROR(Z$4+(1-Z$4)/(1+EXP(-1.7*Z$2*($C20-Z$3))),"") ->  | AA20: =IFERROR(AA$4+(1-AA$4)/(1+EXP(-1.7*AA$2*($C20-AA$3))),"") ->  | AB20: =IFERROR(AB$4+(1-AB$4)/(1+EXP(-1.7*AB$2*($C20-AB$3))),"") ->  | AC20: =IFERROR(AC$4+(1-AC$4)/(1+EXP(-1.7*AC$2*($C20-AC$3))),"") ->  | AD20: =IFERROR(AD$4+(1-AD$4)/(1+EXP(-1.7*AD$2*($C20-AD$3))),"") ->  | AE20: =IFERROR(AE$4+(1-AE$4)/(1+EXP(-1.7*AE$2*($C20-AE$3))),"") ->  | AF20: =IFERROR(AF$4+(1-AF$4)/(1+EXP(-1.7*AF$2*($C20-AF$3))),"") ->  | AG20: =IFERROR(AG$4+(1-AG$4)/(1+EXP(-1.7*AG$2*($C20-AG$3))),"") -> 
A21: 12 | B21: 0.0134631199 | C21: -3.89 | D21: =IFERROR(D$4+(1-D$4)/(1+EXP(-1.7*D$2*($C21-D$3))),"") -> 0.01612004158 | E21: =IFERROR(E$4+(1-E$4)/(1+EXP(-1.7*E$2*($C21-E$3))),"") -> 0.1965580235 | F21: =IFERROR(F$4+(1-F$4)/(1+EXP(-1.7*F$2*($C21-F$3))),"") -> 0.2748470684 | G21: =IFERROR(G$4+(1-G$4)/(1+EXP(-1.7*G$2*($C21-G$3))),"") -> 0.2732917365 | H21: =IFERROR(H$4+(1-H$4)/(1+EXP(-1.7*H$2*($C21-H$3))),"") -> 0.07318039093 | I21: =IFERROR(I$4+(1-I$4)/(1+EXP(-1.7*I$2*($C21-I$3))),"") ->  | J21: =IFERROR(J$4+(1-J$4)/(1+EXP(-1.7*J$2*($C21-J$3))),"") ->  | K21: =IFERROR(K$4+(1-K$4)/(1+EXP(-1.7*K$2*($C21-K$3))),"") ->  | L21: =IFERROR(L$4+(1-L$4)/(1+EXP(-1.7*L$2*($C21-L$3))),"") ->  | M21: =IFERROR(M$4+(1-M$4)/(1+EXP(-1.7*M$2*($C21-M$3))),"") ->  | N21: =IFERROR(N$4+(1-N$4)/(1+EXP(-1.7*N$2*($C21-N$3))),"") ->  | O21: =IFERROR(O$4+(1-O$4)/(1+EXP(-1.7*O$2*($C21-O$3))),"") ->  | P21: =IFERROR(P$4+(1-P$4)/(1+EXP(-1.7*P$2*($C21-P$3))),"") ->  | Q21: =IFERROR(Q$4+(1-Q$4)/(1+EXP(-1.7*Q$2*($C21-Q$3))),"") ->  | R21: =IFERROR(R$4+(1-R$4)/(1+EXP(-1.7*R$2*($C21-R$3))),"") ->  | S21: =IFERROR(S$4+(1-S$4)/(1+EXP(-1.7*S$2*($C21-S$3))),"") ->  | T21: =IFERROR(T$4+(1-T$4)/(1+EXP(-1.7*T$2*($C21-T$3))),"") ->  | U21: =IFERROR(U$4+(1-U$4)/(1+EXP(-1.7*U$2*($C21-U$3))),"") ->  | V21: =IFERROR(V$4+(1-V$4)/(1+EXP(-1.7*V$2*($C21-V$3))),"") ->  | W21: =IFERROR(W$4+(1-W$4)/(1+EXP(-1.7*W$2*($C21-W$3))),"") ->  | X21: =IFERROR(X$4+(1-X$4)/(1+EXP(-1.7*X$2*($C21-X$3))),"") ->  | Y21: =IFERROR(Y$4+(1-Y$4)/(1+EXP(-1.7*Y$2*($C21-Y$3))),"") ->  | Z21: =IFERROR(Z$4+(1-Z$4)/(1+EXP(-1.7*Z$2*($C21-Z$3))),"") ->  | AA21: =IFERROR(AA$4+(1-AA$4)/(1+EXP(-1.7*AA$2*($C21-AA$3))),"") ->  | AB21: =IFERROR(AB$4+(1-AB$4)/(1+EXP(-1.7*AB$2*($C21-AB$3))),"") ->  | AC21: =IFERROR(AC$4+(1-AC$4)/(1+EXP(-1.7*AC$2*($C21-AC$3))),"") ->  | AD21: =IFERROR(AD$4+(1-AD$4)/(1+EXP(-1.7*AD$2*($C21-AD$3))),"") ->  | AE21: =IFERROR(AE$4+(1-AE$4)/(1+EXP(-1.7*AE$2*($C21-AE$3))),"") ->  | AF21: =IFERROR(AF$4+(1-AF$4)/(1+EXP(-1.7*AF$2*($C21-AF$3))),"") ->  | AG21: =IFERROR(AG$4+(1-AG$4)/(1+EXP(-1.7*AG$2*($C21-AG$3))),"") -> 
A22: 13 | B22: 0.01349007633 | C22: -3.88 | D22: =IFERROR(D$4+(1-D$4)/(1+EXP(-1.7*D$2*($C22-D$3))),"") -> 0.01612124863 | E22: =IFERROR(E$4+(1-E$4)/(1+EXP(-1.7*E$2*($C22-E$3))),"") -> 0.196717926 | F22: =IFERROR(F$4+(1-F$4)/(1+EXP(-1.7*F$2*($C22-F$3))),"") -> 0.2751738193 | G22: =IFERROR(G$4+(1-G$4)/(1+EXP(-1.7*G$2*($C22-G$3))),"") -> 0.2732917822 | H22: =IFERROR(H$4+(1-H$4)/(1+EXP(-1.7*H$2*($C22-H$3))),"") -> 0.07318041115 | I22: =IFERROR(I$4+(1-I$4)/(1+EXP(-1.7*I$2*($C22-I$3))),"") ->  | J22: =IFERROR(J$4+(1-J$4)/(1+EXP(-1.7*J$2*($C22-J$3))),"") ->  | K22: =IFERROR(K$4+(1-K$4)/(1+EXP(-1.7*K$2*($C22-K$3))),"") ->  | L22: =IFERROR(L$4+(1-L$4)/(1+EXP(-1.7*L$2*($C22-L$3))),"") ->  | M22: =IFERROR(M$4+(1-M$4)/(1+EXP(-1.7*M$2*($C22-M$3))),"") ->  | N22: =IFERROR(N$4+(1-N$4)/(1+EXP(-1.7*N$2*($C22-N$3))),"") ->  | O22: =IFERROR(O$4+(1-O$4)/(1+EXP(-1.7*O$2*($C22-O$3))),"") ->  | P22: =IFERROR(P$4+(1-P$4)/(1+EXP(-1.7*P$2*($C22-P$3))),"") ->  | Q22: =IFERROR(Q$4+(1-Q$4)/(1+EXP(-1.7*Q$2*($C22-Q$3))),"") ->  | R22: =IFERROR(R$4+(1-R$4)/(1+EXP(-1.7*R$2*($C22-R$3))),"") ->  | S22: =IFERROR(S$4+(1-S$4)/(1+EXP(-1.7*S$2*($C22-S$3))),"") ->  | T22: =IFERROR(T$4+(1-T$4)/(1+EXP(-1.7*T$2*($C22-T$3))),"") ->  | U22: =IFERROR(U$4+(1-U$4)/(1+EXP(-1.7*U$2*($C22-U$3))),"") ->  | V22: =IFERROR(V$4+(1-V$4)/(1+EXP(-1.7*V$2*($C22-V$3))),"") ->  | W22: =IFERROR(W$4+(1-W$4)/(1+EXP(-1.7*W$2*($C22-W$3))),"") ->  | X22: =IFERROR(X$4+(1-X$4)/(1+EXP(-1.7*X$2*($C22-X$3))),"") ->  | Y22: =IFERROR(Y$4+(1-Y$4)/(1+EXP(-1.7*Y$2*($C22-Y$3))),"") ->  | Z22: =IFERROR(Z$4+(1-Z$4)/(1+EXP(-1.7*Z$2*($C22-Z$3))),"") ->  | AA22: =IFERROR(AA$4+(1-AA$4)/(1+EXP(-1.7*AA$2*($C22-AA$3))),"") ->  | AB22: =IFERROR(AB$4+(1-AB$4)/(1+EXP(-1.7*AB$2*($C22-AB$3))),"") ->  | AC22: =IFERROR(AC$4+(1-AC$4)/(1+EXP(-1.7*AC$2*($C22-AC$3))),"") ->  | AD22: =IFERROR(AD$4+(1-AD$4)/(1+EXP(-1.7*AD$2*($C22-AD$3))),"") ->  | AE22: =IFERROR(AE$4+(1-AE$4)/(1+EXP(-1.7*AE$2*($C22-AE$3))),"") ->  | AF22: =IFERROR(AF$4+(1-AF$4)/(1+EXP(-1.7*AF$2*($C22-AF$3))),"") ->  | AG22: =IFERROR(AG$4+(1-AG$4)/(1+EXP(-1.7*AG$2*($C22-AG$3))),"") -> 
A23: 14 | B23: 0.0135174311 | C23: -3.87 | D23: =IFERROR(D$4+(1-D$4)/(1+EXP(-1.7*D$2*($C23-D$3))),"") -> 0.0161224769 | E23: =IFERROR(E$4+(1-E$4)/(1+EXP(-1.7*E$2*($C23-E$3))),"") -> 0.1968804184 | F23: =IFERROR(F$4+(1-F$4)/(1+EXP(-1.7*F$2*($C23-F$3))),"") -> 0.2755045404 | G23: =IFERROR(G$4+(1-G$4)/(1+EXP(-1.7*G$2*($C23-G$3))),"") -> 0.2732918287 | H23: =IFERROR(H$4+(1-H$4)/(1+EXP(-1.7*H$2*($C23-H$3))),"") -> 0.07318043178 | I23: =IFERROR(I$4+(1-I$4)/(1+EXP(-1.7*I$2*($C23-I$3))),"") ->  | J23: =IFERROR(J$4+(1-J$4)/(1+EXP(-1.7*J$2*($C23-J$3))),"") ->  | K23: =IFERROR(K$4+(1-K$4)/(1+EXP(-1.7*K$2*($C23-K$3))),"") ->  | L23: =IFERROR(L$4+(1-L$4)/(1+EXP(-1.7*L$2*($C23-L$3))),"") ->  | M23: =IFERROR(M$4+(1-M$4)/(1+EXP(-1.7*M$2*($C23-M$3))),"") ->  | N23: =IFERROR(N$4+(1-N$4)/(1+EXP(-1.7*N$2*($C23-N$3))),"") ->  | O23: =IFERROR(O$4+(1-O$4)/(1+EXP(-1.7*O$2*($C23-O$3))),"") ->  | P23: =IFERROR(P$4+(1-P$4)/(1+EXP(-1.7*P$2*($C23-P$3))),"") ->  | Q23: =IFERROR(Q$4+(1-Q$4)/(1+EXP(-1.7*Q$2*($C23-Q$3))),"") ->  | R23: =IFERROR(R$4+(1-R$4)/(1+EXP(-1.7*R$2*($C23-R$3))),"") ->  | S23: =IFERROR(S$4+(1-S$4)/(1+EXP(-1.7*S$2*($C23-S$3))),"") ->  | T23: =IFERROR(T$4+(1-T$4)/(1+EXP(-1.7*T$2*($C23-T$3))),"") ->  | U23: =IFERROR(U$4+(1-U$4)/(1+EXP(-1.7*U$2*($C23-U$3))),"") ->  | V23: =IFERROR(V$4+(1-V$4)/(1+EXP(-1.7*V$2*($C23-V$3))),"") ->  | W23: =IFERROR(W$4+(1-W$4)/(1+EXP(-1.7*W$2*($C23-W$3))),"") ->  | X23: =IFERROR(X$4+(1-X$4)/(1+EXP(-1.7*X$2*($C23-X$3))),"") ->  | Y23: =IFERROR(Y$4+(1-Y$4)/(1+EXP(-1.7*Y$2*($C23-Y$3))),"") ->  | Z23: =IFERROR(Z$4+(1-Z$4)/(1+EXP(-1.7*Z$2*($C23-Z$3))),"") ->  | AA23: =IFERROR(AA$4+(1-AA$4)/(1+EXP(-1.7*AA$2*($C23-AA$3))),"") ->  | AB23: =IFERROR(AB$4+(1-AB$4)/(1+EXP(-1.7*AB$2*($C23-AB$3))),"") ->  | AC23: =IFERROR(AC$4+(1-AC$4)/(1+EXP(-1.7*AC$2*($C23-AC$3))),"") ->  | AD23: =IFERROR(AD$4+(1-AD$4)/(1+EXP(-1.7*AD$2*($C23-AD$3))),"") ->  | AE23: =IFERROR(AE$4+(1-AE$4)/(1+EXP(-1.7*AE$2*($C23-AE$3))),"") ->  | AF23: =IFERROR(AF$4+(1-AF$4)/(1+EXP(-1.7*AF$2*($C23-AF$3))),"") ->  | AG23: =IFERROR(AG$4+(1-AG$4)/(1+EXP(-1.7*AG$2*($C23-AG$3))),"") -> 
A24: 15 | B24: 0.01354519031 | C24: -3.86 | D24: =IFERROR(D$4+(1-D$4)/(1+EXP(-1.7*D$2*($C24-D$3))),"") -> 0.01612372676 | E24: =IFERROR(E$4+(1-E$4)/(1+EXP(-1.7*E$2*($C24-E$3))),"") -> 0.1970455414 | F24: =IFERROR(F$4+(1-F$4)/(1+EXP(-1.7*F$2*($C24-F$3))),"") -> 0.2758392762 | G24: =IFERROR(G$4+(1-G$4)/(1+EXP(-1.7*G$2*($C24-G$3))),"") -> 0.2732918761 | H24: =IFERROR(H$4+(1-H$4)/(1+EXP(-1.7*H$2*($C24-H$3))),"") -> 0.07318045284 | I24: =IFERROR(I$4+(1-I$4)/(1+EXP(-1.7*I$2*($C24-I$3))),"") ->  | J24: =IFERROR(J$4+(1-J$4)/(1+EXP(-1.7*J$2*($C24-J$3))),"") ->  | K24: =IFERROR(K$4+(1-K$4)/(1+EXP(-1.7*K$2*($C24-K$3))),"") ->  | L24: =IFERROR(L$4+(1-L$4)/(1+EXP(-1.7*L$2*($C24-L$3))),"") ->  | M24: =IFERROR(M$4+(1-M$4)/(1+EXP(-1.7*M$2*($C24-M$3))),"") ->  | N24: =IFERROR(N$4+(1-N$4)/(1+EXP(-1.7*N$2*($C24-N$3))),"") ->  | O24: =IFERROR(O$4+(1-O$4)/(1+EXP(-1.7*O$2*($C24-O$3))),"") ->  | P24: =IFERROR(P$4+(1-P$4)/(1+EXP(-1.7*P$2*($C24-P$3))),"") ->  | Q24: =IFERROR(Q$4+(1-Q$4)/(1+EXP(-1.7*Q$2*($C24-Q$3))),"") ->  | R24: =IFERROR(R$4+(1-R$4)/(1+EXP(-1.7*R$2*($C24-R$3))),"") ->  | S24: =IFERROR(S$4+(1-S$4)/(1+EXP(-1.7*S$2*($C24-S$3))),"") ->  | T24: =IFERROR(T$4+(1-T$4)/(1+EXP(-1.7*T$2*($C24-T$3))),"") ->  | U24: =IFERROR(U$4+(1-U$4)/(1+EXP(-1.7*U$2*($C24-U$3))),"") ->  | V24: =IFERROR(V$4+(1-V$4)/(1+EXP(-1.7*V$2*($C24-V$3))),"") ->  | W24: =IFERROR(W$4+(1-W$4)/(1+EXP(-1.7*W$2*($C24-W$3))),"") ->  | X24: =IFERROR(X$4+(1-X$4)/(1+EXP(-1.7*X$2*($C24-X$3))),"") ->  | Y24: =IFERROR(Y$4+(1-Y$4)/(1+EXP(-1.7*Y$2*($C24-Y$3))),"") ->  | Z24: =IFERROR(Z$4+(1-Z$4)/(1+EXP(-1.7*Z$2*($C24-Z$3))),"") ->  | AA24: =IFERROR(AA$4+(1-AA$4)/(1+EXP(-1.7*AA$2*($C24-AA$3))),"") ->  | AB24: =IFERROR(AB$4+(1-AB$4)/(1+EXP(-1.7*AB$2*($C24-AB$3))),"") ->  | AC24: =IFERROR(AC$4+(1-AC$4)/(1+EXP(-1.7*AC$2*($C24-AC$3))),"") ->  | AD24: =IFERROR(AD$4+(1-AD$4)/(1+EXP(-1.7*AD$2*($C24-AD$3))),"") ->  | AE24: =IFERROR(AE$4+(1-AE$4)/(1+EXP(-1.7*AE$2*($C24-AE$3))),"") ->  | AF24: =IFERROR(AF$4+(1-AF$4)/(1+EXP(-1.7*AF$2*($C24-AF$3))),"") ->  | AG24: =IFERROR(AG$4+(1-AG$4)/(1+EXP(-1.7*AG$2*($C24-AG$3))),"") -> 
A25: 16 | B25: 0.01357336016 | C25: -3.85 | D25: =IFERROR(D$4+(1-D$4)/(1+EXP(-1.7*D$2*($C25-D$3))),"") -> 0.01612499857 | E25: =IFERROR(E$4+(1-E$4)/(1+EXP(-1.7*E$2*($C25-E$3))),"") -> 0.1972133367 | F25: =IFERROR(F$4+(1-F$4)/(1+EXP(-1.7*F$2*($C25-F$3))),"") -> 0.2761780715 | G25: =IFERROR(G$4+(1-G$4)/(1+EXP(-1.7*G$2*($C25-G$3))),"") -> 0.2732919243 | H25: =IFERROR(H$4+(1-H$4)/(1+EXP(-1.7*H$2*($C25-H$3))),"") -> 0.07318047432 | I25: =IFERROR(I$4+(1-I$4)/(1+EXP(-1.7*I$2*($C25-I$3))),"") ->  | J25: =IFERROR(J$4+(1-J$4)/(1+EXP(-1.7*J$2*($C25-J$3))),"") ->  | K25: =IFERROR(K$4+(1-K$4)/(1+EXP(-1.7*K$2*($C25-K$3))),"") ->  | L25: =IFERROR(L$4+(1-L$4)/(1+EXP(-1.7*L$2*($C25-L$3))),"") ->  | M25: =IFERROR(M$4+(1-M$4)/(1+EXP(-1.7*M$2*($C25-M$3))),"") ->  | N25: =IFERROR(N$4+(1-N$4)/(1+EXP(-1.7*N$2*($C25-N$3))),"") ->  | O25: =IFERROR(O$4+(1-O$4)/(1+EXP(-1.7*O$2*($C25-O$3))),"") ->  | P25: =IFERROR(P$4+(1-P$4)/(1+EXP(-1.7*P$2*($C25-P$3))),"") ->  | Q25: =IFERROR(Q$4+(1-Q$4)/(1+EXP(-1.7*Q$2*($C25-Q$3))),"") ->  | R25: =IFERROR(R$4+(1-R$4)/(1+EXP(-1.7*R$2*($C25-R$3))),"") ->  | S25: =IFERROR(S$4+(1-S$4)/(1+EXP(-1.7*S$2*($C25-S$3))),"") ->  | T25: =IFERROR(T$4+(1-T$4)/(1+EXP(-1.7*T$2*($C25-T$3))),"") ->  | U25: =IFERROR(U$4+(1-U$4)/(1+EXP(-1.7*U$2*($C25-U$3))),"") ->  | V25: =IFERROR(V$4+(1-V$4)/(1+EXP(-1.7*V$2*($C25-V$3))),"") ->  | W25: =IFERROR(W$4+(1-W$4)/(1+EXP(-1.7*W$2*($C25-W$3))),"") ->  | X25: =IFERROR(X$4+(1-X$4)/(1+EXP(-1.7*X$2*($C25-X$3))),"") ->  | Y25: =IFERROR(Y$4+(1-Y$4)/(1+EXP(-1.7*Y$2*($C25-Y$3))),"") ->  | Z25: =IFERROR(Z$4+(1-Z$4)/(1+EXP(-1.7*Z$2*($C25-Z$3))),"") ->  | AA25: =IFERROR(AA$4+(1-AA$4)/(1+EXP(-1.7*AA$2*($C25-AA$3))),"") ->  | AB25: =IFERROR(AB$4+(1-AB$4)/(1+EXP(-1.7*AB$2*($C25-AB$3))),"") ->  | AC25: =IFERROR(AC$4+(1-AC$4)/(1+EXP(-1.7*AC$2*($C25-AC$3))),"") ->  | AD25: =IFERROR(AD$4+(1-AD$4)/(1+EXP(-1.7*AD$2*($C25-AD$3))),"") ->  | AE25: =IFERROR(AE$4+(1-AE$4)/(1+EXP(-1.7*AE$2*($C25-AE$3))),"") ->  | AF25: =IFERROR(AF$4+(1-AF$4)/(1+EXP(-1.7*AF$2*($C25-AF$3))),"") ->  | AG25: =IFERROR(AG$4+(1-AG$4)/(1+EXP(-1.7*AG$2*($C25-AG$3))),"") -> 
A26: 17 | B26: 0.01360194696 | C26: -3.84 | D26: =IFERROR(D$4+(1-D$4)/(1+EXP(-1.7*D$2*($C26-D$3))),"") -> 0.01612629274 | E26: =IFERROR(E$4+(1-E$4)/(1+EXP(-1.7*E$2*($C26-E$3))),"") -> 0.1973838461 | F26: =IFERROR(F$4+(1-F$4)/(1+EXP(-1.7*F$2*($C26-F$3))),"") -> 0.2765209714 | G26: =IFERROR(G$4+(1-G$4)/(1+EXP(-1.7*G$2*($C26-G$3))),"") -> 0.2732919735 | H26: =IFERROR(H$4+(1-H$4)/(1+EXP(-1.7*H$2*($C26-H$3))),"") -> 0.07318049625 | I26: =IFERROR(I$4+(1-I$4)/(1+EXP(-1.7*I$2*($C26-I$3))),"") ->  | J26: =IFERROR(J$4+(1-J$4)/(1+EXP(-1.7*J$2*($C26-J$3))),"") ->  | K26: =IFERROR(K$4+(1-K$4)/(1+EXP(-1.7*K$2*($C26-K$3))),"") ->  | L26: =IFERROR(L$4+(1-L$4)/(1+EXP(-1.7*L$2*($C26-L$3))),"") ->  | M26: =IFERROR(M$4+(1-M$4)/(1+EXP(-1.7*M$2*($C26-M$3))),"") ->  | N26: =IFERROR(N$4+(1-N$4)/(1+EXP(-1.7*N$2*($C26-N$3))),"") ->  | O26: =IFERROR(O$4+(1-O$4)/(1+EXP(-1.7*O$2*($C26-O$3))),"") ->  | P26: =IFERROR(P$4+(1-P$4)/(1+EXP(-1.7*P$2*($C26-P$3))),"") ->  | Q26: =IFERROR(Q$4+(1-Q$4)/(1+EXP(-1.7*Q$2*($C26-Q$3))),"") ->  | R26: =IFERROR(R$4+(1-R$4)/(1+EXP(-1.7*R$2*($C26-R$3))),"") ->  | S26: =IFERROR(S$4+(1-S$4)/(1+EXP(-1.7*S$2*($C26-S$3))),"") ->  | T26: =IFERROR(T$4+(1-T$4)/(1+EXP(-1.7*T$2*($C26-T$3))),"") ->  | U26: =IFERROR(U$4+(1-U$4)/(1+EXP(-1.7*U$2*($C26-U$3))),"") ->  | V26: =IFERROR(V$4+(1-V$4)/(1+EXP(-1.7*V$2*($C26-V$3))),"") ->  | W26: =IFERROR(W$4+(1-W$4)/(1+EXP(-1.7*W$2*($C26-W$3))),"") ->  | X26: =IFERROR(X$4+(1-X$4)/(1+EXP(-1.7*X$2*($C26-X$3))),"") ->  | Y26: =IFERROR(Y$4+(1-Y$4)/(1+EXP(-1.7*Y$2*($C26-Y$3))),"") ->  | Z26: =IFERROR(Z$4+(1-Z$4)/(1+EXP(-1.7*Z$2*($C26-Z$3))),"") ->  | AA26: =IFERROR(AA$4+(1-AA$4)/(1+EXP(-1.7*AA$2*($C26-AA$3))),"") ->  | AB26: =IFERROR(AB$4+(1-AB$4)/(1+EXP(-1.7*AB$2*($C26-AB$3))),"") ->  | AC26: =IFERROR(AC$4+(1-AC$4)/(1+EXP(-1.7*AC$2*($C26-AC$3))),"") ->  | AD26: =IFERROR(AD$4+(1-AD$4)/(1+EXP(-1.7*AD$2*($C26-AD$3))),"") ->  | AE26: =IFERROR(AE$4+(1-AE$4)/(1+EXP(-1.7*AE$2*($C26-AE$3))),"") ->  | AF26: =IFERROR(AF$4+(1-AF$4)/(1+EXP(-1.7*AF$2*($C26-AF$3))),"") ->  | AG26: =IFERROR(AG$4+(1-AG$4)/(1+EXP(-1.7*AG$2*($C26-AG$3))),"") -> 
A27: 18 | B27: 0.0136309571 | C27: -3.83 | D27: =IFERROR(D$4+(1-D$4)/(1+EXP(-1.7*D$2*($C27-D$3))),"") -> 0.01612760965 | E27: =IFERROR(E$4+(1-E$4)/(1+EXP(-1.7*E$2*($C27-E$3))),"") -> 0.1975571125 | F27: =IFERROR(F$4+(1-F$4)/(1+EXP(-1.7*F$2*($C27-F$3))),"") -> 0.2768680215 | G27: =IFERROR(G$4+(1-G$4)/(1+EXP(-1.7*G$2*($C27-G$3))),"") -> 0.2732920236 | H27: =IFERROR(H$4+(1-H$4)/(1+EXP(-1.7*H$2*($C27-H$3))),"") -> 0.07318051863 | I27: =IFERROR(I$4+(1-I$4)/(1+EXP(-1.7*I$2*($C27-I$3))),"") ->  | J27: =IFERROR(J$4+(1-J$4)/(1+EXP(-1.7*J$2*($C27-J$3))),"") ->  | K27: =IFERROR(K$4+(1-K$4)/(1+EXP(-1.7*K$2*($C27-K$3))),"") ->  | L27: =IFERROR(L$4+(1-L$4)/(1+EXP(-1.7*L$2*($C27-L$3))),"") ->  | M27: =IFERROR(M$4+(1-M$4)/(1+EXP(-1.7*M$2*($C27-M$3))),"") ->  | N27: =IFERROR(N$4+(1-N$4)/(1+EXP(-1.7*N$2*($C27-N$3))),"") ->  | O27: =IFERROR(O$4+(1-O$4)/(1+EXP(-1.7*O$2*($C27-O$3))),"") ->  | P27: =IFERROR(P$4+(1-P$4)/(1+EXP(-1.7*P$2*($C27-P$3))),"") ->  | Q27: =IFERROR(Q$4+(1-Q$4)/(1+EXP(-1.7*Q$2*($C27-Q$3))),"") ->  | R27: =IFERROR(R$4+(1-R$4)/(1+EXP(-1.7*R$2*($C27-R$3))),"") ->  | S27: =IFERROR(S$4+(1-S$4)/(1+EXP(-1.7*S$2*($C27-S$3))),"") ->  | T27: =IFERROR(T$4+(1-T$4)/(1+EXP(-1.7*T$2*($C27-T$3))),"") ->  | U27: =IFERROR(U$4+(1-U$4)/(1+EXP(-1.7*U$2*($C27-U$3))),"") ->  | V27: =IFERROR(V$4+(1-V$4)/(1+EXP(-1.7*V$2*($C27-V$3))),"") ->  | W27: =IFERROR(W$4+(1-W$4)/(1+EXP(-1.7*W$2*($C27-W$3))),"") ->  | X27: =IFERROR(X$4+(1-X$4)/(1+EXP(-1.7*X$2*($C27-X$3))),"") ->  | Y27: =IFERROR(Y$4+(1-Y$4)/(1+EXP(-1.7*Y$2*($C27-Y$3))),"") ->  | Z27: =IFERROR(Z$4+(1-Z$4)/(1+EXP(-1.7*Z$2*($C27-Z$3))),"") ->  | AA27: =IFERROR(AA$4+(1-AA$4)/(1+EXP(-1.7*AA$2*($C27-AA$3))),"") ->  | AB27: =IFERROR(AB$4+(1-AB$4)/(1+EXP(-1.7*AB$2*($C27-AB$3))),"") ->  | AC27: =IFERROR(AC$4+(1-AC$4)/(1+EXP(-1.7*AC$2*($C27-AC$3))),"") ->  | AD27: =IFERROR(AD$4+(1-AD$4)/(1+EXP(-1.7*AD$2*($C27-AD$3))),"") ->  | AE27: =IFERROR(AE$4+(1-AE$4)/(1+EXP(-1.7*AE$2*($C27-AE$3))),"") ->  | AF27: =IFERROR(AF$4+(1-AF$4)/(1+EXP(-1.7*AF$2*($C27-AF$3))),"") ->  | AG27: =IFERROR(AG$4+(1-AG$4)/(1+EXP(-1.7*AG$2*($C27-AG$3))),"") -> 
A28: 19 | B28: 0.0136603971 | C28: -3.82 | D28: =IFERROR(D$4+(1-D$4)/(1+EXP(-1.7*D$2*($C28-D$3))),"") -> 0.0161289497 | E28: =IFERROR(E$4+(1-E$4)/(1+EXP(-1.7*E$2*($C28-E$3))),"") -> 0.1977331792 | F28: =IFERROR(F$4+(1-F$4)/(1+EXP(-1.7*F$2*($C28-F$3))),"") -> 0.277219268 | G28: =IFERROR(G$4+(1-G$4)/(1+EXP(-1.7*G$2*($C28-G$3))),"") -> 0.2732920746 | H28: =IFERROR(H$4+(1-H$4)/(1+EXP(-1.7*H$2*($C28-H$3))),"") -> 0.07318054147 | I28: =IFERROR(I$4+(1-I$4)/(1+EXP(-1.7*I$2*($C28-I$3))),"") ->  | J28: =IFERROR(J$4+(1-J$4)/(1+EXP(-1.7*J$2*($C28-J$3))),"") ->  | K28: =IFERROR(K$4+(1-K$4)/(1+EXP(-1.7*K$2*($C28-K$3))),"") ->  | L28: =IFERROR(L$4+(1-L$4)/(1+EXP(-1.7*L$2*($C28-L$3))),"") ->  | M28: =IFERROR(M$4+(1-M$4)/(1+EXP(-1.7*M$2*($C28-M$3))),"") ->  | N28: =IFERROR(N$4+(1-N$4)/(1+EXP(-1.7*N$2*($C28-N$3))),"") ->  | O28: =IFERROR(O$4+(1-O$4)/(1+EXP(-1.7*O$2*($C28-O$3))),"") ->  | P28: =IFERROR(P$4+(1-P$4)/(1+EXP(-1.7*P$2*($C28-P$3))),"") ->  | Q28: =IFERROR(Q$4+(1-Q$4)/(1+EXP(-1.7*Q$2*($C28-Q$3))),"") ->  | R28: =IFERROR(R$4+(1-R$4)/(1+EXP(-1.7*R$2*($C28-R$3))),"") ->  | S28: =IFERROR(S$4+(1-S$4)/(1+EXP(-1.7*S$2*($C28-S$3))),"") ->  | T28: =IFERROR(T$4+(1-T$4)/(1+EXP(-1.7*T$2*($C28-T$3))),"") ->  | U28: =IFERROR(U$4+(1-U$4)/(1+EXP(-1.7*U$2*($C28-U$3))),"") ->  | V28: =IFERROR(V$4+(1-V$4)/(1+EXP(-1.7*V$2*($C28-V$3))),"") ->  | W28: =IFERROR(W$4+(1-W$4)/(1+EXP(-1.7*W$2*($C28-W$3))),"") ->  | X28: =IFERROR(X$4+(1-X$4)/(1+EXP(-1.7*X$2*($C28-X$3))),"") ->  | Y28: =IFERROR(Y$4+(1-Y$4)/(1+EXP(-1.7*Y$2*($C28-Y$3))),"") ->  | Z28: =IFERROR(Z$4+(1-Z$4)/(1+EXP(-1.7*Z$2*($C28-Z$3))),"") ->  | AA28: =IFERROR(AA$4+(1-AA$4)/(1+EXP(-1.7*AA$2*($C28-AA$3))),"") ->  | AB28: =IFERROR(AB$4+(1-AB$4)/(1+EXP(-1.7*AB$2*($C28-AB$3))),"") ->  | AC28: =IFERROR(AC$4+(1-AC$4)/(1+EXP(-1.7*AC$2*($C28-AC$3))),"") ->  | AD28: =IFERROR(AD$4+(1-AD$4)/(1+EXP(-1.7*AD$2*($C28-AD$3))),"") ->  | AE28: =IFERROR(AE$4+(1-AE$4)/(1+EXP(-1.7*AE$2*($C28-AE$3))),"") ->  | AF28: =IFERROR(AF$4+(1-AF$4)/(1+EXP(-1.7*AF$2*($C28-AF$3))),"") ->  | AG28: =IFERROR(AG$4+(1-AG$4)/(1+EXP(-1.7*AG$2*($C28-AG$3))),"") -> 
A29: 20 | B29: 0.01369027357 | C29: -3.81 | D29: =IFERROR(D$4+(1-D$4)/(1+EXP(-1.7*D$2*($C29-D$3))),"") -> 0.01613031329 | E29: =IFERROR(E$4+(1-E$4)/(1+EXP(-1.7*E$2*($C29-E$3))),"") -> 0.1979120902 | F29: =IFERROR(F$4+(1-F$4)/(1+EXP(-1.7*F$2*($C29-F$3))),"") -> 0.2775747572 | G29: =IFERROR(G$4+(1-G$4)/(1+EXP(-1.7*G$2*($C29-G$3))),"") -> 0.2732921266 | H29: =IFERROR(H$4+(1-H$4)/(1+EXP(-1.7*H$2*($C29-H$3))),"") -> 0.07318056478 | I29: =IFERROR(I$4+(1-I$4)/(1+EXP(-1.7*I$2*($C29-I$3))),"") ->  | J29: =IFERROR(J$4+(1-J$4)/(1+EXP(-1.7*J$2*($C29-J$3))),"") ->  | K29: =IFERROR(K$4+(1-K$4)/(1+EXP(-1.7*K$2*($C29-K$3))),"") ->  | L29: =IFERROR(L$4+(1-L$4)/(1+EXP(-1.7*L$2*($C29-L$3))),"") ->  | M29: =IFERROR(M$4+(1-M$4)/(1+EXP(-1.7*M$2*($C29-M$3))),"") ->  | N29: =IFERROR(N$4+(1-N$4)/(1+EXP(-1.7*N$2*($C29-N$3))),"") ->  | O29: =IFERROR(O$4+(1-O$4)/(1+EXP(-1.7*O$2*($C29-O$3))),"") ->  | P29: =IFERROR(P$4+(1-P$4)/(1+EXP(-1.7*P$2*($C29-P$3))),"") ->  | Q29: =IFERROR(Q$4+(1-Q$4)/(1+EXP(-1.7*Q$2*($C29-Q$3))),"") ->  | R29: =IFERROR(R$4+(1-R$4)/(1+EXP(-1.7*R$2*($C29-R$3))),"") ->  | S29: =IFERROR(S$4+(1-S$4)/(1+EXP(-1.7*S$2*($C29-S$3))),"") ->  | T29: =IFERROR(T$4+(1-T$4)/(1+EXP(-1.7*T$2*($C29-T$3))),"") ->  | U29: =IFERROR(U$4+(1-U$4)/(1+EXP(-1.7*U$2*($C29-U$3))),"") ->  | V29: =IFERROR(V$4+(1-V$4)/(1+EXP(-1.7*V$2*($C29-V$3))),"") ->  | W29: =IFERROR(W$4+(1-W$4)/(1+EXP(-1.7*W$2*($C29-W$3))),"") ->  | X29: =IFERROR(X$4+(1-X$4)/(1+EXP(-1.7*X$2*($C29-X$3))),"") ->  | Y29: =IFERROR(Y$4+(1-Y$4)/(1+EXP(-1.7*Y$2*($C29-Y$3))),"") ->  | Z29: =IFERROR(Z$4+(1-Z$4)/(1+EXP(-1.7*Z$2*($C29-Z$3))),"") ->  | AA29: =IFERROR(AA$4+(1-AA$4)/(1+EXP(-1.7*AA$2*($C29-AA$3))),"") ->  | AB29: =IFERROR(AB$4+(1-AB$4)/(1+EXP(-1.7*AB$2*($C29-AB$3))),"") ->  | AC29: =IFERROR(AC$4+(1-AC$4)/(1+EXP(-1.7*AC$2*($C29-AC$3))),"") ->  | AD29: =IFERROR(AD$4+(1-AD$4)/(1+EXP(-1.7*AD$2*($C29-AD$3))),"") ->  | AE29: =IFERROR(AE$4+(1-AE$4)/(1+EXP(-1.7*AE$2*($C29-AE$3))),"") ->  | AF29: =IFERROR(AF$4+(1-AF$4)/(1+EXP(-1.7*AF$2*($C29-AF$3))),"") ->  | AG29: =IFERROR(AG$4+(1-AG$4)/(1+EXP(-1.7*AG$2*($C29-AG$3))),"") -> 
A30: 21 | B30: 0.01372059322 | C30: -3.8 | D30: =IFERROR(D$4+(1-D$4)/(1+EXP(-1.7*D$2*($C30-D$3))),"") -> 0.01613170085 | E30: =IFERROR(E$4+(1-E$4)/(1+EXP(-1.7*E$2*($C30-E$3))),"") -> 0.1980938901 | F30: =IFERROR(F$4+(1-F$4)/(1+EXP(-1.7*F$2*($C30-F$3))),"") -> 0.277934536 | G30: =IFERROR(G$4+(1-G$4)/(1+EXP(-1.7*G$2*($C30-G$3))),"") -> 0.2732921796 | H30: =IFERROR(H$4+(1-H$4)/(1+EXP(-1.7*H$2*($C30-H$3))),"") -> 0.07318058856 | I30: =IFERROR(I$4+(1-I$4)/(1+EXP(-1.7*I$2*($C30-I$3))),"") ->  | J30: =IFERROR(J$4+(1-J$4)/(1+EXP(-1.7*J$2*($C30-J$3))),"") ->  | K30: =IFERROR(K$4+(1-K$4)/(1+EXP(-1.7*K$2*($C30-K$3))),"") ->  | L30: =IFERROR(L$4+(1-L$4)/(1+EXP(-1.7*L$2*($C30-L$3))),"") ->  | M30: =IFERROR(M$4+(1-M$4)/(1+EXP(-1.7*M$2*($C30-M$3))),"") ->  | N30: =IFERROR(N$4+(1-N$4)/(1+EXP(-1.7*N$2*($C30-N$3))),"") ->  | O30: =IFERROR(O$4+(1-O$4)/(1+EXP(-1.7*O$2*($C30-O$3))),"") ->  | P30: =IFERROR(P$4+(1-P$4)/(1+EXP(-1.7*P$2*($C30-P$3))),"") ->  | Q30: =IFERROR(Q$4+(1-Q$4)/(1+EXP(-1.7*Q$2*($C30-Q$3))),"") ->  | R30: =IFERROR(R$4+(1-R$4)/(1+EXP(-1.7*R$2*($C30-R$3))),"") ->  | S30: =IFERROR(S$4+(1-S$4)/(1+EXP(-1.7*S$2*($C30-S$3))),"") ->  | T30: =IFERROR(T$4+(1-T$4)/(1+EXP(-1.7*T$2*($C30-T$3))),"") ->  | U30: =IFERROR(U$4+(1-U$4)/(1+EXP(-1.7*U$2*($C30-U$3))),"") ->  | V30: =IFERROR(V$4+(1-V$4)/(1+EXP(-1.7*V$2*($C30-V$3))),"") ->  | W30: =IFERROR(W$4+(1-W$4)/(1+EXP(-1.7*W$2*($C30-W$3))),"") ->  | X30: =IFERROR(X$4+(1-X$4)/(1+EXP(-1.7*X$2*($C30-X$3))),"") ->  | Y30: =IFERROR(Y$4+(1-Y$4)/(1+EXP(-1.7*Y$2*($C30-Y$3))),"") ->  | Z30: =IFERROR(Z$4+(1-Z$4)/(1+EXP(-1.7*Z$2*($C30-Z$3))),"") ->  | AA30: =IFERROR(AA$4+(1-AA$4)/(1+EXP(-1.7*AA$2*($C30-AA$3))),"") ->  | AB30: =IFERROR(AB$4+(1-AB$4)/(1+EXP(-1.7*AB$2*($C30-AB$3))),"") ->  | AC30: =IFERROR(AC$4+(1-AC$4)/(1+EXP(-1.7*AC$2*($C30-AC$3))),"") ->  | AD30: =IFERROR(AD$4+(1-AD$4)/(1+EXP(-1.7*AD$2*($C30-AD$3))),"") ->  | AE30: =IFERROR(AE$4+(1-AE$4)/(1+EXP(-1.7*AE$2*($C30-AE$3))),"") ->  | AF30: =IFERROR(AF$4+(1-AF$4)/(1+EXP(-1.7*AF$2*($C30-AF$3))),"") ->  | AG30: =IFERROR(AG$4+(1-AG$4)/(1+EXP(-1.7*AG$2*($C30-AG$3))),"") -> 
A31: 22 | B31: 0.01375136288 | C31: -3.79 | D31: =IFERROR(D$4+(1-D$4)/(1+EXP(-1.7*D$2*($C31-D$3))),"") -> 0.0161331128 | E31: =IFERROR(E$4+(1-E$4)/(1+EXP(-1.7*E$2*($C31-E$3))),"") -> 0.1982786242 | F31: =IFERROR(F$4+(1-F$4)/(1+EXP(-1.7*F$2*($C31-F$3))),"") -> 0.2782986515 | G31: =IFERROR(G$4+(1-G$4)/(1+EXP(-1.7*G$2*($C31-G$3))),"") -> 0.2732922335 | H31: =IFERROR(H$4+(1-H$4)/(1+EXP(-1.7*H$2*($C31-H$3))),"") -> 0.07318061283 | I31: =IFERROR(I$4+(1-I$4)/(1+EXP(-1.7*I$2*($C31-I$3))),"") ->  | J31: =IFERROR(J$4+(1-J$4)/(1+EXP(-1.7*J$2*($C31-J$3))),"") ->  | K31: =IFERROR(K$4+(1-K$4)/(1+EXP(-1.7*K$2*($C31-K$3))),"") ->  | L31: =IFERROR(L$4+(1-L$4)/(1+EXP(-1.7*L$2*($C31-L$3))),"") ->  | M31: =IFERROR(M$4+(1-M$4)/(1+EXP(-1.7*M$2*($C31-M$3))),"") ->  | N31: =IFERROR(N$4+(1-N$4)/(1+EXP(-1.7*N$2*($C31-N$3))),"") ->  | O31: =IFERROR(O$4+(1-O$4)/(1+EXP(-1.7*O$2*($C31-O$3))),"") ->  | P31: =IFERROR(P$4+(1-P$4)/(1+EXP(-1.7*P$2*($C31-P$3))),"") ->  | Q31: =IFERROR(Q$4+(1-Q$4)/(1+EXP(-1.7*Q$2*($C31-Q$3))),"") ->  | R31: =IFERROR(R$4+(1-R$4)/(1+EXP(-1.7*R$2*($C31-R$3))),"") ->  | S31: =IFERROR(S$4+(1-S$4)/(1+EXP(-1.7*S$2*($C31-S$3))),"") ->  | T31: =IFERROR(T$4+(1-T$4)/(1+EXP(-1.7*T$2*($C31-T$3))),"") ->  | U31: =IFERROR(U$4+(1-U$4)/(1+EXP(-1.7*U$2*($C31-U$3))),"") ->  | V31: =IFERROR(V$4+(1-V$4)/(1+EXP(-1.7*V$2*($C31-V$3))),"") ->  | W31: =IFERROR(W$4+(1-W$4)/(1+EXP(-1.7*W$2*($C31-W$3))),"") ->  | X31: =IFERROR(X$4+(1-X$4)/(1+EXP(-1.7*X$2*($C31-X$3))),"") ->  | Y31: =IFERROR(Y$4+(1-Y$4)/(1+EXP(-1.7*Y$2*($C31-Y$3))),"") ->  | Z31: =IFERROR(Z$4+(1-Z$4)/(1+EXP(-1.7*Z$2*($C31-Z$3))),"") ->  | AA31: =IFERROR(AA$4+(1-AA$4)/(1+EXP(-1.7*AA$2*($C31-AA$3))),"") ->  | AB31: =IFERROR(AB$4+(1-AB$4)/(1+EXP(-1.7*AB$2*($C31-AB$3))),"") ->  | AC31: =IFERROR(AC$4+(1-AC$4)/(1+EXP(-1.7*AC$2*($C31-AC$3))),"") ->  | AD31: =IFERROR(AD$4+(1-AD$4)/(1+EXP(-1.7*AD$2*($C31-AD$3))),"") ->  | AE31: =IFERROR(AE$4+(1-AE$4)/(1+EXP(-1.7*AE$2*($C31-AE$3))),"") ->  | AF31: =IFERROR(AF$4+(1-AF$4)/(1+EXP(-1.7*AF$2*($C31-AF$3))),"") ->  | AG31: =IFERROR(AG$4+(1-AG$4)/(1+EXP(-1.7*AG$2*($C31-AG$3))),"") -> 
A32: 23 | B32: 0.01378258949 | C32: -3.78 | D32: =IFERROR(D$4+(1-D$4)/(1+EXP(-1.7*D$2*($C32-D$3))),"") -> 0.01613454955 | E32: =IFERROR(E$4+(1-E$4)/(1+EXP(-1.7*E$2*($C32-E$3))),"") -> 0.1984663384 | F32: =IFERROR(F$4+(1-F$4)/(1+EXP(-1.7*F$2*($C32-F$3))),"") -> 0.2786671514 | G32: =IFERROR(G$4+(1-G$4)/(1+EXP(-1.7*G$2*($C32-G$3))),"") -> 0.2732922885 | H32: =IFERROR(H$4+(1-H$4)/(1+EXP(-1.7*H$2*($C32-H$3))),"") -> 0.0731806376 | I32: =IFERROR(I$4+(1-I$4)/(1+EXP(-1.7*I$2*($C32-I$3))),"") ->  | J32: =IFERROR(J$4+(1-J$4)/(1+EXP(-1.7*J$2*($C32-J$3))),"") ->  | K32: =IFERROR(K$4+(1-K$4)/(1+EXP(-1.7*K$2*($C32-K$3))),"") ->  | L32: =IFERROR(L$4+(1-L$4)/(1+EXP(-1.7*L$2*($C32-L$3))),"") ->  | M32: =IFERROR(M$4+(1-M$4)/(1+EXP(-1.7*M$2*($C32-M$3))),"") ->  | N32: =IFERROR(N$4+(1-N$4)/(1+EXP(-1.7*N$2*($C32-N$3))),"") ->  | O32: =IFERROR(O$4+(1-O$4)/(1+EXP(-1.7*O$2*($C32-O$3))),"") ->  | P32: =IFERROR(P$4+(1-P$4)/(1+EXP(-1.7*P$2*($C32-P$3))),"") ->  | Q32: =IFERROR(Q$4+(1-Q$4)/(1+EXP(-1.7*Q$2*($C32-Q$3))),"") ->  | R32: =IFERROR(R$4+(1-R$4)/(1+EXP(-1.7*R$2*($C32-R$3))),"") ->  | S32: =IFERROR(S$4+(1-S$4)/(1+EXP(-1.7*S$2*($C32-S$3))),"") ->  | T32: =IFERROR(T$4+(1-T$4)/(1+EXP(-1.7*T$2*($C32-T$3))),"") ->  | U32: =IFERROR(U$4+(1-U$4)/(1+EXP(-1.7*U$2*($C32-U$3))),"") ->  | V32: =IFERROR(V$4+(1-V$4)/(1+EXP(-1.7*V$2*($C32-V$3))),"") ->  | W32: =IFERROR(W$4+(1-W$4)/(1+EXP(-1.7*W$2*($C32-W$3))),"") ->  | X32: =IFERROR(X$4+(1-X$4)/(1+EXP(-1.7*X$2*($C32-X$3))),"") ->  | Y32: =IFERROR(Y$4+(1-Y$4)/(1+EXP(-1.7*Y$2*($C32-Y$3))),"") ->  | Z32: =IFERROR(Z$4+(1-Z$4)/(1+EXP(-1.7*Z$2*($C32-Z$3))),"") ->  | AA32: =IFERROR(AA$4+(1-AA$4)/(1+EXP(-1.7*AA$2*($C32-AA$3))),"") ->  | AB32: =IFERROR(AB$4+(1-AB$4)/(1+EXP(-1.7*AB$2*($C32-AB$3))),"") ->  | AC32: =IFERROR(AC$4+(1-AC$4)/(1+EXP(-1.7*AC$2*($C32-AC$3))),"") ->  | AD32: =IFERROR(AD$4+(1-AD$4)/(1+EXP(-1.7*AD$2*($C32-AD$3))),"") ->  | AE32: =IFERROR(AE$4+(1-AE$4)/(1+EXP(-1.7*AE$2*($C32-AE$3))),"") ->  | AF32: =IFERROR(AF$4+(1-AF$4)/(1+EXP(-1.7*AF$2*($C32-AF$3))),"") ->  | AG32: =IFERROR(AG$4+(1-AG$4)/(1+EXP(-1.7*AG$2*($C32-AG$3))),"") -> 
A33: 24 | B33: 0.0138142801 | C33: -3.77 | D33: =IFERROR(D$4+(1-D$4)/(1+EXP(-1.7*D$2*($C33-D$3))),"") -> 0.01613601155 | E33: =IFERROR(E$4+(1-E$4)/(1+EXP(-1.7*E$2*($C33-E$3))),"") -> 0.1986570794 | F33: =IFERROR(F$4+(1-F$4)/(1+EXP(-1.7*F$2*($C33-F$3))),"") -> 0.2790400839 | G33: =IFERROR(G$4+(1-G$4)/(1+EXP(-1.7*G$2*($C33-G$3))),"") -> 0.2732923444 | H33: =IFERROR(H$4+(1-H$4)/(1+EXP(-1.7*H$2*($C33-H$3))),"") -> 0.07318066288 | I33: =IFERROR(I$4+(1-I$4)/(1+EXP(-1.7*I$2*($C33-I$3))),"") ->  | J33: =IFERROR(J$4+(1-J$4)/(1+EXP(-1.7*J$2*($C33-J$3))),"") ->  | K33: =IFERROR(K$4+(1-K$4)/(1+EXP(-1.7*K$2*($C33-K$3))),"") ->  | L33: =IFERROR(L$4+(1-L$4)/(1+EXP(-1.7*L$2*($C33-L$3))),"") ->  | M33: =IFERROR(M$4+(1-M$4)/(1+EXP(-1.7*M$2*($C33-M$3))),"") ->  | N33: =IFERROR(N$4+(1-N$4)/(1+EXP(-1.7*N$2*($C33-N$3))),"") ->  | O33: =IFERROR(O$4+(1-O$4)/(1+EXP(-1.7*O$2*($C33-O$3))),"") ->  | P33: =IFERROR(P$4+(1-P$4)/(1+EXP(-1.7*P$2*($C33-P$3))),"") ->  | Q33: =IFERROR(Q$4+(1-Q$4)/(1+EXP(-1.7*Q$2*($C33-Q$3))),"") ->  | R33: =IFERROR(R$4+(1-R$4)/(1+EXP(-1.7*R$2*($C33-R$3))),"") ->  | S33: =IFERROR(S$4+(1-S$4)/(1+EXP(-1.7*S$2*($C33-S$3))),"") ->  | T33: =IFERROR(T$4+(1-T$4)/(1+EXP(-1.7*T$2*($C33-T$3))),"") ->  | U33: =IFERROR(U$4+(1-U$4)/(1+EXP(-1.7*U$2*($C33-U$3))),"") ->  | V33: =IFERROR(V$4+(1-V$4)/(1+EXP(-1.7*V$2*($C33-V$3))),"") ->  | W33: =IFERROR(W$4+(1-W$4)/(1+EXP(-1.7*W$2*($C33-W$3))),"") ->  | X33: =IFERROR(X$4+(1-X$4)/(1+EXP(-1.7*X$2*($C33-X$3))),"") ->  | Y33: =IFERROR(Y$4+(1-Y$4)/(1+EXP(-1.7*Y$2*($C33-Y$3))),"") ->  | Z33: =IFERROR(Z$4+(1-Z$4)/(1+EXP(-1.7*Z$2*($C33-Z$3))),"") ->  | AA33: =IFERROR(AA$4+(1-AA$4)/(1+EXP(-1.7*AA$2*($C33-AA$3))),"") ->  | AB33: =IFERROR(AB$4+(1-AB$4)/(1+EXP(-1.7*AB$2*($C33-AB$3))),"") ->  | AC33: =IFERROR(AC$4+(1-AC$4)/(1+EXP(-1.7*AC$2*($C33-AC$3))),"") ->  | AD33: =IFERROR(AD$4+(1-AD$4)/(1+EXP(-1.7*AD$2*($C33-AD$3))),"") ->  | AE33: =IFERROR(AE$4+(1-AE$4)/(1+EXP(-1.7*AE$2*($C33-AE$3))),"") ->  | AF33: =IFERROR(AF$4+(1-AF$4)/(1+EXP(-1.7*AF$2*($C33-AF$3))),"") ->  | AG33: =IFERROR(AG$4+(1-AG$4)/(1+EXP(-1.7*AG$2*($C33-AG$3))),"") -> 
A34: 25 | B34: 0.01384644185 | C34: -3.76 | D34: =IFERROR(D$4+(1-D$4)/(1+EXP(-1.7*D$2*($C34-D$3))),"") -> 0.01613749924 | E34: =IFERROR(E$4+(1-E$4)/(1+EXP(-1.7*E$2*($C34-E$3))),"") -> 0.1988508945 | F34: =IFERROR(F$4+(1-F$4)/(1+EXP(-1.7*F$2*($C34-F$3))),"") -> 0.2794174972 | G34: =IFERROR(G$4+(1-G$4)/(1+EXP(-1.7*G$2*($C34-G$3))),"") -> 0.2732924015 | H34: =IFERROR(H$4+(1-H$4)/(1+EXP(-1.7*H$2*($C34-H$3))),"") -> 0.07318068868 | I34: =IFERROR(I$4+(1-I$4)/(1+EXP(-1.7*I$2*($C34-I$3))),"") ->  | J34: =IFERROR(J$4+(1-J$4)/(1+EXP(-1.7*J$2*($C34-J$3))),"") ->  | K34: =IFERROR(K$4+(1-K$4)/(1+EXP(-1.7*K$2*($C34-K$3))),"") ->  | L34: =IFERROR(L$4+(1-L$4)/(1+EXP(-1.7*L$2*($C34-L$3))),"") ->  | M34: =IFERROR(M$4+(1-M$4)/(1+EXP(-1.7*M$2*($C34-M$3))),"") ->  | N34: =IFERROR(N$4+(1-N$4)/(1+EXP(-1.7*N$2*($C34-N$3))),"") ->  | O34: =IFERROR(O$4+(1-O$4)/(1+EXP(-1.7*O$2*($C34-O$3))),"") ->  | P34: =IFERROR(P$4+(1-P$4)/(1+EXP(-1.7*P$2*($C34-P$3))),"") ->  | Q34: =IFERROR(Q$4+(1-Q$4)/(1+EXP(-1.7*Q$2*($C34-Q$3))),"") ->  | R34: =IFERROR(R$4+(1-R$4)/(1+EXP(-1.7*R$2*($C34-R$3))),"") ->  | S34: =IFERROR(S$4+(1-S$4)/(1+EXP(-1.7*S$2*($C34-S$3))),"") ->  | T34: =IFERROR(T$4+(1-T$4)/(1+EXP(-1.7*T$2*($C34-T$3))),"") ->  | U34: =IFERROR(U$4+(1-U$4)/(1+EXP(-1.7*U$2*($C34-U$3))),"") ->  | V34: =IFERROR(V$4+(1-V$4)/(1+EXP(-1.7*V$2*($C34-V$3))),"") ->  | W34: =IFERROR(W$4+(1-W$4)/(1+EXP(-1.7*W$2*($C34-W$3))),"") ->  | X34: =IFERROR(X$4+(1-X$4)/(1+EXP(-1.7*X$2*($C34-X$3))),"") ->  | Y34: =IFERROR(Y$4+(1-Y$4)/(1+EXP(-1.7*Y$2*($C34-Y$3))),"") ->  | Z34: =IFERROR(Z$4+(1-Z$4)/(1+EXP(-1.7*Z$2*($C34-Z$3))),"") ->  | AA34: =IFERROR(AA$4+(1-AA$4)/(1+EXP(-1.7*AA$2*($C34-AA$3))),"") ->  | AB34: =IFERROR(AB$4+(1-AB$4)/(1+EXP(-1.7*AB$2*($C34-AB$3))),"") ->  | AC34: =IFERROR(AC$4+(1-AC$4)/(1+EXP(-1.7*AC$2*($C34-AC$3))),"") ->  | AD34: =IFERROR(AD$4+(1-AD$4)/(1+EXP(-1.7*AD$2*($C34-AD$3))),"") ->  | AE34: =IFERROR(AE$4+(1-AE$4)/(1+EXP(-1.7*AE$2*($C34-AE$3))),"") ->  | AF34: =IFERROR(AF$4+(1-AF$4)/(1+EXP(-1.7*AF$2*($C34-AF$3))),"") ->  | AG34: =IFERROR(AG$4+(1-AG$4)/(1+EXP(-1.7*AG$2*($C34-AG$3))),"") -> 
A35: 26 | B35: 0.01387908205 | C35: -3.75 | D35: =IFERROR(D$4+(1-D$4)/(1+EXP(-1.7*D$2*($C35-D$3))),"") -> 0.01613901308 | E35: =IFERROR(E$4+(1-E$4)/(1+EXP(-1.7*E$2*($C35-E$3))),"") -> 0.1990478316 | F35: =IFERROR(F$4+(1-F$4)/(1+EXP(-1.7*F$2*($C35-F$3))),"") -> 0.2797994402 | G35: =IFERROR(G$4+(1-G$4)/(1+EXP(-1.7*G$2*($C35-G$3))),"") -> 0.2732924596 | H35: =IFERROR(H$4+(1-H$4)/(1+EXP(-1.7*H$2*($C35-H$3))),"") -> 0.07318071501 | I35: =IFERROR(I$4+(1-I$4)/(1+EXP(-1.7*I$2*($C35-I$3))),"") ->  | J35: =IFERROR(J$4+(1-J$4)/(1+EXP(-1.7*J$2*($C35-J$3))),"") ->  | K35: =IFERROR(K$4+(1-K$4)/(1+EXP(-1.7*K$2*($C35-K$3))),"") ->  | L35: =IFERROR(L$4+(1-L$4)/(1+EXP(-1.7*L$2*($C35-L$3))),"") ->  | M35: =IFERROR(M$4+(1-M$4)/(1+EXP(-1.7*M$2*($C35-M$3))),"") ->  | N35: =IFERROR(N$4+(1-N$4)/(1+EXP(-1.7*N$2*($C35-N$3))),"") ->  | O35: =IFERROR(O$4+(1-O$4)/(1+EXP(-1.7*O$2*($C35-O$3))),"") ->  | P35: =IFERROR(P$4+(1-P$4)/(1+EXP(-1.7*P$2*($C35-P$3))),"") ->  | Q35: =IFERROR(Q$4+(1-Q$4)/(1+EXP(-1.7*Q$2*($C35-Q$3))),"") ->  | R35: =IFERROR(R$4+(1-R$4)/(1+EXP(-1.7*R$2*($C35-R$3))),"") ->  | S35: =IFERROR(S$4+(1-S$4)/(1+EXP(-1.7*S$2*($C35-S$3))),"") ->  | T35: =IFERROR(T$4+(1-T$4)/(1+EXP(-1.7*T$2*($C35-T$3))),"") ->  | U35: =IFERROR(U$4+(1-U$4)/(1+EXP(-1.7*U$2*($C35-U$3))),"") ->  | V35: =IFERROR(V$4+(1-V$4)/(1+EXP(-1.7*V$2*($C35-V$3))),"") ->  | W35: =IFERROR(W$4+(1-W$4)/(1+EXP(-1.7*W$2*($C35-W$3))),"") ->  | X35: =IFERROR(X$4+(1-X$4)/(1+EXP(-1.7*X$2*($C35-X$3))),"") ->  | Y35: =IFERROR(Y$4+(1-Y$4)/(1+EXP(-1.7*Y$2*($C35-Y$3))),"") ->  | Z35: =IFERROR(Z$4+(1-Z$4)/(1+EXP(-1.7*Z$2*($C35-Z$3))),"") ->  | AA35: =IFERROR(AA$4+(1-AA$4)/(1+EXP(-1.7*AA$2*($C35-AA$3))),"") ->  | AB35: =IFERROR(AB$4+(1-AB$4)/(1+EXP(-1.7*AB$2*($C35-AB$3))),"") ->  | AC35: =IFERROR(AC$4+(1-AC$4)/(1+EXP(-1.7*AC$2*($C35-AC$3))),"") ->  | AD35: =IFERROR(AD$4+(1-AD$4)/(1+EXP(-1.7*AD$2*($C35-AD$3))),"") ->  | AE35: =IFERROR(AE$4+(1-AE$4)/(1+EXP(-1.7*AE$2*($C35-AE$3))),"") ->  | AF35: =IFERROR(AF$4+(1-AF$4)/(1+EXP(-1.7*AF$2*($C35-AF$3))),"") ->  | AG35: =IFERROR(AG$4+(1-AG$4)/(1+EXP(-1.7*AG$2*($C35-AG$3))),"") -> 
A36: 27 | B36: 0.01391220806 | C36: -3.74 | D36: =IFERROR(D$4+(1-D$4)/(1+EXP(-1.7*D$2*($C36-D$3))),"") -> 0.01614055352 | E36: =IFERROR(E$4+(1-E$4)/(1+EXP(-1.7*E$2*($C36-E$3))),"") -> 0.1992479395 | F36: =IFERROR(F$4+(1-F$4)/(1+EXP(-1.7*F$2*($C36-F$3))),"") -> 0.2801859623 | G36: =IFERROR(G$4+(1-G$4)/(1+EXP(-1.7*G$2*($C36-G$3))),"") -> 0.2732925187 | H36: =IFERROR(H$4+(1-H$4)/(1+EXP(-1.7*H$2*($C36-H$3))),"") -> 0.07318074188 | I36: =IFERROR(I$4+(1-I$4)/(1+EXP(-1.7*I$2*($C36-I$3))),"") ->  | J36: =IFERROR(J$4+(1-J$4)/(1+EXP(-1.7*J$2*($C36-J$3))),"") ->  | K36: =IFERROR(K$4+(1-K$4)/(1+EXP(-1.7*K$2*($C36-K$3))),"") ->  | L36: =IFERROR(L$4+(1-L$4)/(1+EXP(-1.7*L$2*($C36-L$3))),"") ->  | M36: =IFERROR(M$4+(1-M$4)/(1+EXP(-1.7*M$2*($C36-M$3))),"") ->  | N36: =IFERROR(N$4+(1-N$4)/(1+EXP(-1.7*N$2*($C36-N$3))),"") ->  | O36: =IFERROR(O$4+(1-O$4)/(1+EXP(-1.7*O$2*($C36-O$3))),"") ->  | P36: =IFERROR(P$4+(1-P$4)/(1+EXP(-1.7*P$2*($C36-P$3))),"") ->  | Q36: =IFERROR(Q$4+(1-Q$4)/(1+EXP(-1.7*Q$2*($C36-Q$3))),"") ->  | R36: =IFERROR(R$4+(1-R$4)/(1+EXP(-1.7*R$2*($C36-R$3))),"") ->  | S36: =IFERROR(S$4+(1-S$4)/(1+EXP(-1.7*S$2*($C36-S$3))),"") ->  | T36: =IFERROR(T$4+(1-T$4)/(1+EXP(-1.7*T$2*($C36-T$3))),"") ->  | U36: =IFERROR(U$4+(1-U$4)/(1+EXP(-1.7*U$2*($C36-U$3))),"") ->  | V36: =IFERROR(V$4+(1-V$4)/(1+EXP(-1.7*V$2*($C36-V$3))),"") ->  | W36: =IFERROR(W$4+(1-W$4)/(1+EXP(-1.7*W$2*($C36-W$3))),"") ->  | X36: =IFERROR(X$4+(1-X$4)/(1+EXP(-1.7*X$2*($C36-X$3))),"") ->  | Y36: =IFERROR(Y$4+(1-Y$4)/(1+EXP(-1.7*Y$2*($C36-Y$3))),"") ->  | Z36: =IFERROR(Z$4+(1-Z$4)/(1+EXP(-1.7*Z$2*($C36-Z$3))),"") ->  | AA36: =IFERROR(AA$4+(1-AA$4)/(1+EXP(-1.7*AA$2*($C36-AA$3))),"") ->  | AB36: =IFERROR(AB$4+(1-AB$4)/(1+EXP(-1.7*AB$2*($C36-AB$3))),"") ->  | AC36: =IFERROR(AC$4+(1-AC$4)/(1+EXP(-1.7*AC$2*($C36-AC$3))),"") ->  | AD36: =IFERROR(AD$4+(1-AD$4)/(1+EXP(-1.7*AD$2*($C36-AD$3))),"") ->  | AE36: =IFERROR(AE$4+(1-AE$4)/(1+EXP(-1.7*AE$2*($C36-AE$3))),"") ->  | AF36: =IFERROR(AF$4+(1-AF$4)/(1+EXP(-1.7*AF$2*($C36-AF$3))),"") ->  | AG36: =IFERROR(AG$4+(1-AG$4)/(1+EXP(-1.7*AG$2*($C36-AG$3))),"") -> 
A37: 28 | B37: 0.01394582743 | C37: -3.73 | D37: =IFERROR(D$4+(1-D$4)/(1+EXP(-1.7*D$2*($C37-D$3))),"") -> 0.01614212102 | E37: =IFERROR(E$4+(1-E$4)/(1+EXP(-1.7*E$2*($C37-E$3))),"") -> 0.1994512676 | F37: =IFERROR(F$4+(1-F$4)/(1+EXP(-1.7*F$2*($C37-F$3))),"") -> 0.2805771131 | G37: =IFERROR(G$4+(1-G$4)/(1+EXP(-1.7*G$2*($C37-G$3))),"") -> 0.273292579 | H37: =IFERROR(H$4+(1-H$4)/(1+EXP(-1.7*H$2*($C37-H$3))),"") -> 0.0731807693 | I37: =IFERROR(I$4+(1-I$4)/(1+EXP(-1.7*I$2*($C37-I$3))),"") ->  | J37: =IFERROR(J$4+(1-J$4)/(1+EXP(-1.7*J$2*($C37-J$3))),"") ->  | K37: =IFERROR(K$4+(1-K$4)/(1+EXP(-1.7*K$2*($C37-K$3))),"") ->  | L37: =IFERROR(L$4+(1-L$4)/(1+EXP(-1.7*L$2*($C37-L$3))),"") ->  | M37: =IFERROR(M$4+(1-M$4)/(1+EXP(-1.7*M$2*($C37-M$3))),"") ->  | N37: =IFERROR(N$4+(1-N$4)/(1+EXP(-1.7*N$2*($C37-N$3))),"") ->  | O37: =IFERROR(O$4+(1-O$4)/(1+EXP(-1.7*O$2*($C37-O$3))),"") ->  | P37: =IFERROR(P$4+(1-P$4)/(1+EXP(-1.7*P$2*($C37-P$3))),"") ->  | Q37: =IFERROR(Q$4+(1-Q$4)/(1+EXP(-1.7*Q$2*($C37-Q$3))),"") ->  | R37: =IFERROR(R$4+(1-R$4)/(1+EXP(-1.7*R$2*($C37-R$3))),"") ->  | S37: =IFERROR(S$4+(1-S$4)/(1+EXP(-1.7*S$2*($C37-S$3))),"") ->  | T37: =IFERROR(T$4+(1-T$4)/(1+EXP(-1.7*T$2*($C37-T$3))),"") ->  | U37: =IFERROR(U$4+(1-U$4)/(1+EXP(-1.7*U$2*($C37-U$3))),"") ->  | V37: =IFERROR(V$4+(1-V$4)/(1+EXP(-1.7*V$2*($C37-V$3))),"") ->  | W37: =IFERROR(W$4+(1-W$4)/(1+EXP(-1.7*W$2*($C37-W$3))),"") ->  | X37: =IFERROR(X$4+(1-X$4)/(1+EXP(-1.7*X$2*($C37-X$3))),"") ->  | Y37: =IFERROR(Y$4+(1-Y$4)/(1+EXP(-1.7*Y$2*($C37-Y$3))),"") ->  | Z37: =IFERROR(Z$4+(1-Z$4)/(1+EXP(-1.7*Z$2*($C37-Z$3))),"") ->  | AA37: =IFERROR(AA$4+(1-AA$4)/(1+EXP(-1.7*AA$2*($C37-AA$3))),"") ->  | AB37: =IFERROR(AB$4+(1-AB$4)/(1+EXP(-1.7*AB$2*($C37-AB$3))),"") ->  | AC37: =IFERROR(AC$4+(1-AC$4)/(1+EXP(-1.7*AC$2*($C37-AC$3))),"") ->  | AD37: =IFERROR(AD$4+(1-AD$4)/(1+EXP(-1.7*AD$2*($C37-AD$3))),"") ->  | AE37: =IFERROR(AE$4+(1-AE$4)/(1+EXP(-1.7*AE$2*($C37-AE$3))),"") ->  | AF37: =IFERROR(AF$4+(1-AF$4)/(1+EXP(-1.7*AF$2*($C37-AF$3))),"") ->  | AG37: =IFERROR(AG$4+(1-AG$4)/(1+EXP(-1.7*AG$2*($C37-AG$3))),"") -> 
A38: 29 | B38: 0.01397994776 | C38: -3.72 | D38: =IFERROR(D$4+(1-D$4)/(1+EXP(-1.7*D$2*($C38-D$3))),"") -> 0.01614371607 | E38: =IFERROR(E$4+(1-E$4)/(1+EXP(-1.7*E$2*($C38-E$3))),"") -> 0.199657866 | F38: =IFERROR(F$4+(1-F$4)/(1+EXP(-1.7*F$2*($C38-F$3))),"") -> 0.2809729426 | G38: =IFERROR(G$4+(1-G$4)/(1+EXP(-1.7*G$2*($C38-G$3))),"") -> 0.2732926404 | H38: =IFERROR(H$4+(1-H$4)/(1+EXP(-1.7*H$2*($C38-H$3))),"") -> 0.07318079728 | I38: =IFERROR(I$4+(1-I$4)/(1+EXP(-1.7*I$2*($C38-I$3))),"") ->  | J38: =IFERROR(J$4+(1-J$4)/(1+EXP(-1.7*J$2*($C38-J$3))),"") ->  | K38: =IFERROR(K$4+(1-K$4)/(1+EXP(-1.7*K$2*($C38-K$3))),"") ->  | L38: =IFERROR(L$4+(1-L$4)/(1+EXP(-1.7*L$2*($C38-L$3))),"") ->  | M38: =IFERROR(M$4+(1-M$4)/(1+EXP(-1.7*M$2*($C38-M$3))),"") ->  | N38: =IFERROR(N$4+(1-N$4)/(1+EXP(-1.7*N$2*($C38-N$3))),"") ->  | O38: =IFERROR(O$4+(1-O$4)/(1+EXP(-1.7*O$2*($C38-O$3))),"") ->  | P38: =IFERROR(P$4+(1-P$4)/(1+EXP(-1.7*P$2*($C38-P$3))),"") ->  | Q38: =IFERROR(Q$4+(1-Q$4)/(1+EXP(-1.7*Q$2*($C38-Q$3))),"") ->  | R38: =IFERROR(R$4+(1-R$4)/(1+EXP(-1.7*R$2*($C38-R$3))),"") ->  | S38: =IFERROR(S$4+(1-S$4)/(1+EXP(-1.7*S$2*($C38-S$3))),"") ->  | T38: =IFERROR(T$4+(1-T$4)/(1+EXP(-1.7*T$2*($C38-T$3))),"") ->  | U38: =IFERROR(U$4+(1-U$4)/(1+EXP(-1.7*U$2*($C38-U$3))),"") ->  | V38: =IFERROR(V$4+(1-V$4)/(1+EXP(-1.7*V$2*($C38-V$3))),"") ->  | W38: =IFERROR(W$4+(1-W$4)/(1+EXP(-1.7*W$2*($C38-W$3))),"") ->  | X38: =IFERROR(X$4+(1-X$4)/(1+EXP(-1.7*X$2*($C38-X$3))),"") ->  | Y38: =IFERROR(Y$4+(1-Y$4)/(1+EXP(-1.7*Y$2*($C38-Y$3))),"") ->  | Z38: =IFERROR(Z$4+(1-Z$4)/(1+EXP(-1.7*Z$2*($C38-Z$3))),"") ->  | AA38: =IFERROR(AA$4+(1-AA$4)/(1+EXP(-1.7*AA$2*($C38-AA$3))),"") ->  | AB38: =IFERROR(AB$4+(1-AB$4)/(1+EXP(-1.7*AB$2*($C38-AB$3))),"") ->  | AC38: =IFERROR(AC$4+(1-AC$4)/(1+EXP(-1.7*AC$2*($C38-AC$3))),"") ->  | AD38: =IFERROR(AD$4+(1-AD$4)/(1+EXP(-1.7*AD$2*($C38-AD$3))),"") ->  | AE38: =IFERROR(AE$4+(1-AE$4)/(1+EXP(-1.7*AE$2*($C38-AE$3))),"") ->  | AF38: =IFERROR(AF$4+(1-AF$4)/(1+EXP(-1.7*AF$2*($C38-AF$3))),"") ->  | AG38: =IFERROR(AG$4+(1-AG$4)/(1+EXP(-1.7*AG$2*($C38-AG$3))),"") -> 
A39: 30 | B39: 0.01401457684 | C39: -3.71 | D39: =IFERROR(D$4+(1-D$4)/(1+EXP(-1.7*D$2*($C39-D$3))),"") -> 0.01614533915 | E39: =IFERROR(E$4+(1-E$4)/(1+EXP(-1.7*E$2*($C39-E$3))),"") -> 0.1998677855 | F39: =IFERROR(F$4+(1-F$4)/(1+EXP(-1.7*F$2*($C39-F$3))),"") -> 0.2813735014 | G39: =IFERROR(G$4+(1-G$4)/(1+EXP(-1.7*G$2*($C39-G$3))),"") -> 0.273292703 | H39: =IFERROR(H$4+(1-H$4)/(1+EXP(-1.7*H$2*($C39-H$3))),"") -> 0.07318082584 | I39: =IFERROR(I$4+(1-I$4)/(1+EXP(-1.7*I$2*($C39-I$3))),"") ->  | J39: =IFERROR(J$4+(1-J$4)/(1+EXP(-1.7*J$2*($C39-J$3))),"") ->  | K39: =IFERROR(K$4+(1-K$4)/(1+EXP(-1.7*K$2*($C39-K$3))),"") ->  | L39: =IFERROR(L$4+(1-L$4)/(1+EXP(-1.7*L$2*($C39-L$3))),"") ->  | M39: =IFERROR(M$4+(1-M$4)/(1+EXP(-1.7*M$2*($C39-M$3))),"") ->  | N39: =IFERROR(N$4+(1-N$4)/(1+EXP(-1.7*N$2*($C39-N$3))),"") ->  | O39: =IFERROR(O$4+(1-O$4)/(1+EXP(-1.7*O$2*($C39-O$3))),"") ->  | P39: =IFERROR(P$4+(1-P$4)/(1+EXP(-1.7*P$2*($C39-P$3))),"") ->  | Q39: =IFERROR(Q$4+(1-Q$4)/(1+EXP(-1.7*Q$2*($C39-Q$3))),"") ->  | R39: =IFERROR(R$4+(1-R$4)/(1+EXP(-1.7*R$2*($C39-R$3))),"") ->  | S39: =IFERROR(S$4+(1-S$4)/(1+EXP(-1.7*S$2*($C39-S$3))),"") ->  | T39: =IFERROR(T$4+(1-T$4)/(1+EXP(-1.7*T$2*($C39-T$3))),"") ->  | U39: =IFERROR(U$4+(1-U$4)/(1+EXP(-1.7*U$2*($C39-U$3))),"") ->  | V39: =IFERROR(V$4+(1-V$4)/(1+EXP(-1.7*V$2*($C39-V$3))),"") ->  | W39: =IFERROR(W$4+(1-W$4)/(1+EXP(-1.7*W$2*($C39-W$3))),"") ->  | X39: =IFERROR(X$4+(1-X$4)/(1+EXP(-1.7*X$2*($C39-X$3))),"") ->  | Y39: =IFERROR(Y$4+(1-Y$4)/(1+EXP(-1.7*Y$2*($C39-Y$3))),"") ->  | Z39: =IFERROR(Z$4+(1-Z$4)/(1+EXP(-1.7*Z$2*($C39-Z$3))),"") ->  | AA39: =IFERROR(AA$4+(1-AA$4)/(1+EXP(-1.7*AA$2*($C39-AA$3))),"") ->  | AB39: =IFERROR(AB$4+(1-AB$4)/(1+EXP(-1.7*AB$2*($C39-AB$3))),"") ->  | AC39: =IFERROR(AC$4+(1-AC$4)/(1+EXP(-1.7*AC$2*($C39-AC$3))),"") ->  | AD39: =IFERROR(AD$4+(1-AD$4)/(1+EXP(-1.7*AD$2*($C39-AD$3))),"") ->  | AE39: =IFERROR(AE$4+(1-AE$4)/(1+EXP(-1.7*AE$2*($C39-AE$3))),"") ->  | AF39: =IFERROR(AF$4+(1-AF$4)/(1+EXP(-1.7*AF$2*($C39-AF$3))),"") ->  | AG39: =IFERROR(AG$4+(1-AG$4)/(1+EXP(-1.7*AG$2*($C39-AG$3))),"") -> 
A40: 31 | B40: 0.01404972254 | C40: -3.7 | D40: =IFERROR(D$4+(1-D$4)/(1+EXP(-1.7*D$2*($C40-D$3))),"") -> 0.01614699074 | E40: =IFERROR(E$4+(1-E$4)/(1+EXP(-1.7*E$2*($C40-E$3))),"") -> 0.2000810778 | F40: =IFERROR(F$4+(1-F$4)/(1+EXP(-1.7*F$2*($C40-F$3))),"") -> 0.2817788404 | G40: =IFERROR(G$4+(1-G$4)/(1+EXP(-1.7*G$2*($C40-G$3))),"") -> 0.2732927667 | H40: =IFERROR(H$4+(1-H$4)/(1+EXP(-1.7*H$2*($C40-H$3))),"") -> 0.07318085498 | I40: =IFERROR(I$4+(1-I$4)/(1+EXP(-1.7*I$2*($C40-I$3))),"") ->  | J40: =IFERROR(J$4+(1-J$4)/(1+EXP(-1.7*J$2*($C40-J$3))),"") ->  | K40: =IFERROR(K$4+(1-K$4)/(1+EXP(-1.7*K$2*($C40-K$3))),"") ->  | L40: =IFERROR(L$4+(1-L$4)/(1+EXP(-1.7*L$2*($C40-L$3))),"") ->  | M40: =IFERROR(M$4+(1-M$4)/(1+EXP(-1.7*M$2*($C40-M$3))),"") ->  | N40: =IFERROR(N$4+(1-N$4)/(1+EXP(-1.7*N$2*($C40-N$3))),"") ->  | O40: =IFERROR(O$4+(1-O$4)/(1+EXP(-1.7*O$2*($C40-O$3))),"") ->  | P40: =IFERROR(P$4+(1-P$4)/(1+EXP(-1.7*P$2*($C40-P$3))),"") ->  | Q40: =IFERROR(Q$4+(1-Q$4)/(1+EXP(-1.7*Q$2*($C40-Q$3))),"") ->  | R40: =IFERROR(R$4+(1-R$4)/(1+EXP(-1.7*R$2*($C40-R$3))),"") ->  | S40: =IFERROR(S$4+(1-S$4)/(1+EXP(-1.7*S$2*($C40-S$3))),"") ->  | T40: =IFERROR(T$4+(1-T$4)/(1+EXP(-1.7*T$2*($C40-T$3))),"") ->  | U40: =IFERROR(U$4+(1-U$4)/(1+EXP(-1.7*U$2*($C40-U$3))),"") ->  | V40: =IFERROR(V$4+(1-V$4)/(1+EXP(-1.7*V$2*($C40-V$3))),"") ->  | W40: =IFERROR(W$4+(1-W$4)/(1+EXP(-1.7*W$2*($C40-W$3))),"") ->  | X40: =IFERROR(X$4+(1-X$4)/(1+EXP(-1.7*X$2*($C40-X$3))),"") ->  | Y40: =IFERROR(Y$4+(1-Y$4)/(1+EXP(-1.7*Y$2*($C40-Y$3))),"") ->  | Z40: =IFERROR(Z$4+(1-Z$4)/(1+EXP(-1.7*Z$2*($C40-Z$3))),"") ->  | AA40: =IFERROR(AA$4+(1-AA$4)/(1+EXP(-1.7*AA$2*($C40-AA$3))),"") ->  | AB40: =IFERROR(AB$4+(1-AB$4)/(1+EXP(-1.7*AB$2*($C40-AB$3))),"") ->  | AC40: =IFERROR(AC$4+(1-AC$4)/(1+EXP(-1.7*AC$2*($C40-AC$3))),"") ->  | AD40: =IFERROR(AD$4+(1-AD$4)/(1+EXP(-1.7*AD$2*($C40-AD$3))),"") ->  | AE40: =IFERROR(AE$4+(1-AE$4)/(1+EXP(-1.7*AE$2*($C40-AE$3))),"") ->  | AF40: =IFERROR(AF$4+(1-AF$4)/(1+EXP(-1.7*AF$2*($C40-AF$3))),"") ->  | AG40: =IFERROR(AG$4+(1-AG$4)/(1+EXP(-1.7*AG$2*($C40-AG$3))),"") -> 
A41: 32 | B41: 0.01408539287 | C41: -3.69 | D41: =IFERROR(D$4+(1-D$4)/(1+EXP(-1.7*D$2*($C41-D$3))),"") -> 0.01614867137 | E41: =IFERROR(E$4+(1-E$4)/(1+EXP(-1.7*E$2*($C41-E$3))),"") -> 0.200297795 | F41: =IFERROR(F$4+(1-F$4)/(1+EXP(-1.7*F$2*($C41-F$3))),"") -> 0.2821890108 | G41: =IFERROR(G$4+(1-G$4)/(1+EXP(-1.7*G$2*($C41-G$3))),"") -> 0.2732928316 | H41: =IFERROR(H$4+(1-H$4)/(1+EXP(-1.7*H$2*($C41-H$3))),"") -> 0.07318088472 | I41: =IFERROR(I$4+(1-I$4)/(1+EXP(-1.7*I$2*($C41-I$3))),"") ->  | J41: =IFERROR(J$4+(1-J$4)/(1+EXP(-1.7*J$2*($C41-J$3))),"") ->  | K41: =IFERROR(K$4+(1-K$4)/(1+EXP(-1.7*K$2*($C41-K$3))),"") ->  | L41: =IFERROR(L$4+(1-L$4)/(1+EXP(-1.7*L$2*($C41-L$3))),"") ->  | M41: =IFERROR(M$4+(1-M$4)/(1+EXP(-1.7*M$2*($C41-M$3))),"") ->  | N41: =IFERROR(N$4+(1-N$4)/(1+EXP(-1.7*N$2*($C41-N$3))),"") ->  | O41: =IFERROR(O$4+(1-O$4)/(1+EXP(-1.7*O$2*($C41-O$3))),"") ->  | P41: =IFERROR(P$4+(1-P$4)/(1+EXP(-1.7*P$2*($C41-P$3))),"") ->  | Q41: =IFERROR(Q$4+(1-Q$4)/(1+EXP(-1.7*Q$2*($C41-Q$3))),"") ->  | R41: =IFERROR(R$4+(1-R$4)/(1+EXP(-1.7*R$2*($C41-R$3))),"") ->  | S41: =IFERROR(S$4+(1-S$4)/(1+EXP(-1.7*S$2*($C41-S$3))),"") ->  | T41: =IFERROR(T$4+(1-T$4)/(1+EXP(-1.7*T$2*($C41-T$3))),"") ->  | U41: =IFERROR(U$4+(1-U$4)/(1+EXP(-1.7*U$2*($C41-U$3))),"") ->  | V41: =IFERROR(V$4+(1-V$4)/(1+EXP(-1.7*V$2*($C41-V$3))),"") ->  | W41: =IFERROR(W$4+(1-W$4)/(1+EXP(-1.7*W$2*($C41-W$3))),"") ->  | X41: =IFERROR(X$4+(1-X$4)/(1+EXP(-1.7*X$2*($C41-X$3))),"") ->  | Y41: =IFERROR(Y$4+(1-Y$4)/(1+EXP(-1.7*Y$2*($C41-Y$3))),"") ->  | Z41: =IFERROR(Z$4+(1-Z$4)/(1+EXP(-1.7*Z$2*($C41-Z$3))),"") ->  | AA41: =IFERROR(AA$4+(1-AA$4)/(1+EXP(-1.7*AA$2*($C41-AA$3))),"") ->  | AB41: =IFERROR(AB$4+(1-AB$4)/(1+EXP(-1.7*AB$2*($C41-AB$3))),"") ->  | AC41: =IFERROR(AC$4+(1-AC$4)/(1+EXP(-1.7*AC$2*($C41-AC$3))),"") ->  | AD41: =IFERROR(AD$4+(1-AD$4)/(1+EXP(-1.7*AD$2*($C41-AD$3))),"") ->  | AE41: =IFERROR(AE$4+(1-AE$4)/(1+EXP(-1.7*AE$2*($C41-AE$3))),"") ->  | AF41: =IFERROR(AF$4+(1-AF$4)/(1+EXP(-1.7*AF$2*($C41-AF$3))),"") ->  | AG41: =IFERROR(AG$4+(1-AG$4)/(1+EXP(-1.7*AG$2*($C41-AG$3))),"") -> 
A42: 33 | B42: 0.01412159597 | C42: -3.68 | D42: =IFERROR(D$4+(1-D$4)/(1+EXP(-1.7*D$2*($C42-D$3))),"") -> 0.01615038152 | E42: =IFERROR(E$4+(1-E$4)/(1+EXP(-1.7*E$2*($C42-E$3))),"") -> 0.2005179904 | F42: =IFERROR(F$4+(1-F$4)/(1+EXP(-1.7*F$2*($C42-F$3))),"") -> 0.2826040643 | G42: =IFERROR(G$4+(1-G$4)/(1+EXP(-1.7*G$2*($C42-G$3))),"") -> 0.2732928978 | H42: =IFERROR(H$4+(1-H$4)/(1+EXP(-1.7*H$2*($C42-H$3))),"") -> 0.07318091508 | I42: =IFERROR(I$4+(1-I$4)/(1+EXP(-1.7*I$2*($C42-I$3))),"") ->  | J42: =IFERROR(J$4+(1-J$4)/(1+EXP(-1.7*J$2*($C42-J$3))),"") ->  | K42: =IFERROR(K$4+(1-K$4)/(1+EXP(-1.7*K$2*($C42-K$3))),"") ->  | L42: =IFERROR(L$4+(1-L$4)/(1+EXP(-1.7*L$2*($C42-L$3))),"") ->  | M42: =IFERROR(M$4+(1-M$4)/(1+EXP(-1.7*M$2*($C42-M$3))),"") ->  | N42: =IFERROR(N$4+(1-N$4)/(1+EXP(-1.7*N$2*($C42-N$3))),"") ->  | O42: =IFERROR(O$4+(1-O$4)/(1+EXP(-1.7*O$2*($C42-O$3))),"") ->  | P42: =IFERROR(P$4+(1-P$4)/(1+EXP(-1.7*P$2*($C42-P$3))),"") ->  | Q42: =IFERROR(Q$4+(1-Q$4)/(1+EXP(-1.7*Q$2*($C42-Q$3))),"") ->  | R42: =IFERROR(R$4+(1-R$4)/(1+EXP(-1.7*R$2*($C42-R$3))),"") ->  | S42: =IFERROR(S$4+(1-S$4)/(1+EXP(-1.7*S$2*($C42-S$3))),"") ->  | T42: =IFERROR(T$4+(1-T$4)/(1+EXP(-1.7*T$2*($C42-T$3))),"") ->  | U42: =IFERROR(U$4+(1-U$4)/(1+EXP(-1.7*U$2*($C42-U$3))),"") ->  | V42: =IFERROR(V$4+(1-V$4)/(1+EXP(-1.7*V$2*($C42-V$3))),"") ->  | W42: =IFERROR(W$4+(1-W$4)/(1+EXP(-1.7*W$2*($C42-W$3))),"") ->  | X42: =IFERROR(X$4+(1-X$4)/(1+EXP(-1.7*X$2*($C42-X$3))),"") ->  | Y42: =IFERROR(Y$4+(1-Y$4)/(1+EXP(-1.7*Y$2*($C42-Y$3))),"") ->  | Z42: =IFERROR(Z$4+(1-Z$4)/(1+EXP(-1.7*Z$2*($C42-Z$3))),"") ->  | AA42: =IFERROR(AA$4+(1-AA$4)/(1+EXP(-1.7*AA$2*($C42-AA$3))),"") ->  | AB42: =IFERROR(AB$4+(1-AB$4)/(1+EXP(-1.7*AB$2*($C42-AB$3))),"") ->  | AC42: =IFERROR(AC$4+(1-AC$4)/(1+EXP(-1.7*AC$2*($C42-AC$3))),"") ->  | AD42: =IFERROR(AD$4+(1-AD$4)/(1+EXP(-1.7*AD$2*($C42-AD$3))),"") ->  | AE42: =IFERROR(AE$4+(1-AE$4)/(1+EXP(-1.7*AE$2*($C42-AE$3))),"") ->  | AF42: =IFERROR(AF$4+(1-AF$4)/(1+EXP(-1.7*AF$2*($C42-AF$3))),"") ->  | AG42: =IFERROR(AG$4+(1-AG$4)/(1+EXP(-1.7*AG$2*($C42-AG$3))),"") -> 
A43: 34 | B43: 0.01415834013 | C43: -3.67 | D43: =IFERROR(D$4+(1-D$4)/(1+EXP(-1.7*D$2*($C43-D$3))),"") -> 0.01615212172 | E43: =IFERROR(E$4+(1-E$4)/(1+EXP(-1.7*E$2*($C43-E$3))),"") -> 0.2007417176 | F43: =IFERROR(F$4+(1-F$4)/(1+EXP(-1.7*F$2*($C43-F$3))),"") -> 0.283024053 | G43: =IFERROR(G$4+(1-G$4)/(1+EXP(-1.7*G$2*($C43-G$3))),"") -> 0.2732929651 | H43: =IFERROR(H$4+(1-H$4)/(1+EXP(-1.7*H$2*($C43-H$3))),"") -> 0.07318094605 | I43: =IFERROR(I$4+(1-I$4)/(1+EXP(-1.7*I$2*($C43-I$3))),"") ->  | J43: =IFERROR(J$4+(1-J$4)/(1+EXP(-1.7*J$2*($C43-J$3))),"") ->  | K43: =IFERROR(K$4+(1-K$4)/(1+EXP(-1.7*K$2*($C43-K$3))),"") ->  | L43: =IFERROR(L$4+(1-L$4)/(1+EXP(-1.7*L$2*($C43-L$3))),"") ->  | M43: =IFERROR(M$4+(1-M$4)/(1+EXP(-1.7*M$2*($C43-M$3))),"") ->  | N43: =IFERROR(N$4+(1-N$4)/(1+EXP(-1.7*N$2*($C43-N$3))),"") ->  | O43: =IFERROR(O$4+(1-O$4)/(1+EXP(-1.7*O$2*($C43-O$3))),"") ->  | P43: =IFERROR(P$4+(1-P$4)/(1+EXP(-1.7*P$2*($C43-P$3))),"") ->  | Q43: =IFERROR(Q$4+(1-Q$4)/(1+EXP(-1.7*Q$2*($C43-Q$3))),"") ->  | R43: =IFERROR(R$4+(1-R$4)/(1+EXP(-1.7*R$2*($C43-R$3))),"") ->  | S43: =IFERROR(S$4+(1-S$4)/(1+EXP(-1.7*S$2*($C43-S$3))),"") ->  | T43: =IFERROR(T$4+(1-T$4)/(1+EXP(-1.7*T$2*($C43-T$3))),"") ->  | U43: =IFERROR(U$4+(1-U$4)/(1+EXP(-1.7*U$2*($C43-U$3))),"") ->  | V43: =IFERROR(V$4+(1-V$4)/(1+EXP(-1.7*V$2*($C43-V$3))),"") ->  | W43: =IFERROR(W$4+(1-W$4)/(1+EXP(-1.7*W$2*($C43-W$3))),"") ->  | X43: =IFERROR(X$4+(1-X$4)/(1+EXP(-1.7*X$2*($C43-X$3))),"") ->  | Y43: =IFERROR(Y$4+(1-Y$4)/(1+EXP(-1.7*Y$2*($C43-Y$3))),"") ->  | Z43: =IFERROR(Z$4+(1-Z$4)/(1+EXP(-1.7*Z$2*($C43-Z$3))),"") ->  | AA43: =IFERROR(AA$4+(1-AA$4)/(1+EXP(-1.7*AA$2*($C43-AA$3))),"") ->  | AB43: =IFERROR(AB$4+(1-AB$4)/(1+EXP(-1.7*AB$2*($C43-AB$3))),"") ->  | AC43: =IFERROR(AC$4+(1-AC$4)/(1+EXP(-1.7*AC$2*($C43-AC$3))),"") ->  | AD43: =IFERROR(AD$4+(1-AD$4)/(1+EXP(-1.7*AD$2*($C43-AD$3))),"") ->  | AE43: =IFERROR(AE$4+(1-AE$4)/(1+EXP(-1.7*AE$2*($C43-AE$3))),"") ->  | AF43: =IFERROR(AF$4+(1-AF$4)/(1+EXP(-1.7*AF$2*($C43-AF$3))),"") ->  | AG43: =IFERROR(AG$4+(1-AG$4)/(1+EXP(-1.7*AG$2*($C43-AG$3))),"") -> 
A44: 35 | B44: 0.01419563375 | C44: -3.66 | D44: =IFERROR(D$4+(1-D$4)/(1+EXP(-1.7*D$2*($C44-D$3))),"") -> 0.0161538925 | E44: =IFERROR(E$4+(1-E$4)/(1+EXP(-1.7*E$2*($C44-E$3))),"") -> 0.2009690314 | F44: =IFERROR(F$4+(1-F$4)/(1+EXP(-1.7*F$2*($C44-F$3))),"") -> 0.2834490296 | G44: =IFERROR(G$4+(1-G$4)/(1+EXP(-1.7*G$2*($C44-G$3))),"") -> 0.2732930337 | H44: =IFERROR(H$4+(1-H$4)/(1+EXP(-1.7*H$2*($C44-H$3))),"") -> 0.07318097766 | I44: =IFERROR(I$4+(1-I$4)/(1+EXP(-1.7*I$2*($C44-I$3))),"") ->  | J44: =IFERROR(J$4+(1-J$4)/(1+EXP(-1.7*J$2*($C44-J$3))),"") ->  | K44: =IFERROR(K$4+(1-K$4)/(1+EXP(-1.7*K$2*($C44-K$3))),"") ->  | L44: =IFERROR(L$4+(1-L$4)/(1+EXP(-1.7*L$2*($C44-L$3))),"") ->  | M44: =IFERROR(M$4+(1-M$4)/(1+EXP(-1.7*M$2*($C44-M$3))),"") ->  | N44: =IFERROR(N$4+(1-N$4)/(1+EXP(-1.7*N$2*($C44-N$3))),"") ->  | O44: =IFERROR(O$4+(1-O$4)/(1+EXP(-1.7*O$2*($C44-O$3))),"") ->  | P44: =IFERROR(P$4+(1-P$4)/(1+EXP(-1.7*P$2*($C44-P$3))),"") ->  | Q44: =IFERROR(Q$4+(1-Q$4)/(1+EXP(-1.7*Q$2*($C44-Q$3))),"") ->  | R44: =IFERROR(R$4+(1-R$4)/(1+EXP(-1.7*R$2*($C44-R$3))),"") ->  | S44: =IFERROR(S$4+(1-S$4)/(1+EXP(-1.7*S$2*($C44-S$3))),"") ->  | T44: =IFERROR(T$4+(1-T$4)/(1+EXP(-1.7*T$2*($C44-T$3))),"") ->  | U44: =IFERROR(U$4+(1-U$4)/(1+EXP(-1.7*U$2*($C44-U$3))),"") ->  | V44: =IFERROR(V$4+(1-V$4)/(1+EXP(-1.7*V$2*($C44-V$3))),"") ->  | W44: =IFERROR(W$4+(1-W$4)/(1+EXP(-1.7*W$2*($C44-W$3))),"") ->  | X44: =IFERROR(X$4+(1-X$4)/(1+EXP(-1.7*X$2*($C44-X$3))),"") ->  | Y44: =IFERROR(Y$4+(1-Y$4)/(1+EXP(-1.7*Y$2*($C44-Y$3))),"") ->  | Z44: =IFERROR(Z$4+(1-Z$4)/(1+EXP(-1.7*Z$2*($C44-Z$3))),"") ->  | AA44: =IFERROR(AA$4+(1-AA$4)/(1+EXP(-1.7*AA$2*($C44-AA$3))),"") ->  | AB44: =IFERROR(AB$4+(1-AB$4)/(1+EXP(-1.7*AB$2*($C44-AB$3))),"") ->  | AC44: =IFERROR(AC$4+(1-AC$4)/(1+EXP(-1.7*AC$2*($C44-AC$3))),"") ->  | AD44: =IFERROR(AD$4+(1-AD$4)/(1+EXP(-1.7*AD$2*($C44-AD$3))),"") ->  | AE44: =IFERROR(AE$4+(1-AE$4)/(1+EXP(-1.7*AE$2*($C44-AE$3))),"") ->  | AF44: =IFERROR(AF$4+(1-AF$4)/(1+EXP(-1.7*AF$2*($C44-AF$3))),"") ->  | AG44: =IFERROR(AG$4+(1-AG$4)/(1+EXP(-1.7*AG$2*($C44-AG$3))),"") -> 
A45: 36 | B45: 0.01423348537 | C45: -3.65 | D45: =IFERROR(D$4+(1-D$4)/(1+EXP(-1.7*D$2*($C45-D$3))),"") -> 0.0161556944 | E45: =IFERROR(E$4+(1-E$4)/(1+EXP(-1.7*E$2*($C45-E$3))),"") -> 0.201199987 | F45: =IFERROR(F$4+(1-F$4)/(1+EXP(-1.7*F$2*($C45-F$3))),"") -> 0.2838790467 | G45: =IFERROR(G$4+(1-G$4)/(1+EXP(-1.7*G$2*($C45-G$3))),"") -> 0.2732931037 | H45: =IFERROR(H$4+(1-H$4)/(1+EXP(-1.7*H$2*($C45-H$3))),"") -> 0.07318100992 | I45: =IFERROR(I$4+(1-I$4)/(1+EXP(-1.7*I$2*($C45-I$3))),"") ->  | J45: =IFERROR(J$4+(1-J$4)/(1+EXP(-1.7*J$2*($C45-J$3))),"") ->  | K45: =IFERROR(K$4+(1-K$4)/(1+EXP(-1.7*K$2*($C45-K$3))),"") ->  | L45: =IFERROR(L$4+(1-L$4)/(1+EXP(-1.7*L$2*($C45-L$3))),"") ->  | M45: =IFERROR(M$4+(1-M$4)/(1+EXP(-1.7*M$2*($C45-M$3))),"") ->  | N45: =IFERROR(N$4+(1-N$4)/(1+EXP(-1.7*N$2*($C45-N$3))),"") ->  | O45: =IFERROR(O$4+(1-O$4)/(1+EXP(-1.7*O$2*($C45-O$3))),"") ->  | P45: =IFERROR(P$4+(1-P$4)/(1+EXP(-1.7*P$2*($C45-P$3))),"") ->  | Q45: =IFERROR(Q$4+(1-Q$4)/(1+EXP(-1.7*Q$2*($C45-Q$3))),"") ->  | R45: =IFERROR(R$4+(1-R$4)/(1+EXP(-1.7*R$2*($C45-R$3))),"") ->  | S45: =IFERROR(S$4+(1-S$4)/(1+EXP(-1.7*S$2*($C45-S$3))),"") ->  | T45: =IFERROR(T$4+(1-T$4)/(1+EXP(-1.7*T$2*($C45-T$3))),"") ->  | U45: =IFERROR(U$4+(1-U$4)/(1+EXP(-1.7*U$2*($C45-U$3))),"") ->  | V45: =IFERROR(V$4+(1-V$4)/(1+EXP(-1.7*V$2*($C45-V$3))),"") ->  | W45: =IFERROR(W$4+(1-W$4)/(1+EXP(-1.7*W$2*($C45-W$3))),"") ->  | X45: =IFERROR(X$4+(1-X$4)/(1+EXP(-1.7*X$2*($C45-X$3))),"") ->  | Y45: =IFERROR(Y$4+(1-Y$4)/(1+EXP(-1.7*Y$2*($C45-Y$3))),"") ->  | Z45: =IFERROR(Z$4+(1-Z$4)/(1+EXP(-1.7*Z$2*($C45-Z$3))),"") ->  | AA45: =IFERROR(AA$4+(1-AA$4)/(1+EXP(-1.7*AA$2*($C45-AA$3))),"") ->  | AB45: =IFERROR(AB$4+(1-AB$4)/(1+EXP(-1.7*AB$2*($C45-AB$3))),"") ->  | AC45: =IFERROR(AC$4+(1-AC$4)/(1+EXP(-1.7*AC$2*($C45-AC$3))),"") ->  | AD45: =IFERROR(AD$4+(1-AD$4)/(1+EXP(-1.7*AD$2*($C45-AD$3))),"") ->  | AE45: =IFERROR(AE$4+(1-AE$4)/(1+EXP(-1.7*AE$2*($C45-AE$3))),"") ->  | AF45: =IFERROR(AF$4+(1-AF$4)/(1+EXP(-1.7*AF$2*($C45-AF$3))),"") ->  | AG45: =IFERROR(AG$4+(1-AG$4)/(1+EXP(-1.7*AG$2*($C45-AG$3))),"") -> 
A46: 37 | B46: 0.01427190368 | C46: -3.64 | D46: =IFERROR(D$4+(1-D$4)/(1+EXP(-1.7*D$2*($C46-D$3))),"") -> 0.01615752796 | E46: =IFERROR(E$4+(1-E$4)/(1+EXP(-1.7*E$2*($C46-E$3))),"") -> 0.2014346407 | F46: =IFERROR(F$4+(1-F$4)/(1+EXP(-1.7*F$2*($C46-F$3))),"") -> 0.2843141579 | G46: =IFERROR(G$4+(1-G$4)/(1+EXP(-1.7*G$2*($C46-G$3))),"") -> 0.2732931749 | H46: =IFERROR(H$4+(1-H$4)/(1+EXP(-1.7*H$2*($C46-H$3))),"") -> 0.07318104284 | I46: =IFERROR(I$4+(1-I$4)/(1+EXP(-1.7*I$2*($C46-I$3))),"") ->  | J46: =IFERROR(J$4+(1-J$4)/(1+EXP(-1.7*J$2*($C46-J$3))),"") ->  | K46: =IFERROR(K$4+(1-K$4)/(1+EXP(-1.7*K$2*($C46-K$3))),"") ->  | L46: =IFERROR(L$4+(1-L$4)/(1+EXP(-1.7*L$2*($C46-L$3))),"") ->  | M46: =IFERROR(M$4+(1-M$4)/(1+EXP(-1.7*M$2*($C46-M$3))),"") ->  | N46: =IFERROR(N$4+(1-N$4)/(1+EXP(-1.7*N$2*($C46-N$3))),"") ->  | O46: =IFERROR(O$4+(1-O$4)/(1+EXP(-1.7*O$2*($C46-O$3))),"") ->  | P46: =IFERROR(P$4+(1-P$4)/(1+EXP(-1.7*P$2*($C46-P$3))),"") ->  | Q46: =IFERROR(Q$4+(1-Q$4)/(1+EXP(-1.7*Q$2*($C46-Q$3))),"") ->  | R46: =IFERROR(R$4+(1-R$4)/(1+EXP(-1.7*R$2*($C46-R$3))),"") ->  | S46: =IFERROR(S$4+(1-S$4)/(1+EXP(-1.7*S$2*($C46-S$3))),"") ->  | T46: =IFERROR(T$4+(1-T$4)/(1+EXP(-1.7*T$2*($C46-T$3))),"") ->  | U46: =IFERROR(U$4+(1-U$4)/(1+EXP(-1.7*U$2*($C46-U$3))),"") ->  | V46: =IFERROR(V$4+(1-V$4)/(1+EXP(-1.7*V$2*($C46-V$3))),"") ->  | W46: =IFERROR(W$4+(1-W$4)/(1+EXP(-1.7*W$2*($C46-W$3))),"") ->  | X46: =IFERROR(X$4+(1-X$4)/(1+EXP(-1.7*X$2*($C46-X$3))),"") ->  | Y46: =IFERROR(Y$4+(1-Y$4)/(1+EXP(-1.7*Y$2*($C46-Y$3))),"") ->  | Z46: =IFERROR(Z$4+(1-Z$4)/(1+EXP(-1.7*Z$2*($C46-Z$3))),"") ->  | AA46: =IFERROR(AA$4+(1-AA$4)/(1+EXP(-1.7*AA$2*($C46-AA$3))),"") ->  | AB46: =IFERROR(AB$4+(1-AB$4)/(1+EXP(-1.7*AB$2*($C46-AB$3))),"") ->  | AC46: =IFERROR(AC$4+(1-AC$4)/(1+EXP(-1.7*AC$2*($C46-AC$3))),"") ->  | AD46: =IFERROR(AD$4+(1-AD$4)/(1+EXP(-1.7*AD$2*($C46-AD$3))),"") ->  | AE46: =IFERROR(AE$4+(1-AE$4)/(1+EXP(-1.7*AE$2*($C46-AE$3))),"") ->  | AF46: =IFERROR(AF$4+(1-AF$4)/(1+EXP(-1.7*AF$2*($C46-AF$3))),"") ->  | AG46: =IFERROR(AG$4+(1-AG$4)/(1+EXP(-1.7*AG$2*($C46-AG$3))),"") -> 
A47: 38 | B47: 0.0143108975 | C47: -3.63 | D47: =IFERROR(D$4+(1-D$4)/(1+EXP(-1.7*D$2*($C47-D$3))),"") -> 0.01615939373 | E47: =IFERROR(E$4+(1-E$4)/(1+EXP(-1.7*E$2*($C47-E$3))),"") -> 0.2016730493 | F47: =IFERROR(F$4+(1-F$4)/(1+EXP(-1.7*F$2*($C47-F$3))),"") -> 0.2847544168 | G47: =IFERROR(G$4+(1-G$4)/(1+EXP(-1.7*G$2*($C47-G$3))),"") -> 0.2732932474 | H47: =IFERROR(H$4+(1-H$4)/(1+EXP(-1.7*H$2*($C47-H$3))),"") -> 0.07318107644 | I47: =IFERROR(I$4+(1-I$4)/(1+EXP(-1.7*I$2*($C47-I$3))),"") ->  | J47: =IFERROR(J$4+(1-J$4)/(1+EXP(-1.7*J$2*($C47-J$3))),"") ->  | K47: =IFERROR(K$4+(1-K$4)/(1+EXP(-1.7*K$2*($C47-K$3))),"") ->  | L47: =IFERROR(L$4+(1-L$4)/(1+EXP(-1.7*L$2*($C47-L$3))),"") ->  | M47: =IFERROR(M$4+(1-M$4)/(1+EXP(-1.7*M$2*($C47-M$3))),"") ->  | N47: =IFERROR(N$4+(1-N$4)/(1+EXP(-1.7*N$2*($C47-N$3))),"") ->  | O47: =IFERROR(O$4+(1-O$4)/(1+EXP(-1.7*O$2*($C47-O$3))),"") ->  | P47: =IFERROR(P$4+(1-P$4)/(1+EXP(-1.7*P$2*($C47-P$3))),"") ->  | Q47: =IFERROR(Q$4+(1-Q$4)/(1+EXP(-1.7*Q$2*($C47-Q$3))),"") ->  | R47: =IFERROR(R$4+(1-R$4)/(1+EXP(-1.7*R$2*($C47-R$3))),"") ->  | S47: =IFERROR(S$4+(1-S$4)/(1+EXP(-1.7*S$2*($C47-S$3))),"") ->  | T47: =IFERROR(T$4+(1-T$4)/(1+EXP(-1.7*T$2*($C47-T$3))),"") ->  | U47: =IFERROR(U$4+(1-U$4)/(1+EXP(-1.7*U$2*($C47-U$3))),"") ->  | V47: =IFERROR(V$4+(1-V$4)/(1+EXP(-1.7*V$2*($C47-V$3))),"") ->  | W47: =IFERROR(W$4+(1-W$4)/(1+EXP(-1.7*W$2*($C47-W$3))),"") ->  | X47: =IFERROR(X$4+(1-X$4)/(1+EXP(-1.7*X$2*($C47-X$3))),"") ->  | Y47: =IFERROR(Y$4+(1-Y$4)/(1+EXP(-1.7*Y$2*($C47-Y$3))),"") ->  | Z47: =IFERROR(Z$4+(1-Z$4)/(1+EXP(-1.7*Z$2*($C47-Z$3))),"") ->  | AA47: =IFERROR(AA$4+(1-AA$4)/(1+EXP(-1.7*AA$2*($C47-AA$3))),"") ->  | AB47: =IFERROR(AB$4+(1-AB$4)/(1+EXP(-1.7*AB$2*($C47-AB$3))),"") ->  | AC47: =IFERROR(AC$4+(1-AC$4)/(1+EXP(-1.7*AC$2*($C47-AC$3))),"") ->  | AD47: =IFERROR(AD$4+(1-AD$4)/(1+EXP(-1.7*AD$2*($C47-AD$3))),"") ->  | AE47: =IFERROR(AE$4+(1-AE$4)/(1+EXP(-1.7*AE$2*($C47-AE$3))),"") ->  | AF47: =IFERROR(AF$4+(1-AF$4)/(1+EXP(-1.7*AF$2*($C47-AF$3))),"") ->  | AG47: =IFERROR(AG$4+(1-AG$4)/(1+EXP(-1.7*AG$2*($C47-AG$3))),"") -> 
A48: 39 | B48: 0.0143504758 | C48: -3.62 | D48: =IFERROR(D$4+(1-D$4)/(1+EXP(-1.7*D$2*($C48-D$3))),"") -> 0.0161612923 | E48: =IFERROR(E$4+(1-E$4)/(1+EXP(-1.7*E$2*($C48-E$3))),"") -> 0.2019152707 | F48: =IFERROR(F$4+(1-F$4)/(1+EXP(-1.7*F$2*($C48-F$3))),"") -> 0.2851998775 | G48: =IFERROR(G$4+(1-G$4)/(1+EXP(-1.7*G$2*($C48-G$3))),"") -> 0.2732933213 | H48: =IFERROR(H$4+(1-H$4)/(1+EXP(-1.7*H$2*($C48-H$3))),"") -> 0.07318111073 | I48: =IFERROR(I$4+(1-I$4)/(1+EXP(-1.7*I$2*($C48-I$3))),"") ->  | J48: =IFERROR(J$4+(1-J$4)/(1+EXP(-1.7*J$2*($C48-J$3))),"") ->  | K48: =IFERROR(K$4+(1-K$4)/(1+EXP(-1.7*K$2*($C48-K$3))),"") ->  | L48: =IFERROR(L$4+(1-L$4)/(1+EXP(-1.7*L$2*($C48-L$3))),"") ->  | M48: =IFERROR(M$4+(1-M$4)/(1+EXP(-1.7*M$2*($C48-M$3))),"") ->  | N48: =IFERROR(N$4+(1-N$4)/(1+EXP(-1.7*N$2*($C48-N$3))),"") ->  | O48: =IFERROR(O$4+(1-O$4)/(1+EXP(-1.7*O$2*($C48-O$3))),"") ->  | P48: =IFERROR(P$4+(1-P$4)/(1+EXP(-1.7*P$2*($C48-P$3))),"") ->  | Q48: =IFERROR(Q$4+(1-Q$4)/(1+EXP(-1.7*Q$2*($C48-Q$3))),"") ->  | R48: =IFERROR(R$4+(1-R$4)/(1+EXP(-1.7*R$2*($C48-R$3))),"") ->  | S48: =IFERROR(S$4+(1-S$4)/(1+EXP(-1.7*S$2*($C48-S$3))),"") ->  | T48: =IFERROR(T$4+(1-T$4)/(1+EXP(-1.7*T$2*($C48-T$3))),"") ->  | U48: =IFERROR(U$4+(1-U$4)/(1+EXP(-1.7*U$2*($C48-U$3))),"") ->  | V48: =IFERROR(V$4+(1-V$4)/(1+EXP(-1.7*V$2*($C48-V$3))),"") ->  | W48: =IFERROR(W$4+(1-W$4)/(1+EXP(-1.7*W$2*($C48-W$3))),"") ->  | X48: =IFERROR(X$4+(1-X$4)/(1+EXP(-1.7*X$2*($C48-X$3))),"") ->  | Y48: =IFERROR(Y$4+(1-Y$4)/(1+EXP(-1.7*Y$2*($C48-Y$3))),"") ->  | Z48: =IFERROR(Z$4+(1-Z$4)/(1+EXP(-1.7*Z$2*($C48-Z$3))),"") ->  | AA48: =IFERROR(AA$4+(1-AA$4)/(1+EXP(-1.7*AA$2*($C48-AA$3))),"") ->  | AB48: =IFERROR(AB$4+(1-AB$4)/(1+EXP(-1.7*AB$2*($C48-AB$3))),"") ->  | AC48: =IFERROR(AC$4+(1-AC$4)/(1+EXP(-1.7*AC$2*($C48-AC$3))),"") ->  | AD48: =IFERROR(AD$4+(1-AD$4)/(1+EXP(-1.7*AD$2*($C48-AD$3))),"") ->  | AE48: =IFERROR(AE$4+(1-AE$4)/(1+EXP(-1.7*AE$2*($C48-AE$3))),"") ->  | AF48: =IFERROR(AF$4+(1-AF$4)/(1+EXP(-1.7*AF$2*($C48-AF$3))),"") ->  | AG48: =IFERROR(AG$4+(1-AG$4)/(1+EXP(-1.7*AG$2*($C48-AG$3))),"") -> 
A49: 40 | B49: 0.01439064769 | C49: -3.61 | D49: =IFERROR(D$4+(1-D$4)/(1+EXP(-1.7*D$2*($C49-D$3))),"") -> 0.01616322422 | E49: =IFERROR(E$4+(1-E$4)/(1+EXP(-1.7*E$2*($C49-E$3))),"") -> 0.2021613634 | F49: =IFERROR(F$4+(1-F$4)/(1+EXP(-1.7*F$2*($C49-F$3))),"") -> 0.2856505946 | G49: =IFERROR(G$4+(1-G$4)/(1+EXP(-1.7*G$2*($C49-G$3))),"") -> 0.2732933966 | H49: =IFERROR(H$4+(1-H$4)/(1+EXP(-1.7*H$2*($C49-H$3))),"") -> 0.07318114572 | I49: =IFERROR(I$4+(1-I$4)/(1+EXP(-1.7*I$2*($C49-I$3))),"") ->  | J49: =IFERROR(J$4+(1-J$4)/(1+EXP(-1.7*J$2*($C49-J$3))),"") ->  | K49: =IFERROR(K$4+(1-K$4)/(1+EXP(-1.7*K$2*($C49-K$3))),"") ->  | L49: =IFERROR(L$4+(1-L$4)/(1+EXP(-1.7*L$2*($C49-L$3))),"") ->  | M49: =IFERROR(M$4+(1-M$4)/(1+EXP(-1.7*M$2*($C49-M$3))),"") ->  | N49: =IFERROR(N$4+(1-N$4)/(1+EXP(-1.7*N$2*($C49-N$3))),"") ->  | O49: =IFERROR(O$4+(1-O$4)/(1+EXP(-1.7*O$2*($C49-O$3))),"") ->  | P49: =IFERROR(P$4+(1-P$4)/(1+EXP(-1.7*P$2*($C49-P$3))),"") ->  | Q49: =IFERROR(Q$4+(1-Q$4)/(1+EXP(-1.7*Q$2*($C49-Q$3))),"") ->  | R49: =IFERROR(R$4+(1-R$4)/(1+EXP(-1.7*R$2*($C49-R$3))),"") ->  | S49: =IFERROR(S$4+(1-S$4)/(1+EXP(-1.7*S$2*($C49-S$3))),"") ->  | T49: =IFERROR(T$4+(1-T$4)/(1+EXP(-1.7*T$2*($C49-T$3))),"") ->  | U49: =IFERROR(U$4+(1-U$4)/(1+EXP(-1.7*U$2*($C49-U$3))),"") ->  | V49: =IFERROR(V$4+(1-V$4)/(1+EXP(-1.7*V$2*($C49-V$3))),"") ->  | W49: =IFERROR(W$4+(1-W$4)/(1+EXP(-1.7*W$2*($C49-W$3))),"") ->  | X49: =IFERROR(X$4+(1-X$4)/(1+EXP(-1.7*X$2*($C49-X$3))),"") ->  | Y49: =IFERROR(Y$4+(1-Y$4)/(1+EXP(-1.7*Y$2*($C49-Y$3))),"") ->  | Z49: =IFERROR(Z$4+(1-Z$4)/(1+EXP(-1.7*Z$2*($C49-Z$3))),"") ->  | AA49: =IFERROR(AA$4+(1-AA$4)/(1+EXP(-1.7*AA$2*($C49-AA$3))),"") ->  | AB49: =IFERROR(AB$4+(1-AB$4)/(1+EXP(-1.7*AB$2*($C49-AB$3))),"") ->  | AC49: =IFERROR(AC$4+(1-AC$4)/(1+EXP(-1.7*AC$2*($C49-AC$3))),"") ->  | AD49: =IFERROR(AD$4+(1-AD$4)/(1+EXP(-1.7*AD$2*($C49-AD$3))),"") ->  | AE49: =IFERROR(AE$4+(1-AE$4)/(1+EXP(-1.7*AE$2*($C49-AE$3))),"") ->  | AF49: =IFERROR(AF$4+(1-AF$4)/(1+EXP(-1.7*AF$2*($C49-AF$3))),"") ->  | AG49: =IFERROR(AG$4+(1-AG$4)/(1+EXP(-1.7*AG$2*($C49-AG$3))),"") -> 
A50: 41 | B50: 0.01443142243 | C50: -3.6 | D50: =IFERROR(D$4+(1-D$4)/(1+EXP(-1.7*D$2*($C50-D$3))),"") -> 0.01616519009 | E50: =IFERROR(E$4+(1-E$4)/(1+EXP(-1.7*E$2*($C50-E$3))),"") -> 0.2024113867 | F50: =IFERROR(F$4+(1-F$4)/(1+EXP(-1.7*F$2*($C50-F$3))),"") -> 0.2861066229 | G50: =IFERROR(G$4+(1-G$4)/(1+EXP(-1.7*G$2*($C50-G$3))),"") -> 0.2732934733 | H50: =IFERROR(H$4+(1-H$4)/(1+EXP(-1.7*H$2*($C50-H$3))),"") -> 0.07318118143 | I50: =IFERROR(I$4+(1-I$4)/(1+EXP(-1.7*I$2*($C50-I$3))),"") ->  | J50: =IFERROR(J$4+(1-J$4)/(1+EXP(-1.7*J$2*($C50-J$3))),"") ->  | K50: =IFERROR(K$4+(1-K$4)/(1+EXP(-1.7*K$2*($C50-K$3))),"") ->  | L50: =IFERROR(L$4+(1-L$4)/(1+EXP(-1.7*L$2*($C50-L$3))),"") ->  | M50: =IFERROR(M$4+(1-M$4)/(1+EXP(-1.7*M$2*($C50-M$3))),"") ->  | N50: =IFERROR(N$4+(1-N$4)/(1+EXP(-1.7*N$2*($C50-N$3))),"") ->  | O50: =IFERROR(O$4+(1-O$4)/(1+EXP(-1.7*O$2*($C50-O$3))),"") ->  | P50: =IFERROR(P$4+(1-P$4)/(1+EXP(-1.7*P$2*($C50-P$3))),"") ->  | Q50: =IFERROR(Q$4+(1-Q$4)/(1+EXP(-1.7*Q$2*($C50-Q$3))),"") ->  | R50: =IFERROR(R$4+(1-R$4)/(1+EXP(-1.7*R$2*($C50-R$3))),"") ->  | S50: =IFERROR(S$4+(1-S$4)/(1+EXP(-1.7*S$2*($C50-S$3))),"") ->  | T50: =IFERROR(T$4+(1-T$4)/(1+EXP(-1.7*T$2*($C50-T$3))),"") ->  | U50: =IFERROR(U$4+(1-U$4)/(1+EXP(-1.7*U$2*($C50-U$3))),"") ->  | V50: =IFERROR(V$4+(1-V$4)/(1+EXP(-1.7*V$2*($C50-V$3))),"") ->  | W50: =IFERROR(W$4+(1-W$4)/(1+EXP(-1.7*W$2*($C50-W$3))),"") ->  | X50: =IFERROR(X$4+(1-X$4)/(1+EXP(-1.7*X$2*($C50-X$3))),"") ->  | Y50: =IFERROR(Y$4+(1-Y$4)/(1+EXP(-1.7*Y$2*($C50-Y$3))),"") ->  | Z50: =IFERROR(Z$4+(1-Z$4)/(1+EXP(-1.7*Z$2*($C50-Z$3))),"") ->  | AA50: =IFERROR(AA$4+(1-AA$4)/(1+EXP(-1.7*AA$2*($C50-AA$3))),"") ->  | AB50: =IFERROR(AB$4+(1-AB$4)/(1+EXP(-1.7*AB$2*($C50-AB$3))),"") ->  | AC50: =IFERROR(AC$4+(1-AC$4)/(1+EXP(-1.7*AC$2*($C50-AC$3))),"") ->  | AD50: =IFERROR(AD$4+(1-AD$4)/(1+EXP(-1.7*AD$2*($C50-AD$3))),"") ->  | AE50: =IFERROR(AE$4+(1-AE$4)/(1+EXP(-1.7*AE$2*($C50-AE$3))),"") ->  | AF50: =IFERROR(AF$4+(1-AF$4)/(1+EXP(-1.7*AF$2*($C50-AF$3))),"") ->  | AG50: =IFERROR(AG$4+(1-AG$4)/(1+EXP(-1.7*AG$2*($C50-AG$3))),"") -> 
A51: 42 | B51: 0.01447280944 | C51: -3.59 | D51: =IFERROR(D$4+(1-D$4)/(1+EXP(-1.7*D$2*($C51-D$3))),"") -> 0.0161671905 | E51: =IFERROR(E$4+(1-E$4)/(1+EXP(-1.7*E$2*($C51-E$3))),"") -> 0.2026654008 | F51: =IFERROR(F$4+(1-F$4)/(1+EXP(-1.7*F$2*($C51-F$3))),"") -> 0.2865680178 | G51: =IFERROR(G$4+(1-G$4)/(1+EXP(-1.7*G$2*($C51-G$3))),"") -> 0.2732935514 | H51: =IFERROR(H$4+(1-H$4)/(1+EXP(-1.7*H$2*($C51-H$3))),"") -> 0.07318121787 | I51: =IFERROR(I$4+(1-I$4)/(1+EXP(-1.7*I$2*($C51-I$3))),"") ->  | J51: =IFERROR(J$4+(1-J$4)/(1+EXP(-1.7*J$2*($C51-J$3))),"") ->  | K51: =IFERROR(K$4+(1-K$4)/(1+EXP(-1.7*K$2*($C51-K$3))),"") ->  | L51: =IFERROR(L$4+(1-L$4)/(1+EXP(-1.7*L$2*($C51-L$3))),"") ->  | M51: =IFERROR(M$4+(1-M$4)/(1+EXP(-1.7*M$2*($C51-M$3))),"") ->  | N51: =IFERROR(N$4+(1-N$4)/(1+EXP(-1.7*N$2*($C51-N$3))),"") ->  | O51: =IFERROR(O$4+(1-O$4)/(1+EXP(-1.7*O$2*($C51-O$3))),"") ->  | P51: =IFERROR(P$4+(1-P$4)/(1+EXP(-1.7*P$2*($C51-P$3))),"") ->  | Q51: =IFERROR(Q$4+(1-Q$4)/(1+EXP(-1.7*Q$2*($C51-Q$3))),"") ->  | R51: =IFERROR(R$4+(1-R$4)/(1+EXP(-1.7*R$2*($C51-R$3))),"") ->  | S51: =IFERROR(S$4+(1-S$4)/(1+EXP(-1.7*S$2*($C51-S$3))),"") ->  | T51: =IFERROR(T$4+(1-T$4)/(1+EXP(-1.7*T$2*($C51-T$3))),"") ->  | U51: =IFERROR(U$4+(1-U$4)/(1+EXP(-1.7*U$2*($C51-U$3))),"") ->  | V51: =IFERROR(V$4+(1-V$4)/(1+EXP(-1.7*V$2*($C51-V$3))),"") ->  | W51: =IFERROR(W$4+(1-W$4)/(1+EXP(-1.7*W$2*($C51-W$3))),"") ->  | X51: =IFERROR(X$4+(1-X$4)/(1+EXP(-1.7*X$2*($C51-X$3))),"") ->  | Y51: =IFERROR(Y$4+(1-Y$4)/(1+EXP(-1.7*Y$2*($C51-Y$3))),"") ->  | Z51: =IFERROR(Z$4+(1-Z$4)/(1+EXP(-1.7*Z$2*($C51-Z$3))),"") ->  | AA51: =IFERROR(AA$4+(1-AA$4)/(1+EXP(-1.7*AA$2*($C51-AA$3))),"") ->  | AB51: =IFERROR(AB$4+(1-AB$4)/(1+EXP(-1.7*AB$2*($C51-AB$3))),"") ->  | AC51: =IFERROR(AC$4+(1-AC$4)/(1+EXP(-1.7*AC$2*($C51-AC$3))),"") ->  | AD51: =IFERROR(AD$4+(1-AD$4)/(1+EXP(-1.7*AD$2*($C51-AD$3))),"") ->  | AE51: =IFERROR(AE$4+(1-AE$4)/(1+EXP(-1.7*AE$2*($C51-AE$3))),"") ->  | AF51: =IFERROR(AF$4+(1-AF$4)/(1+EXP(-1.7*AF$2*($C51-AF$3))),"") ->  | AG51: =IFERROR(AG$4+(1-AG$4)/(1+EXP(-1.7*AG$2*($C51-AG$3))),"") -> 
A52: 43 | B52: 0.01451481828 | C52: -3.58 | D52: =IFERROR(D$4+(1-D$4)/(1+EXP(-1.7*D$2*($C52-D$3))),"") -> 0.01616922606 | E52: =IFERROR(E$4+(1-E$4)/(1+EXP(-1.7*E$2*($C52-E$3))),"") -> 0.2029234669 | F52: =IFERROR(F$4+(1-F$4)/(1+EXP(-1.7*F$2*($C52-F$3))),"") -> 0.287034835 | G52: =IFERROR(G$4+(1-G$4)/(1+EXP(-1.7*G$2*($C52-G$3))),"") -> 0.273293631 | H52: =IFERROR(H$4+(1-H$4)/(1+EXP(-1.7*H$2*($C52-H$3))),"") -> 0.07318125506 | I52: =IFERROR(I$4+(1-I$4)/(1+EXP(-1.7*I$2*($C52-I$3))),"") ->  | J52: =IFERROR(J$4+(1-J$4)/(1+EXP(-1.7*J$2*($C52-J$3))),"") ->  | K52: =IFERROR(K$4+(1-K$4)/(1+EXP(-1.7*K$2*($C52-K$3))),"") ->  | L52: =IFERROR(L$4+(1-L$4)/(1+EXP(-1.7*L$2*($C52-L$3))),"") ->  | M52: =IFERROR(M$4+(1-M$4)/(1+EXP(-1.7*M$2*($C52-M$3))),"") ->  | N52: =IFERROR(N$4+(1-N$4)/(1+EXP(-1.7*N$2*($C52-N$3))),"") ->  | O52: =IFERROR(O$4+(1-O$4)/(1+EXP(-1.7*O$2*($C52-O$3))),"") ->  | P52: =IFERROR(P$4+(1-P$4)/(1+EXP(-1.7*P$2*($C52-P$3))),"") ->  | Q52: =IFERROR(Q$4+(1-Q$4)/(1+EXP(-1.7*Q$2*($C52-Q$3))),"") ->  | R52: =IFERROR(R$4+(1-R$4)/(1+EXP(-1.7*R$2*($C52-R$3))),"") ->  | S52: =IFERROR(S$4+(1-S$4)/(1+EXP(-1.7*S$2*($C52-S$3))),"") ->  | T52: =IFERROR(T$4+(1-T$4)/(1+EXP(-1.7*T$2*($C52-T$3))),"") ->  | U52: =IFERROR(U$4+(1-U$4)/(1+EXP(-1.7*U$2*($C52-U$3))),"") ->  | V52: =IFERROR(V$4+(1-V$4)/(1+EXP(-1.7*V$2*($C52-V$3))),"") ->  | W52: =IFERROR(W$4+(1-W$4)/(1+EXP(-1.7*W$2*($C52-W$3))),"") ->  | X52: =IFERROR(X$4+(1-X$4)/(1+EXP(-1.7*X$2*($C52-X$3))),"") ->  | Y52: =IFERROR(Y$4+(1-Y$4)/(1+EXP(-1.7*Y$2*($C52-Y$3))),"") ->  | Z52: =IFERROR(Z$4+(1-Z$4)/(1+EXP(-1.7*Z$2*($C52-Z$3))),"") ->  | AA52: =IFERROR(AA$4+(1-AA$4)/(1+EXP(-1.7*AA$2*($C52-AA$3))),"") ->  | AB52: =IFERROR(AB$4+(1-AB$4)/(1+EXP(-1.7*AB$2*($C52-AB$3))),"") ->  | AC52: =IFERROR(AC$4+(1-AC$4)/(1+EXP(-1.7*AC$2*($C52-AC$3))),"") ->  | AD52: =IFERROR(AD$4+(1-AD$4)/(1+EXP(-1.7*AD$2*($C52-AD$3))),"") ->  | AE52: =IFERROR(AE$4+(1-AE$4)/(1+EXP(-1.7*AE$2*($C52-AE$3))),"") ->  | AF52: =IFERROR(AF$4+(1-AF$4)/(1+EXP(-1.7*AF$2*($C52-AF$3))),"") ->  | AG52: =IFERROR(AG$4+(1-AG$4)/(1+EXP(-1.7*AG$2*($C52-AG$3))),"") -> 
A53: 44 | B53: 0.01455745866 | C53: -3.57 | D53: =IFERROR(D$4+(1-D$4)/(1+EXP(-1.7*D$2*($C53-D$3))),"") -> 0.01617129739 | E53: =IFERROR(E$4+(1-E$4)/(1+EXP(-1.7*E$2*($C53-E$3))),"") -> 0.2031856469 | F53: =IFERROR(F$4+(1-F$4)/(1+EXP(-1.7*F$2*($C53-F$3))),"") -> 0.2875071306 | G53: =IFERROR(G$4+(1-G$4)/(1+EXP(-1.7*G$2*($C53-G$3))),"") -> 0.2732937121 | H53: =IFERROR(H$4+(1-H$4)/(1+EXP(-1.7*H$2*($C53-H$3))),"") -> 0.07318129301 | I53: =IFERROR(I$4+(1-I$4)/(1+EXP(-1.7*I$2*($C53-I$3))),"") ->  | J53: =IFERROR(J$4+(1-J$4)/(1+EXP(-1.7*J$2*($C53-J$3))),"") ->  | K53: =IFERROR(K$4+(1-K$4)/(1+EXP(-1.7*K$2*($C53-K$3))),"") ->  | L53: =IFERROR(L$4+(1-L$4)/(1+EXP(-1.7*L$2*($C53-L$3))),"") ->  | M53: =IFERROR(M$4+(1-M$4)/(1+EXP(-1.7*M$2*($C53-M$3))),"") ->  | N53: =IFERROR(N$4+(1-N$4)/(1+EXP(-1.7*N$2*($C53-N$3))),"") ->  | O53: =IFERROR(O$4+(1-O$4)/(1+EXP(-1.7*O$2*($C53-O$3))),"") ->  | P53: =IFERROR(P$4+(1-P$4)/(1+EXP(-1.7*P$2*($C53-P$3))),"") ->  | Q53: =IFERROR(Q$4+(1-Q$4)/(1+EXP(-1.7*Q$2*($C53-Q$3))),"") ->  | R53: =IFERROR(R$4+(1-R$4)/(1+EXP(-1.7*R$2*($C53-R$3))),"") ->  | S53: =IFERROR(S$4+(1-S$4)/(1+EXP(-1.7*S$2*($C53-S$3))),"") ->  | T53: =IFERROR(T$4+(1-T$4)/(1+EXP(-1.7*T$2*($C53-T$3))),"") ->  | U53: =IFERROR(U$4+(1-U$4)/(1+EXP(-1.7*U$2*($C53-U$3))),"") ->  | V53: =IFERROR(V$4+(1-V$4)/(1+EXP(-1.7*V$2*($C53-V$3))),"") ->  | W53: =IFERROR(W$4+(1-W$4)/(1+EXP(-1.7*W$2*($C53-W$3))),"") ->  | X53: =IFERROR(X$4+(1-X$4)/(1+EXP(-1.7*X$2*($C53-X$3))),"") ->  | Y53: =IFERROR(Y$4+(1-Y$4)/(1+EXP(-1.7*Y$2*($C53-Y$3))),"") ->  | Z53: =IFERROR(Z$4+(1-Z$4)/(1+EXP(-1.7*Z$2*($C53-Z$3))),"") ->  | AA53: =IFERROR(AA$4+(1-AA$4)/(1+EXP(-1.7*AA$2*($C53-AA$3))),"") ->  | AB53: =IFERROR(AB$4+(1-AB$4)/(1+EXP(-1.7*AB$2*($C53-AB$3))),"") ->  | AC53: =IFERROR(AC$4+(1-AC$4)/(1+EXP(-1.7*AC$2*($C53-AC$3))),"") ->  | AD53: =IFERROR(AD$4+(1-AD$4)/(1+EXP(-1.7*AD$2*($C53-AD$3))),"") ->  | AE53: =IFERROR(AE$4+(1-AE$4)/(1+EXP(-1.7*AE$2*($C53-AE$3))),"") ->  | AF53: =IFERROR(AF$4+(1-AF$4)/(1+EXP(-1.7*AF$2*($C53-AF$3))),"") ->  | AG53: =IFERROR(AG$4+(1-AG$4)/(1+EXP(-1.7*AG$2*($C53-AG$3))),"") -> 
A54: 45 | B54: 0.01460074047 | C54: -3.56 | D54: =IFERROR(D$4+(1-D$4)/(1+EXP(-1.7*D$2*($C54-D$3))),"") -> 0.01617340511 | E54: =IFERROR(E$4+(1-E$4)/(1+EXP(-1.7*E$2*($C54-E$3))),"") -> 0.2034520033 | F54: =IFERROR(F$4+(1-F$4)/(1+EXP(-1.7*F$2*($C54-F$3))),"") -> 0.2879849611 | G54: =IFERROR(G$4+(1-G$4)/(1+EXP(-1.7*G$2*($C54-G$3))),"") -> 0.2732937946 | H54: =IFERROR(H$4+(1-H$4)/(1+EXP(-1.7*H$2*($C54-H$3))),"") -> 0.07318133174 | I54: =IFERROR(I$4+(1-I$4)/(1+EXP(-1.7*I$2*($C54-I$3))),"") ->  | J54: =IFERROR(J$4+(1-J$4)/(1+EXP(-1.7*J$2*($C54-J$3))),"") ->  | K54: =IFERROR(K$4+(1-K$4)/(1+EXP(-1.7*K$2*($C54-K$3))),"") ->  | L54: =IFERROR(L$4+(1-L$4)/(1+EXP(-1.7*L$2*($C54-L$3))),"") ->  | M54: =IFERROR(M$4+(1-M$4)/(1+EXP(-1.7*M$2*($C54-M$3))),"") ->  | N54: =IFERROR(N$4+(1-N$4)/(1+EXP(-1.7*N$2*($C54-N$3))),"") ->  | O54: =IFERROR(O$4+(1-O$4)/(1+EXP(-1.7*O$2*($C54-O$3))),"") ->  | P54: =IFERROR(P$4+(1-P$4)/(1+EXP(-1.7*P$2*($C54-P$3))),"") ->  | Q54: =IFERROR(Q$4+(1-Q$4)/(1+EXP(-1.7*Q$2*($C54-Q$3))),"") ->  | R54: =IFERROR(R$4+(1-R$4)/(1+EXP(-1.7*R$2*($C54-R$3))),"") ->  | S54: =IFERROR(S$4+(1-S$4)/(1+EXP(-1.7*S$2*($C54-S$3))),"") ->  | T54: =IFERROR(T$4+(1-T$4)/(1+EXP(-1.7*T$2*($C54-T$3))),"") ->  | U54: =IFERROR(U$4+(1-U$4)/(1+EXP(-1.7*U$2*($C54-U$3))),"") ->  | V54: =IFERROR(V$4+(1-V$4)/(1+EXP(-1.7*V$2*($C54-V$3))),"") ->  | W54: =IFERROR(W$4+(1-W$4)/(1+EXP(-1.7*W$2*($C54-W$3))),"") ->  | X54: =IFERROR(X$4+(1-X$4)/(1+EXP(-1.7*X$2*($C54-X$3))),"") ->  | Y54: =IFERROR(Y$4+(1-Y$4)/(1+EXP(-1.7*Y$2*($C54-Y$3))),"") ->  | Z54: =IFERROR(Z$4+(1-Z$4)/(1+EXP(-1.7*Z$2*($C54-Z$3))),"") ->  | AA54: =IFERROR(AA$4+(1-AA$4)/(1+EXP(-1.7*AA$2*($C54-AA$3))),"") ->  | AB54: =IFERROR(AB$4+(1-AB$4)/(1+EXP(-1.7*AB$2*($C54-AB$3))),"") ->  | AC54: =IFERROR(AC$4+(1-AC$4)/(1+EXP(-1.7*AC$2*($C54-AC$3))),"") ->  | AD54: =IFERROR(AD$4+(1-AD$4)/(1+EXP(-1.7*AD$2*($C54-AD$3))),"") ->  | AE54: =IFERROR(AE$4+(1-AE$4)/(1+EXP(-1.7*AE$2*($C54-AE$3))),"") ->  | AF54: =IFERROR(AF$4+(1-AF$4)/(1+EXP(-1.7*AF$2*($C54-AF$3))),"") ->  | AG54: =IFERROR(AG$4+(1-AG$4)/(1+EXP(-1.7*AG$2*($C54-AG$3))),"") -> 
A55: 46 | B55: 0.01464467375 | C55: -3.55 | D55: =IFERROR(D$4+(1-D$4)/(1+EXP(-1.7*D$2*($C55-D$3))),"") -> 0.01617554987 | E55: =IFERROR(E$4+(1-E$4)/(1+EXP(-1.7*E$2*($C55-E$3))),"") -> 0.2037226 | F55: =IFERROR(F$4+(1-F$4)/(1+EXP(-1.7*F$2*($C55-F$3))),"") -> 0.2884683833 | G55: =IFERROR(G$4+(1-G$4)/(1+EXP(-1.7*G$2*($C55-G$3))),"") -> 0.2732938788 | H55: =IFERROR(H$4+(1-H$4)/(1+EXP(-1.7*H$2*($C55-H$3))),"") -> 0.07318137127 | I55: =IFERROR(I$4+(1-I$4)/(1+EXP(-1.7*I$2*($C55-I$3))),"") ->  | J55: =IFERROR(J$4+(1-J$4)/(1+EXP(-1.7*J$2*($C55-J$3))),"") ->  | K55: =IFERROR(K$4+(1-K$4)/(1+EXP(-1.7*K$2*($C55-K$3))),"") ->  | L55: =IFERROR(L$4+(1-L$4)/(1+EXP(-1.7*L$2*($C55-L$3))),"") ->  | M55: =IFERROR(M$4+(1-M$4)/(1+EXP(-1.7*M$2*($C55-M$3))),"") ->  | N55: =IFERROR(N$4+(1-N$4)/(1+EXP(-1.7*N$2*($C55-N$3))),"") ->  | O55: =IFERROR(O$4+(1-O$4)/(1+EXP(-1.7*O$2*($C55-O$3))),"") ->  | P55: =IFERROR(P$4+(1-P$4)/(1+EXP(-1.7*P$2*($C55-P$3))),"") ->  | Q55: =IFERROR(Q$4+(1-Q$4)/(1+EXP(-1.7*Q$2*($C55-Q$3))),"") ->  | R55: =IFERROR(R$4+(1-R$4)/(1+EXP(-1.7*R$2*($C55-R$3))),"") ->  | S55: =IFERROR(S$4+(1-S$4)/(1+EXP(-1.7*S$2*($C55-S$3))),"") ->  | T55: =IFERROR(T$4+(1-T$4)/(1+EXP(-1.7*T$2*($C55-T$3))),"") ->  | U55: =IFERROR(U$4+(1-U$4)/(1+EXP(-1.7*U$2*($C55-U$3))),"") ->  | V55: =IFERROR(V$4+(1-V$4)/(1+EXP(-1.7*V$2*($C55-V$3))),"") ->  | W55: =IFERROR(W$4+(1-W$4)/(1+EXP(-1.7*W$2*($C55-W$3))),"") ->  | X55: =IFERROR(X$4+(1-X$4)/(1+EXP(-1.7*X$2*($C55-X$3))),"") ->  | Y55: =IFERROR(Y$4+(1-Y$4)/(1+EXP(-1.7*Y$2*($C55-Y$3))),"") ->  | Z55: =IFERROR(Z$4+(1-Z$4)/(1+EXP(-1.7*Z$2*($C55-Z$3))),"") ->  | AA55: =IFERROR(AA$4+(1-AA$4)/(1+EXP(-1.7*AA$2*($C55-AA$3))),"") ->  | AB55: =IFERROR(AB$4+(1-AB$4)/(1+EXP(-1.7*AB$2*($C55-AB$3))),"") ->  | AC55: =IFERROR(AC$4+(1-AC$4)/(1+EXP(-1.7*AC$2*($C55-AC$3))),"") ->  | AD55: =IFERROR(AD$4+(1-AD$4)/(1+EXP(-1.7*AD$2*($C55-AD$3))),"") ->  | AE55: =IFERROR(AE$4+(1-AE$4)/(1+EXP(-1.7*AE$2*($C55-AE$3))),"") ->  | AF55: =IFERROR(AF$4+(1-AF$4)/(1+EXP(-1.7*AF$2*($C55-AF$3))),"") ->  | AG55: =IFERROR(AG$4+(1-AG$4)/(1+EXP(-1.7*AG$2*($C55-AG$3))),"") -> 
A56: 47 | B56: 0.0146892687 | C56: -3.54 | D56: =IFERROR(D$4+(1-D$4)/(1+EXP(-1.7*D$2*($C56-D$3))),"") -> 0.01617773232 | E56: =IFERROR(E$4+(1-E$4)/(1+EXP(-1.7*E$2*($C56-E$3))),"") -> 0.2039975013 | F56: =IFERROR(F$4+(1-F$4)/(1+EXP(-1.7*F$2*($C56-F$3))),"") -> 0.2889574545 | G56: =IFERROR(G$4+(1-G$4)/(1+EXP(-1.7*G$2*($C56-G$3))),"") -> 0.2732939645 | H56: =IFERROR(H$4+(1-H$4)/(1+EXP(-1.7*H$2*($C56-H$3))),"") -> 0.07318141161 | I56: =IFERROR(I$4+(1-I$4)/(1+EXP(-1.7*I$2*($C56-I$3))),"") ->  | J56: =IFERROR(J$4+(1-J$4)/(1+EXP(-1.7*J$2*($C56-J$3))),"") ->  | K56: =IFERROR(K$4+(1-K$4)/(1+EXP(-1.7*K$2*($C56-K$3))),"") ->  | L56: =IFERROR(L$4+(1-L$4)/(1+EXP(-1.7*L$2*($C56-L$3))),"") ->  | M56: =IFERROR(M$4+(1-M$4)/(1+EXP(-1.7*M$2*($C56-M$3))),"") ->  | N56: =IFERROR(N$4+(1-N$4)/(1+EXP(-1.7*N$2*($C56-N$3))),"") ->  | O56: =IFERROR(O$4+(1-O$4)/(1+EXP(-1.7*O$2*($C56-O$3))),"") ->  | P56: =IFERROR(P$4+(1-P$4)/(1+EXP(-1.7*P$2*($C56-P$3))),"") ->  | Q56: =IFERROR(Q$4+(1-Q$4)/(1+EXP(-1.7*Q$2*($C56-Q$3))),"") ->  | R56: =IFERROR(R$4+(1-R$4)/(1+EXP(-1.7*R$2*($C56-R$3))),"") ->  | S56: =IFERROR(S$4+(1-S$4)/(1+EXP(-1.7*S$2*($C56-S$3))),"") ->  | T56: =IFERROR(T$4+(1-T$4)/(1+EXP(-1.7*T$2*($C56-T$3))),"") ->  | U56: =IFERROR(U$4+(1-U$4)/(1+EXP(-1.7*U$2*($C56-U$3))),"") ->  | V56: =IFERROR(V$4+(1-V$4)/(1+EXP(-1.7*V$2*($C56-V$3))),"") ->  | W56: =IFERROR(W$4+(1-W$4)/(1+EXP(-1.7*W$2*($C56-W$3))),"") ->  | X56: =IFERROR(X$4+(1-X$4)/(1+EXP(-1.7*X$2*($C56-X$3))),"") ->  | Y56: =IFERROR(Y$4+(1-Y$4)/(1+EXP(-1.7*Y$2*($C56-Y$3))),"") ->  | Z56: =IFERROR(Z$4+(1-Z$4)/(1+EXP(-1.7*Z$2*($C56-Z$3))),"") ->  | AA56: =IFERROR(AA$4+(1-AA$4)/(1+EXP(-1.7*AA$2*($C56-AA$3))),"") ->  | AB56: =IFERROR(AB$4+(1-AB$4)/(1+EXP(-1.7*AB$2*($C56-AB$3))),"") ->  | AC56: =IFERROR(AC$4+(1-AC$4)/(1+EXP(-1.7*AC$2*($C56-AC$3))),"") ->  | AD56: =IFERROR(AD$4+(1-AD$4)/(1+EXP(-1.7*AD$2*($C56-AD$3))),"") ->  | AE56: =IFERROR(AE$4+(1-AE$4)/(1+EXP(-1.7*AE$2*($C56-AE$3))),"") ->  | AF56: =IFERROR(AF$4+(1-AF$4)/(1+EXP(-1.7*AF$2*($C56-AF$3))),"") ->  | AG56: =IFERROR(AG$4+(1-AG$4)/(1+EXP(-1.7*AG$2*($C56-AG$3))),"") -> 
A57: 48 | B57: 0.01473453567 | C57: -3.53 | D57: =IFERROR(D$4+(1-D$4)/(1+EXP(-1.7*D$2*($C57-D$3))),"") -> 0.01617995311 | E57: =IFERROR(E$4+(1-E$4)/(1+EXP(-1.7*E$2*($C57-E$3))),"") -> 0.2042767727 | F57: =IFERROR(F$4+(1-F$4)/(1+EXP(-1.7*F$2*($C57-F$3))),"") -> 0.2894522323 | G57: =IFERROR(G$4+(1-G$4)/(1+EXP(-1.7*G$2*($C57-G$3))),"") -> 0.2732940518 | H57: =IFERROR(H$4+(1-H$4)/(1+EXP(-1.7*H$2*($C57-H$3))),"") -> 0.07318145277 | I57: =IFERROR(I$4+(1-I$4)/(1+EXP(-1.7*I$2*($C57-I$3))),"") ->  | J57: =IFERROR(J$4+(1-J$4)/(1+EXP(-1.7*J$2*($C57-J$3))),"") ->  | K57: =IFERROR(K$4+(1-K$4)/(1+EXP(-1.7*K$2*($C57-K$3))),"") ->  | L57: =IFERROR(L$4+(1-L$4)/(1+EXP(-1.7*L$2*($C57-L$3))),"") ->  | M57: =IFERROR(M$4+(1-M$4)/(1+EXP(-1.7*M$2*($C57-M$3))),"") ->  | N57: =IFERROR(N$4+(1-N$4)/(1+EXP(-1.7*N$2*($C57-N$3))),"") ->  | O57: =IFERROR(O$4+(1-O$4)/(1+EXP(-1.7*O$2*($C57-O$3))),"") ->  | P57: =IFERROR(P$4+(1-P$4)/(1+EXP(-1.7*P$2*($C57-P$3))),"") ->  | Q57: =IFERROR(Q$4+(1-Q$4)/(1+EXP(-1.7*Q$2*($C57-Q$3))),"") ->  | R57: =IFERROR(R$4+(1-R$4)/(1+EXP(-1.7*R$2*($C57-R$3))),"") ->  | S57: =IFERROR(S$4+(1-S$4)/(1+EXP(-1.7*S$2*($C57-S$3))),"") ->  | T57: =IFERROR(T$4+(1-T$4)/(1+EXP(-1.7*T$2*($C57-T$3))),"") ->  | U57: =IFERROR(U$4+(1-U$4)/(1+EXP(-1.7*U$2*($C57-U$3))),"") ->  | V57: =IFERROR(V$4+(1-V$4)/(1+EXP(-1.7*V$2*($C57-V$3))),"") ->  | W57: =IFERROR(W$4+(1-W$4)/(1+EXP(-1.7*W$2*($C57-W$3))),"") ->  | X57: =IFERROR(X$4+(1-X$4)/(1+EXP(-1.7*X$2*($C57-X$3))),"") ->  | Y57: =IFERROR(Y$4+(1-Y$4)/(1+EXP(-1.7*Y$2*($C57-Y$3))),"") ->  | Z57: =IFERROR(Z$4+(1-Z$4)/(1+EXP(-1.7*Z$2*($C57-Z$3))),"") ->  | AA57: =IFERROR(AA$4+(1-AA$4)/(1+EXP(-1.7*AA$2*($C57-AA$3))),"") ->  | AB57: =IFERROR(AB$4+(1-AB$4)/(1+EXP(-1.7*AB$2*($C57-AB$3))),"") ->  | AC57: =IFERROR(AC$4+(1-AC$4)/(1+EXP(-1.7*AC$2*($C57-AC$3))),"") ->  | AD57: =IFERROR(AD$4+(1-AD$4)/(1+EXP(-1.7*AD$2*($C57-AD$3))),"") ->  | AE57: =IFERROR(AE$4+(1-AE$4)/(1+EXP(-1.7*AE$2*($C57-AE$3))),"") ->  | AF57: =IFERROR(AF$4+(1-AF$4)/(1+EXP(-1.7*AF$2*($C57-AF$3))),"") ->  | AG57: =IFERROR(AG$4+(1-AG$4)/(1+EXP(-1.7*AG$2*($C57-AG$3))),"") -> 
A58: 49 | B58: 0.01478048522 | C58: -3.52 | D58: =IFERROR(D$4+(1-D$4)/(1+EXP(-1.7*D$2*($C58-D$3))),"") -> 0.01618221292 | E58: =IFERROR(E$4+(1-E$4)/(1+EXP(-1.7*E$2*($C58-E$3))),"") -> 0.2045604803 | F58: =IFERROR(F$4+(1-F$4)/(1+EXP(-1.7*F$2*($C58-F$3))),"") -> 0.2899527749 | G58: =IFERROR(G$4+(1-G$4)/(1+EXP(-1.7*G$2*($C58-G$3))),"") -> 0.2732941407 | H58: =IFERROR(H$4+(1-H$4)/(1+EXP(-1.7*H$2*($C58-H$3))),"") -> 0.07318149478 | I58: =IFERROR(I$4+(1-I$4)/(1+EXP(-1.7*I$2*($C58-I$3))),"") ->  | J58: =IFERROR(J$4+(1-J$4)/(1+EXP(-1.7*J$2*($C58-J$3))),"") ->  | K58: =IFERROR(K$4+(1-K$4)/(1+EXP(-1.7*K$2*($C58-K$3))),"") ->  | L58: =IFERROR(L$4+(1-L$4)/(1+EXP(-1.7*L$2*($C58-L$3))),"") ->  | M58: =IFERROR(M$4+(1-M$4)/(1+EXP(-1.7*M$2*($C58-M$3))),"") ->  | N58: =IFERROR(N$4+(1-N$4)/(1+EXP(-1.7*N$2*($C58-N$3))),"") ->  | O58: =IFERROR(O$4+(1-O$4)/(1+EXP(-1.7*O$2*($C58-O$3))),"") ->  | P58: =IFERROR(P$4+(1-P$4)/(1+EXP(-1.7*P$2*($C58-P$3))),"") ->  | Q58: =IFERROR(Q$4+(1-Q$4)/(1+EXP(-1.7*Q$2*($C58-Q$3))),"") ->  | R58: =IFERROR(R$4+(1-R$4)/(1+EXP(-1.7*R$2*($C58-R$3))),"") ->  | S58: =IFERROR(S$4+(1-S$4)/(1+EXP(-1.7*S$2*($C58-S$3))),"") ->  | T58: =IFERROR(T$4+(1-T$4)/(1+EXP(-1.7*T$2*($C58-T$3))),"") ->  | U58: =IFERROR(U$4+(1-U$4)/(1+EXP(-1.7*U$2*($C58-U$3))),"") ->  | V58: =IFERROR(V$4+(1-V$4)/(1+EXP(-1.7*V$2*($C58-V$3))),"") ->  | W58: =IFERROR(W$4+(1-W$4)/(1+EXP(-1.7*W$2*($C58-W$3))),"") ->  | X58: =IFERROR(X$4+(1-X$4)/(1+EXP(-1.7*X$2*($C58-X$3))),"") ->  | Y58: =IFERROR(Y$4+(1-Y$4)/(1+EXP(-1.7*Y$2*($C58-Y$3))),"") ->  | Z58: =IFERROR(Z$4+(1-Z$4)/(1+EXP(-1.7*Z$2*($C58-Z$3))),"") ->  | AA58: =IFERROR(AA$4+(1-AA$4)/(1+EXP(-1.7*AA$2*($C58-AA$3))),"") ->  | AB58: =IFERROR(AB$4+(1-AB$4)/(1+EXP(-1.7*AB$2*($C58-AB$3))),"") ->  | AC58: =IFERROR(AC$4+(1-AC$4)/(1+EXP(-1.7*AC$2*($C58-AC$3))),"") ->  | AD58: =IFERROR(AD$4+(1-AD$4)/(1+EXP(-1.7*AD$2*($C58-AD$3))),"") ->  | AE58: =IFERROR(AE$4+(1-AE$4)/(1+EXP(-1.7*AE$2*($C58-AE$3))),"") ->  | AF58: =IFERROR(AF$4+(1-AF$4)/(1+EXP(-1.7*AF$2*($C58-AF$3))),"") ->  | AG58: =IFERROR(AG$4+(1-AG$4)/(1+EXP(-1.7*AG$2*($C58-AG$3))),"") -> 
A59: 50 | B59: 0.01482712805 | C59: -3.51 | D59: =IFERROR(D$4+(1-D$4)/(1+EXP(-1.7*D$2*($C59-D$3))),"") -> 0.01618451244 | E59: =IFERROR(E$4+(1-E$4)/(1+EXP(-1.7*E$2*($C59-E$3))),"") -> 0.2048486914 | F59: =IFERROR(F$4+(1-F$4)/(1+EXP(-1.7*F$2*($C59-F$3))),"") -> 0.2904591405 | G59: =IFERROR(G$4+(1-G$4)/(1+EXP(-1.7*G$2*($C59-G$3))),"") -> 0.2732942313 | H59: =IFERROR(H$4+(1-H$4)/(1+EXP(-1.7*H$2*($C59-H$3))),"") -> 0.07318153766 | I59: =IFERROR(I$4+(1-I$4)/(1+EXP(-1.7*I$2*($C59-I$3))),"") ->  | J59: =IFERROR(J$4+(1-J$4)/(1+EXP(-1.7*J$2*($C59-J$3))),"") ->  | K59: =IFERROR(K$4+(1-K$4)/(1+EXP(-1.7*K$2*($C59-K$3))),"") ->  | L59: =IFERROR(L$4+(1-L$4)/(1+EXP(-1.7*L$2*($C59-L$3))),"") ->  | M59: =IFERROR(M$4+(1-M$4)/(1+EXP(-1.7*M$2*($C59-M$3))),"") ->  | N59: =IFERROR(N$4+(1-N$4)/(1+EXP(-1.7*N$2*($C59-N$3))),"") ->  | O59: =IFERROR(O$4+(1-O$4)/(1+EXP(-1.7*O$2*($C59-O$3))),"") ->  | P59: =IFERROR(P$4+(1-P$4)/(1+EXP(-1.7*P$2*($C59-P$3))),"") ->  | Q59: =IFERROR(Q$4+(1-Q$4)/(1+EXP(-1.7*Q$2*($C59-Q$3))),"") ->  | R59: =IFERROR(R$4+(1-R$4)/(1+EXP(-1.7*R$2*($C59-R$3))),"") ->  | S59: =IFERROR(S$4+(1-S$4)/(1+EXP(-1.7*S$2*($C59-S$3))),"") ->  | T59: =IFERROR(T$4+(1-T$4)/(1+EXP(-1.7*T$2*($C59-T$3))),"") ->  | U59: =IFERROR(U$4+(1-U$4)/(1+EXP(-1.7*U$2*($C59-U$3))),"") ->  | V59: =IFERROR(V$4+(1-V$4)/(1+EXP(-1.7*V$2*($C59-V$3))),"") ->  | W59: =IFERROR(W$4+(1-W$4)/(1+EXP(-1.7*W$2*($C59-W$3))),"") ->  | X59: =IFERROR(X$4+(1-X$4)/(1+EXP(-1.7*X$2*($C59-X$3))),"") ->  | Y59: =IFERROR(Y$4+(1-Y$4)/(1+EXP(-1.7*Y$2*($C59-Y$3))),"") ->  | Z59: =IFERROR(Z$4+(1-Z$4)/(1+EXP(-1.7*Z$2*($C59-Z$3))),"") ->  | AA59: =IFERROR(AA$4+(1-AA$4)/(1+EXP(-1.7*AA$2*($C59-AA$3))),"") ->  | AB59: =IFERROR(AB$4+(1-AB$4)/(1+EXP(-1.7*AB$2*($C59-AB$3))),"") ->  | AC59: =IFERROR(AC$4+(1-AC$4)/(1+EXP(-1.7*AC$2*($C59-AC$3))),"") ->  | AD59: =IFERROR(AD$4+(1-AD$4)/(1+EXP(-1.7*AD$2*($C59-AD$3))),"") ->  | AE59: =IFERROR(AE$4+(1-AE$4)/(1+EXP(-1.7*AE$2*($C59-AE$3))),"") ->  | AF59: =IFERROR(AF$4+(1-AF$4)/(1+EXP(-1.7*AF$2*($C59-AF$3))),"") ->  | AG59: =IFERROR(AG$4+(1-AG$4)/(1+EXP(-1.7*AG$2*($C59-AG$3))),"") -> 
A60: 51 | B60: 0.01487447503 | C60: -3.5 | D60: =IFERROR(D$4+(1-D$4)/(1+EXP(-1.7*D$2*($C60-D$3))),"") -> 0.01618685237 | E60: =IFERROR(E$4+(1-E$4)/(1+EXP(-1.7*E$2*($C60-E$3))),"") -> 0.205141474 | F60: =IFERROR(F$4+(1-F$4)/(1+EXP(-1.7*F$2*($C60-F$3))),"") -> 0.290971388 | G60: =IFERROR(G$4+(1-G$4)/(1+EXP(-1.7*G$2*($C60-G$3))),"") -> 0.2732943236 | H60: =IFERROR(H$4+(1-H$4)/(1+EXP(-1.7*H$2*($C60-H$3))),"") -> 0.07318158141 | I60: =IFERROR(I$4+(1-I$4)/(1+EXP(-1.7*I$2*($C60-I$3))),"") ->  | J60: =IFERROR(J$4+(1-J$4)/(1+EXP(-1.7*J$2*($C60-J$3))),"") ->  | K60: =IFERROR(K$4+(1-K$4)/(1+EXP(-1.7*K$2*($C60-K$3))),"") ->  | L60: =IFERROR(L$4+(1-L$4)/(1+EXP(-1.7*L$2*($C60-L$3))),"") ->  | M60: =IFERROR(M$4+(1-M$4)/(1+EXP(-1.7*M$2*($C60-M$3))),"") ->  | N60: =IFERROR(N$4+(1-N$4)/(1+EXP(-1.7*N$2*($C60-N$3))),"") ->  | O60: =IFERROR(O$4+(1-O$4)/(1+EXP(-1.7*O$2*($C60-O$3))),"") ->  | P60: =IFERROR(P$4+(1-P$4)/(1+EXP(-1.7*P$2*($C60-P$3))),"") ->  | Q60: =IFERROR(Q$4+(1-Q$4)/(1+EXP(-1.7*Q$2*($C60-Q$3))),"") ->  | R60: =IFERROR(R$4+(1-R$4)/(1+EXP(-1.7*R$2*($C60-R$3))),"") ->  | S60: =IFERROR(S$4+(1-S$4)/(1+EXP(-1.7*S$2*($C60-S$3))),"") ->  | T60: =IFERROR(T$4+(1-T$4)/(1+EXP(-1.7*T$2*($C60-T$3))),"") ->  | U60: =IFERROR(U$4+(1-U$4)/(1+EXP(-1.7*U$2*($C60-U$3))),"") ->  | V60: =IFERROR(V$4+(1-V$4)/(1+EXP(-1.7*V$2*($C60-V$3))),"") ->  | W60: =IFERROR(W$4+(1-W$4)/(1+EXP(-1.7*W$2*($C60-W$3))),"") ->  | X60: =IFERROR(X$4+(1-X$4)/(1+EXP(-1.7*X$2*($C60-X$3))),"") ->  | Y60: =IFERROR(Y$4+(1-Y$4)/(1+EXP(-1.7*Y$2*($C60-Y$3))),"") ->  | Z60: =IFERROR(Z$4+(1-Z$4)/(1+EXP(-1.7*Z$2*($C60-Z$3))),"") ->  | AA60: =IFERROR(AA$4+(1-AA$4)/(1+EXP(-1.7*AA$2*($C60-AA$3))),"") ->  | AB60: =IFERROR(AB$4+(1-AB$4)/(1+EXP(-1.7*AB$2*($C60-AB$3))),"") ->  | AC60: =IFERROR(AC$4+(1-AC$4)/(1+EXP(-1.7*AC$2*($C60-AC$3))),"") ->  | AD60: =IFERROR(AD$4+(1-AD$4)/(1+EXP(-1.7*AD$2*($C60-AD$3))),"") ->  | AE60: =IFERROR(AE$4+(1-AE$4)/(1+EXP(-1.7*AE$2*($C60-AE$3))),"") ->  | AF60: =IFERROR(AF$4+(1-AF$4)/(1+EXP(-1.7*AF$2*($C60-AF$3))),"") ->  | AG60: =IFERROR(AG$4+(1-AG$4)/(1+EXP(-1.7*AG$2*($C60-AG$3))),"") -> 
A61: 52 | B61: 0.01492253723 | C61: -3.49 | D61: =IFERROR(D$4+(1-D$4)/(1+EXP(-1.7*D$2*($C61-D$3))),"") -> 0.01618923341 | E61: =IFERROR(E$4+(1-E$4)/(1+EXP(-1.7*E$2*($C61-E$3))),"") -> 0.2054388972 | F61: =IFERROR(F$4+(1-F$4)/(1+EXP(-1.7*F$2*($C61-F$3))),"") -> 0.2914895765 | G61: =IFERROR(G$4+(1-G$4)/(1+EXP(-1.7*G$2*($C61-G$3))),"") -> 0.2732944176 | H61: =IFERROR(H$4+(1-H$4)/(1+EXP(-1.7*H$2*($C61-H$3))),"") -> 0.07318162606 | I61: =IFERROR(I$4+(1-I$4)/(1+EXP(-1.7*I$2*($C61-I$3))),"") ->  | J61: =IFERROR(J$4+(1-J$4)/(1+EXP(-1.7*J$2*($C61-J$3))),"") ->  | K61: =IFERROR(K$4+(1-K$4)/(1+EXP(-1.7*K$2*($C61-K$3))),"") ->  | L61: =IFERROR(L$4+(1-L$4)/(1+EXP(-1.7*L$2*($C61-L$3))),"") ->  | M61: =IFERROR(M$4+(1-M$4)/(1+EXP(-1.7*M$2*($C61-M$3))),"") ->  | N61: =IFERROR(N$4+(1-N$4)/(1+EXP(-1.7*N$2*($C61-N$3))),"") ->  | O61: =IFERROR(O$4+(1-O$4)/(1+EXP(-1.7*O$2*($C61-O$3))),"") ->  | P61: =IFERROR(P$4+(1-P$4)/(1+EXP(-1.7*P$2*($C61-P$3))),"") ->  | Q61: =IFERROR(Q$4+(1-Q$4)/(1+EXP(-1.7*Q$2*($C61-Q$3))),"") ->  | R61: =IFERROR(R$4+(1-R$4)/(1+EXP(-1.7*R$2*($C61-R$3))),"") ->  | S61: =IFERROR(S$4+(1-S$4)/(1+EXP(-1.7*S$2*($C61-S$3))),"") ->  | T61: =IFERROR(T$4+(1-T$4)/(1+EXP(-1.7*T$2*($C61-T$3))),"") ->  | U61: =IFERROR(U$4+(1-U$4)/(1+EXP(-1.7*U$2*($C61-U$3))),"") ->  | V61: =IFERROR(V$4+(1-V$4)/(1+EXP(-1.7*V$2*($C61-V$3))),"") ->  | W61: =IFERROR(W$4+(1-W$4)/(1+EXP(-1.7*W$2*($C61-W$3))),"") ->  | X61: =IFERROR(X$4+(1-X$4)/(1+EXP(-1.7*X$2*($C61-X$3))),"") ->  | Y61: =IFERROR(Y$4+(1-Y$4)/(1+EXP(-1.7*Y$2*($C61-Y$3))),"") ->  | Z61: =IFERROR(Z$4+(1-Z$4)/(1+EXP(-1.7*Z$2*($C61-Z$3))),"") ->  | AA61: =IFERROR(AA$4+(1-AA$4)/(1+EXP(-1.7*AA$2*($C61-AA$3))),"") ->  | AB61: =IFERROR(AB$4+(1-AB$4)/(1+EXP(-1.7*AB$2*($C61-AB$3))),"") ->  | AC61: =IFERROR(AC$4+(1-AC$4)/(1+EXP(-1.7*AC$2*($C61-AC$3))),"") ->  | AD61: =IFERROR(AD$4+(1-AD$4)/(1+EXP(-1.7*AD$2*($C61-AD$3))),"") ->  | AE61: =IFERROR(AE$4+(1-AE$4)/(1+EXP(-1.7*AE$2*($C61-AE$3))),"") ->  | AF61: =IFERROR(AF$4+(1-AF$4)/(1+EXP(-1.7*AF$2*($C61-AF$3))),"") ->  | AG61: =IFERROR(AG$4+(1-AG$4)/(1+EXP(-1.7*AG$2*($C61-AG$3))),"") -> 
A62: 53 | B62: 0.01497132588 | C62: -3.48 | D62: =IFERROR(D$4+(1-D$4)/(1+EXP(-1.7*D$2*($C62-D$3))),"") -> 0.01619165628 | E62: =IFERROR(E$4+(1-E$4)/(1+EXP(-1.7*E$2*($C62-E$3))),"") -> 0.2057410307 | F62: =IFERROR(F$4+(1-F$4)/(1+EXP(-1.7*F$2*($C62-F$3))),"") -> 0.2920137655 | G62: =IFERROR(G$4+(1-G$4)/(1+EXP(-1.7*G$2*($C62-G$3))),"") -> 0.2732945133 | H62: =IFERROR(H$4+(1-H$4)/(1+EXP(-1.7*H$2*($C62-H$3))),"") -> 0.07318167163 | I62: =IFERROR(I$4+(1-I$4)/(1+EXP(-1.7*I$2*($C62-I$3))),"") ->  | J62: =IFERROR(J$4+(1-J$4)/(1+EXP(-1.7*J$2*($C62-J$3))),"") ->  | K62: =IFERROR(K$4+(1-K$4)/(1+EXP(-1.7*K$2*($C62-K$3))),"") ->  | L62: =IFERROR(L$4+(1-L$4)/(1+EXP(-1.7*L$2*($C62-L$3))),"") ->  | M62: =IFERROR(M$4+(1-M$4)/(1+EXP(-1.7*M$2*($C62-M$3))),"") ->  | N62: =IFERROR(N$4+(1-N$4)/(1+EXP(-1.7*N$2*($C62-N$3))),"") ->  | O62: =IFERROR(O$4+(1-O$4)/(1+EXP(-1.7*O$2*($C62-O$3))),"") ->  | P62: =IFERROR(P$4+(1-P$4)/(1+EXP(-1.7*P$2*($C62-P$3))),"") ->  | Q62: =IFERROR(Q$4+(1-Q$4)/(1+EXP(-1.7*Q$2*($C62-Q$3))),"") ->  | R62: =IFERROR(R$4+(1-R$4)/(1+EXP(-1.7*R$2*($C62-R$3))),"") ->  | S62: =IFERROR(S$4+(1-S$4)/(1+EXP(-1.7*S$2*($C62-S$3))),"") ->  | T62: =IFERROR(T$4+(1-T$4)/(1+EXP(-1.7*T$2*($C62-T$3))),"") ->  | U62: =IFERROR(U$4+(1-U$4)/(1+EXP(-1.7*U$2*($C62-U$3))),"") ->  | V62: =IFERROR(V$4+(1-V$4)/(1+EXP(-1.7*V$2*($C62-V$3))),"") ->  | W62: =IFERROR(W$4+(1-W$4)/(1+EXP(-1.7*W$2*($C62-W$3))),"") ->  | X62: =IFERROR(X$4+(1-X$4)/(1+EXP(-1.7*X$2*($C62-X$3))),"") ->  | Y62: =IFERROR(Y$4+(1-Y$4)/(1+EXP(-1.7*Y$2*($C62-Y$3))),"") ->  | Z62: =IFERROR(Z$4+(1-Z$4)/(1+EXP(-1.7*Z$2*($C62-Z$3))),"") ->  | AA62: =IFERROR(AA$4+(1-AA$4)/(1+EXP(-1.7*AA$2*($C62-AA$3))),"") ->  | AB62: =IFERROR(AB$4+(1-AB$4)/(1+EXP(-1.7*AB$2*($C62-AB$3))),"") ->  | AC62: =IFERROR(AC$4+(1-AC$4)/(1+EXP(-1.7*AC$2*($C62-AC$3))),"") ->  | AD62: =IFERROR(AD$4+(1-AD$4)/(1+EXP(-1.7*AD$2*($C62-AD$3))),"") ->  | AE62: =IFERROR(AE$4+(1-AE$4)/(1+EXP(-1.7*AE$2*($C62-AE$3))),"") ->  | AF62: =IFERROR(AF$4+(1-AF$4)/(1+EXP(-1.7*AF$2*($C62-AF$3))),"") ->  | AG62: =IFERROR(AG$4+(1-AG$4)/(1+EXP(-1.7*AG$2*($C62-AG$3))),"") -> 
A63: 54 | B63: 0.01502085241 | C63: -3.47 | D63: =IFERROR(D$4+(1-D$4)/(1+EXP(-1.7*D$2*($C63-D$3))),"") -> 0.01619412172 | E63: =IFERROR(E$4+(1-E$4)/(1+EXP(-1.7*E$2*($C63-E$3))),"") -> 0.2060479455 | F63: =IFERROR(F$4+(1-F$4)/(1+EXP(-1.7*F$2*($C63-F$3))),"") -> 0.2925440149 | G63: =IFERROR(G$4+(1-G$4)/(1+EXP(-1.7*G$2*($C63-G$3))),"") -> 0.2732946109 | H63: =IFERROR(H$4+(1-H$4)/(1+EXP(-1.7*H$2*($C63-H$3))),"") -> 0.07318171813 | I63: =IFERROR(I$4+(1-I$4)/(1+EXP(-1.7*I$2*($C63-I$3))),"") ->  | J63: =IFERROR(J$4+(1-J$4)/(1+EXP(-1.7*J$2*($C63-J$3))),"") ->  | K63: =IFERROR(K$4+(1-K$4)/(1+EXP(-1.7*K$2*($C63-K$3))),"") ->  | L63: =IFERROR(L$4+(1-L$4)/(1+EXP(-1.7*L$2*($C63-L$3))),"") ->  | M63: =IFERROR(M$4+(1-M$4)/(1+EXP(-1.7*M$2*($C63-M$3))),"") ->  | N63: =IFERROR(N$4+(1-N$4)/(1+EXP(-1.7*N$2*($C63-N$3))),"") ->  | O63: =IFERROR(O$4+(1-O$4)/(1+EXP(-1.7*O$2*($C63-O$3))),"") ->  | P63: =IFERROR(P$4+(1-P$4)/(1+EXP(-1.7*P$2*($C63-P$3))),"") ->  | Q63: =IFERROR(Q$4+(1-Q$4)/(1+EXP(-1.7*Q$2*($C63-Q$3))),"") ->  | R63: =IFERROR(R$4+(1-R$4)/(1+EXP(-1.7*R$2*($C63-R$3))),"") ->  | S63: =IFERROR(S$4+(1-S$4)/(1+EXP(-1.7*S$2*($C63-S$3))),"") ->  | T63: =IFERROR(T$4+(1-T$4)/(1+EXP(-1.7*T$2*($C63-T$3))),"") ->  | U63: =IFERROR(U$4+(1-U$4)/(1+EXP(-1.7*U$2*($C63-U$3))),"") ->  | V63: =IFERROR(V$4+(1-V$4)/(1+EXP(-1.7*V$2*($C63-V$3))),"") ->  | W63: =IFERROR(W$4+(1-W$4)/(1+EXP(-1.7*W$2*($C63-W$3))),"") ->  | X63: =IFERROR(X$4+(1-X$4)/(1+EXP(-1.7*X$2*($C63-X$3))),"") ->  | Y63: =IFERROR(Y$4+(1-Y$4)/(1+EXP(-1.7*Y$2*($C63-Y$3))),"") ->  | Z63: =IFERROR(Z$4+(1-Z$4)/(1+EXP(-1.7*Z$2*($C63-Z$3))),"") ->  | AA63: =IFERROR(AA$4+(1-AA$4)/(1+EXP(-1.7*AA$2*($C63-AA$3))),"") ->  | AB63: =IFERROR(AB$4+(1-AB$4)/(1+EXP(-1.7*AB$2*($C63-AB$3))),"") ->  | AC63: =IFERROR(AC$4+(1-AC$4)/(1+EXP(-1.7*AC$2*($C63-AC$3))),"") ->  | AD63: =IFERROR(AD$4+(1-AD$4)/(1+EXP(-1.7*AD$2*($C63-AD$3))),"") ->  | AE63: =IFERROR(AE$4+(1-AE$4)/(1+EXP(-1.7*AE$2*($C63-AE$3))),"") ->  | AF63: =IFERROR(AF$4+(1-AF$4)/(1+EXP(-1.7*AF$2*($C63-AF$3))),"") ->  | AG63: =IFERROR(AG$4+(1-AG$4)/(1+EXP(-1.7*AG$2*($C63-AG$3))),"") -> 
A64: 55 | B64: 0.01507112842 | C64: -3.46 | D64: =IFERROR(D$4+(1-D$4)/(1+EXP(-1.7*D$2*($C64-D$3))),"") -> 0.01619663049 | E64: =IFERROR(E$4+(1-E$4)/(1+EXP(-1.7*E$2*($C64-E$3))),"") -> 0.2063597134 | F64: =IFERROR(F$4+(1-F$4)/(1+EXP(-1.7*F$2*($C64-F$3))),"") -> 0.2930803849 | G64: =IFERROR(G$4+(1-G$4)/(1+EXP(-1.7*G$2*($C64-G$3))),"") -> 0.2732947103 | H64: =IFERROR(H$4+(1-H$4)/(1+EXP(-1.7*H$2*($C64-H$3))),"") -> 0.07318176559 | I64: =IFERROR(I$4+(1-I$4)/(1+EXP(-1.7*I$2*($C64-I$3))),"") ->  | J64: =IFERROR(J$4+(1-J$4)/(1+EXP(-1.7*J$2*($C64-J$3))),"") ->  | K64: =IFERROR(K$4+(1-K$4)/(1+EXP(-1.7*K$2*($C64-K$3))),"") ->  | L64: =IFERROR(L$4+(1-L$4)/(1+EXP(-1.7*L$2*($C64-L$3))),"") ->  | M64: =IFERROR(M$4+(1-M$4)/(1+EXP(-1.7*M$2*($C64-M$3))),"") ->  | N64: =IFERROR(N$4+(1-N$4)/(1+EXP(-1.7*N$2*($C64-N$3))),"") ->  | O64: =IFERROR(O$4+(1-O$4)/(1+EXP(-1.7*O$2*($C64-O$3))),"") ->  | P64: =IFERROR(P$4+(1-P$4)/(1+EXP(-1.7*P$2*($C64-P$3))),"") ->  | Q64: =IFERROR(Q$4+(1-Q$4)/(1+EXP(-1.7*Q$2*($C64-Q$3))),"") ->  | R64: =IFERROR(R$4+(1-R$4)/(1+EXP(-1.7*R$2*($C64-R$3))),"") ->  | S64: =IFERROR(S$4+(1-S$4)/(1+EXP(-1.7*S$2*($C64-S$3))),"") ->  | T64: =IFERROR(T$4+(1-T$4)/(1+EXP(-1.7*T$2*($C64-T$3))),"") ->  | U64: =IFERROR(U$4+(1-U$4)/(1+EXP(-1.7*U$2*($C64-U$3))),"") ->  | V64: =IFERROR(V$4+(1-V$4)/(1+EXP(-1.7*V$2*($C64-V$3))),"") ->  | W64: =IFERROR(W$4+(1-W$4)/(1+EXP(-1.7*W$2*($C64-W$3))),"") ->  | X64: =IFERROR(X$4+(1-X$4)/(1+EXP(-1.7*X$2*($C64-X$3))),"") ->  | Y64: =IFERROR(Y$4+(1-Y$4)/(1+EXP(-1.7*Y$2*($C64-Y$3))),"") ->  | Z64: =IFERROR(Z$4+(1-Z$4)/(1+EXP(-1.7*Z$2*($C64-Z$3))),"") ->  | AA64: =IFERROR(AA$4+(1-AA$4)/(1+EXP(-1.7*AA$2*($C64-AA$3))),"") ->  | AB64: =IFERROR(AB$4+(1-AB$4)/(1+EXP(-1.7*AB$2*($C64-AB$3))),"") ->  | AC64: =IFERROR(AC$4+(1-AC$4)/(1+EXP(-1.7*AC$2*($C64-AC$3))),"") ->  | AD64: =IFERROR(AD$4+(1-AD$4)/(1+EXP(-1.7*AD$2*($C64-AD$3))),"") ->  | AE64: =IFERROR(AE$4+(1-AE$4)/(1+EXP(-1.7*AE$2*($C64-AE$3))),"") ->  | AF64: =IFERROR(AF$4+(1-AF$4)/(1+EXP(-1.7*AF$2*($C64-AF$3))),"") ->  | AG64: =IFERROR(AG$4+(1-AG$4)/(1+EXP(-1.7*AG$2*($C64-AG$3))),"") -> 
A65: 56 | B65: 0.0151221657 | C65: -3.45 | D65: =IFERROR(D$4+(1-D$4)/(1+EXP(-1.7*D$2*($C65-D$3))),"") -> 0.01619918333 | E65: =IFERROR(E$4+(1-E$4)/(1+EXP(-1.7*E$2*($C65-E$3))),"") -> 0.206676407 | F65: =IFERROR(F$4+(1-F$4)/(1+EXP(-1.7*F$2*($C65-F$3))),"") -> 0.2936229361 | G65: =IFERROR(G$4+(1-G$4)/(1+EXP(-1.7*G$2*($C65-G$3))),"") -> 0.2732948115 | H65: =IFERROR(H$4+(1-H$4)/(1+EXP(-1.7*H$2*($C65-H$3))),"") -> 0.07318181402 | I65: =IFERROR(I$4+(1-I$4)/(1+EXP(-1.7*I$2*($C65-I$3))),"") ->  | J65: =IFERROR(J$4+(1-J$4)/(1+EXP(-1.7*J$2*($C65-J$3))),"") ->  | K65: =IFERROR(K$4+(1-K$4)/(1+EXP(-1.7*K$2*($C65-K$3))),"") ->  | L65: =IFERROR(L$4+(1-L$4)/(1+EXP(-1.7*L$2*($C65-L$3))),"") ->  | M65: =IFERROR(M$4+(1-M$4)/(1+EXP(-1.7*M$2*($C65-M$3))),"") ->  | N65: =IFERROR(N$4+(1-N$4)/(1+EXP(-1.7*N$2*($C65-N$3))),"") ->  | O65: =IFERROR(O$4+(1-O$4)/(1+EXP(-1.7*O$2*($C65-O$3))),"") ->  | P65: =IFERROR(P$4+(1-P$4)/(1+EXP(-1.7*P$2*($C65-P$3))),"") ->  | Q65: =IFERROR(Q$4+(1-Q$4)/(1+EXP(-1.7*Q$2*($C65-Q$3))),"") ->  | R65: =IFERROR(R$4+(1-R$4)/(1+EXP(-1.7*R$2*($C65-R$3))),"") ->  | S65: =IFERROR(S$4+(1-S$4)/(1+EXP(-1.7*S$2*($C65-S$3))),"") ->  | T65: =IFERROR(T$4+(1-T$4)/(1+EXP(-1.7*T$2*($C65-T$3))),"") ->  | U65: =IFERROR(U$4+(1-U$4)/(1+EXP(-1.7*U$2*($C65-U$3))),"") ->  | V65: =IFERROR(V$4+(1-V$4)/(1+EXP(-1.7*V$2*($C65-V$3))),"") ->  | W65: =IFERROR(W$4+(1-W$4)/(1+EXP(-1.7*W$2*($C65-W$3))),"") ->  | X65: =IFERROR(X$4+(1-X$4)/(1+EXP(-1.7*X$2*($C65-X$3))),"") ->  | Y65: =IFERROR(Y$4+(1-Y$4)/(1+EXP(-1.7*Y$2*($C65-Y$3))),"") ->  | Z65: =IFERROR(Z$4+(1-Z$4)/(1+EXP(-1.7*Z$2*($C65-Z$3))),"") ->  | AA65: =IFERROR(AA$4+(1-AA$4)/(1+EXP(-1.7*AA$2*($C65-AA$3))),"") ->  | AB65: =IFERROR(AB$4+(1-AB$4)/(1+EXP(-1.7*AB$2*($C65-AB$3))),"") ->  | AC65: =IFERROR(AC$4+(1-AC$4)/(1+EXP(-1.7*AC$2*($C65-AC$3))),"") ->  | AD65: =IFERROR(AD$4+(1-AD$4)/(1+EXP(-1.7*AD$2*($C65-AD$3))),"") ->  | AE65: =IFERROR(AE$4+(1-AE$4)/(1+EXP(-1.7*AE$2*($C65-AE$3))),"") ->  | AF65: =IFERROR(AF$4+(1-AF$4)/(1+EXP(-1.7*AF$2*($C65-AF$3))),"") ->  | AG65: =IFERROR(AG$4+(1-AG$4)/(1+EXP(-1.7*AG$2*($C65-AG$3))),"") -> 
A66: 57 | B66: 0.01517397623 | C66: -3.44 | D66: =IFERROR(D$4+(1-D$4)/(1+EXP(-1.7*D$2*($C66-D$3))),"") -> 0.01620178103 | E66: =IFERROR(E$4+(1-E$4)/(1+EXP(-1.7*E$2*($C66-E$3))),"") -> 0.2069981002 | F66: =IFERROR(F$4+(1-F$4)/(1+EXP(-1.7*F$2*($C66-F$3))),"") -> 0.2941717294 | G66: =IFERROR(G$4+(1-G$4)/(1+EXP(-1.7*G$2*($C66-G$3))),"") -> 0.2732949147 | H66: =IFERROR(H$4+(1-H$4)/(1+EXP(-1.7*H$2*($C66-H$3))),"") -> 0.07318186345 | I66: =IFERROR(I$4+(1-I$4)/(1+EXP(-1.7*I$2*($C66-I$3))),"") ->  | J66: =IFERROR(J$4+(1-J$4)/(1+EXP(-1.7*J$2*($C66-J$3))),"") ->  | K66: =IFERROR(K$4+(1-K$4)/(1+EXP(-1.7*K$2*($C66-K$3))),"") ->  | L66: =IFERROR(L$4+(1-L$4)/(1+EXP(-1.7*L$2*($C66-L$3))),"") ->  | M66: =IFERROR(M$4+(1-M$4)/(1+EXP(-1.7*M$2*($C66-M$3))),"") ->  | N66: =IFERROR(N$4+(1-N$4)/(1+EXP(-1.7*N$2*($C66-N$3))),"") ->  | O66: =IFERROR(O$4+(1-O$4)/(1+EXP(-1.7*O$2*($C66-O$3))),"") ->  | P66: =IFERROR(P$4+(1-P$4)/(1+EXP(-1.7*P$2*($C66-P$3))),"") ->  | Q66: =IFERROR(Q$4+(1-Q$4)/(1+EXP(-1.7*Q$2*($C66-Q$3))),"") ->  | R66: =IFERROR(R$4+(1-R$4)/(1+EXP(-1.7*R$2*($C66-R$3))),"") ->  | S66: =IFERROR(S$4+(1-S$4)/(1+EXP(-1.7*S$2*($C66-S$3))),"") ->  | T66: =IFERROR(T$4+(1-T$4)/(1+EXP(-1.7*T$2*($C66-T$3))),"") ->  | U66: =IFERROR(U$4+(1-U$4)/(1+EXP(-1.7*U$2*($C66-U$3))),"") ->  | V66: =IFERROR(V$4+(1-V$4)/(1+EXP(-1.7*V$2*($C66-V$3))),"") ->  | W66: =IFERROR(W$4+(1-W$4)/(1+EXP(-1.7*W$2*($C66-W$3))),"") ->  | X66: =IFERROR(X$4+(1-X$4)/(1+EXP(-1.7*X$2*($C66-X$3))),"") ->  | Y66: =IFERROR(Y$4+(1-Y$4)/(1+EXP(-1.7*Y$2*($C66-Y$3))),"") ->  | Z66: =IFERROR(Z$4+(1-Z$4)/(1+EXP(-1.7*Z$2*($C66-Z$3))),"") ->  | AA66: =IFERROR(AA$4+(1-AA$4)/(1+EXP(-1.7*AA$2*($C66-AA$3))),"") ->  | AB66: =IFERROR(AB$4+(1-AB$4)/(1+EXP(-1.7*AB$2*($C66-AB$3))),"") ->  | AC66: =IFERROR(AC$4+(1-AC$4)/(1+EXP(-1.7*AC$2*($C66-AC$3))),"") ->  | AD66: =IFERROR(AD$4+(1-AD$4)/(1+EXP(-1.7*AD$2*($C66-AD$3))),"") ->  | AE66: =IFERROR(AE$4+(1-AE$4)/(1+EXP(-1.7*AE$2*($C66-AE$3))),"") ->  | AF66: =IFERROR(AF$4+(1-AF$4)/(1+EXP(-1.7*AF$2*($C66-AF$3))),"") ->  | AG66: =IFERROR(AG$4+(1-AG$4)/(1+EXP(-1.7*AG$2*($C66-AG$3))),"") -> 
A67: 58 | B67: 0.01522657221 | C67: -3.43 | D67: =IFERROR(D$4+(1-D$4)/(1+EXP(-1.7*D$2*($C67-D$3))),"") -> 0.01620442436 | E67: =IFERROR(E$4+(1-E$4)/(1+EXP(-1.7*E$2*($C67-E$3))),"") -> 0.2073248675 | F67: =IFERROR(F$4+(1-F$4)/(1+EXP(-1.7*F$2*($C67-F$3))),"") -> 0.2947268262 | G67: =IFERROR(G$4+(1-G$4)/(1+EXP(-1.7*G$2*($C67-G$3))),"") -> 0.2732950197 | H67: =IFERROR(H$4+(1-H$4)/(1+EXP(-1.7*H$2*($C67-H$3))),"") -> 0.07318191389 | I67: =IFERROR(I$4+(1-I$4)/(1+EXP(-1.7*I$2*($C67-I$3))),"") ->  | J67: =IFERROR(J$4+(1-J$4)/(1+EXP(-1.7*J$2*($C67-J$3))),"") ->  | K67: =IFERROR(K$4+(1-K$4)/(1+EXP(-1.7*K$2*($C67-K$3))),"") ->  | L67: =IFERROR(L$4+(1-L$4)/(1+EXP(-1.7*L$2*($C67-L$3))),"") ->  | M67: =IFERROR(M$4+(1-M$4)/(1+EXP(-1.7*M$2*($C67-M$3))),"") ->  | N67: =IFERROR(N$4+(1-N$4)/(1+EXP(-1.7*N$2*($C67-N$3))),"") ->  | O67: =IFERROR(O$4+(1-O$4)/(1+EXP(-1.7*O$2*($C67-O$3))),"") ->  | P67: =IFERROR(P$4+(1-P$4)/(1+EXP(-1.7*P$2*($C67-P$3))),"") ->  | Q67: =IFERROR(Q$4+(1-Q$4)/(1+EXP(-1.7*Q$2*($C67-Q$3))),"") ->  | R67: =IFERROR(R$4+(1-R$4)/(1+EXP(-1.7*R$2*($C67-R$3))),"") ->  | S67: =IFERROR(S$4+(1-S$4)/(1+EXP(-1.7*S$2*($C67-S$3))),"") ->  | T67: =IFERROR(T$4+(1-T$4)/(1+EXP(-1.7*T$2*($C67-T$3))),"") ->  | U67: =IFERROR(U$4+(1-U$4)/(1+EXP(-1.7*U$2*($C67-U$3))),"") ->  | V67: =IFERROR(V$4+(1-V$4)/(1+EXP(-1.7*V$2*($C67-V$3))),"") ->  | W67: =IFERROR(W$4+(1-W$4)/(1+EXP(-1.7*W$2*($C67-W$3))),"") ->  | X67: =IFERROR(X$4+(1-X$4)/(1+EXP(-1.7*X$2*($C67-X$3))),"") ->  | Y67: =IFERROR(Y$4+(1-Y$4)/(1+EXP(-1.7*Y$2*($C67-Y$3))),"") ->  | Z67: =IFERROR(Z$4+(1-Z$4)/(1+EXP(-1.7*Z$2*($C67-Z$3))),"") ->  | AA67: =IFERROR(AA$4+(1-AA$4)/(1+EXP(-1.7*AA$2*($C67-AA$3))),"") ->  | AB67: =IFERROR(AB$4+(1-AB$4)/(1+EXP(-1.7*AB$2*($C67-AB$3))),"") ->  | AC67: =IFERROR(AC$4+(1-AC$4)/(1+EXP(-1.7*AC$2*($C67-AC$3))),"") ->  | AD67: =IFERROR(AD$4+(1-AD$4)/(1+EXP(-1.7*AD$2*($C67-AD$3))),"") ->  | AE67: =IFERROR(AE$4+(1-AE$4)/(1+EXP(-1.7*AE$2*($C67-AE$3))),"") ->  | AF67: =IFERROR(AF$4+(1-AF$4)/(1+EXP(-1.7*AF$2*($C67-AF$3))),"") ->  | AG67: =IFERROR(AG$4+(1-AG$4)/(1+EXP(-1.7*AG$2*($C67-AG$3))),"") -> 
A68: 59 | B68: 0.01527996601 | C68: -3.42 | D68: =IFERROR(D$4+(1-D$4)/(1+EXP(-1.7*D$2*($C68-D$3))),"") -> 0.01620711414 | E68: =IFERROR(E$4+(1-E$4)/(1+EXP(-1.7*E$2*($C68-E$3))),"") -> 0.2076567845 | F68: =IFERROR(F$4+(1-F$4)/(1+EXP(-1.7*F$2*($C68-F$3))),"") -> 0.295288288 | G68: =IFERROR(G$4+(1-G$4)/(1+EXP(-1.7*G$2*($C68-G$3))),"") -> 0.2732951267 | H68: =IFERROR(H$4+(1-H$4)/(1+EXP(-1.7*H$2*($C68-H$3))),"") -> 0.07318196536 | I68: =IFERROR(I$4+(1-I$4)/(1+EXP(-1.7*I$2*($C68-I$3))),"") ->  | J68: =IFERROR(J$4+(1-J$4)/(1+EXP(-1.7*J$2*($C68-J$3))),"") ->  | K68: =IFERROR(K$4+(1-K$4)/(1+EXP(-1.7*K$2*($C68-K$3))),"") ->  | L68: =IFERROR(L$4+(1-L$4)/(1+EXP(-1.7*L$2*($C68-L$3))),"") ->  | M68: =IFERROR(M$4+(1-M$4)/(1+EXP(-1.7*M$2*($C68-M$3))),"") ->  | N68: =IFERROR(N$4+(1-N$4)/(1+EXP(-1.7*N$2*($C68-N$3))),"") ->  | O68: =IFERROR(O$4+(1-O$4)/(1+EXP(-1.7*O$2*($C68-O$3))),"") ->  | P68: =IFERROR(P$4+(1-P$4)/(1+EXP(-1.7*P$2*($C68-P$3))),"") ->  | Q68: =IFERROR(Q$4+(1-Q$4)/(1+EXP(-1.7*Q$2*($C68-Q$3))),"") ->  | R68: =IFERROR(R$4+(1-R$4)/(1+EXP(-1.7*R$2*($C68-R$3))),"") ->  | S68: =IFERROR(S$4+(1-S$4)/(1+EXP(-1.7*S$2*($C68-S$3))),"") ->  | T68: =IFERROR(T$4+(1-T$4)/(1+EXP(-1.7*T$2*($C68-T$3))),"") ->  | U68: =IFERROR(U$4+(1-U$4)/(1+EXP(-1.7*U$2*($C68-U$3))),"") ->  | V68: =IFERROR(V$4+(1-V$4)/(1+EXP(-1.7*V$2*($C68-V$3))),"") ->  | W68: =IFERROR(W$4+(1-W$4)/(1+EXP(-1.7*W$2*($C68-W$3))),"") ->  | X68: =IFERROR(X$4+(1-X$4)/(1+EXP(-1.7*X$2*($C68-X$3))),"") ->  | Y68: =IFERROR(Y$4+(1-Y$4)/(1+EXP(-1.7*Y$2*($C68-Y$3))),"") ->  | Z68: =IFERROR(Z$4+(1-Z$4)/(1+EXP(-1.7*Z$2*($C68-Z$3))),"") ->  | AA68: =IFERROR(AA$4+(1-AA$4)/(1+EXP(-1.7*AA$2*($C68-AA$3))),"") ->  | AB68: =IFERROR(AB$4+(1-AB$4)/(1+EXP(-1.7*AB$2*($C68-AB$3))),"") ->  | AC68: =IFERROR(AC$4+(1-AC$4)/(1+EXP(-1.7*AC$2*($C68-AC$3))),"") ->  | AD68: =IFERROR(AD$4+(1-AD$4)/(1+EXP(-1.7*AD$2*($C68-AD$3))),"") ->  | AE68: =IFERROR(AE$4+(1-AE$4)/(1+EXP(-1.7*AE$2*($C68-AE$3))),"") ->  | AF68: =IFERROR(AF$4+(1-AF$4)/(1+EXP(-1.7*AF$2*($C68-AF$3))),"") ->  | AG68: =IFERROR(AG$4+(1-AG$4)/(1+EXP(-1.7*AG$2*($C68-AG$3))),"") -> 
A69: 60 | B69: 0.0153341702 | C69: -3.41 | D69: =IFERROR(D$4+(1-D$4)/(1+EXP(-1.7*D$2*($C69-D$3))),"") -> 0.01620985118 | E69: =IFERROR(E$4+(1-E$4)/(1+EXP(-1.7*E$2*($C69-E$3))),"") -> 0.2079939281 | F69: =IFERROR(F$4+(1-F$4)/(1+EXP(-1.7*F$2*($C69-F$3))),"") -> 0.2958561768 | G69: =IFERROR(G$4+(1-G$4)/(1+EXP(-1.7*G$2*($C69-G$3))),"") -> 0.2732952358 | H69: =IFERROR(H$4+(1-H$4)/(1+EXP(-1.7*H$2*($C69-H$3))),"") -> 0.07318201789 | I69: =IFERROR(I$4+(1-I$4)/(1+EXP(-1.7*I$2*($C69-I$3))),"") ->  | J69: =IFERROR(J$4+(1-J$4)/(1+EXP(-1.7*J$2*($C69-J$3))),"") ->  | K69: =IFERROR(K$4+(1-K$4)/(1+EXP(-1.7*K$2*($C69-K$3))),"") ->  | L69: =IFERROR(L$4+(1-L$4)/(1+EXP(-1.7*L$2*($C69-L$3))),"") ->  | M69: =IFERROR(M$4+(1-M$4)/(1+EXP(-1.7*M$2*($C69-M$3))),"") ->  | N69: =IFERROR(N$4+(1-N$4)/(1+EXP(-1.7*N$2*($C69-N$3))),"") ->  | O69: =IFERROR(O$4+(1-O$4)/(1+EXP(-1.7*O$2*($C69-O$3))),"") ->  | P69: =IFERROR(P$4+(1-P$4)/(1+EXP(-1.7*P$2*($C69-P$3))),"") ->  | Q69: =IFERROR(Q$4+(1-Q$4)/(1+EXP(-1.7*Q$2*($C69-Q$3))),"") ->  | R69: =IFERROR(R$4+(1-R$4)/(1+EXP(-1.7*R$2*($C69-R$3))),"") ->  | S69: =IFERROR(S$4+(1-S$4)/(1+EXP(-1.7*S$2*($C69-S$3))),"") ->  | T69: =IFERROR(T$4+(1-T$4)/(1+EXP(-1.7*T$2*($C69-T$3))),"") ->  | U69: =IFERROR(U$4+(1-U$4)/(1+EXP(-1.7*U$2*($C69-U$3))),"") ->  | V69: =IFERROR(V$4+(1-V$4)/(1+EXP(-1.7*V$2*($C69-V$3))),"") ->  | W69: =IFERROR(W$4+(1-W$4)/(1+EXP(-1.7*W$2*($C69-W$3))),"") ->  | X69: =IFERROR(X$4+(1-X$4)/(1+EXP(-1.7*X$2*($C69-X$3))),"") ->  | Y69: =IFERROR(Y$4+(1-Y$4)/(1+EXP(-1.7*Y$2*($C69-Y$3))),"") ->  | Z69: =IFERROR(Z$4+(1-Z$4)/(1+EXP(-1.7*Z$2*($C69-Z$3))),"") ->  | AA69: =IFERROR(AA$4+(1-AA$4)/(1+EXP(-1.7*AA$2*($C69-AA$3))),"") ->  | AB69: =IFERROR(AB$4+(1-AB$4)/(1+EXP(-1.7*AB$2*($C69-AB$3))),"") ->  | AC69: =IFERROR(AC$4+(1-AC$4)/(1+EXP(-1.7*AC$2*($C69-AC$3))),"") ->  | AD69: =IFERROR(AD$4+(1-AD$4)/(1+EXP(-1.7*AD$2*($C69-AD$3))),"") ->  | AE69: =IFERROR(AE$4+(1-AE$4)/(1+EXP(-1.7*AE$2*($C69-AE$3))),"") ->  | AF69: =IFERROR(AF$4+(1-AF$4)/(1+EXP(-1.7*AF$2*($C69-AF$3))),"") ->  | AG69: =IFERROR(AG$4+(1-AG$4)/(1+EXP(-1.7*AG$2*($C69-AG$3))),"") -> 
A70: 61 | B70: 0.01538919756 | C70: -3.4 | D70: =IFERROR(D$4+(1-D$4)/(1+EXP(-1.7*D$2*($C70-D$3))),"") -> 0.01621263631 | E70: =IFERROR(E$4+(1-E$4)/(1+EXP(-1.7*E$2*($C70-E$3))),"") -> 0.2083363756 | F70: =IFERROR(F$4+(1-F$4)/(1+EXP(-1.7*F$2*($C70-F$3))),"") -> 0.2964305549 | G70: =IFERROR(G$4+(1-G$4)/(1+EXP(-1.7*G$2*($C70-G$3))),"") -> 0.2732953468 | H70: =IFERROR(H$4+(1-H$4)/(1+EXP(-1.7*H$2*($C70-H$3))),"") -> 0.0731820715 | I70: =IFERROR(I$4+(1-I$4)/(1+EXP(-1.7*I$2*($C70-I$3))),"") ->  | J70: =IFERROR(J$4+(1-J$4)/(1+EXP(-1.7*J$2*($C70-J$3))),"") ->  | K70: =IFERROR(K$4+(1-K$4)/(1+EXP(-1.7*K$2*($C70-K$3))),"") ->  | L70: =IFERROR(L$4+(1-L$4)/(1+EXP(-1.7*L$2*($C70-L$3))),"") ->  | M70: =IFERROR(M$4+(1-M$4)/(1+EXP(-1.7*M$2*($C70-M$3))),"") ->  | N70: =IFERROR(N$4+(1-N$4)/(1+EXP(-1.7*N$2*($C70-N$3))),"") ->  | O70: =IFERROR(O$4+(1-O$4)/(1+EXP(-1.7*O$2*($C70-O$3))),"") ->  | P70: =IFERROR(P$4+(1-P$4)/(1+EXP(-1.7*P$2*($C70-P$3))),"") ->  | Q70: =IFERROR(Q$4+(1-Q$4)/(1+EXP(-1.7*Q$2*($C70-Q$3))),"") ->  | R70: =IFERROR(R$4+(1-R$4)/(1+EXP(-1.7*R$2*($C70-R$3))),"") ->  | S70: =IFERROR(S$4+(1-S$4)/(1+EXP(-1.7*S$2*($C70-S$3))),"") ->  | T70: =IFERROR(T$4+(1-T$4)/(1+EXP(-1.7*T$2*($C70-T$3))),"") ->  | U70: =IFERROR(U$4+(1-U$4)/(1+EXP(-1.7*U$2*($C70-U$3))),"") ->  | V70: =IFERROR(V$4+(1-V$4)/(1+EXP(-1.7*V$2*($C70-V$3))),"") ->  | W70: =IFERROR(W$4+(1-W$4)/(1+EXP(-1.7*W$2*($C70-W$3))),"") ->  | X70: =IFERROR(X$4+(1-X$4)/(1+EXP(-1.7*X$2*($C70-X$3))),"") ->  | Y70: =IFERROR(Y$4+(1-Y$4)/(1+EXP(-1.7*Y$2*($C70-Y$3))),"") ->  | Z70: =IFERROR(Z$4+(1-Z$4)/(1+EXP(-1.7*Z$2*($C70-Z$3))),"") ->  | AA70: =IFERROR(AA$4+(1-AA$4)/(1+EXP(-1.7*AA$2*($C70-AA$3))),"") ->  | AB70: =IFERROR(AB$4+(1-AB$4)/(1+EXP(-1.7*AB$2*($C70-AB$3))),"") ->  | AC70: =IFERROR(AC$4+(1-AC$4)/(1+EXP(-1.7*AC$2*($C70-AC$3))),"") ->  | AD70: =IFERROR(AD$4+(1-AD$4)/(1+EXP(-1.7*AD$2*($C70-AD$3))),"") ->  | AE70: =IFERROR(AE$4+(1-AE$4)/(1+EXP(-1.7*AE$2*($C70-AE$3))),"") ->  | AF70: =IFERROR(AF$4+(1-AF$4)/(1+EXP(-1.7*AF$2*($C70-AF$3))),"") ->  | AG70: =IFERROR(AG$4+(1-AG$4)/(1+EXP(-1.7*AG$2*($C70-AG$3))),"") -> 
A71: 62 | B71: 0.0154450611 | C71: -3.39 | D71: =IFERROR(D$4+(1-D$4)/(1+EXP(-1.7*D$2*($C71-D$3))),"") -> 0.01621547037 | E71: =IFERROR(E$4+(1-E$4)/(1+EXP(-1.7*E$2*($C71-E$3))),"") -> 0.2086842058 | F71: =IFERROR(F$4+(1-F$4)/(1+EXP(-1.7*F$2*($C71-F$3))),"") -> 0.2970114849 | G71: =IFERROR(G$4+(1-G$4)/(1+EXP(-1.7*G$2*($C71-G$3))),"") -> 0.2732954599 | H71: =IFERROR(H$4+(1-H$4)/(1+EXP(-1.7*H$2*($C71-H$3))),"") -> 0.07318212621 | I71: =IFERROR(I$4+(1-I$4)/(1+EXP(-1.7*I$2*($C71-I$3))),"") ->  | J71: =IFERROR(J$4+(1-J$4)/(1+EXP(-1.7*J$2*($C71-J$3))),"") ->  | K71: =IFERROR(K$4+(1-K$4)/(1+EXP(-1.7*K$2*($C71-K$3))),"") ->  | L71: =IFERROR(L$4+(1-L$4)/(1+EXP(-1.7*L$2*($C71-L$3))),"") ->  | M71: =IFERROR(M$4+(1-M$4)/(1+EXP(-1.7*M$2*($C71-M$3))),"") ->  | N71: =IFERROR(N$4+(1-N$4)/(1+EXP(-1.7*N$2*($C71-N$3))),"") ->  | O71: =IFERROR(O$4+(1-O$4)/(1+EXP(-1.7*O$2*($C71-O$3))),"") ->  | P71: =IFERROR(P$4+(1-P$4)/(1+EXP(-1.7*P$2*($C71-P$3))),"") ->  | Q71: =IFERROR(Q$4+(1-Q$4)/(1+EXP(-1.7*Q$2*($C71-Q$3))),"") ->  | R71: =IFERROR(R$4+(1-R$4)/(1+EXP(-1.7*R$2*($C71-R$3))),"") ->  | S71: =IFERROR(S$4+(1-S$4)/(1+EXP(-1.7*S$2*($C71-S$3))),"") ->  | T71: =IFERROR(T$4+(1-T$4)/(1+EXP(-1.7*T$2*($C71-T$3))),"") ->  | U71: =IFERROR(U$4+(1-U$4)/(1+EXP(-1.7*U$2*($C71-U$3))),"") ->  | V71: =IFERROR(V$4+(1-V$4)/(1+EXP(-1.7*V$2*($C71-V$3))),"") ->  | W71: =IFERROR(W$4+(1-W$4)/(1+EXP(-1.7*W$2*($C71-W$3))),"") ->  | X71: =IFERROR(X$4+(1-X$4)/(1+EXP(-1.7*X$2*($C71-X$3))),"") ->  | Y71: =IFERROR(Y$4+(1-Y$4)/(1+EXP(-1.7*Y$2*($C71-Y$3))),"") ->  | Z71: =IFERROR(Z$4+(1-Z$4)/(1+EXP(-1.7*Z$2*($C71-Z$3))),"") ->  | AA71: =IFERROR(AA$4+(1-AA$4)/(1+EXP(-1.7*AA$2*($C71-AA$3))),"") ->  | AB71: =IFERROR(AB$4+(1-AB$4)/(1+EXP(-1.7*AB$2*($C71-AB$3))),"") ->  | AC71: =IFERROR(AC$4+(1-AC$4)/(1+EXP(-1.7*AC$2*($C71-AC$3))),"") ->  | AD71: =IFERROR(AD$4+(1-AD$4)/(1+EXP(-1.7*AD$2*($C71-AD$3))),"") ->  | AE71: =IFERROR(AE$4+(1-AE$4)/(1+EXP(-1.7*AE$2*($C71-AE$3))),"") ->  | AF71: =IFERROR(AF$4+(1-AF$4)/(1+EXP(-1.7*AF$2*($C71-AF$3))),"") ->  | AG71: =IFERROR(AG$4+(1-AG$4)/(1+EXP(-1.7*AG$2*($C71-AG$3))),"") -> 
A72: 63 | B72: 0.015501774 | C72: -3.38 | D72: =IFERROR(D$4+(1-D$4)/(1+EXP(-1.7*D$2*($C72-D$3))),"") -> 0.01621835423 | E72: =IFERROR(E$4+(1-E$4)/(1+EXP(-1.7*E$2*($C72-E$3))),"") -> 0.2090374984 | F72: =IFERROR(F$4+(1-F$4)/(1+EXP(-1.7*F$2*($C72-F$3))),"") -> 0.2975990298 | G72: =IFERROR(G$4+(1-G$4)/(1+EXP(-1.7*G$2*($C72-G$3))),"") -> 0.2732955752 | H72: =IFERROR(H$4+(1-H$4)/(1+EXP(-1.7*H$2*($C72-H$3))),"") -> 0.07318218205 | I72: =IFERROR(I$4+(1-I$4)/(1+EXP(-1.7*I$2*($C72-I$3))),"") ->  | J72: =IFERROR(J$4+(1-J$4)/(1+EXP(-1.7*J$2*($C72-J$3))),"") ->  | K72: =IFERROR(K$4+(1-K$4)/(1+EXP(-1.7*K$2*($C72-K$3))),"") ->  | L72: =IFERROR(L$4+(1-L$4)/(1+EXP(-1.7*L$2*($C72-L$3))),"") ->  | M72: =IFERROR(M$4+(1-M$4)/(1+EXP(-1.7*M$2*($C72-M$3))),"") ->  | N72: =IFERROR(N$4+(1-N$4)/(1+EXP(-1.7*N$2*($C72-N$3))),"") ->  | O72: =IFERROR(O$4+(1-O$4)/(1+EXP(-1.7*O$2*($C72-O$3))),"") ->  | P72: =IFERROR(P$4+(1-P$4)/(1+EXP(-1.7*P$2*($C72-P$3))),"") ->  | Q72: =IFERROR(Q$4+(1-Q$4)/(1+EXP(-1.7*Q$2*($C72-Q$3))),"") ->  | R72: =IFERROR(R$4+(1-R$4)/(1+EXP(-1.7*R$2*($C72-R$3))),"") ->  | S72: =IFERROR(S$4+(1-S$4)/(1+EXP(-1.7*S$2*($C72-S$3))),"") ->  | T72: =IFERROR(T$4+(1-T$4)/(1+EXP(-1.7*T$2*($C72-T$3))),"") ->  | U72: =IFERROR(U$4+(1-U$4)/(1+EXP(-1.7*U$2*($C72-U$3))),"") ->  | V72: =IFERROR(V$4+(1-V$4)/(1+EXP(-1.7*V$2*($C72-V$3))),"") ->  | W72: =IFERROR(W$4+(1-W$4)/(1+EXP(-1.7*W$2*($C72-W$3))),"") ->  | X72: =IFERROR(X$4+(1-X$4)/(1+EXP(-1.7*X$2*($C72-X$3))),"") ->  | Y72: =IFERROR(Y$4+(1-Y$4)/(1+EXP(-1.7*Y$2*($C72-Y$3))),"") ->  | Z72: =IFERROR(Z$4+(1-Z$4)/(1+EXP(-1.7*Z$2*($C72-Z$3))),"") ->  | AA72: =IFERROR(AA$4+(1-AA$4)/(1+EXP(-1.7*AA$2*($C72-AA$3))),"") ->  | AB72: =IFERROR(AB$4+(1-AB$4)/(1+EXP(-1.7*AB$2*($C72-AB$3))),"") ->  | AC72: =IFERROR(AC$4+(1-AC$4)/(1+EXP(-1.7*AC$2*($C72-AC$3))),"") ->  | AD72: =IFERROR(AD$4+(1-AD$4)/(1+EXP(-1.7*AD$2*($C72-AD$3))),"") ->  | AE72: =IFERROR(AE$4+(1-AE$4)/(1+EXP(-1.7*AE$2*($C72-AE$3))),"") ->  | AF72: =IFERROR(AF$4+(1-AF$4)/(1+EXP(-1.7*AF$2*($C72-AF$3))),"") ->  | AG72: =IFERROR(AG$4+(1-AG$4)/(1+EXP(-1.7*AG$2*($C72-AG$3))),"") -> 
A73: 64 | B73: 0.01555934967 | C73: -3.37 | D73: =IFERROR(D$4+(1-D$4)/(1+EXP(-1.7*D$2*($C73-D$3))),"") -> 0.01622128875 | E73: =IFERROR(E$4+(1-E$4)/(1+EXP(-1.7*E$2*($C73-E$3))),"") -> 0.2093963338 | F73: =IFERROR(F$4+(1-F$4)/(1+EXP(-1.7*F$2*($C73-F$3))),"") -> 0.2981932528 | G73: =IFERROR(G$4+(1-G$4)/(1+EXP(-1.7*G$2*($C73-G$3))),"") -> 0.2732956926 | H73: =IFERROR(H$4+(1-H$4)/(1+EXP(-1.7*H$2*($C73-H$3))),"") -> 0.07318223902 | I73: =IFERROR(I$4+(1-I$4)/(1+EXP(-1.7*I$2*($C73-I$3))),"") ->  | J73: =IFERROR(J$4+(1-J$4)/(1+EXP(-1.7*J$2*($C73-J$3))),"") ->  | K73: =IFERROR(K$4+(1-K$4)/(1+EXP(-1.7*K$2*($C73-K$3))),"") ->  | L73: =IFERROR(L$4+(1-L$4)/(1+EXP(-1.7*L$2*($C73-L$3))),"") ->  | M73: =IFERROR(M$4+(1-M$4)/(1+EXP(-1.7*M$2*($C73-M$3))),"") ->  | N73: =IFERROR(N$4+(1-N$4)/(1+EXP(-1.7*N$2*($C73-N$3))),"") ->  | O73: =IFERROR(O$4+(1-O$4)/(1+EXP(-1.7*O$2*($C73-O$3))),"") ->  | P73: =IFERROR(P$4+(1-P$4)/(1+EXP(-1.7*P$2*($C73-P$3))),"") ->  | Q73: =IFERROR(Q$4+(1-Q$4)/(1+EXP(-1.7*Q$2*($C73-Q$3))),"") ->  | R73: =IFERROR(R$4+(1-R$4)/(1+EXP(-1.7*R$2*($C73-R$3))),"") ->  | S73: =IFERROR(S$4+(1-S$4)/(1+EXP(-1.7*S$2*($C73-S$3))),"") ->  | T73: =IFERROR(T$4+(1-T$4)/(1+EXP(-1.7*T$2*($C73-T$3))),"") ->  | U73: =IFERROR(U$4+(1-U$4)/(1+EXP(-1.7*U$2*($C73-U$3))),"") ->  | V73: =IFERROR(V$4+(1-V$4)/(1+EXP(-1.7*V$2*($C73-V$3))),"") ->  | W73: =IFERROR(W$4+(1-W$4)/(1+EXP(-1.7*W$2*($C73-W$3))),"") ->  | X73: =IFERROR(X$4+(1-X$4)/(1+EXP(-1.7*X$2*($C73-X$3))),"") ->  | Y73: =IFERROR(Y$4+(1-Y$4)/(1+EXP(-1.7*Y$2*($C73-Y$3))),"") ->  | Z73: =IFERROR(Z$4+(1-Z$4)/(1+EXP(-1.7*Z$2*($C73-Z$3))),"") ->  | AA73: =IFERROR(AA$4+(1-AA$4)/(1+EXP(-1.7*AA$2*($C73-AA$3))),"") ->  | AB73: =IFERROR(AB$4+(1-AB$4)/(1+EXP(-1.7*AB$2*($C73-AB$3))),"") ->  | AC73: =IFERROR(AC$4+(1-AC$4)/(1+EXP(-1.7*AC$2*($C73-AC$3))),"") ->  | AD73: =IFERROR(AD$4+(1-AD$4)/(1+EXP(-1.7*AD$2*($C73-AD$3))),"") ->  | AE73: =IFERROR(AE$4+(1-AE$4)/(1+EXP(-1.7*AE$2*($C73-AE$3))),"") ->  | AF73: =IFERROR(AF$4+(1-AF$4)/(1+EXP(-1.7*AF$2*($C73-AF$3))),"") ->  | AG73: =IFERROR(AG$4+(1-AG$4)/(1+EXP(-1.7*AG$2*($C73-AG$3))),"") -> 
A74: 65 | B74: 0.01561780176 | C74: -3.36 | D74: =IFERROR(D$4+(1-D$4)/(1+EXP(-1.7*D$2*($C74-D$3))),"") -> 0.01622427483 | E74: =IFERROR(E$4+(1-E$4)/(1+EXP(-1.7*E$2*($C74-E$3))),"") -> 0.2097607939 | F74: =IFERROR(F$4+(1-F$4)/(1+EXP(-1.7*F$2*($C74-F$3))),"") -> 0.2987942175 | G74: =IFERROR(G$4+(1-G$4)/(1+EXP(-1.7*G$2*($C74-G$3))),"") -> 0.2732958122 | H74: =IFERROR(H$4+(1-H$4)/(1+EXP(-1.7*H$2*($C74-H$3))),"") -> 0.07318229717 | I74: =IFERROR(I$4+(1-I$4)/(1+EXP(-1.7*I$2*($C74-I$3))),"") ->  | J74: =IFERROR(J$4+(1-J$4)/(1+EXP(-1.7*J$2*($C74-J$3))),"") ->  | K74: =IFERROR(K$4+(1-K$4)/(1+EXP(-1.7*K$2*($C74-K$3))),"") ->  | L74: =IFERROR(L$4+(1-L$4)/(1+EXP(-1.7*L$2*($C74-L$3))),"") ->  | M74: =IFERROR(M$4+(1-M$4)/(1+EXP(-1.7*M$2*($C74-M$3))),"") ->  | N74: =IFERROR(N$4+(1-N$4)/(1+EXP(-1.7*N$2*($C74-N$3))),"") ->  | O74: =IFERROR(O$4+(1-O$4)/(1+EXP(-1.7*O$2*($C74-O$3))),"") ->  | P74: =IFERROR(P$4+(1-P$4)/(1+EXP(-1.7*P$2*($C74-P$3))),"") ->  | Q74: =IFERROR(Q$4+(1-Q$4)/(1+EXP(-1.7*Q$2*($C74-Q$3))),"") ->  | R74: =IFERROR(R$4+(1-R$4)/(1+EXP(-1.7*R$2*($C74-R$3))),"") ->  | S74: =IFERROR(S$4+(1-S$4)/(1+EXP(-1.7*S$2*($C74-S$3))),"") ->  | T74: =IFERROR(T$4+(1-T$4)/(1+EXP(-1.7*T$2*($C74-T$3))),"") ->  | U74: =IFERROR(U$4+(1-U$4)/(1+EXP(-1.7*U$2*($C74-U$3))),"") ->  | V74: =IFERROR(V$4+(1-V$4)/(1+EXP(-1.7*V$2*($C74-V$3))),"") ->  | W74: =IFERROR(W$4+(1-W$4)/(1+EXP(-1.7*W$2*($C74-W$3))),"") ->  | X74: =IFERROR(X$4+(1-X$4)/(1+EXP(-1.7*X$2*($C74-X$3))),"") ->  | Y74: =IFERROR(Y$4+(1-Y$4)/(1+EXP(-1.7*Y$2*($C74-Y$3))),"") ->  | Z74: =IFERROR(Z$4+(1-Z$4)/(1+EXP(-1.7*Z$2*($C74-Z$3))),"") ->  | AA74: =IFERROR(AA$4+(1-AA$4)/(1+EXP(-1.7*AA$2*($C74-AA$3))),"") ->  | AB74: =IFERROR(AB$4+(1-AB$4)/(1+EXP(-1.7*AB$2*($C74-AB$3))),"") ->  | AC74: =IFERROR(AC$4+(1-AC$4)/(1+EXP(-1.7*AC$2*($C74-AC$3))),"") ->  | AD74: =IFERROR(AD$4+(1-AD$4)/(1+EXP(-1.7*AD$2*($C74-AD$3))),"") ->  | AE74: =IFERROR(AE$4+(1-AE$4)/(1+EXP(-1.7*AE$2*($C74-AE$3))),"") ->  | AF74: =IFERROR(AF$4+(1-AF$4)/(1+EXP(-1.7*AF$2*($C74-AF$3))),"") ->  | AG74: =IFERROR(AG$4+(1-AG$4)/(1+EXP(-1.7*AG$2*($C74-AG$3))),"") -> 
A75: 66 | B75: 0.0156771441 | C75: -3.35 | D75: =IFERROR(D$4+(1-D$4)/(1+EXP(-1.7*D$2*($C75-D$3))),"") -> 0.01622731338 | E75: =IFERROR(E$4+(1-E$4)/(1+EXP(-1.7*E$2*($C75-E$3))),"") -> 0.2101309612 | F75: =IFERROR(F$4+(1-F$4)/(1+EXP(-1.7*F$2*($C75-F$3))),"") -> 0.2994019876 | G75: =IFERROR(G$4+(1-G$4)/(1+EXP(-1.7*G$2*($C75-G$3))),"") -> 0.273295934 | H75: =IFERROR(H$4+(1-H$4)/(1+EXP(-1.7*H$2*($C75-H$3))),"") -> 0.07318235652 | I75: =IFERROR(I$4+(1-I$4)/(1+EXP(-1.7*I$2*($C75-I$3))),"") ->  | J75: =IFERROR(J$4+(1-J$4)/(1+EXP(-1.7*J$2*($C75-J$3))),"") ->  | K75: =IFERROR(K$4+(1-K$4)/(1+EXP(-1.7*K$2*($C75-K$3))),"") ->  | L75: =IFERROR(L$4+(1-L$4)/(1+EXP(-1.7*L$2*($C75-L$3))),"") ->  | M75: =IFERROR(M$4+(1-M$4)/(1+EXP(-1.7*M$2*($C75-M$3))),"") ->  | N75: =IFERROR(N$4+(1-N$4)/(1+EXP(-1.7*N$2*($C75-N$3))),"") ->  | O75: =IFERROR(O$4+(1-O$4)/(1+EXP(-1.7*O$2*($C75-O$3))),"") ->  | P75: =IFERROR(P$4+(1-P$4)/(1+EXP(-1.7*P$2*($C75-P$3))),"") ->  | Q75: =IFERROR(Q$4+(1-Q$4)/(1+EXP(-1.7*Q$2*($C75-Q$3))),"") ->  | R75: =IFERROR(R$4+(1-R$4)/(1+EXP(-1.7*R$2*($C75-R$3))),"") ->  | S75: =IFERROR(S$4+(1-S$4)/(1+EXP(-1.7*S$2*($C75-S$3))),"") ->  | T75: =IFERROR(T$4+(1-T$4)/(1+EXP(-1.7*T$2*($C75-T$3))),"") ->  | U75: =IFERROR(U$4+(1-U$4)/(1+EXP(-1.7*U$2*($C75-U$3))),"") ->  | V75: =IFERROR(V$4+(1-V$4)/(1+EXP(-1.7*V$2*($C75-V$3))),"") ->  | W75: =IFERROR(W$4+(1-W$4)/(1+EXP(-1.7*W$2*($C75-W$3))),"") ->  | X75: =IFERROR(X$4+(1-X$4)/(1+EXP(-1.7*X$2*($C75-X$3))),"") ->  | Y75: =IFERROR(Y$4+(1-Y$4)/(1+EXP(-1.7*Y$2*($C75-Y$3))),"") ->  | Z75: =IFERROR(Z$4+(1-Z$4)/(1+EXP(-1.7*Z$2*($C75-Z$3))),"") ->  | AA75: =IFERROR(AA$4+(1-AA$4)/(1+EXP(-1.7*AA$2*($C75-AA$3))),"") ->  | AB75: =IFERROR(AB$4+(1-AB$4)/(1+EXP(-1.7*AB$2*($C75-AB$3))),"") ->  | AC75: =IFERROR(AC$4+(1-AC$4)/(1+EXP(-1.7*AC$2*($C75-AC$3))),"") ->  | AD75: =IFERROR(AD$4+(1-AD$4)/(1+EXP(-1.7*AD$2*($C75-AD$3))),"") ->  | AE75: =IFERROR(AE$4+(1-AE$4)/(1+EXP(-1.7*AE$2*($C75-AE$3))),"") ->  | AF75: =IFERROR(AF$4+(1-AF$4)/(1+EXP(-1.7*AF$2*($C75-AF$3))),"") ->  | AG75: =IFERROR(AG$4+(1-AG$4)/(1+EXP(-1.7*AG$2*($C75-AG$3))),"") -> 
A76: 67 | B76: 0.01573739077 | C76: =C75+0.01 -> -3.34 | D76: =IFERROR(D$4+(1-D$4)/(1+EXP(-1.7*D$2*($C76-D$3))),"") -> 0.01623040531 | E76: =IFERROR(E$4+(1-E$4)/(1+EXP(-1.7*E$2*($C76-E$3))),"") -> 0.2105069196 | F76: =IFERROR(F$4+(1-F$4)/(1+EXP(-1.7*F$2*($C76-F$3))),"") -> 0.3000166274 | G76: =IFERROR(G$4+(1-G$4)/(1+EXP(-1.7*G$2*($C76-G$3))),"") -> 0.2732960581 | H76: =IFERROR(H$4+(1-H$4)/(1+EXP(-1.7*H$2*($C76-H$3))),"") -> 0.07318241708 | I76: =IFERROR(I$4+(1-I$4)/(1+EXP(-1.7*I$2*($C76-I$3))),"") ->  | J76: =IFERROR(J$4+(1-J$4)/(1+EXP(-1.7*J$2*($C76-J$3))),"") ->  | K76: =IFERROR(K$4+(1-K$4)/(1+EXP(-1.7*K$2*($C76-K$3))),"") ->  | L76: =IFERROR(L$4+(1-L$4)/(1+EXP(-1.7*L$2*($C76-L$3))),"") ->  | M76: =IFERROR(M$4+(1-M$4)/(1+EXP(-1.7*M$2*($C76-M$3))),"") ->  | N76: =IFERROR(N$4+(1-N$4)/(1+EXP(-1.7*N$2*($C76-N$3))),"") ->  | O76: =IFERROR(O$4+(1-O$4)/(1+EXP(-1.7*O$2*($C76-O$3))),"") ->  | P76: =IFERROR(P$4+(1-P$4)/(1+EXP(-1.7*P$2*($C76-P$3))),"") ->  | Q76: =IFERROR(Q$4+(1-Q$4)/(1+EXP(-1.7*Q$2*($C76-Q$3))),"") ->  | R76: =IFERROR(R$4+(1-R$4)/(1+EXP(-1.7*R$2*($C76-R$3))),"") ->  | S76: =IFERROR(S$4+(1-S$4)/(1+EXP(-1.7*S$2*($C76-S$3))),"") ->  | T76: =IFERROR(T$4+(1-T$4)/(1+EXP(-1.7*T$2*($C76-T$3))),"") ->  | U76: =IFERROR(U$4+(1-U$4)/(1+EXP(-1.7*U$2*($C76-U$3))),"") ->  | V76: =IFERROR(V$4+(1-V$4)/(1+EXP(-1.7*V$2*($C76-V$3))),"") ->  | W76: =IFERROR(W$4+(1-W$4)/(1+EXP(-1.7*W$2*($C76-W$3))),"") ->  | X76: =IFERROR(X$4+(1-X$4)/(1+EXP(-1.7*X$2*($C76-X$3))),"") ->  | Y76: =IFERROR(Y$4+(1-Y$4)/(1+EXP(-1.7*Y$2*($C76-Y$3))),"") ->  | Z76: =IFERROR(Z$4+(1-Z$4)/(1+EXP(-1.7*Z$2*($C76-Z$3))),"") ->  | AA76: =IFERROR(AA$4+(1-AA$4)/(1+EXP(-1.7*AA$2*($C76-AA$3))),"") ->  | AB76: =IFERROR(AB$4+(1-AB$4)/(1+EXP(-1.7*AB$2*($C76-AB$3))),"") ->  | AC76: =IFERROR(AC$4+(1-AC$4)/(1+EXP(-1.7*AC$2*($C76-AC$3))),"") ->  | AD76: =IFERROR(AD$4+(1-AD$4)/(1+EXP(-1.7*AD$2*($C76-AD$3))),"") ->  | AE76: =IFERROR(AE$4+(1-AE$4)/(1+EXP(-1.7*AE$2*($C76-AE$3))),"") ->  | AF76: =IFERROR(AF$4+(1-AF$4)/(1+EXP(-1.7*AF$2*($C76-AF$3))),"") ->  | AG76: =IFERROR(AG$4+(1-AG$4)/(1+EXP(-1.7*AG$2*($C76-AG$3))),"") -> 
A77: 68 | B77: 0.01579855607 | C77: -3.33 | D77: =IFERROR(D$4+(1-D$4)/(1+EXP(-1.7*D$2*($C77-D$3))),"") -> 0.01623355156 | E77: =IFERROR(E$4+(1-E$4)/(1+EXP(-1.7*E$2*($C77-E$3))),"") -> 0.2108887539 | F77: =IFERROR(F$4+(1-F$4)/(1+EXP(-1.7*F$2*($C77-F$3))),"") -> 0.3006382014 | G77: =IFERROR(G$4+(1-G$4)/(1+EXP(-1.7*G$2*($C77-G$3))),"") -> 0.2732961845 | H77: =IFERROR(H$4+(1-H$4)/(1+EXP(-1.7*H$2*($C77-H$3))),"") -> 0.07318247888 | I77: =IFERROR(I$4+(1-I$4)/(1+EXP(-1.7*I$2*($C77-I$3))),"") ->  | J77: =IFERROR(J$4+(1-J$4)/(1+EXP(-1.7*J$2*($C77-J$3))),"") ->  | K77: =IFERROR(K$4+(1-K$4)/(1+EXP(-1.7*K$2*($C77-K$3))),"") ->  | L77: =IFERROR(L$4+(1-L$4)/(1+EXP(-1.7*L$2*($C77-L$3))),"") ->  | M77: =IFERROR(M$4+(1-M$4)/(1+EXP(-1.7*M$2*($C77-M$3))),"") ->  | N77: =IFERROR(N$4+(1-N$4)/(1+EXP(-1.7*N$2*($C77-N$3))),"") ->  | O77: =IFERROR(O$4+(1-O$4)/(1+EXP(-1.7*O$2*($C77-O$3))),"") ->  | P77: =IFERROR(P$4+(1-P$4)/(1+EXP(-1.7*P$2*($C77-P$3))),"") ->  | Q77: =IFERROR(Q$4+(1-Q$4)/(1+EXP(-1.7*Q$2*($C77-Q$3))),"") ->  | R77: =IFERROR(R$4+(1-R$4)/(1+EXP(-1.7*R$2*($C77-R$3))),"") ->  | S77: =IFERROR(S$4+(1-S$4)/(1+EXP(-1.7*S$2*($C77-S$3))),"") ->  | T77: =IFERROR(T$4+(1-T$4)/(1+EXP(-1.7*T$2*($C77-T$3))),"") ->  | U77: =IFERROR(U$4+(1-U$4)/(1+EXP(-1.7*U$2*($C77-U$3))),"") ->  | V77: =IFERROR(V$4+(1-V$4)/(1+EXP(-1.7*V$2*($C77-V$3))),"") ->  | W77: =IFERROR(W$4+(1-W$4)/(1+EXP(-1.7*W$2*($C77-W$3))),"") ->  | X77: =IFERROR(X$4+(1-X$4)/(1+EXP(-1.7*X$2*($C77-X$3))),"") ->  | Y77: =IFERROR(Y$4+(1-Y$4)/(1+EXP(-1.7*Y$2*($C77-Y$3))),"") ->  | Z77: =IFERROR(Z$4+(1-Z$4)/(1+EXP(-1.7*Z$2*($C77-Z$3))),"") ->  | AA77: =IFERROR(AA$4+(1-AA$4)/(1+EXP(-1.7*AA$2*($C77-AA$3))),"") ->  | AB77: =IFERROR(AB$4+(1-AB$4)/(1+EXP(-1.7*AB$2*($C77-AB$3))),"") ->  | AC77: =IFERROR(AC$4+(1-AC$4)/(1+EXP(-1.7*AC$2*($C77-AC$3))),"") ->  | AD77: =IFERROR(AD$4+(1-AD$4)/(1+EXP(-1.7*AD$2*($C77-AD$3))),"") ->  | AE77: =IFERROR(AE$4+(1-AE$4)/(1+EXP(-1.7*AE$2*($C77-AE$3))),"") ->  | AF77: =IFERROR(AF$4+(1-AF$4)/(1+EXP(-1.7*AF$2*($C77-AF$3))),"") ->  | AG77: =IFERROR(AG$4+(1-AG$4)/(1+EXP(-1.7*AG$2*($C77-AG$3))),"") -> 
A78: 69 | B78: 0.01586065453 | C78: -3.32 | D78: =IFERROR(D$4+(1-D$4)/(1+EXP(-1.7*D$2*($C78-D$3))),"") -> 0.01623675308 | E78: =IFERROR(E$4+(1-E$4)/(1+EXP(-1.7*E$2*($C78-E$3))),"") -> 0.2112765498 | F78: =IFERROR(F$4+(1-F$4)/(1+EXP(-1.7*F$2*($C78-F$3))),"") -> 0.3012667741 | G78: =IFERROR(G$4+(1-G$4)/(1+EXP(-1.7*G$2*($C78-G$3))),"") -> 0.2732963133 | H78: =IFERROR(H$4+(1-H$4)/(1+EXP(-1.7*H$2*($C78-H$3))),"") -> 0.07318254195 | I78: =IFERROR(I$4+(1-I$4)/(1+EXP(-1.7*I$2*($C78-I$3))),"") ->  | J78: =IFERROR(J$4+(1-J$4)/(1+EXP(-1.7*J$2*($C78-J$3))),"") ->  | K78: =IFERROR(K$4+(1-K$4)/(1+EXP(-1.7*K$2*($C78-K$3))),"") ->  | L78: =IFERROR(L$4+(1-L$4)/(1+EXP(-1.7*L$2*($C78-L$3))),"") ->  | M78: =IFERROR(M$4+(1-M$4)/(1+EXP(-1.7*M$2*($C78-M$3))),"") ->  | N78: =IFERROR(N$4+(1-N$4)/(1+EXP(-1.7*N$2*($C78-N$3))),"") ->  | O78: =IFERROR(O$4+(1-O$4)/(1+EXP(-1.7*O$2*($C78-O$3))),"") ->  | P78: =IFERROR(P$4+(1-P$4)/(1+EXP(-1.7*P$2*($C78-P$3))),"") ->  | Q78: =IFERROR(Q$4+(1-Q$4)/(1+EXP(-1.7*Q$2*($C78-Q$3))),"") ->  | R78: =IFERROR(R$4+(1-R$4)/(1+EXP(-1.7*R$2*($C78-R$3))),"") ->  | S78: =IFERROR(S$4+(1-S$4)/(1+EXP(-1.7*S$2*($C78-S$3))),"") ->  | T78: =IFERROR(T$4+(1-T$4)/(1+EXP(-1.7*T$2*($C78-T$3))),"") ->  | U78: =IFERROR(U$4+(1-U$4)/(1+EXP(-1.7*U$2*($C78-U$3))),"") ->  | V78: =IFERROR(V$4+(1-V$4)/(1+EXP(-1.7*V$2*($C78-V$3))),"") ->  | W78: =IFERROR(W$4+(1-W$4)/(1+EXP(-1.7*W$2*($C78-W$3))),"") ->  | X78: =IFERROR(X$4+(1-X$4)/(1+EXP(-1.7*X$2*($C78-X$3))),"") ->  | Y78: =IFERROR(Y$4+(1-Y$4)/(1+EXP(-1.7*Y$2*($C78-Y$3))),"") ->  | Z78: =IFERROR(Z$4+(1-Z$4)/(1+EXP(-1.7*Z$2*($C78-Z$3))),"") ->  | AA78: =IFERROR(AA$4+(1-AA$4)/(1+EXP(-1.7*AA$2*($C78-AA$3))),"") ->  | AB78: =IFERROR(AB$4+(1-AB$4)/(1+EXP(-1.7*AB$2*($C78-AB$3))),"") ->  | AC78: =IFERROR(AC$4+(1-AC$4)/(1+EXP(-1.7*AC$2*($C78-AC$3))),"") ->  | AD78: =IFERROR(AD$4+(1-AD$4)/(1+EXP(-1.7*AD$2*($C78-AD$3))),"") ->  | AE78: =IFERROR(AE$4+(1-AE$4)/(1+EXP(-1.7*AE$2*($C78-AE$3))),"") ->  | AF78: =IFERROR(AF$4+(1-AF$4)/(1+EXP(-1.7*AF$2*($C78-AF$3))),"") ->  | AG78: =IFERROR(AG$4+(1-AG$4)/(1+EXP(-1.7*AG$2*($C78-AG$3))),"") -> 
A79: 70 | B79: 0.01592370092 | C79: -3.31 | D79: =IFERROR(D$4+(1-D$4)/(1+EXP(-1.7*D$2*($C79-D$3))),"") -> 0.01624001085 | E79: =IFERROR(E$4+(1-E$4)/(1+EXP(-1.7*E$2*($C79-E$3))),"") -> 0.2116703942 | F79: =IFERROR(F$4+(1-F$4)/(1+EXP(-1.7*F$2*($C79-F$3))),"") -> 0.3019024107 | G79: =IFERROR(G$4+(1-G$4)/(1+EXP(-1.7*G$2*($C79-G$3))),"") -> 0.2732964445 | H79: =IFERROR(H$4+(1-H$4)/(1+EXP(-1.7*H$2*($C79-H$3))),"") -> 0.07318260632 | I79: =IFERROR(I$4+(1-I$4)/(1+EXP(-1.7*I$2*($C79-I$3))),"") ->  | J79: =IFERROR(J$4+(1-J$4)/(1+EXP(-1.7*J$2*($C79-J$3))),"") ->  | K79: =IFERROR(K$4+(1-K$4)/(1+EXP(-1.7*K$2*($C79-K$3))),"") ->  | L79: =IFERROR(L$4+(1-L$4)/(1+EXP(-1.7*L$2*($C79-L$3))),"") ->  | M79: =IFERROR(M$4+(1-M$4)/(1+EXP(-1.7*M$2*($C79-M$3))),"") ->  | N79: =IFERROR(N$4+(1-N$4)/(1+EXP(-1.7*N$2*($C79-N$3))),"") ->  | O79: =IFERROR(O$4+(1-O$4)/(1+EXP(-1.7*O$2*($C79-O$3))),"") ->  | P79: =IFERROR(P$4+(1-P$4)/(1+EXP(-1.7*P$2*($C79-P$3))),"") ->  | Q79: =IFERROR(Q$4+(1-Q$4)/(1+EXP(-1.7*Q$2*($C79-Q$3))),"") ->  | R79: =IFERROR(R$4+(1-R$4)/(1+EXP(-1.7*R$2*($C79-R$3))),"") ->  | S79: =IFERROR(S$4+(1-S$4)/(1+EXP(-1.7*S$2*($C79-S$3))),"") ->  | T79: =IFERROR(T$4+(1-T$4)/(1+EXP(-1.7*T$2*($C79-T$3))),"") ->  | U79: =IFERROR(U$4+(1-U$4)/(1+EXP(-1.7*U$2*($C79-U$3))),"") ->  | V79: =IFERROR(V$4+(1-V$4)/(1+EXP(-1.7*V$2*($C79-V$3))),"") ->  | W79: =IFERROR(W$4+(1-W$4)/(1+EXP(-1.7*W$2*($C79-W$3))),"") ->  | X79: =IFERROR(X$4+(1-X$4)/(1+EXP(-1.7*X$2*($C79-X$3))),"") ->  | Y79: =IFERROR(Y$4+(1-Y$4)/(1+EXP(-1.7*Y$2*($C79-Y$3))),"") ->  | Z79: =IFERROR(Z$4+(1-Z$4)/(1+EXP(-1.7*Z$2*($C79-Z$3))),"") ->  | AA79: =IFERROR(AA$4+(1-AA$4)/(1+EXP(-1.7*AA$2*($C79-AA$3))),"") ->  | AB79: =IFERROR(AB$4+(1-AB$4)/(1+EXP(-1.7*AB$2*($C79-AB$3))),"") ->  | AC79: =IFERROR(AC$4+(1-AC$4)/(1+EXP(-1.7*AC$2*($C79-AC$3))),"") ->  | AD79: =IFERROR(AD$4+(1-AD$4)/(1+EXP(-1.7*AD$2*($C79-AD$3))),"") ->  | AE79: =IFERROR(AE$4+(1-AE$4)/(1+EXP(-1.7*AE$2*($C79-AE$3))),"") ->  | AF79: =IFERROR(AF$4+(1-AF$4)/(1+EXP(-1.7*AF$2*($C79-AF$3))),"") ->  | AG79: =IFERROR(AG$4+(1-AG$4)/(1+EXP(-1.7*AG$2*($C79-AG$3))),"") -> 
A80: 71 | B80: 0.01598771024 | C80: -3.3 | D80: =IFERROR(D$4+(1-D$4)/(1+EXP(-1.7*D$2*($C80-D$3))),"") -> 0.01624332586 | E80: =IFERROR(E$4+(1-E$4)/(1+EXP(-1.7*E$2*($C80-E$3))),"") -> 0.2120703752 | F80: =IFERROR(F$4+(1-F$4)/(1+EXP(-1.7*F$2*($C80-F$3))),"") -> 0.3025451763 | G80: =IFERROR(G$4+(1-G$4)/(1+EXP(-1.7*G$2*($C80-G$3))),"") -> 0.2732965782 | H80: =IFERROR(H$4+(1-H$4)/(1+EXP(-1.7*H$2*($C80-H$3))),"") -> 0.073182672 | I80: =IFERROR(I$4+(1-I$4)/(1+EXP(-1.7*I$2*($C80-I$3))),"") ->  | J80: =IFERROR(J$4+(1-J$4)/(1+EXP(-1.7*J$2*($C80-J$3))),"") ->  | K80: =IFERROR(K$4+(1-K$4)/(1+EXP(-1.7*K$2*($C80-K$3))),"") ->  | L80: =IFERROR(L$4+(1-L$4)/(1+EXP(-1.7*L$2*($C80-L$3))),"") ->  | M80: =IFERROR(M$4+(1-M$4)/(1+EXP(-1.7*M$2*($C80-M$3))),"") ->  | N80: =IFERROR(N$4+(1-N$4)/(1+EXP(-1.7*N$2*($C80-N$3))),"") ->  | O80: =IFERROR(O$4+(1-O$4)/(1+EXP(-1.7*O$2*($C80-O$3))),"") ->  | P80: =IFERROR(P$4+(1-P$4)/(1+EXP(-1.7*P$2*($C80-P$3))),"") ->  | Q80: =IFERROR(Q$4+(1-Q$4)/(1+EXP(-1.7*Q$2*($C80-Q$3))),"") ->  | R80: =IFERROR(R$4+(1-R$4)/(1+EXP(-1.7*R$2*($C80-R$3))),"") ->  | S80: =IFERROR(S$4+(1-S$4)/(1+EXP(-1.7*S$2*($C80-S$3))),"") ->  | T80: =IFERROR(T$4+(1-T$4)/(1+EXP(-1.7*T$2*($C80-T$3))),"") ->  | U80: =IFERROR(U$4+(1-U$4)/(1+EXP(-1.7*U$2*($C80-U$3))),"") ->  | V80: =IFERROR(V$4+(1-V$4)/(1+EXP(-1.7*V$2*($C80-V$3))),"") ->  | W80: =IFERROR(W$4+(1-W$4)/(1+EXP(-1.7*W$2*($C80-W$3))),"") ->  | X80: =IFERROR(X$4+(1-X$4)/(1+EXP(-1.7*X$2*($C80-X$3))),"") ->  | Y80: =IFERROR(Y$4+(1-Y$4)/(1+EXP(-1.7*Y$2*($C80-Y$3))),"") ->  | Z80: =IFERROR(Z$4+(1-Z$4)/(1+EXP(-1.7*Z$2*($C80-Z$3))),"") ->  | AA80: =IFERROR(AA$4+(1-AA$4)/(1+EXP(-1.7*AA$2*($C80-AA$3))),"") ->  | AB80: =IFERROR(AB$4+(1-AB$4)/(1+EXP(-1.7*AB$2*($C80-AB$3))),"") ->  | AC80: =IFERROR(AC$4+(1-AC$4)/(1+EXP(-1.7*AC$2*($C80-AC$3))),"") ->  | AD80: =IFERROR(AD$4+(1-AD$4)/(1+EXP(-1.7*AD$2*($C80-AD$3))),"") ->  | AE80: =IFERROR(AE$4+(1-AE$4)/(1+EXP(-1.7*AE$2*($C80-AE$3))),"") ->  | AF80: =IFERROR(AF$4+(1-AF$4)/(1+EXP(-1.7*AF$2*($C80-AF$3))),"") ->  | AG80: =IFERROR(AG$4+(1-AG$4)/(1+EXP(-1.7*AG$2*($C80-AG$3))),"") -> 
A81: 72 | B81: 0.01605269773 | C81: -3.29 | D81: =IFERROR(D$4+(1-D$4)/(1+EXP(-1.7*D$2*($C81-D$3))),"") -> 0.01624669911 | E81: =IFERROR(E$4+(1-E$4)/(1+EXP(-1.7*E$2*($C81-E$3))),"") -> 0.2124765817 | F81: =IFERROR(F$4+(1-F$4)/(1+EXP(-1.7*F$2*($C81-F$3))),"") -> 0.3031951365 | G81: =IFERROR(G$4+(1-G$4)/(1+EXP(-1.7*G$2*($C81-G$3))),"") -> 0.2732967143 | H81: =IFERROR(H$4+(1-H$4)/(1+EXP(-1.7*H$2*($C81-H$3))),"") -> 0.07318273904 | I81: =IFERROR(I$4+(1-I$4)/(1+EXP(-1.7*I$2*($C81-I$3))),"") ->  | J81: =IFERROR(J$4+(1-J$4)/(1+EXP(-1.7*J$2*($C81-J$3))),"") ->  | K81: =IFERROR(K$4+(1-K$4)/(1+EXP(-1.7*K$2*($C81-K$3))),"") ->  | L81: =IFERROR(L$4+(1-L$4)/(1+EXP(-1.7*L$2*($C81-L$3))),"") ->  | M81: =IFERROR(M$4+(1-M$4)/(1+EXP(-1.7*M$2*($C81-M$3))),"") ->  | N81: =IFERROR(N$4+(1-N$4)/(1+EXP(-1.7*N$2*($C81-N$3))),"") ->  | O81: =IFERROR(O$4+(1-O$4)/(1+EXP(-1.7*O$2*($C81-O$3))),"") ->  | P81: =IFERROR(P$4+(1-P$4)/(1+EXP(-1.7*P$2*($C81-P$3))),"") ->  | Q81: =IFERROR(Q$4+(1-Q$4)/(1+EXP(-1.7*Q$2*($C81-Q$3))),"") ->  | R81: =IFERROR(R$4+(1-R$4)/(1+EXP(-1.7*R$2*($C81-R$3))),"") ->  | S81: =IFERROR(S$4+(1-S$4)/(1+EXP(-1.7*S$2*($C81-S$3))),"") ->  | T81: =IFERROR(T$4+(1-T$4)/(1+EXP(-1.7*T$2*($C81-T$3))),"") ->  | U81: =IFERROR(U$4+(1-U$4)/(1+EXP(-1.7*U$2*($C81-U$3))),"") ->  | V81: =IFERROR(V$4+(1-V$4)/(1+EXP(-1.7*V$2*($C81-V$3))),"") ->  | W81: =IFERROR(W$4+(1-W$4)/(1+EXP(-1.7*W$2*($C81-W$3))),"") ->  | X81: =IFERROR(X$4+(1-X$4)/(1+EXP(-1.7*X$2*($C81-X$3))),"") ->  | Y81: =IFERROR(Y$4+(1-Y$4)/(1+EXP(-1.7*Y$2*($C81-Y$3))),"") ->  | Z81: =IFERROR(Z$4+(1-Z$4)/(1+EXP(-1.7*Z$2*($C81-Z$3))),"") ->  | AA81: =IFERROR(AA$4+(1-AA$4)/(1+EXP(-1.7*AA$2*($C81-AA$3))),"") ->  | AB81: =IFERROR(AB$4+(1-AB$4)/(1+EXP(-1.7*AB$2*($C81-AB$3))),"") ->  | AC81: =IFERROR(AC$4+(1-AC$4)/(1+EXP(-1.7*AC$2*($C81-AC$3))),"") ->  | AD81: =IFERROR(AD$4+(1-AD$4)/(1+EXP(-1.7*AD$2*($C81-AD$3))),"") ->  | AE81: =IFERROR(AE$4+(1-AE$4)/(1+EXP(-1.7*AE$2*($C81-AE$3))),"") ->  | AF81: =IFERROR(AF$4+(1-AF$4)/(1+EXP(-1.7*AF$2*($C81-AF$3))),"") ->  | AG81: =IFERROR(AG$4+(1-AG$4)/(1+EXP(-1.7*AG$2*($C81-AG$3))),"") -> 
A82: 73 | B82: 0.01611867887 | C82: -3.28 | D82: =IFERROR(D$4+(1-D$4)/(1+EXP(-1.7*D$2*($C82-D$3))),"") -> 0.01625013162 | E82: =IFERROR(E$4+(1-E$4)/(1+EXP(-1.7*E$2*($C82-E$3))),"") -> 0.2128891039 | F82: =IFERROR(F$4+(1-F$4)/(1+EXP(-1.7*F$2*($C82-F$3))),"") -> 0.303852357 | G82: =IFERROR(G$4+(1-G$4)/(1+EXP(-1.7*G$2*($C82-G$3))),"") -> 0.273296853 | H82: =IFERROR(H$4+(1-H$4)/(1+EXP(-1.7*H$2*($C82-H$3))),"") -> 0.07318280745 | I82: =IFERROR(I$4+(1-I$4)/(1+EXP(-1.7*I$2*($C82-I$3))),"") ->  | J82: =IFERROR(J$4+(1-J$4)/(1+EXP(-1.7*J$2*($C82-J$3))),"") ->  | K82: =IFERROR(K$4+(1-K$4)/(1+EXP(-1.7*K$2*($C82-K$3))),"") ->  | L82: =IFERROR(L$4+(1-L$4)/(1+EXP(-1.7*L$2*($C82-L$3))),"") ->  | M82: =IFERROR(M$4+(1-M$4)/(1+EXP(-1.7*M$2*($C82-M$3))),"") ->  | N82: =IFERROR(N$4+(1-N$4)/(1+EXP(-1.7*N$2*($C82-N$3))),"") ->  | O82: =IFERROR(O$4+(1-O$4)/(1+EXP(-1.7*O$2*($C82-O$3))),"") ->  | P82: =IFERROR(P$4+(1-P$4)/(1+EXP(-1.7*P$2*($C82-P$3))),"") ->  | Q82: =IFERROR(Q$4+(1-Q$4)/(1+EXP(-1.7*Q$2*($C82-Q$3))),"") ->  | R82: =IFERROR(R$4+(1-R$4)/(1+EXP(-1.7*R$2*($C82-R$3))),"") ->  | S82: =IFERROR(S$4+(1-S$4)/(1+EXP(-1.7*S$2*($C82-S$3))),"") ->  | T82: =IFERROR(T$4+(1-T$4)/(1+EXP(-1.7*T$2*($C82-T$3))),"") ->  | U82: =IFERROR(U$4+(1-U$4)/(1+EXP(-1.7*U$2*($C82-U$3))),"") ->  | V82: =IFERROR(V$4+(1-V$4)/(1+EXP(-1.7*V$2*($C82-V$3))),"") ->  | W82: =IFERROR(W$4+(1-W$4)/(1+EXP(-1.7*W$2*($C82-W$3))),"") ->  | X82: =IFERROR(X$4+(1-X$4)/(1+EXP(-1.7*X$2*($C82-X$3))),"") ->  | Y82: =IFERROR(Y$4+(1-Y$4)/(1+EXP(-1.7*Y$2*($C82-Y$3))),"") ->  | Z82: =IFERROR(Z$4+(1-Z$4)/(1+EXP(-1.7*Z$2*($C82-Z$3))),"") ->  | AA82: =IFERROR(AA$4+(1-AA$4)/(1+EXP(-1.7*AA$2*($C82-AA$3))),"") ->  | AB82: =IFERROR(AB$4+(1-AB$4)/(1+EXP(-1.7*AB$2*($C82-AB$3))),"") ->  | AC82: =IFERROR(AC$4+(1-AC$4)/(1+EXP(-1.7*AC$2*($C82-AC$3))),"") ->  | AD82: =IFERROR(AD$4+(1-AD$4)/(1+EXP(-1.7*AD$2*($C82-AD$3))),"") ->  | AE82: =IFERROR(AE$4+(1-AE$4)/(1+EXP(-1.7*AE$2*($C82-AE$3))),"") ->  | AF82: =IFERROR(AF$4+(1-AF$4)/(1+EXP(-1.7*AF$2*($C82-AF$3))),"") ->  | AG82: =IFERROR(AG$4+(1-AG$4)/(1+EXP(-1.7*AG$2*($C82-AG$3))),"") -> 
A83: 74 | B83: 0.01618566941 | C83: -3.27 | D83: =IFERROR(D$4+(1-D$4)/(1+EXP(-1.7*D$2*($C83-D$3))),"") -> 0.01625362443 | E83: =IFERROR(E$4+(1-E$4)/(1+EXP(-1.7*E$2*($C83-E$3))),"") -> 0.2133080329 | F83: =IFERROR(F$4+(1-F$4)/(1+EXP(-1.7*F$2*($C83-F$3))),"") -> 0.3045169039 | G83: =IFERROR(G$4+(1-G$4)/(1+EXP(-1.7*G$2*($C83-G$3))),"") -> 0.2732969943 | H83: =IFERROR(H$4+(1-H$4)/(1+EXP(-1.7*H$2*($C83-H$3))),"") -> 0.07318287726 | I83: =IFERROR(I$4+(1-I$4)/(1+EXP(-1.7*I$2*($C83-I$3))),"") ->  | J83: =IFERROR(J$4+(1-J$4)/(1+EXP(-1.7*J$2*($C83-J$3))),"") ->  | K83: =IFERROR(K$4+(1-K$4)/(1+EXP(-1.7*K$2*($C83-K$3))),"") ->  | L83: =IFERROR(L$4+(1-L$4)/(1+EXP(-1.7*L$2*($C83-L$3))),"") ->  | M83: =IFERROR(M$4+(1-M$4)/(1+EXP(-1.7*M$2*($C83-M$3))),"") ->  | N83: =IFERROR(N$4+(1-N$4)/(1+EXP(-1.7*N$2*($C83-N$3))),"") ->  | O83: =IFERROR(O$4+(1-O$4)/(1+EXP(-1.7*O$2*($C83-O$3))),"") ->  | P83: =IFERROR(P$4+(1-P$4)/(1+EXP(-1.7*P$2*($C83-P$3))),"") ->  | Q83: =IFERROR(Q$4+(1-Q$4)/(1+EXP(-1.7*Q$2*($C83-Q$3))),"") ->  | R83: =IFERROR(R$4+(1-R$4)/(1+EXP(-1.7*R$2*($C83-R$3))),"") ->  | S83: =IFERROR(S$4+(1-S$4)/(1+EXP(-1.7*S$2*($C83-S$3))),"") ->  | T83: =IFERROR(T$4+(1-T$4)/(1+EXP(-1.7*T$2*($C83-T$3))),"") ->  | U83: =IFERROR(U$4+(1-U$4)/(1+EXP(-1.7*U$2*($C83-U$3))),"") ->  | V83: =IFERROR(V$4+(1-V$4)/(1+EXP(-1.7*V$2*($C83-V$3))),"") ->  | W83: =IFERROR(W$4+(1-W$4)/(1+EXP(-1.7*W$2*($C83-W$3))),"") ->  | X83: =IFERROR(X$4+(1-X$4)/(1+EXP(-1.7*X$2*($C83-X$3))),"") ->  | Y83: =IFERROR(Y$4+(1-Y$4)/(1+EXP(-1.7*Y$2*($C83-Y$3))),"") ->  | Z83: =IFERROR(Z$4+(1-Z$4)/(1+EXP(-1.7*Z$2*($C83-Z$3))),"") ->  | AA83: =IFERROR(AA$4+(1-AA$4)/(1+EXP(-1.7*AA$2*($C83-AA$3))),"") ->  | AB83: =IFERROR(AB$4+(1-AB$4)/(1+EXP(-1.7*AB$2*($C83-AB$3))),"") ->  | AC83: =IFERROR(AC$4+(1-AC$4)/(1+EXP(-1.7*AC$2*($C83-AC$3))),"") ->  | AD83: =IFERROR(AD$4+(1-AD$4)/(1+EXP(-1.7*AD$2*($C83-AD$3))),"") ->  | AE83: =IFERROR(AE$4+(1-AE$4)/(1+EXP(-1.7*AE$2*($C83-AE$3))),"") ->  | AF83: =IFERROR(AF$4+(1-AF$4)/(1+EXP(-1.7*AF$2*($C83-AF$3))),"") ->  | AG83: =IFERROR(AG$4+(1-AG$4)/(1+EXP(-1.7*AG$2*($C83-AG$3))),"") -> 
A84: 75 | B84: 0.01625368532 | C84: -3.26 | D84: =IFERROR(D$4+(1-D$4)/(1+EXP(-1.7*D$2*($C84-D$3))),"") -> 0.01625717861 | E84: =IFERROR(E$4+(1-E$4)/(1+EXP(-1.7*E$2*($C84-E$3))),"") -> 0.2137334611 | F84: =IFERROR(F$4+(1-F$4)/(1+EXP(-1.7*F$2*($C84-F$3))),"") -> 0.3051888434 | G84: =IFERROR(G$4+(1-G$4)/(1+EXP(-1.7*G$2*($C84-G$3))),"") -> 0.2732971382 | H84: =IFERROR(H$4+(1-H$4)/(1+EXP(-1.7*H$2*($C84-H$3))),"") -> 0.07318294851 | I84: =IFERROR(I$4+(1-I$4)/(1+EXP(-1.7*I$2*($C84-I$3))),"") ->  | J84: =IFERROR(J$4+(1-J$4)/(1+EXP(-1.7*J$2*($C84-J$3))),"") ->  | K84: =IFERROR(K$4+(1-K$4)/(1+EXP(-1.7*K$2*($C84-K$3))),"") ->  | L84: =IFERROR(L$4+(1-L$4)/(1+EXP(-1.7*L$2*($C84-L$3))),"") ->  | M84: =IFERROR(M$4+(1-M$4)/(1+EXP(-1.7*M$2*($C84-M$3))),"") ->  | N84: =IFERROR(N$4+(1-N$4)/(1+EXP(-1.7*N$2*($C84-N$3))),"") ->  | O84: =IFERROR(O$4+(1-O$4)/(1+EXP(-1.7*O$2*($C84-O$3))),"") ->  | P84: =IFERROR(P$4+(1-P$4)/(1+EXP(-1.7*P$2*($C84-P$3))),"") ->  | Q84: =IFERROR(Q$4+(1-Q$4)/(1+EXP(-1.7*Q$2*($C84-Q$3))),"") ->  | R84: =IFERROR(R$4+(1-R$4)/(1+EXP(-1.7*R$2*($C84-R$3))),"") ->  | S84: =IFERROR(S$4+(1-S$4)/(1+EXP(-1.7*S$2*($C84-S$3))),"") ->  | T84: =IFERROR(T$4+(1-T$4)/(1+EXP(-1.7*T$2*($C84-T$3))),"") ->  | U84: =IFERROR(U$4+(1-U$4)/(1+EXP(-1.7*U$2*($C84-U$3))),"") ->  | V84: =IFERROR(V$4+(1-V$4)/(1+EXP(-1.7*V$2*($C84-V$3))),"") ->  | W84: =IFERROR(W$4+(1-W$4)/(1+EXP(-1.7*W$2*($C84-W$3))),"") ->  | X84: =IFERROR(X$4+(1-X$4)/(1+EXP(-1.7*X$2*($C84-X$3))),"") ->  | Y84: =IFERROR(Y$4+(1-Y$4)/(1+EXP(-1.7*Y$2*($C84-Y$3))),"") ->  | Z84: =IFERROR(Z$4+(1-Z$4)/(1+EXP(-1.7*Z$2*($C84-Z$3))),"") ->  | AA84: =IFERROR(AA$4+(1-AA$4)/(1+EXP(-1.7*AA$2*($C84-AA$3))),"") ->  | AB84: =IFERROR(AB$4+(1-AB$4)/(1+EXP(-1.7*AB$2*($C84-AB$3))),"") ->  | AC84: =IFERROR(AC$4+(1-AC$4)/(1+EXP(-1.7*AC$2*($C84-AC$3))),"") ->  | AD84: =IFERROR(AD$4+(1-AD$4)/(1+EXP(-1.7*AD$2*($C84-AD$3))),"") ->  | AE84: =IFERROR(AE$4+(1-AE$4)/(1+EXP(-1.7*AE$2*($C84-AE$3))),"") ->  | AF84: =IFERROR(AF$4+(1-AF$4)/(1+EXP(-1.7*AF$2*($C84-AF$3))),"") ->  | AG84: =IFERROR(AG$4+(1-AG$4)/(1+EXP(-1.7*AG$2*($C84-AG$3))),"") -> 
A85: 76 | B85: 0.01632274286 | C85: -3.25 | D85: =IFERROR(D$4+(1-D$4)/(1+EXP(-1.7*D$2*($C85-D$3))),"") -> 0.01626079522 | E85: =IFERROR(E$4+(1-E$4)/(1+EXP(-1.7*E$2*($C85-E$3))),"") -> 0.2141654818 | F85: =IFERROR(F$4+(1-F$4)/(1+EXP(-1.7*F$2*($C85-F$3))),"") -> 0.3058682418 | G85: =IFERROR(G$4+(1-G$4)/(1+EXP(-1.7*G$2*($C85-G$3))),"") -> 0.2732972848 | H85: =IFERROR(H$4+(1-H$4)/(1+EXP(-1.7*H$2*($C85-H$3))),"") -> 0.07318302122 | I85: =IFERROR(I$4+(1-I$4)/(1+EXP(-1.7*I$2*($C85-I$3))),"") ->  | J85: =IFERROR(J$4+(1-J$4)/(1+EXP(-1.7*J$2*($C85-J$3))),"") ->  | K85: =IFERROR(K$4+(1-K$4)/(1+EXP(-1.7*K$2*($C85-K$3))),"") ->  | L85: =IFERROR(L$4+(1-L$4)/(1+EXP(-1.7*L$2*($C85-L$3))),"") ->  | M85: =IFERROR(M$4+(1-M$4)/(1+EXP(-1.7*M$2*($C85-M$3))),"") ->  | N85: =IFERROR(N$4+(1-N$4)/(1+EXP(-1.7*N$2*($C85-N$3))),"") ->  | O85: =IFERROR(O$4+(1-O$4)/(1+EXP(-1.7*O$2*($C85-O$3))),"") ->  | P85: =IFERROR(P$4+(1-P$4)/(1+EXP(-1.7*P$2*($C85-P$3))),"") ->  | Q85: =IFERROR(Q$4+(1-Q$4)/(1+EXP(-1.7*Q$2*($C85-Q$3))),"") ->  | R85: =IFERROR(R$4+(1-R$4)/(1+EXP(-1.7*R$2*($C85-R$3))),"") ->  | S85: =IFERROR(S$4+(1-S$4)/(1+EXP(-1.7*S$2*($C85-S$3))),"") ->  | T85: =IFERROR(T$4+(1-T$4)/(1+EXP(-1.7*T$2*($C85-T$3))),"") ->  | U85: =IFERROR(U$4+(1-U$4)/(1+EXP(-1.7*U$2*($C85-U$3))),"") ->  | V85: =IFERROR(V$4+(1-V$4)/(1+EXP(-1.7*V$2*($C85-V$3))),"") ->  | W85: =IFERROR(W$4+(1-W$4)/(1+EXP(-1.7*W$2*($C85-W$3))),"") ->  | X85: =IFERROR(X$4+(1-X$4)/(1+EXP(-1.7*X$2*($C85-X$3))),"") ->  | Y85: =IFERROR(Y$4+(1-Y$4)/(1+EXP(-1.7*Y$2*($C85-Y$3))),"") ->  | Z85: =IFERROR(Z$4+(1-Z$4)/(1+EXP(-1.7*Z$2*($C85-Z$3))),"") ->  | AA85: =IFERROR(AA$4+(1-AA$4)/(1+EXP(-1.7*AA$2*($C85-AA$3))),"") ->  | AB85: =IFERROR(AB$4+(1-AB$4)/(1+EXP(-1.7*AB$2*($C85-AB$3))),"") ->  | AC85: =IFERROR(AC$4+(1-AC$4)/(1+EXP(-1.7*AC$2*($C85-AC$3))),"") ->  | AD85: =IFERROR(AD$4+(1-AD$4)/(1+EXP(-1.7*AD$2*($C85-AD$3))),"") ->  | AE85: =IFERROR(AE$4+(1-AE$4)/(1+EXP(-1.7*AE$2*($C85-AE$3))),"") ->  | AF85: =IFERROR(AF$4+(1-AF$4)/(1+EXP(-1.7*AF$2*($C85-AF$3))),"") ->  | AG85: =IFERROR(AG$4+(1-AG$4)/(1+EXP(-1.7*AG$2*($C85-AG$3))),"") -> 
A86: 77 | B86: 0.01639285853 | C86: -3.24 | D86: =IFERROR(D$4+(1-D$4)/(1+EXP(-1.7*D$2*($C86-D$3))),"") -> 0.01626447537 | E86: =IFERROR(E$4+(1-E$4)/(1+EXP(-1.7*E$2*($C86-E$3))),"") -> 0.2146041895 | F86: =IFERROR(F$4+(1-F$4)/(1+EXP(-1.7*F$2*($C86-F$3))),"") -> 0.306555166 | G86: =IFERROR(G$4+(1-G$4)/(1+EXP(-1.7*G$2*($C86-G$3))),"") -> 0.2732974342 | H86: =IFERROR(H$4+(1-H$4)/(1+EXP(-1.7*H$2*($C86-H$3))),"") -> 0.07318309542 | I86: =IFERROR(I$4+(1-I$4)/(1+EXP(-1.7*I$2*($C86-I$3))),"") ->  | J86: =IFERROR(J$4+(1-J$4)/(1+EXP(-1.7*J$2*($C86-J$3))),"") ->  | K86: =IFERROR(K$4+(1-K$4)/(1+EXP(-1.7*K$2*($C86-K$3))),"") ->  | L86: =IFERROR(L$4+(1-L$4)/(1+EXP(-1.7*L$2*($C86-L$3))),"") ->  | M86: =IFERROR(M$4+(1-M$4)/(1+EXP(-1.7*M$2*($C86-M$3))),"") ->  | N86: =IFERROR(N$4+(1-N$4)/(1+EXP(-1.7*N$2*($C86-N$3))),"") ->  | O86: =IFERROR(O$4+(1-O$4)/(1+EXP(-1.7*O$2*($C86-O$3))),"") ->  | P86: =IFERROR(P$4+(1-P$4)/(1+EXP(-1.7*P$2*($C86-P$3))),"") ->  | Q86: =IFERROR(Q$4+(1-Q$4)/(1+EXP(-1.7*Q$2*($C86-Q$3))),"") ->  | R86: =IFERROR(R$4+(1-R$4)/(1+EXP(-1.7*R$2*($C86-R$3))),"") ->  | S86: =IFERROR(S$4+(1-S$4)/(1+EXP(-1.7*S$2*($C86-S$3))),"") ->  | T86: =IFERROR(T$4+(1-T$4)/(1+EXP(-1.7*T$2*($C86-T$3))),"") ->  | U86: =IFERROR(U$4+(1-U$4)/(1+EXP(-1.7*U$2*($C86-U$3))),"") ->  | V86: =IFERROR(V$4+(1-V$4)/(1+EXP(-1.7*V$2*($C86-V$3))),"") ->  | W86: =IFERROR(W$4+(1-W$4)/(1+EXP(-1.7*W$2*($C86-W$3))),"") ->  | X86: =IFERROR(X$4+(1-X$4)/(1+EXP(-1.7*X$2*($C86-X$3))),"") ->  | Y86: =IFERROR(Y$4+(1-Y$4)/(1+EXP(-1.7*Y$2*($C86-Y$3))),"") ->  | Z86: =IFERROR(Z$4+(1-Z$4)/(1+EXP(-1.7*Z$2*($C86-Z$3))),"") ->  | AA86: =IFERROR(AA$4+(1-AA$4)/(1+EXP(-1.7*AA$2*($C86-AA$3))),"") ->  | AB86: =IFERROR(AB$4+(1-AB$4)/(1+EXP(-1.7*AB$2*($C86-AB$3))),"") ->  | AC86: =IFERROR(AC$4+(1-AC$4)/(1+EXP(-1.7*AC$2*($C86-AC$3))),"") ->  | AD86: =IFERROR(AD$4+(1-AD$4)/(1+EXP(-1.7*AD$2*($C86-AD$3))),"") ->  | AE86: =IFERROR(AE$4+(1-AE$4)/(1+EXP(-1.7*AE$2*($C86-AE$3))),"") ->  | AF86: =IFERROR(AF$4+(1-AF$4)/(1+EXP(-1.7*AF$2*($C86-AF$3))),"") ->  | AG86: =IFERROR(AG$4+(1-AG$4)/(1+EXP(-1.7*AG$2*($C86-AG$3))),"") -> 
A87: 78 | B87: 0.01646404908 | C87: -3.23 | D87: =IFERROR(D$4+(1-D$4)/(1+EXP(-1.7*D$2*($C87-D$3))),"") -> 0.01626822018 | E87: =IFERROR(E$4+(1-E$4)/(1+EXP(-1.7*E$2*($C87-E$3))),"") -> 0.2150496798 | F87: =IFERROR(F$4+(1-F$4)/(1+EXP(-1.7*F$2*($C87-F$3))),"") -> 0.3072496827 | G87: =IFERROR(G$4+(1-G$4)/(1+EXP(-1.7*G$2*($C87-G$3))),"") -> 0.2732975863 | H87: =IFERROR(H$4+(1-H$4)/(1+EXP(-1.7*H$2*($C87-H$3))),"") -> 0.07318317115 | I87: =IFERROR(I$4+(1-I$4)/(1+EXP(-1.7*I$2*($C87-I$3))),"") ->  | J87: =IFERROR(J$4+(1-J$4)/(1+EXP(-1.7*J$2*($C87-J$3))),"") ->  | K87: =IFERROR(K$4+(1-K$4)/(1+EXP(-1.7*K$2*($C87-K$3))),"") ->  | L87: =IFERROR(L$4+(1-L$4)/(1+EXP(-1.7*L$2*($C87-L$3))),"") ->  | M87: =IFERROR(M$4+(1-M$4)/(1+EXP(-1.7*M$2*($C87-M$3))),"") ->  | N87: =IFERROR(N$4+(1-N$4)/(1+EXP(-1.7*N$2*($C87-N$3))),"") ->  | O87: =IFERROR(O$4+(1-O$4)/(1+EXP(-1.7*O$2*($C87-O$3))),"") ->  | P87: =IFERROR(P$4+(1-P$4)/(1+EXP(-1.7*P$2*($C87-P$3))),"") ->  | Q87: =IFERROR(Q$4+(1-Q$4)/(1+EXP(-1.7*Q$2*($C87-Q$3))),"") ->  | R87: =IFERROR(R$4+(1-R$4)/(1+EXP(-1.7*R$2*($C87-R$3))),"") ->  | S87: =IFERROR(S$4+(1-S$4)/(1+EXP(-1.7*S$2*($C87-S$3))),"") ->  | T87: =IFERROR(T$4+(1-T$4)/(1+EXP(-1.7*T$2*($C87-T$3))),"") ->  | U87: =IFERROR(U$4+(1-U$4)/(1+EXP(-1.7*U$2*($C87-U$3))),"") ->  | V87: =IFERROR(V$4+(1-V$4)/(1+EXP(-1.7*V$2*($C87-V$3))),"") ->  | W87: =IFERROR(W$4+(1-W$4)/(1+EXP(-1.7*W$2*($C87-W$3))),"") ->  | X87: =IFERROR(X$4+(1-X$4)/(1+EXP(-1.7*X$2*($C87-X$3))),"") ->  | Y87: =IFERROR(Y$4+(1-Y$4)/(1+EXP(-1.7*Y$2*($C87-Y$3))),"") ->  | Z87: =IFERROR(Z$4+(1-Z$4)/(1+EXP(-1.7*Z$2*($C87-Z$3))),"") ->  | AA87: =IFERROR(AA$4+(1-AA$4)/(1+EXP(-1.7*AA$2*($C87-AA$3))),"") ->  | AB87: =IFERROR(AB$4+(1-AB$4)/(1+EXP(-1.7*AB$2*($C87-AB$3))),"") ->  | AC87: =IFERROR(AC$4+(1-AC$4)/(1+EXP(-1.7*AC$2*($C87-AC$3))),"") ->  | AD87: =IFERROR(AD$4+(1-AD$4)/(1+EXP(-1.7*AD$2*($C87-AD$3))),"") ->  | AE87: =IFERROR(AE$4+(1-AE$4)/(1+EXP(-1.7*AE$2*($C87-AE$3))),"") ->  | AF87: =IFERROR(AF$4+(1-AF$4)/(1+EXP(-1.7*AF$2*($C87-AF$3))),"") ->  | AG87: =IFERROR(AG$4+(1-AG$4)/(1+EXP(-1.7*AG$2*($C87-AG$3))),"") -> 
A88: 79 | B88: 0.01653633155 | C88: -3.22 | D88: =IFERROR(D$4+(1-D$4)/(1+EXP(-1.7*D$2*($C88-D$3))),"") -> 0.01627203077 | E88: =IFERROR(E$4+(1-E$4)/(1+EXP(-1.7*E$2*($C88-E$3))),"") -> 0.2155020494 | F88: =IFERROR(F$4+(1-F$4)/(1+EXP(-1.7*F$2*($C88-F$3))),"") -> 0.307951859 | G88: =IFERROR(G$4+(1-G$4)/(1+EXP(-1.7*G$2*($C88-G$3))),"") -> 0.2732977413 | H88: =IFERROR(H$4+(1-H$4)/(1+EXP(-1.7*H$2*($C88-H$3))),"") -> 0.07318324843 | I88: =IFERROR(I$4+(1-I$4)/(1+EXP(-1.7*I$2*($C88-I$3))),"") ->  | J88: =IFERROR(J$4+(1-J$4)/(1+EXP(-1.7*J$2*($C88-J$3))),"") ->  | K88: =IFERROR(K$4+(1-K$4)/(1+EXP(-1.7*K$2*($C88-K$3))),"") ->  | L88: =IFERROR(L$4+(1-L$4)/(1+EXP(-1.7*L$2*($C88-L$3))),"") ->  | M88: =IFERROR(M$4+(1-M$4)/(1+EXP(-1.7*M$2*($C88-M$3))),"") ->  | N88: =IFERROR(N$4+(1-N$4)/(1+EXP(-1.7*N$2*($C88-N$3))),"") ->  | O88: =IFERROR(O$4+(1-O$4)/(1+EXP(-1.7*O$2*($C88-O$3))),"") ->  | P88: =IFERROR(P$4+(1-P$4)/(1+EXP(-1.7*P$2*($C88-P$3))),"") ->  | Q88: =IFERROR(Q$4+(1-Q$4)/(1+EXP(-1.7*Q$2*($C88-Q$3))),"") ->  | R88: =IFERROR(R$4+(1-R$4)/(1+EXP(-1.7*R$2*($C88-R$3))),"") ->  | S88: =IFERROR(S$4+(1-S$4)/(1+EXP(-1.7*S$2*($C88-S$3))),"") ->  | T88: =IFERROR(T$4+(1-T$4)/(1+EXP(-1.7*T$2*($C88-T$3))),"") ->  | U88: =IFERROR(U$4+(1-U$4)/(1+EXP(-1.7*U$2*($C88-U$3))),"") ->  | V88: =IFERROR(V$4+(1-V$4)/(1+EXP(-1.7*V$2*($C88-V$3))),"") ->  | W88: =IFERROR(W$4+(1-W$4)/(1+EXP(-1.7*W$2*($C88-W$3))),"") ->  | X88: =IFERROR(X$4+(1-X$4)/(1+EXP(-1.7*X$2*($C88-X$3))),"") ->  | Y88: =IFERROR(Y$4+(1-Y$4)/(1+EXP(-1.7*Y$2*($C88-Y$3))),"") ->  | Z88: =IFERROR(Z$4+(1-Z$4)/(1+EXP(-1.7*Z$2*($C88-Z$3))),"") ->  | AA88: =IFERROR(AA$4+(1-AA$4)/(1+EXP(-1.7*AA$2*($C88-AA$3))),"") ->  | AB88: =IFERROR(AB$4+(1-AB$4)/(1+EXP(-1.7*AB$2*($C88-AB$3))),"") ->  | AC88: =IFERROR(AC$4+(1-AC$4)/(1+EXP(-1.7*AC$2*($C88-AC$3))),"") ->  | AD88: =IFERROR(AD$4+(1-AD$4)/(1+EXP(-1.7*AD$2*($C88-AD$3))),"") ->  | AE88: =IFERROR(AE$4+(1-AE$4)/(1+EXP(-1.7*AE$2*($C88-AE$3))),"") ->  | AF88: =IFERROR(AF$4+(1-AF$4)/(1+EXP(-1.7*AF$2*($C88-AF$3))),"") ->  | AG88: =IFERROR(AG$4+(1-AG$4)/(1+EXP(-1.7*AG$2*($C88-AG$3))),"") -> 
A89: 80 | B89: 0.01660972324 | C89: -3.21 | D89: =IFERROR(D$4+(1-D$4)/(1+EXP(-1.7*D$2*($C89-D$3))),"") -> 0.0162759083 | E89: =IFERROR(E$4+(1-E$4)/(1+EXP(-1.7*E$2*($C89-E$3))),"") -> 0.215961396 | F89: =IFERROR(F$4+(1-F$4)/(1+EXP(-1.7*F$2*($C89-F$3))),"") -> 0.3086617621 | G89: =IFERROR(G$4+(1-G$4)/(1+EXP(-1.7*G$2*($C89-G$3))),"") -> 0.2732978992 | H89: =IFERROR(H$4+(1-H$4)/(1+EXP(-1.7*H$2*($C89-H$3))),"") -> 0.0731833273 | I89: =IFERROR(I$4+(1-I$4)/(1+EXP(-1.7*I$2*($C89-I$3))),"") ->  | J89: =IFERROR(J$4+(1-J$4)/(1+EXP(-1.7*J$2*($C89-J$3))),"") ->  | K89: =IFERROR(K$4+(1-K$4)/(1+EXP(-1.7*K$2*($C89-K$3))),"") ->  | L89: =IFERROR(L$4+(1-L$4)/(1+EXP(-1.7*L$2*($C89-L$3))),"") ->  | M89: =IFERROR(M$4+(1-M$4)/(1+EXP(-1.7*M$2*($C89-M$3))),"") ->  | N89: =IFERROR(N$4+(1-N$4)/(1+EXP(-1.7*N$2*($C89-N$3))),"") ->  | O89: =IFERROR(O$4+(1-O$4)/(1+EXP(-1.7*O$2*($C89-O$3))),"") ->  | P89: =IFERROR(P$4+(1-P$4)/(1+EXP(-1.7*P$2*($C89-P$3))),"") ->  | Q89: =IFERROR(Q$4+(1-Q$4)/(1+EXP(-1.7*Q$2*($C89-Q$3))),"") ->  | R89: =IFERROR(R$4+(1-R$4)/(1+EXP(-1.7*R$2*($C89-R$3))),"") ->  | S89: =IFERROR(S$4+(1-S$4)/(1+EXP(-1.7*S$2*($C89-S$3))),"") ->  | T89: =IFERROR(T$4+(1-T$4)/(1+EXP(-1.7*T$2*($C89-T$3))),"") ->  | U89: =IFERROR(U$4+(1-U$4)/(1+EXP(-1.7*U$2*($C89-U$3))),"") ->  | V89: =IFERROR(V$4+(1-V$4)/(1+EXP(-1.7*V$2*($C89-V$3))),"") ->  | W89: =IFERROR(W$4+(1-W$4)/(1+EXP(-1.7*W$2*($C89-W$3))),"") ->  | X89: =IFERROR(X$4+(1-X$4)/(1+EXP(-1.7*X$2*($C89-X$3))),"") ->  | Y89: =IFERROR(Y$4+(1-Y$4)/(1+EXP(-1.7*Y$2*($C89-Y$3))),"") ->  | Z89: =IFERROR(Z$4+(1-Z$4)/(1+EXP(-1.7*Z$2*($C89-Z$3))),"") ->  | AA89: =IFERROR(AA$4+(1-AA$4)/(1+EXP(-1.7*AA$2*($C89-AA$3))),"") ->  | AB89: =IFERROR(AB$4+(1-AB$4)/(1+EXP(-1.7*AB$2*($C89-AB$3))),"") ->  | AC89: =IFERROR(AC$4+(1-AC$4)/(1+EXP(-1.7*AC$2*($C89-AC$3))),"") ->  | AD89: =IFERROR(AD$4+(1-AD$4)/(1+EXP(-1.7*AD$2*($C89-AD$3))),"") ->  | AE89: =IFERROR(AE$4+(1-AE$4)/(1+EXP(-1.7*AE$2*($C89-AE$3))),"") ->  | AF89: =IFERROR(AF$4+(1-AF$4)/(1+EXP(-1.7*AF$2*($C89-AF$3))),"") ->  | AG89: =IFERROR(AG$4+(1-AG$4)/(1+EXP(-1.7*AG$2*($C89-AG$3))),"") -> 
A90: 81 | B90: 0.01668424173 | C90: -3.2 | D90: =IFERROR(D$4+(1-D$4)/(1+EXP(-1.7*D$2*($C90-D$3))),"") -> 0.01627985395 | E90: =IFERROR(E$4+(1-E$4)/(1+EXP(-1.7*E$2*($C90-E$3))),"") -> 0.2164278188 | F90: =IFERROR(F$4+(1-F$4)/(1+EXP(-1.7*F$2*($C90-F$3))),"") -> 0.3093794595 | G90: =IFERROR(G$4+(1-G$4)/(1+EXP(-1.7*G$2*($C90-G$3))),"") -> 0.27329806 | H90: =IFERROR(H$4+(1-H$4)/(1+EXP(-1.7*H$2*($C90-H$3))),"") -> 0.07318340778 | I90: =IFERROR(I$4+(1-I$4)/(1+EXP(-1.7*I$2*($C90-I$3))),"") ->  | J90: =IFERROR(J$4+(1-J$4)/(1+EXP(-1.7*J$2*($C90-J$3))),"") ->  | K90: =IFERROR(K$4+(1-K$4)/(1+EXP(-1.7*K$2*($C90-K$3))),"") ->  | L90: =IFERROR(L$4+(1-L$4)/(1+EXP(-1.7*L$2*($C90-L$3))),"") ->  | M90: =IFERROR(M$4+(1-M$4)/(1+EXP(-1.7*M$2*($C90-M$3))),"") ->  | N90: =IFERROR(N$4+(1-N$4)/(1+EXP(-1.7*N$2*($C90-N$3))),"") ->  | O90: =IFERROR(O$4+(1-O$4)/(1+EXP(-1.7*O$2*($C90-O$3))),"") ->  | P90: =IFERROR(P$4+(1-P$4)/(1+EXP(-1.7*P$2*($C90-P$3))),"") ->  | Q90: =IFERROR(Q$4+(1-Q$4)/(1+EXP(-1.7*Q$2*($C90-Q$3))),"") ->  | R90: =IFERROR(R$4+(1-R$4)/(1+EXP(-1.7*R$2*($C90-R$3))),"") ->  | S90: =IFERROR(S$4+(1-S$4)/(1+EXP(-1.7*S$2*($C90-S$3))),"") ->  | T90: =IFERROR(T$4+(1-T$4)/(1+EXP(-1.7*T$2*($C90-T$3))),"") ->  | U90: =IFERROR(U$4+(1-U$4)/(1+EXP(-1.7*U$2*($C90-U$3))),"") ->  | V90: =IFERROR(V$4+(1-V$4)/(1+EXP(-1.7*V$2*($C90-V$3))),"") ->  | W90: =IFERROR(W$4+(1-W$4)/(1+EXP(-1.7*W$2*($C90-W$3))),"") ->  | X90: =IFERROR(X$4+(1-X$4)/(1+EXP(-1.7*X$2*($C90-X$3))),"") ->  | Y90: =IFERROR(Y$4+(1-Y$4)/(1+EXP(-1.7*Y$2*($C90-Y$3))),"") ->  | Z90: =IFERROR(Z$4+(1-Z$4)/(1+EXP(-1.7*Z$2*($C90-Z$3))),"") ->  | AA90: =IFERROR(AA$4+(1-AA$4)/(1+EXP(-1.7*AA$2*($C90-AA$3))),"") ->  | AB90: =IFERROR(AB$4+(1-AB$4)/(1+EXP(-1.7*AB$2*($C90-AB$3))),"") ->  | AC90: =IFERROR(AC$4+(1-AC$4)/(1+EXP(-1.7*AC$2*($C90-AC$3))),"") ->  | AD90: =IFERROR(AD$4+(1-AD$4)/(1+EXP(-1.7*AD$2*($C90-AD$3))),"") ->  | AE90: =IFERROR(AE$4+(1-AE$4)/(1+EXP(-1.7*AE$2*($C90-AE$3))),"") ->  | AF90: =IFERROR(AF$4+(1-AF$4)/(1+EXP(-1.7*AF$2*($C90-AF$3))),"") ->  | AG90: =IFERROR(AG$4+(1-AG$4)/(1+EXP(-1.7*AG$2*($C90-AG$3))),"") -> 
A91: 82 | B91: 0.01675990487 | C91: -3.19 | D91: =IFERROR(D$4+(1-D$4)/(1+EXP(-1.7*D$2*($C91-D$3))),"") -> 0.01628386891 | E91: =IFERROR(E$4+(1-E$4)/(1+EXP(-1.7*E$2*($C91-E$3))),"") -> 0.2169014176 | F91: =IFERROR(F$4+(1-F$4)/(1+EXP(-1.7*F$2*($C91-F$3))),"") -> 0.3101050187 | G91: =IFERROR(G$4+(1-G$4)/(1+EXP(-1.7*G$2*($C91-G$3))),"") -> 0.2732982239 | H91: =IFERROR(H$4+(1-H$4)/(1+EXP(-1.7*H$2*($C91-H$3))),"") -> 0.07318348992 | I91: =IFERROR(I$4+(1-I$4)/(1+EXP(-1.7*I$2*($C91-I$3))),"") ->  | J91: =IFERROR(J$4+(1-J$4)/(1+EXP(-1.7*J$2*($C91-J$3))),"") ->  | K91: =IFERROR(K$4+(1-K$4)/(1+EXP(-1.7*K$2*($C91-K$3))),"") ->  | L91: =IFERROR(L$4+(1-L$4)/(1+EXP(-1.7*L$2*($C91-L$3))),"") ->  | M91: =IFERROR(M$4+(1-M$4)/(1+EXP(-1.7*M$2*($C91-M$3))),"") ->  | N91: =IFERROR(N$4+(1-N$4)/(1+EXP(-1.7*N$2*($C91-N$3))),"") ->  | O91: =IFERROR(O$4+(1-O$4)/(1+EXP(-1.7*O$2*($C91-O$3))),"") ->  | P91: =IFERROR(P$4+(1-P$4)/(1+EXP(-1.7*P$2*($C91-P$3))),"") ->  | Q91: =IFERROR(Q$4+(1-Q$4)/(1+EXP(-1.7*Q$2*($C91-Q$3))),"") ->  | R91: =IFERROR(R$4+(1-R$4)/(1+EXP(-1.7*R$2*($C91-R$3))),"") ->  | S91: =IFERROR(S$4+(1-S$4)/(1+EXP(-1.7*S$2*($C91-S$3))),"") ->  | T91: =IFERROR(T$4+(1-T$4)/(1+EXP(-1.7*T$2*($C91-T$3))),"") ->  | U91: =IFERROR(U$4+(1-U$4)/(1+EXP(-1.7*U$2*($C91-U$3))),"") ->  | V91: =IFERROR(V$4+(1-V$4)/(1+EXP(-1.7*V$2*($C91-V$3))),"") ->  | W91: =IFERROR(W$4+(1-W$4)/(1+EXP(-1.7*W$2*($C91-W$3))),"") ->  | X91: =IFERROR(X$4+(1-X$4)/(1+EXP(-1.7*X$2*($C91-X$3))),"") ->  | Y91: =IFERROR(Y$4+(1-Y$4)/(1+EXP(-1.7*Y$2*($C91-Y$3))),"") ->  | Z91: =IFERROR(Z$4+(1-Z$4)/(1+EXP(-1.7*Z$2*($C91-Z$3))),"") ->  | AA91: =IFERROR(AA$4+(1-AA$4)/(1+EXP(-1.7*AA$2*($C91-AA$3))),"") ->  | AB91: =IFERROR(AB$4+(1-AB$4)/(1+EXP(-1.7*AB$2*($C91-AB$3))),"") ->  | AC91: =IFERROR(AC$4+(1-AC$4)/(1+EXP(-1.7*AC$2*($C91-AC$3))),"") ->  | AD91: =IFERROR(AD$4+(1-AD$4)/(1+EXP(-1.7*AD$2*($C91-AD$3))),"") ->  | AE91: =IFERROR(AE$4+(1-AE$4)/(1+EXP(-1.7*AE$2*($C91-AE$3))),"") ->  | AF91: =IFERROR(AF$4+(1-AF$4)/(1+EXP(-1.7*AF$2*($C91-AF$3))),"") ->  | AG91: =IFERROR(AG$4+(1-AG$4)/(1+EXP(-1.7*AG$2*($C91-AG$3))),"") -> 
A92: 83 | B92: 0.0168367308 | C92: -3.18 | D92: =IFERROR(D$4+(1-D$4)/(1+EXP(-1.7*D$2*($C92-D$3))),"") -> 0.01628795441 | E92: =IFERROR(E$4+(1-E$4)/(1+EXP(-1.7*E$2*($C92-E$3))),"") -> 0.2173822937 | F92: =IFERROR(F$4+(1-F$4)/(1+EXP(-1.7*F$2*($C92-F$3))),"") -> 0.3108385075 | G92: =IFERROR(G$4+(1-G$4)/(1+EXP(-1.7*G$2*($C92-G$3))),"") -> 0.2732983908 | H92: =IFERROR(H$4+(1-H$4)/(1+EXP(-1.7*H$2*($C92-H$3))),"") -> 0.07318357374 | I92: =IFERROR(I$4+(1-I$4)/(1+EXP(-1.7*I$2*($C92-I$3))),"") ->  | J92: =IFERROR(J$4+(1-J$4)/(1+EXP(-1.7*J$2*($C92-J$3))),"") ->  | K92: =IFERROR(K$4+(1-K$4)/(1+EXP(-1.7*K$2*($C92-K$3))),"") ->  | L92: =IFERROR(L$4+(1-L$4)/(1+EXP(-1.7*L$2*($C92-L$3))),"") ->  | M92: =IFERROR(M$4+(1-M$4)/(1+EXP(-1.7*M$2*($C92-M$3))),"") ->  | N92: =IFERROR(N$4+(1-N$4)/(1+EXP(-1.7*N$2*($C92-N$3))),"") ->  | O92: =IFERROR(O$4+(1-O$4)/(1+EXP(-1.7*O$2*($C92-O$3))),"") ->  | P92: =IFERROR(P$4+(1-P$4)/(1+EXP(-1.7*P$2*($C92-P$3))),"") ->  | Q92: =IFERROR(Q$4+(1-Q$4)/(1+EXP(-1.7*Q$2*($C92-Q$3))),"") ->  | R92: =IFERROR(R$4+(1-R$4)/(1+EXP(-1.7*R$2*($C92-R$3))),"") ->  | S92: =IFERROR(S$4+(1-S$4)/(1+EXP(-1.7*S$2*($C92-S$3))),"") ->  | T92: =IFERROR(T$4+(1-T$4)/(1+EXP(-1.7*T$2*($C92-T$3))),"") ->  | U92: =IFERROR(U$4+(1-U$4)/(1+EXP(-1.7*U$2*($C92-U$3))),"") ->  | V92: =IFERROR(V$4+(1-V$4)/(1+EXP(-1.7*V$2*($C92-V$3))),"") ->  | W92: =IFERROR(W$4+(1-W$4)/(1+EXP(-1.7*W$2*($C92-W$3))),"") ->  | X92: =IFERROR(X$4+(1-X$4)/(1+EXP(-1.7*X$2*($C92-X$3))),"") ->  | Y92: =IFERROR(Y$4+(1-Y$4)/(1+EXP(-1.7*Y$2*($C92-Y$3))),"") ->  | Z92: =IFERROR(Z$4+(1-Z$4)/(1+EXP(-1.7*Z$2*($C92-Z$3))),"") ->  | AA92: =IFERROR(AA$4+(1-AA$4)/(1+EXP(-1.7*AA$2*($C92-AA$3))),"") ->  | AB92: =IFERROR(AB$4+(1-AB$4)/(1+EXP(-1.7*AB$2*($C92-AB$3))),"") ->  | AC92: =IFERROR(AC$4+(1-AC$4)/(1+EXP(-1.7*AC$2*($C92-AC$3))),"") ->  | AD92: =IFERROR(AD$4+(1-AD$4)/(1+EXP(-1.7*AD$2*($C92-AD$3))),"") ->  | AE92: =IFERROR(AE$4+(1-AE$4)/(1+EXP(-1.7*AE$2*($C92-AE$3))),"") ->  | AF92: =IFERROR(AF$4+(1-AF$4)/(1+EXP(-1.7*AF$2*($C92-AF$3))),"") ->  | AG92: =IFERROR(AG$4+(1-AG$4)/(1+EXP(-1.7*AG$2*($C92-AG$3))),"") -> 
A93: 84 | B93: 0.01691473794 | C93: -3.17 | D93: =IFERROR(D$4+(1-D$4)/(1+EXP(-1.7*D$2*($C93-D$3))),"") -> 0.01629211168 | E93: =IFERROR(E$4+(1-E$4)/(1+EXP(-1.7*E$2*($C93-E$3))),"") -> 0.2178705494 | F93: =IFERROR(F$4+(1-F$4)/(1+EXP(-1.7*F$2*($C93-F$3))),"") -> 0.3115799937 | G93: =IFERROR(G$4+(1-G$4)/(1+EXP(-1.7*G$2*($C93-G$3))),"") -> 0.2732985608 | H93: =IFERROR(H$4+(1-H$4)/(1+EXP(-1.7*H$2*($C93-H$3))),"") -> 0.07318365928 | I93: =IFERROR(I$4+(1-I$4)/(1+EXP(-1.7*I$2*($C93-I$3))),"") ->  | J93: =IFERROR(J$4+(1-J$4)/(1+EXP(-1.7*J$2*($C93-J$3))),"") ->  | K93: =IFERROR(K$4+(1-K$4)/(1+EXP(-1.7*K$2*($C93-K$3))),"") ->  | L93: =IFERROR(L$4+(1-L$4)/(1+EXP(-1.7*L$2*($C93-L$3))),"") ->  | M93: =IFERROR(M$4+(1-M$4)/(1+EXP(-1.7*M$2*($C93-M$3))),"") ->  | N93: =IFERROR(N$4+(1-N$4)/(1+EXP(-1.7*N$2*($C93-N$3))),"") ->  | O93: =IFERROR(O$4+(1-O$4)/(1+EXP(-1.7*O$2*($C93-O$3))),"") ->  | P93: =IFERROR(P$4+(1-P$4)/(1+EXP(-1.7*P$2*($C93-P$3))),"") ->  | Q93: =IFERROR(Q$4+(1-Q$4)/(1+EXP(-1.7*Q$2*($C93-Q$3))),"") ->  | R93: =IFERROR(R$4+(1-R$4)/(1+EXP(-1.7*R$2*($C93-R$3))),"") ->  | S93: =IFERROR(S$4+(1-S$4)/(1+EXP(-1.7*S$2*($C93-S$3))),"") ->  | T93: =IFERROR(T$4+(1-T$4)/(1+EXP(-1.7*T$2*($C93-T$3))),"") ->  | U93: =IFERROR(U$4+(1-U$4)/(1+EXP(-1.7*U$2*($C93-U$3))),"") ->  | V93: =IFERROR(V$4+(1-V$4)/(1+EXP(-1.7*V$2*($C93-V$3))),"") ->  | W93: =IFERROR(W$4+(1-W$4)/(1+EXP(-1.7*W$2*($C93-W$3))),"") ->  | X93: =IFERROR(X$4+(1-X$4)/(1+EXP(-1.7*X$2*($C93-X$3))),"") ->  | Y93: =IFERROR(Y$4+(1-Y$4)/(1+EXP(-1.7*Y$2*($C93-Y$3))),"") ->  | Z93: =IFERROR(Z$4+(1-Z$4)/(1+EXP(-1.7*Z$2*($C93-Z$3))),"") ->  | AA93: =IFERROR(AA$4+(1-AA$4)/(1+EXP(-1.7*AA$2*($C93-AA$3))),"") ->  | AB93: =IFERROR(AB$4+(1-AB$4)/(1+EXP(-1.7*AB$2*($C93-AB$3))),"") ->  | AC93: =IFERROR(AC$4+(1-AC$4)/(1+EXP(-1.7*AC$2*($C93-AC$3))),"") ->  | AD93: =IFERROR(AD$4+(1-AD$4)/(1+EXP(-1.7*AD$2*($C93-AD$3))),"") ->  | AE93: =IFERROR(AE$4+(1-AE$4)/(1+EXP(-1.7*AE$2*($C93-AE$3))),"") ->  | AF93: =IFERROR(AF$4+(1-AF$4)/(1+EXP(-1.7*AF$2*($C93-AF$3))),"") ->  | AG93: =IFERROR(AG$4+(1-AG$4)/(1+EXP(-1.7*AG$2*($C93-AG$3))),"") -> 
A94: 85 | B94: 0.01699394499 | C94: -3.16 | D94: =IFERROR(D$4+(1-D$4)/(1+EXP(-1.7*D$2*($C94-D$3))),"") -> 0.01629634197 | E94: =IFERROR(E$4+(1-E$4)/(1+EXP(-1.7*E$2*($C94-E$3))),"") -> 0.2183662881 | F94: =IFERROR(F$4+(1-F$4)/(1+EXP(-1.7*F$2*($C94-F$3))),"") -> 0.3123295452 | G94: =IFERROR(G$4+(1-G$4)/(1+EXP(-1.7*G$2*($C94-G$3))),"") -> 0.273298734 | H94: =IFERROR(H$4+(1-H$4)/(1+EXP(-1.7*H$2*($C94-H$3))),"") -> 0.07318374658 | I94: =IFERROR(I$4+(1-I$4)/(1+EXP(-1.7*I$2*($C94-I$3))),"") ->  | J94: =IFERROR(J$4+(1-J$4)/(1+EXP(-1.7*J$2*($C94-J$3))),"") ->  | K94: =IFERROR(K$4+(1-K$4)/(1+EXP(-1.7*K$2*($C94-K$3))),"") ->  | L94: =IFERROR(L$4+(1-L$4)/(1+EXP(-1.7*L$2*($C94-L$3))),"") ->  | M94: =IFERROR(M$4+(1-M$4)/(1+EXP(-1.7*M$2*($C94-M$3))),"") ->  | N94: =IFERROR(N$4+(1-N$4)/(1+EXP(-1.7*N$2*($C94-N$3))),"") ->  | O94: =IFERROR(O$4+(1-O$4)/(1+EXP(-1.7*O$2*($C94-O$3))),"") ->  | P94: =IFERROR(P$4+(1-P$4)/(1+EXP(-1.7*P$2*($C94-P$3))),"") ->  | Q94: =IFERROR(Q$4+(1-Q$4)/(1+EXP(-1.7*Q$2*($C94-Q$3))),"") ->  | R94: =IFERROR(R$4+(1-R$4)/(1+EXP(-1.7*R$2*($C94-R$3))),"") ->  | S94: =IFERROR(S$4+(1-S$4)/(1+EXP(-1.7*S$2*($C94-S$3))),"") ->  | T94: =IFERROR(T$4+(1-T$4)/(1+EXP(-1.7*T$2*($C94-T$3))),"") ->  | U94: =IFERROR(U$4+(1-U$4)/(1+EXP(-1.7*U$2*($C94-U$3))),"") ->  | V94: =IFERROR(V$4+(1-V$4)/(1+EXP(-1.7*V$2*($C94-V$3))),"") ->  | W94: =IFERROR(W$4+(1-W$4)/(1+EXP(-1.7*W$2*($C94-W$3))),"") ->  | X94: =IFERROR(X$4+(1-X$4)/(1+EXP(-1.7*X$2*($C94-X$3))),"") ->  | Y94: =IFERROR(Y$4+(1-Y$4)/(1+EXP(-1.7*Y$2*($C94-Y$3))),"") ->  | Z94: =IFERROR(Z$4+(1-Z$4)/(1+EXP(-1.7*Z$2*($C94-Z$3))),"") ->  | AA94: =IFERROR(AA$4+(1-AA$4)/(1+EXP(-1.7*AA$2*($C94-AA$3))),"") ->  | AB94: =IFERROR(AB$4+(1-AB$4)/(1+EXP(-1.7*AB$2*($C94-AB$3))),"") ->  | AC94: =IFERROR(AC$4+(1-AC$4)/(1+EXP(-1.7*AC$2*($C94-AC$3))),"") ->  | AD94: =IFERROR(AD$4+(1-AD$4)/(1+EXP(-1.7*AD$2*($C94-AD$3))),"") ->  | AE94: =IFERROR(AE$4+(1-AE$4)/(1+EXP(-1.7*AE$2*($C94-AE$3))),"") ->  | AF94: =IFERROR(AF$4+(1-AF$4)/(1+EXP(-1.7*AF$2*($C94-AF$3))),"") ->  | AG94: =IFERROR(AG$4+(1-AG$4)/(1+EXP(-1.7*AG$2*($C94-AG$3))),"") -> 
A95: 86 | B95: 0.01707437098 | C95: -3.15 | D95: =IFERROR(D$4+(1-D$4)/(1+EXP(-1.7*D$2*($C95-D$3))),"") -> 0.01630064658 | E95: =IFERROR(E$4+(1-E$4)/(1+EXP(-1.7*E$2*($C95-E$3))),"") -> 0.2188696144 | F95: =IFERROR(F$4+(1-F$4)/(1+EXP(-1.7*F$2*($C95-F$3))),"") -> 0.3130872302 | G95: =IFERROR(G$4+(1-G$4)/(1+EXP(-1.7*G$2*($C95-G$3))),"") -> 0.2732989104 | H95: =IFERROR(H$4+(1-H$4)/(1+EXP(-1.7*H$2*($C95-H$3))),"") -> 0.07318383567 | I95: =IFERROR(I$4+(1-I$4)/(1+EXP(-1.7*I$2*($C95-I$3))),"") ->  | J95: =IFERROR(J$4+(1-J$4)/(1+EXP(-1.7*J$2*($C95-J$3))),"") ->  | K95: =IFERROR(K$4+(1-K$4)/(1+EXP(-1.7*K$2*($C95-K$3))),"") ->  | L95: =IFERROR(L$4+(1-L$4)/(1+EXP(-1.7*L$2*($C95-L$3))),"") ->  | M95: =IFERROR(M$4+(1-M$4)/(1+EXP(-1.7*M$2*($C95-M$3))),"") ->  | N95: =IFERROR(N$4+(1-N$4)/(1+EXP(-1.7*N$2*($C95-N$3))),"") ->  | O95: =IFERROR(O$4+(1-O$4)/(1+EXP(-1.7*O$2*($C95-O$3))),"") ->  | P95: =IFERROR(P$4+(1-P$4)/(1+EXP(-1.7*P$2*($C95-P$3))),"") ->  | Q95: =IFERROR(Q$4+(1-Q$4)/(1+EXP(-1.7*Q$2*($C95-Q$3))),"") ->  | R95: =IFERROR(R$4+(1-R$4)/(1+EXP(-1.7*R$2*($C95-R$3))),"") ->  | S95: =IFERROR(S$4+(1-S$4)/(1+EXP(-1.7*S$2*($C95-S$3))),"") ->  | T95: =IFERROR(T$4+(1-T$4)/(1+EXP(-1.7*T$2*($C95-T$3))),"") ->  | U95: =IFERROR(U$4+(1-U$4)/(1+EXP(-1.7*U$2*($C95-U$3))),"") ->  | V95: =IFERROR(V$4+(1-V$4)/(1+EXP(-1.7*V$2*($C95-V$3))),"") ->  | W95: =IFERROR(W$4+(1-W$4)/(1+EXP(-1.7*W$2*($C95-W$3))),"") ->  | X95: =IFERROR(X$4+(1-X$4)/(1+EXP(-1.7*X$2*($C95-X$3))),"") ->  | Y95: =IFERROR(Y$4+(1-Y$4)/(1+EXP(-1.7*Y$2*($C95-Y$3))),"") ->  | Z95: =IFERROR(Z$4+(1-Z$4)/(1+EXP(-1.7*Z$2*($C95-Z$3))),"") ->  | AA95: =IFERROR(AA$4+(1-AA$4)/(1+EXP(-1.7*AA$2*($C95-AA$3))),"") ->  | AB95: =IFERROR(AB$4+(1-AB$4)/(1+EXP(-1.7*AB$2*($C95-AB$3))),"") ->  | AC95: =IFERROR(AC$4+(1-AC$4)/(1+EXP(-1.7*AC$2*($C95-AC$3))),"") ->  | AD95: =IFERROR(AD$4+(1-AD$4)/(1+EXP(-1.7*AD$2*($C95-AD$3))),"") ->  | AE95: =IFERROR(AE$4+(1-AE$4)/(1+EXP(-1.7*AE$2*($C95-AE$3))),"") ->  | AF95: =IFERROR(AF$4+(1-AF$4)/(1+EXP(-1.7*AF$2*($C95-AF$3))),"") ->  | AG95: =IFERROR(AG$4+(1-AG$4)/(1+EXP(-1.7*AG$2*($C95-AG$3))),"") -> 
A96: 87 | B96: 0.01715603519 | C96: -3.14 | D96: =IFERROR(D$4+(1-D$4)/(1+EXP(-1.7*D$2*($C96-D$3))),"") -> 0.0163050268 | E96: =IFERROR(E$4+(1-E$4)/(1+EXP(-1.7*E$2*($C96-E$3))),"") -> 0.2193806341 | F96: =IFERROR(F$4+(1-F$4)/(1+EXP(-1.7*F$2*($C96-F$3))),"") -> 0.3138531169 | G96: =IFERROR(G$4+(1-G$4)/(1+EXP(-1.7*G$2*($C96-G$3))),"") -> 0.2732990901 | H96: =IFERROR(H$4+(1-H$4)/(1+EXP(-1.7*H$2*($C96-H$3))),"") -> 0.07318392659 | I96: =IFERROR(I$4+(1-I$4)/(1+EXP(-1.7*I$2*($C96-I$3))),"") ->  | J96: =IFERROR(J$4+(1-J$4)/(1+EXP(-1.7*J$2*($C96-J$3))),"") ->  | K96: =IFERROR(K$4+(1-K$4)/(1+EXP(-1.7*K$2*($C96-K$3))),"") ->  | L96: =IFERROR(L$4+(1-L$4)/(1+EXP(-1.7*L$2*($C96-L$3))),"") ->  | M96: =IFERROR(M$4+(1-M$4)/(1+EXP(-1.7*M$2*($C96-M$3))),"") ->  | N96: =IFERROR(N$4+(1-N$4)/(1+EXP(-1.7*N$2*($C96-N$3))),"") ->  | O96: =IFERROR(O$4+(1-O$4)/(1+EXP(-1.7*O$2*($C96-O$3))),"") ->  | P96: =IFERROR(P$4+(1-P$4)/(1+EXP(-1.7*P$2*($C96-P$3))),"") ->  | Q96: =IFERROR(Q$4+(1-Q$4)/(1+EXP(-1.7*Q$2*($C96-Q$3))),"") ->  | R96: =IFERROR(R$4+(1-R$4)/(1+EXP(-1.7*R$2*($C96-R$3))),"") ->  | S96: =IFERROR(S$4+(1-S$4)/(1+EXP(-1.7*S$2*($C96-S$3))),"") ->  | T96: =IFERROR(T$4+(1-T$4)/(1+EXP(-1.7*T$2*($C96-T$3))),"") ->  | U96: =IFERROR(U$4+(1-U$4)/(1+EXP(-1.7*U$2*($C96-U$3))),"") ->  | V96: =IFERROR(V$4+(1-V$4)/(1+EXP(-1.7*V$2*($C96-V$3))),"") ->  | W96: =IFERROR(W$4+(1-W$4)/(1+EXP(-1.7*W$2*($C96-W$3))),"") ->  | X96: =IFERROR(X$4+(1-X$4)/(1+EXP(-1.7*X$2*($C96-X$3))),"") ->  | Y96: =IFERROR(Y$4+(1-Y$4)/(1+EXP(-1.7*Y$2*($C96-Y$3))),"") ->  | Z96: =IFERROR(Z$4+(1-Z$4)/(1+EXP(-1.7*Z$2*($C96-Z$3))),"") ->  | AA96: =IFERROR(AA$4+(1-AA$4)/(1+EXP(-1.7*AA$2*($C96-AA$3))),"") ->  | AB96: =IFERROR(AB$4+(1-AB$4)/(1+EXP(-1.7*AB$2*($C96-AB$3))),"") ->  | AC96: =IFERROR(AC$4+(1-AC$4)/(1+EXP(-1.7*AC$2*($C96-AC$3))),"") ->  | AD96: =IFERROR(AD$4+(1-AD$4)/(1+EXP(-1.7*AD$2*($C96-AD$3))),"") ->  | AE96: =IFERROR(AE$4+(1-AE$4)/(1+EXP(-1.7*AE$2*($C96-AE$3))),"") ->  | AF96: =IFERROR(AF$4+(1-AF$4)/(1+EXP(-1.7*AF$2*($C96-AF$3))),"") ->  | AG96: =IFERROR(AG$4+(1-AG$4)/(1+EXP(-1.7*AG$2*($C96-AG$3))),"") -> 
A97: 88 | B97: 0.01723895724 | C97: -3.13 | D97: =IFERROR(D$4+(1-D$4)/(1+EXP(-1.7*D$2*($C97-D$3))),"") -> 0.01630948397 | E97: =IFERROR(E$4+(1-E$4)/(1+EXP(-1.7*E$2*($C97-E$3))),"") -> 0.219899454 | F97: =IFERROR(F$4+(1-F$4)/(1+EXP(-1.7*F$2*($C97-F$3))),"") -> 0.3146272735 | G97: =IFERROR(G$4+(1-G$4)/(1+EXP(-1.7*G$2*($C97-G$3))),"") -> 0.2732992732 | H97: =IFERROR(H$4+(1-H$4)/(1+EXP(-1.7*H$2*($C97-H$3))),"") -> 0.07318401938 | I97: =IFERROR(I$4+(1-I$4)/(1+EXP(-1.7*I$2*($C97-I$3))),"") ->  | J97: =IFERROR(J$4+(1-J$4)/(1+EXP(-1.7*J$2*($C97-J$3))),"") ->  | K97: =IFERROR(K$4+(1-K$4)/(1+EXP(-1.7*K$2*($C97-K$3))),"") ->  | L97: =IFERROR(L$4+(1-L$4)/(1+EXP(-1.7*L$2*($C97-L$3))),"") ->  | M97: =IFERROR(M$4+(1-M$4)/(1+EXP(-1.7*M$2*($C97-M$3))),"") ->  | N97: =IFERROR(N$4+(1-N$4)/(1+EXP(-1.7*N$2*($C97-N$3))),"") ->  | O97: =IFERROR(O$4+(1-O$4)/(1+EXP(-1.7*O$2*($C97-O$3))),"") ->  | P97: =IFERROR(P$4+(1-P$4)/(1+EXP(-1.7*P$2*($C97-P$3))),"") ->  | Q97: =IFERROR(Q$4+(1-Q$4)/(1+EXP(-1.7*Q$2*($C97-Q$3))),"") ->  | R97: =IFERROR(R$4+(1-R$4)/(1+EXP(-1.7*R$2*($C97-R$3))),"") ->  | S97: =IFERROR(S$4+(1-S$4)/(1+EXP(-1.7*S$2*($C97-S$3))),"") ->  | T97: =IFERROR(T$4+(1-T$4)/(1+EXP(-1.7*T$2*($C97-T$3))),"") ->  | U97: =IFERROR(U$4+(1-U$4)/(1+EXP(-1.7*U$2*($C97-U$3))),"") ->  | V97: =IFERROR(V$4+(1-V$4)/(1+EXP(-1.7*V$2*($C97-V$3))),"") ->  | W97: =IFERROR(W$4+(1-W$4)/(1+EXP(-1.7*W$2*($C97-W$3))),"") ->  | X97: =IFERROR(X$4+(1-X$4)/(1+EXP(-1.7*X$2*($C97-X$3))),"") ->  | Y97: =IFERROR(Y$4+(1-Y$4)/(1+EXP(-1.7*Y$2*($C97-Y$3))),"") ->  | Z97: =IFERROR(Z$4+(1-Z$4)/(1+EXP(-1.7*Z$2*($C97-Z$3))),"") ->  | AA97: =IFERROR(AA$4+(1-AA$4)/(1+EXP(-1.7*AA$2*($C97-AA$3))),"") ->  | AB97: =IFERROR(AB$4+(1-AB$4)/(1+EXP(-1.7*AB$2*($C97-AB$3))),"") ->  | AC97: =IFERROR(AC$4+(1-AC$4)/(1+EXP(-1.7*AC$2*($C97-AC$3))),"") ->  | AD97: =IFERROR(AD$4+(1-AD$4)/(1+EXP(-1.7*AD$2*($C97-AD$3))),"") ->  | AE97: =IFERROR(AE$4+(1-AE$4)/(1+EXP(-1.7*AE$2*($C97-AE$3))),"") ->  | AF97: =IFERROR(AF$4+(1-AF$4)/(1+EXP(-1.7*AF$2*($C97-AF$3))),"") ->  | AG97: =IFERROR(AG$4+(1-AG$4)/(1+EXP(-1.7*AG$2*($C97-AG$3))),"") -> 
A98: 89 | B98: 0.01732315702 | C98: -3.12 | D98: =IFERROR(D$4+(1-D$4)/(1+EXP(-1.7*D$2*($C98-D$3))),"") -> 0.01631401943 | E98: =IFERROR(E$4+(1-E$4)/(1+EXP(-1.7*E$2*($C98-E$3))),"") -> 0.220426182 | F98: =IFERROR(F$4+(1-F$4)/(1+EXP(-1.7*F$2*($C98-F$3))),"") -> 0.3154097684 | G98: =IFERROR(G$4+(1-G$4)/(1+EXP(-1.7*G$2*($C98-G$3))),"") -> 0.2732994597 | H98: =IFERROR(H$4+(1-H$4)/(1+EXP(-1.7*H$2*($C98-H$3))),"") -> 0.07318411407 | I98: =IFERROR(I$4+(1-I$4)/(1+EXP(-1.7*I$2*($C98-I$3))),"") ->  | J98: =IFERROR(J$4+(1-J$4)/(1+EXP(-1.7*J$2*($C98-J$3))),"") ->  | K98: =IFERROR(K$4+(1-K$4)/(1+EXP(-1.7*K$2*($C98-K$3))),"") ->  | L98: =IFERROR(L$4+(1-L$4)/(1+EXP(-1.7*L$2*($C98-L$3))),"") ->  | M98: =IFERROR(M$4+(1-M$4)/(1+EXP(-1.7*M$2*($C98-M$3))),"") ->  | N98: =IFERROR(N$4+(1-N$4)/(1+EXP(-1.7*N$2*($C98-N$3))),"") ->  | O98: =IFERROR(O$4+(1-O$4)/(1+EXP(-1.7*O$2*($C98-O$3))),"") ->  | P98: =IFERROR(P$4+(1-P$4)/(1+EXP(-1.7*P$2*($C98-P$3))),"") ->  | Q98: =IFERROR(Q$4+(1-Q$4)/(1+EXP(-1.7*Q$2*($C98-Q$3))),"") ->  | R98: =IFERROR(R$4+(1-R$4)/(1+EXP(-1.7*R$2*($C98-R$3))),"") ->  | S98: =IFERROR(S$4+(1-S$4)/(1+EXP(-1.7*S$2*($C98-S$3))),"") ->  | T98: =IFERROR(T$4+(1-T$4)/(1+EXP(-1.7*T$2*($C98-T$3))),"") ->  | U98: =IFERROR(U$4+(1-U$4)/(1+EXP(-1.7*U$2*($C98-U$3))),"") ->  | V98: =IFERROR(V$4+(1-V$4)/(1+EXP(-1.7*V$2*($C98-V$3))),"") ->  | W98: =IFERROR(W$4+(1-W$4)/(1+EXP(-1.7*W$2*($C98-W$3))),"") ->  | X98: =IFERROR(X$4+(1-X$4)/(1+EXP(-1.7*X$2*($C98-X$3))),"") ->  | Y98: =IFERROR(Y$4+(1-Y$4)/(1+EXP(-1.7*Y$2*($C98-Y$3))),"") ->  | Z98: =IFERROR(Z$4+(1-Z$4)/(1+EXP(-1.7*Z$2*($C98-Z$3))),"") ->  | AA98: =IFERROR(AA$4+(1-AA$4)/(1+EXP(-1.7*AA$2*($C98-AA$3))),"") ->  | AB98: =IFERROR(AB$4+(1-AB$4)/(1+EXP(-1.7*AB$2*($C98-AB$3))),"") ->  | AC98: =IFERROR(AC$4+(1-AC$4)/(1+EXP(-1.7*AC$2*($C98-AC$3))),"") ->  | AD98: =IFERROR(AD$4+(1-AD$4)/(1+EXP(-1.7*AD$2*($C98-AD$3))),"") ->  | AE98: =IFERROR(AE$4+(1-AE$4)/(1+EXP(-1.7*AE$2*($C98-AE$3))),"") ->  | AF98: =IFERROR(AF$4+(1-AF$4)/(1+EXP(-1.7*AF$2*($C98-AF$3))),"") ->  | AG98: =IFERROR(AG$4+(1-AG$4)/(1+EXP(-1.7*AG$2*($C98-AG$3))),"") -> 
A99: 90 | B99: 0.01740865477 | C99: -3.11 | D99: =IFERROR(D$4+(1-D$4)/(1+EXP(-1.7*D$2*($C99-D$3))),"") -> 0.01631863456 | E99: =IFERROR(E$4+(1-E$4)/(1+EXP(-1.7*E$2*($C99-E$3))),"") -> 0.2209609273 | F99: =IFERROR(F$4+(1-F$4)/(1+EXP(-1.7*F$2*($C99-F$3))),"") -> 0.31620067 | G99: =IFERROR(G$4+(1-G$4)/(1+EXP(-1.7*G$2*($C99-G$3))),"") -> 0.2732996497 | H99: =IFERROR(H$4+(1-H$4)/(1+EXP(-1.7*H$2*($C99-H$3))),"") -> 0.0731842107 | I99: =IFERROR(I$4+(1-I$4)/(1+EXP(-1.7*I$2*($C99-I$3))),"") ->  | J99: =IFERROR(J$4+(1-J$4)/(1+EXP(-1.7*J$2*($C99-J$3))),"") ->  | K99: =IFERROR(K$4+(1-K$4)/(1+EXP(-1.7*K$2*($C99-K$3))),"") ->  | L99: =IFERROR(L$4+(1-L$4)/(1+EXP(-1.7*L$2*($C99-L$3))),"") ->  | M99: =IFERROR(M$4+(1-M$4)/(1+EXP(-1.7*M$2*($C99-M$3))),"") ->  | N99: =IFERROR(N$4+(1-N$4)/(1+EXP(-1.7*N$2*($C99-N$3))),"") ->  | O99: =IFERROR(O$4+(1-O$4)/(1+EXP(-1.7*O$2*($C99-O$3))),"") ->  | P99: =IFERROR(P$4+(1-P$4)/(1+EXP(-1.7*P$2*($C99-P$3))),"") ->  | Q99: =IFERROR(Q$4+(1-Q$4)/(1+EXP(-1.7*Q$2*($C99-Q$3))),"") ->  | R99: =IFERROR(R$4+(1-R$4)/(1+EXP(-1.7*R$2*($C99-R$3))),"") ->  | S99: =IFERROR(S$4+(1-S$4)/(1+EXP(-1.7*S$2*($C99-S$3))),"") ->  | T99: =IFERROR(T$4+(1-T$4)/(1+EXP(-1.7*T$2*($C99-T$3))),"") ->  | U99: =IFERROR(U$4+(1-U$4)/(1+EXP(-1.7*U$2*($C99-U$3))),"") ->  | V99: =IFERROR(V$4+(1-V$4)/(1+EXP(-1.7*V$2*($C99-V$3))),"") ->  | W99: =IFERROR(W$4+(1-W$4)/(1+EXP(-1.7*W$2*($C99-W$3))),"") ->  | X99: =IFERROR(X$4+(1-X$4)/(1+EXP(-1.7*X$2*($C99-X$3))),"") ->  | Y99: =IFERROR(Y$4+(1-Y$4)/(1+EXP(-1.7*Y$2*($C99-Y$3))),"") ->  | Z99: =IFERROR(Z$4+(1-Z$4)/(1+EXP(-1.7*Z$2*($C99-Z$3))),"") ->  | AA99: =IFERROR(AA$4+(1-AA$4)/(1+EXP(-1.7*AA$2*($C99-AA$3))),"") ->  | AB99: =IFERROR(AB$4+(1-AB$4)/(1+EXP(-1.7*AB$2*($C99-AB$3))),"") ->  | AC99: =IFERROR(AC$4+(1-AC$4)/(1+EXP(-1.7*AC$2*($C99-AC$3))),"") ->  | AD99: =IFERROR(AD$4+(1-AD$4)/(1+EXP(-1.7*AD$2*($C99-AD$3))),"") ->  | AE99: =IFERROR(AE$4+(1-AE$4)/(1+EXP(-1.7*AE$2*($C99-AE$3))),"") ->  | AF99: =IFERROR(AF$4+(1-AF$4)/(1+EXP(-1.7*AF$2*($C99-AF$3))),"") ->  | AG99: =IFERROR(AG$4+(1-AG$4)/(1+EXP(-1.7*AG$2*($C99-AG$3))),"") -> 
A100: 91 | B100: 0.01749547102 | C100: -3.1 | D100: =IFERROR(D$4+(1-D$4)/(1+EXP(-1.7*D$2*($C100-D$3))),"") -> 0.01632333077 | E100: =IFERROR(E$4+(1-E$4)/(1+EXP(-1.7*E$2*($C100-E$3))),"") -> 0.2215038002 | F100: =IFERROR(F$4+(1-F$4)/(1+EXP(-1.7*F$2*($C100-F$3))),"") -> 0.3170000468 | G100: =IFERROR(G$4+(1-G$4)/(1+EXP(-1.7*G$2*($C100-G$3))),"") -> 0.2732998433 | H100: =IFERROR(H$4+(1-H$4)/(1+EXP(-1.7*H$2*($C100-H$3))),"") -> 0.07318430932 | I100: =IFERROR(I$4+(1-I$4)/(1+EXP(-1.7*I$2*($C100-I$3))),"") ->  | J100: =IFERROR(J$4+(1-J$4)/(1+EXP(-1.7*J$2*($C100-J$3))),"") ->  | K100: =IFERROR(K$4+(1-K$4)/(1+EXP(-1.7*K$2*($C100-K$3))),"") ->  | L100: =IFERROR(L$4+(1-L$4)/(1+EXP(-1.7*L$2*($C100-L$3))),"") ->  | M100: =IFERROR(M$4+(1-M$4)/(1+EXP(-1.7*M$2*($C100-M$3))),"") ->  | N100: =IFERROR(N$4+(1-N$4)/(1+EXP(-1.7*N$2*($C100-N$3))),"") ->  | O100: =IFERROR(O$4+(1-O$4)/(1+EXP(-1.7*O$2*($C100-O$3))),"") ->  | P100: =IFERROR(P$4+(1-P$4)/(1+EXP(-1.7*P$2*($C100-P$3))),"") ->  | Q100: =IFERROR(Q$4+(1-Q$4)/(1+EXP(-1.7*Q$2*($C100-Q$3))),"") ->  | R100: =IFERROR(R$4+(1-R$4)/(1+EXP(-1.7*R$2*($C100-R$3))),"") ->  | S100: =IFERROR(S$4+(1-S$4)/(1+EXP(-1.7*S$2*($C100-S$3))),"") ->  | T100: =IFERROR(T$4+(1-T$4)/(1+EXP(-1.7*T$2*($C100-T$3))),"") ->  | U100: =IFERROR(U$4+(1-U$4)/(1+EXP(-1.7*U$2*($C100-U$3))),"") ->  | V100: =IFERROR(V$4+(1-V$4)/(1+EXP(-1.7*V$2*($C100-V$3))),"") ->  | W100: =IFERROR(W$4+(1-W$4)/(1+EXP(-1.7*W$2*($C100-W$3))),"") ->  | X100: =IFERROR(X$4+(1-X$4)/(1+EXP(-1.7*X$2*($C100-X$3))),"") ->  | Y100: =IFERROR(Y$4+(1-Y$4)/(1+EXP(-1.7*Y$2*($C100-Y$3))),"") ->  | Z100: =IFERROR(Z$4+(1-Z$4)/(1+EXP(-1.7*Z$2*($C100-Z$3))),"") ->  | AA100: =IFERROR(AA$4+(1-AA$4)/(1+EXP(-1.7*AA$2*($C100-AA$3))),"") ->  | AB100: =IFERROR(AB$4+(1-AB$4)/(1+EXP(-1.7*AB$2*($C100-AB$3))),"") ->  | AC100: =IFERROR(AC$4+(1-AC$4)/(1+EXP(-1.7*AC$2*($C100-AC$3))),"") ->  | AD100: =IFERROR(AD$4+(1-AD$4)/(1+EXP(-1.7*AD$2*($C100-AD$3))),"") ->  | AE100: =IFERROR(AE$4+(1-AE$4)/(1+EXP(-1.7*AE$2*($C100-AE$3))),"") ->  | AF100: =IFERROR(AF$4+(1-AF$4)/(1+EXP(-1.7*AF$2*($C100-AF$3))),"") ->  | AG100: =IFERROR(AG$4+(1-AG$4)/(1+EXP(-1.7*AG$2*($C100-AG$3))),"") -> 
A101: 92 | B101: 0.01758362661 | C101: -3.09 | D101: =IFERROR(D$4+(1-D$4)/(1+EXP(-1.7*D$2*($C101-D$3))),"") -> 0.01632810946 | E101: =IFERROR(E$4+(1-E$4)/(1+EXP(-1.7*E$2*($C101-E$3))),"") -> 0.2220549122 | F101: =IFERROR(F$4+(1-F$4)/(1+EXP(-1.7*F$2*($C101-F$3))),"") -> 0.3178079672 | G101: =IFERROR(G$4+(1-G$4)/(1+EXP(-1.7*G$2*($C101-G$3))),"") -> 0.2733000404 | H101: =IFERROR(H$4+(1-H$4)/(1+EXP(-1.7*H$2*($C101-H$3))),"") -> 0.07318440996 | I101: =IFERROR(I$4+(1-I$4)/(1+EXP(-1.7*I$2*($C101-I$3))),"") ->  | J101: =IFERROR(J$4+(1-J$4)/(1+EXP(-1.7*J$2*($C101-J$3))),"") ->  | K101: =IFERROR(K$4+(1-K$4)/(1+EXP(-1.7*K$2*($C101-K$3))),"") ->  | L101: =IFERROR(L$4+(1-L$4)/(1+EXP(-1.7*L$2*($C101-L$3))),"") ->  | M101: =IFERROR(M$4+(1-M$4)/(1+EXP(-1.7*M$2*($C101-M$3))),"") ->  | N101: =IFERROR(N$4+(1-N$4)/(1+EXP(-1.7*N$2*($C101-N$3))),"") ->  | O101: =IFERROR(O$4+(1-O$4)/(1+EXP(-1.7*O$2*($C101-O$3))),"") ->  | P101: =IFERROR(P$4+(1-P$4)/(1+EXP(-1.7*P$2*($C101-P$3))),"") ->  | Q101: =IFERROR(Q$4+(1-Q$4)/(1+EXP(-1.7*Q$2*($C101-Q$3))),"") ->  | R101: =IFERROR(R$4+(1-R$4)/(1+EXP(-1.7*R$2*($C101-R$3))),"") ->  | S101: =IFERROR(S$4+(1-S$4)/(1+EXP(-1.7*S$2*($C101-S$3))),"") ->  | T101: =IFERROR(T$4+(1-T$4)/(1+EXP(-1.7*T$2*($C101-T$3))),"") ->  | U101: =IFERROR(U$4+(1-U$4)/(1+EXP(-1.7*U$2*($C101-U$3))),"") ->  | V101: =IFERROR(V$4+(1-V$4)/(1+EXP(-1.7*V$2*($C101-V$3))),"") ->  | W101: =IFERROR(W$4+(1-W$4)/(1+EXP(-1.7*W$2*($C101-W$3))),"") ->  | X101: =IFERROR(X$4+(1-X$4)/(1+EXP(-1.7*X$2*($C101-X$3))),"") ->  | Y101: =IFERROR(Y$4+(1-Y$4)/(1+EXP(-1.7*Y$2*($C101-Y$3))),"") ->  | Z101: =IFERROR(Z$4+(1-Z$4)/(1+EXP(-1.7*Z$2*($C101-Z$3))),"") ->  | AA101: =IFERROR(AA$4+(1-AA$4)/(1+EXP(-1.7*AA$2*($C101-AA$3))),"") ->  | AB101: =IFERROR(AB$4+(1-AB$4)/(1+EXP(-1.7*AB$2*($C101-AB$3))),"") ->  | AC101: =IFERROR(AC$4+(1-AC$4)/(1+EXP(-1.7*AC$2*($C101-AC$3))),"") ->  | AD101: =IFERROR(AD$4+(1-AD$4)/(1+EXP(-1.7*AD$2*($C101-AD$3))),"") ->  | AE101: =IFERROR(AE$4+(1-AE$4)/(1+EXP(-1.7*AE$2*($C101-AE$3))),"") ->  | AF101: =IFERROR(AF$4+(1-AF$4)/(1+EXP(-1.7*AF$2*($C101-AF$3))),"") ->  | AG101: =IFERROR(AG$4+(1-AG$4)/(1+EXP(-1.7*AG$2*($C101-AG$3))),"") -> 
A102: 93 | B102: 0.01767314271 | C102: -3.08 | D102: =IFERROR(D$4+(1-D$4)/(1+EXP(-1.7*D$2*($C102-D$3))),"") -> 0.01633297209 | E102: =IFERROR(E$4+(1-E$4)/(1+EXP(-1.7*E$2*($C102-E$3))),"") -> 0.2226143756 | F102: =IFERROR(F$4+(1-F$4)/(1+EXP(-1.7*F$2*($C102-F$3))),"") -> 0.3186244998 | G102: =IFERROR(G$4+(1-G$4)/(1+EXP(-1.7*G$2*($C102-G$3))),"") -> 0.2733002413 | H102: =IFERROR(H$4+(1-H$4)/(1+EXP(-1.7*H$2*($C102-H$3))),"") -> 0.07318451266 | I102: =IFERROR(I$4+(1-I$4)/(1+EXP(-1.7*I$2*($C102-I$3))),"") ->  | J102: =IFERROR(J$4+(1-J$4)/(1+EXP(-1.7*J$2*($C102-J$3))),"") ->  | K102: =IFERROR(K$4+(1-K$4)/(1+EXP(-1.7*K$2*($C102-K$3))),"") ->  | L102: =IFERROR(L$4+(1-L$4)/(1+EXP(-1.7*L$2*($C102-L$3))),"") ->  | M102: =IFERROR(M$4+(1-M$4)/(1+EXP(-1.7*M$2*($C102-M$3))),"") ->  | N102: =IFERROR(N$4+(1-N$4)/(1+EXP(-1.7*N$2*($C102-N$3))),"") ->  | O102: =IFERROR(O$4+(1-O$4)/(1+EXP(-1.7*O$2*($C102-O$3))),"") ->  | P102: =IFERROR(P$4+(1-P$4)/(1+EXP(-1.7*P$2*($C102-P$3))),"") ->  | Q102: =IFERROR(Q$4+(1-Q$4)/(1+EXP(-1.7*Q$2*($C102-Q$3))),"") ->  | R102: =IFERROR(R$4+(1-R$4)/(1+EXP(-1.7*R$2*($C102-R$3))),"") ->  | S102: =IFERROR(S$4+(1-S$4)/(1+EXP(-1.7*S$2*($C102-S$3))),"") ->  | T102: =IFERROR(T$4+(1-T$4)/(1+EXP(-1.7*T$2*($C102-T$3))),"") ->  | U102: =IFERROR(U$4+(1-U$4)/(1+EXP(-1.7*U$2*($C102-U$3))),"") ->  | V102: =IFERROR(V$4+(1-V$4)/(1+EXP(-1.7*V$2*($C102-V$3))),"") ->  | W102: =IFERROR(W$4+(1-W$4)/(1+EXP(-1.7*W$2*($C102-W$3))),"") ->  | X102: =IFERROR(X$4+(1-X$4)/(1+EXP(-1.7*X$2*($C102-X$3))),"") ->  | Y102: =IFERROR(Y$4+(1-Y$4)/(1+EXP(-1.7*Y$2*($C102-Y$3))),"") ->  | Z102: =IFERROR(Z$4+(1-Z$4)/(1+EXP(-1.7*Z$2*($C102-Z$3))),"") ->  | AA102: =IFERROR(AA$4+(1-AA$4)/(1+EXP(-1.7*AA$2*($C102-AA$3))),"") ->  | AB102: =IFERROR(AB$4+(1-AB$4)/(1+EXP(-1.7*AB$2*($C102-AB$3))),"") ->  | AC102: =IFERROR(AC$4+(1-AC$4)/(1+EXP(-1.7*AC$2*($C102-AC$3))),"") ->  | AD102: =IFERROR(AD$4+(1-AD$4)/(1+EXP(-1.7*AD$2*($C102-AD$3))),"") ->  | AE102: =IFERROR(AE$4+(1-AE$4)/(1+EXP(-1.7*AE$2*($C102-AE$3))),"") ->  | AF102: =IFERROR(AF$4+(1-AF$4)/(1+EXP(-1.7*AF$2*($C102-AF$3))),"") ->  | AG102: =IFERROR(AG$4+(1-AG$4)/(1+EXP(-1.7*AG$2*($C102-AG$3))),"") -> 
A103: 94 | B103: 0.01776404083 | C103: -3.07 | D103: =IFERROR(D$4+(1-D$4)/(1+EXP(-1.7*D$2*($C103-D$3))),"") -> 0.01633792014 | E103: =IFERROR(E$4+(1-E$4)/(1+EXP(-1.7*E$2*($C103-E$3))),"") -> 0.2231823043 | F103: =IFERROR(F$4+(1-F$4)/(1+EXP(-1.7*F$2*($C103-F$3))),"") -> 0.319449713 | G103: =IFERROR(G$4+(1-G$4)/(1+EXP(-1.7*G$2*($C103-G$3))),"") -> 0.2733004459 | H103: =IFERROR(H$4+(1-H$4)/(1+EXP(-1.7*H$2*($C103-H$3))),"") -> 0.07318461748 | I103: =IFERROR(I$4+(1-I$4)/(1+EXP(-1.7*I$2*($C103-I$3))),"") ->  | J103: =IFERROR(J$4+(1-J$4)/(1+EXP(-1.7*J$2*($C103-J$3))),"") ->  | K103: =IFERROR(K$4+(1-K$4)/(1+EXP(-1.7*K$2*($C103-K$3))),"") ->  | L103: =IFERROR(L$4+(1-L$4)/(1+EXP(-1.7*L$2*($C103-L$3))),"") ->  | M103: =IFERROR(M$4+(1-M$4)/(1+EXP(-1.7*M$2*($C103-M$3))),"") ->  | N103: =IFERROR(N$4+(1-N$4)/(1+EXP(-1.7*N$2*($C103-N$3))),"") ->  | O103: =IFERROR(O$4+(1-O$4)/(1+EXP(-1.7*O$2*($C103-O$3))),"") ->  | P103: =IFERROR(P$4+(1-P$4)/(1+EXP(-1.7*P$2*($C103-P$3))),"") ->  | Q103: =IFERROR(Q$4+(1-Q$4)/(1+EXP(-1.7*Q$2*($C103-Q$3))),"") ->  | R103: =IFERROR(R$4+(1-R$4)/(1+EXP(-1.7*R$2*($C103-R$3))),"") ->  | S103: =IFERROR(S$4+(1-S$4)/(1+EXP(-1.7*S$2*($C103-S$3))),"") ->  | T103: =IFERROR(T$4+(1-T$4)/(1+EXP(-1.7*T$2*($C103-T$3))),"") ->  | U103: =IFERROR(U$4+(1-U$4)/(1+EXP(-1.7*U$2*($C103-U$3))),"") ->  | V103: =IFERROR(V$4+(1-V$4)/(1+EXP(-1.7*V$2*($C103-V$3))),"") ->  | W103: =IFERROR(W$4+(1-W$4)/(1+EXP(-1.7*W$2*($C103-W$3))),"") ->  | X103: =IFERROR(X$4+(1-X$4)/(1+EXP(-1.7*X$2*($C103-X$3))),"") ->  | Y103: =IFERROR(Y$4+(1-Y$4)/(1+EXP(-1.7*Y$2*($C103-Y$3))),"") ->  | Z103: =IFERROR(Z$4+(1-Z$4)/(1+EXP(-1.7*Z$2*($C103-Z$3))),"") ->  | AA103: =IFERROR(AA$4+(1-AA$4)/(1+EXP(-1.7*AA$2*($C103-AA$3))),"") ->  | AB103: =IFERROR(AB$4+(1-AB$4)/(1+EXP(-1.7*AB$2*($C103-AB$3))),"") ->  | AC103: =IFERROR(AC$4+(1-AC$4)/(1+EXP(-1.7*AC$2*($C103-AC$3))),"") ->  | AD103: =IFERROR(AD$4+(1-AD$4)/(1+EXP(-1.7*AD$2*($C103-AD$3))),"") ->  | AE103: =IFERROR(AE$4+(1-AE$4)/(1+EXP(-1.7*AE$2*($C103-AE$3))),"") ->  | AF103: =IFERROR(AF$4+(1-AF$4)/(1+EXP(-1.7*AF$2*($C103-AF$3))),"") ->  | AG103: =IFERROR(AG$4+(1-AG$4)/(1+EXP(-1.7*AG$2*($C103-AG$3))),"") -> 
A104: 95 | B104: 0.01785634279 | C104: -3.06 | D104: =IFERROR(D$4+(1-D$4)/(1+EXP(-1.7*D$2*($C104-D$3))),"") -> 0.0163429551 | E104: =IFERROR(E$4+(1-E$4)/(1+EXP(-1.7*E$2*($C104-E$3))),"") -> 0.2237588131 | F104: =IFERROR(F$4+(1-F$4)/(1+EXP(-1.7*F$2*($C104-F$3))),"") -> 0.3202836754 | G104: =IFERROR(G$4+(1-G$4)/(1+EXP(-1.7*G$2*($C104-G$3))),"") -> 0.2733006543 | H104: =IFERROR(H$4+(1-H$4)/(1+EXP(-1.7*H$2*($C104-H$3))),"") -> 0.07318472444 | I104: =IFERROR(I$4+(1-I$4)/(1+EXP(-1.7*I$2*($C104-I$3))),"") ->  | J104: =IFERROR(J$4+(1-J$4)/(1+EXP(-1.7*J$2*($C104-J$3))),"") ->  | K104: =IFERROR(K$4+(1-K$4)/(1+EXP(-1.7*K$2*($C104-K$3))),"") ->  | L104: =IFERROR(L$4+(1-L$4)/(1+EXP(-1.7*L$2*($C104-L$3))),"") ->  | M104: =IFERROR(M$4+(1-M$4)/(1+EXP(-1.7*M$2*($C104-M$3))),"") ->  | N104: =IFERROR(N$4+(1-N$4)/(1+EXP(-1.7*N$2*($C104-N$3))),"") ->  | O104: =IFERROR(O$4+(1-O$4)/(1+EXP(-1.7*O$2*($C104-O$3))),"") ->  | P104: =IFERROR(P$4+(1-P$4)/(1+EXP(-1.7*P$2*($C104-P$3))),"") ->  | Q104: =IFERROR(Q$4+(1-Q$4)/(1+EXP(-1.7*Q$2*($C104-Q$3))),"") ->  | R104: =IFERROR(R$4+(1-R$4)/(1+EXP(-1.7*R$2*($C104-R$3))),"") ->  | S104: =IFERROR(S$4+(1-S$4)/(1+EXP(-1.7*S$2*($C104-S$3))),"") ->  | T104: =IFERROR(T$4+(1-T$4)/(1+EXP(-1.7*T$2*($C104-T$3))),"") ->  | U104: =IFERROR(U$4+(1-U$4)/(1+EXP(-1.7*U$2*($C104-U$3))),"") ->  | V104: =IFERROR(V$4+(1-V$4)/(1+EXP(-1.7*V$2*($C104-V$3))),"") ->  | W104: =IFERROR(W$4+(1-W$4)/(1+EXP(-1.7*W$2*($C104-W$3))),"") ->  | X104: =IFERROR(X$4+(1-X$4)/(1+EXP(-1.7*X$2*($C104-X$3))),"") ->  | Y104: =IFERROR(Y$4+(1-Y$4)/(1+EXP(-1.7*Y$2*($C104-Y$3))),"") ->  | Z104: =IFERROR(Z$4+(1-Z$4)/(1+EXP(-1.7*Z$2*($C104-Z$3))),"") ->  | AA104: =IFERROR(AA$4+(1-AA$4)/(1+EXP(-1.7*AA$2*($C104-AA$3))),"") ->  | AB104: =IFERROR(AB$4+(1-AB$4)/(1+EXP(-1.7*AB$2*($C104-AB$3))),"") ->  | AC104: =IFERROR(AC$4+(1-AC$4)/(1+EXP(-1.7*AC$2*($C104-AC$3))),"") ->  | AD104: =IFERROR(AD$4+(1-AD$4)/(1+EXP(-1.7*AD$2*($C104-AD$3))),"") ->  | AE104: =IFERROR(AE$4+(1-AE$4)/(1+EXP(-1.7*AE$2*($C104-AE$3))),"") ->  | AF104: =IFERROR(AF$4+(1-AF$4)/(1+EXP(-1.7*AF$2*($C104-AF$3))),"") ->  | AG104: =IFERROR(AG$4+(1-AG$4)/(1+EXP(-1.7*AG$2*($C104-AG$3))),"") -> 
A105: 96 | B105: 0.01795007074 | C105: -3.05 | D105: =IFERROR(D$4+(1-D$4)/(1+EXP(-1.7*D$2*($C105-D$3))),"") -> 0.01634807849 | E105: =IFERROR(E$4+(1-E$4)/(1+EXP(-1.7*E$2*($C105-E$3))),"") -> 0.2243440178 | F105: =IFERROR(F$4+(1-F$4)/(1+EXP(-1.7*F$2*($C105-F$3))),"") -> 0.3211264554 | G105: =IFERROR(G$4+(1-G$4)/(1+EXP(-1.7*G$2*($C105-G$3))),"") -> 0.2733008666 | H105: =IFERROR(H$4+(1-H$4)/(1+EXP(-1.7*H$2*($C105-H$3))),"") -> 0.0731848336 | I105: =IFERROR(I$4+(1-I$4)/(1+EXP(-1.7*I$2*($C105-I$3))),"") ->  | J105: =IFERROR(J$4+(1-J$4)/(1+EXP(-1.7*J$2*($C105-J$3))),"") ->  | K105: =IFERROR(K$4+(1-K$4)/(1+EXP(-1.7*K$2*($C105-K$3))),"") ->  | L105: =IFERROR(L$4+(1-L$4)/(1+EXP(-1.7*L$2*($C105-L$3))),"") ->  | M105: =IFERROR(M$4+(1-M$4)/(1+EXP(-1.7*M$2*($C105-M$3))),"") ->  | N105: =IFERROR(N$4+(1-N$4)/(1+EXP(-1.7*N$2*($C105-N$3))),"") ->  | O105: =IFERROR(O$4+(1-O$4)/(1+EXP(-1.7*O$2*($C105-O$3))),"") ->  | P105: =IFERROR(P$4+(1-P$4)/(1+EXP(-1.7*P$2*($C105-P$3))),"") ->  | Q105: =IFERROR(Q$4+(1-Q$4)/(1+EXP(-1.7*Q$2*($C105-Q$3))),"") ->  | R105: =IFERROR(R$4+(1-R$4)/(1+EXP(-1.7*R$2*($C105-R$3))),"") ->  | S105: =IFERROR(S$4+(1-S$4)/(1+EXP(-1.7*S$2*($C105-S$3))),"") ->  | T105: =IFERROR(T$4+(1-T$4)/(1+EXP(-1.7*T$2*($C105-T$3))),"") ->  | U105: =IFERROR(U$4+(1-U$4)/(1+EXP(-1.7*U$2*($C105-U$3))),"") ->  | V105: =IFERROR(V$4+(1-V$4)/(1+EXP(-1.7*V$2*($C105-V$3))),"") ->  | W105: =IFERROR(W$4+(1-W$4)/(1+EXP(-1.7*W$2*($C105-W$3))),"") ->  | X105: =IFERROR(X$4+(1-X$4)/(1+EXP(-1.7*X$2*($C105-X$3))),"") ->  | Y105: =IFERROR(Y$4+(1-Y$4)/(1+EXP(-1.7*Y$2*($C105-Y$3))),"") ->  | Z105: =IFERROR(Z$4+(1-Z$4)/(1+EXP(-1.7*Z$2*($C105-Z$3))),"") ->  | AA105: =IFERROR(AA$4+(1-AA$4)/(1+EXP(-1.7*AA$2*($C105-AA$3))),"") ->  | AB105: =IFERROR(AB$4+(1-AB$4)/(1+EXP(-1.7*AB$2*($C105-AB$3))),"") ->  | AC105: =IFERROR(AC$4+(1-AC$4)/(1+EXP(-1.7*AC$2*($C105-AC$3))),"") ->  | AD105: =IFERROR(AD$4+(1-AD$4)/(1+EXP(-1.7*AD$2*($C105-AD$3))),"") ->  | AE105: =IFERROR(AE$4+(1-AE$4)/(1+EXP(-1.7*AE$2*($C105-AE$3))),"") ->  | AF105: =IFERROR(AF$4+(1-AF$4)/(1+EXP(-1.7*AF$2*($C105-AF$3))),"") ->  | AG105: =IFERROR(AG$4+(1-AG$4)/(1+EXP(-1.7*AG$2*($C105-AG$3))),"") -> 
A106: 97 | B106: 0.01804524719 | C106: -3.04 | D106: =IFERROR(D$4+(1-D$4)/(1+EXP(-1.7*D$2*($C106-D$3))),"") -> 0.01635329188 | E106: =IFERROR(E$4+(1-E$4)/(1+EXP(-1.7*E$2*($C106-E$3))),"") -> 0.2249380357 | F106: =IFERROR(F$4+(1-F$4)/(1+EXP(-1.7*F$2*($C106-F$3))),"") -> 0.3219781214 | G106: =IFERROR(G$4+(1-G$4)/(1+EXP(-1.7*G$2*($C106-G$3))),"") -> 0.2733010829 | H106: =IFERROR(H$4+(1-H$4)/(1+EXP(-1.7*H$2*($C106-H$3))),"") -> 0.073184945 | I106: =IFERROR(I$4+(1-I$4)/(1+EXP(-1.7*I$2*($C106-I$3))),"") ->  | J106: =IFERROR(J$4+(1-J$4)/(1+EXP(-1.7*J$2*($C106-J$3))),"") ->  | K106: =IFERROR(K$4+(1-K$4)/(1+EXP(-1.7*K$2*($C106-K$3))),"") ->  | L106: =IFERROR(L$4+(1-L$4)/(1+EXP(-1.7*L$2*($C106-L$3))),"") ->  | M106: =IFERROR(M$4+(1-M$4)/(1+EXP(-1.7*M$2*($C106-M$3))),"") ->  | N106: =IFERROR(N$4+(1-N$4)/(1+EXP(-1.7*N$2*($C106-N$3))),"") ->  | O106: =IFERROR(O$4+(1-O$4)/(1+EXP(-1.7*O$2*($C106-O$3))),"") ->  | P106: =IFERROR(P$4+(1-P$4)/(1+EXP(-1.7*P$2*($C106-P$3))),"") ->  | Q106: =IFERROR(Q$4+(1-Q$4)/(1+EXP(-1.7*Q$2*($C106-Q$3))),"") ->  | R106: =IFERROR(R$4+(1-R$4)/(1+EXP(-1.7*R$2*($C106-R$3))),"") ->  | S106: =IFERROR(S$4+(1-S$4)/(1+EXP(-1.7*S$2*($C106-S$3))),"") ->  | T106: =IFERROR(T$4+(1-T$4)/(1+EXP(-1.7*T$2*($C106-T$3))),"") ->  | U106: =IFERROR(U$4+(1-U$4)/(1+EXP(-1.7*U$2*($C106-U$3))),"") ->  | V106: =IFERROR(V$4+(1-V$4)/(1+EXP(-1.7*V$2*($C106-V$3))),"") ->  | W106: =IFERROR(W$4+(1-W$4)/(1+EXP(-1.7*W$2*($C106-W$3))),"") ->  | X106: =IFERROR(X$4+(1-X$4)/(1+EXP(-1.7*X$2*($C106-X$3))),"") ->  | Y106: =IFERROR(Y$4+(1-Y$4)/(1+EXP(-1.7*Y$2*($C106-Y$3))),"") ->  | Z106: =IFERROR(Z$4+(1-Z$4)/(1+EXP(-1.7*Z$2*($C106-Z$3))),"") ->  | AA106: =IFERROR(AA$4+(1-AA$4)/(1+EXP(-1.7*AA$2*($C106-AA$3))),"") ->  | AB106: =IFERROR(AB$4+(1-AB$4)/(1+EXP(-1.7*AB$2*($C106-AB$3))),"") ->  | AC106: =IFERROR(AC$4+(1-AC$4)/(1+EXP(-1.7*AC$2*($C106-AC$3))),"") ->  | AD106: =IFERROR(AD$4+(1-AD$4)/(1+EXP(-1.7*AD$2*($C106-AD$3))),"") ->  | AE106: =IFERROR(AE$4+(1-AE$4)/(1+EXP(-1.7*AE$2*($C106-AE$3))),"") ->  | AF106: =IFERROR(AF$4+(1-AF$4)/(1+EXP(-1.7*AF$2*($C106-AF$3))),"") ->  | AG106: =IFERROR(AG$4+(1-AG$4)/(1+EXP(-1.7*AG$2*($C106-AG$3))),"") -> 
A107: 98 | B107: 0.01814189497 | C107: -3.03 | D107: =IFERROR(D$4+(1-D$4)/(1+EXP(-1.7*D$2*($C107-D$3))),"") -> 0.01635859684 | E107: =IFERROR(E$4+(1-E$4)/(1+EXP(-1.7*E$2*($C107-E$3))),"") -> 0.2255409849 | F107: =IFERROR(F$4+(1-F$4)/(1+EXP(-1.7*F$2*($C107-F$3))),"") -> 0.3228387417 | G107: =IFERROR(G$4+(1-G$4)/(1+EXP(-1.7*G$2*($C107-G$3))),"") -> 0.2733013032 | H107: =IFERROR(H$4+(1-H$4)/(1+EXP(-1.7*H$2*($C107-H$3))),"") -> 0.07318505869 | I107: =IFERROR(I$4+(1-I$4)/(1+EXP(-1.7*I$2*($C107-I$3))),"") ->  | J107: =IFERROR(J$4+(1-J$4)/(1+EXP(-1.7*J$2*($C107-J$3))),"") ->  | K107: =IFERROR(K$4+(1-K$4)/(1+EXP(-1.7*K$2*($C107-K$3))),"") ->  | L107: =IFERROR(L$4+(1-L$4)/(1+EXP(-1.7*L$2*($C107-L$3))),"") ->  | M107: =IFERROR(M$4+(1-M$4)/(1+EXP(-1.7*M$2*($C107-M$3))),"") ->  | N107: =IFERROR(N$4+(1-N$4)/(1+EXP(-1.7*N$2*($C107-N$3))),"") ->  | O107: =IFERROR(O$4+(1-O$4)/(1+EXP(-1.7*O$2*($C107-O$3))),"") ->  | P107: =IFERROR(P$4+(1-P$4)/(1+EXP(-1.7*P$2*($C107-P$3))),"") ->  | Q107: =IFERROR(Q$4+(1-Q$4)/(1+EXP(-1.7*Q$2*($C107-Q$3))),"") ->  | R107: =IFERROR(R$4+(1-R$4)/(1+EXP(-1.7*R$2*($C107-R$3))),"") ->  | S107: =IFERROR(S$4+(1-S$4)/(1+EXP(-1.7*S$2*($C107-S$3))),"") ->  | T107: =IFERROR(T$4+(1-T$4)/(1+EXP(-1.7*T$2*($C107-T$3))),"") ->  | U107: =IFERROR(U$4+(1-U$4)/(1+EXP(-1.7*U$2*($C107-U$3))),"") ->  | V107: =IFERROR(V$4+(1-V$4)/(1+EXP(-1.7*V$2*($C107-V$3))),"") ->  | W107: =IFERROR(W$4+(1-W$4)/(1+EXP(-1.7*W$2*($C107-W$3))),"") ->  | X107: =IFERROR(X$4+(1-X$4)/(1+EXP(-1.7*X$2*($C107-X$3))),"") ->  | Y107: =IFERROR(Y$4+(1-Y$4)/(1+EXP(-1.7*Y$2*($C107-Y$3))),"") ->  | Z107: =IFERROR(Z$4+(1-Z$4)/(1+EXP(-1.7*Z$2*($C107-Z$3))),"") ->  | AA107: =IFERROR(AA$4+(1-AA$4)/(1+EXP(-1.7*AA$2*($C107-AA$3))),"") ->  | AB107: =IFERROR(AB$4+(1-AB$4)/(1+EXP(-1.7*AB$2*($C107-AB$3))),"") ->  | AC107: =IFERROR(AC$4+(1-AC$4)/(1+EXP(-1.7*AC$2*($C107-AC$3))),"") ->  | AD107: =IFERROR(AD$4+(1-AD$4)/(1+EXP(-1.7*AD$2*($C107-AD$3))),"") ->  | AE107: =IFERROR(AE$4+(1-AE$4)/(1+EXP(-1.7*AE$2*($C107-AE$3))),"") ->  | AF107: =IFERROR(AF$4+(1-AF$4)/(1+EXP(-1.7*AF$2*($C107-AF$3))),"") ->  | AG107: =IFERROR(AG$4+(1-AG$4)/(1+EXP(-1.7*AG$2*($C107-AG$3))),"") -> 
A108: 99 | B108: 0.01824003727 | C108: -3.02 | D108: =IFERROR(D$4+(1-D$4)/(1+EXP(-1.7*D$2*($C108-D$3))),"") -> 0.01636399498 | E108: =IFERROR(E$4+(1-E$4)/(1+EXP(-1.7*E$2*($C108-E$3))),"") -> 0.2261529848 | F108: =IFERROR(F$4+(1-F$4)/(1+EXP(-1.7*F$2*($C108-F$3))),"") -> 0.3237083847 | G108: =IFERROR(G$4+(1-G$4)/(1+EXP(-1.7*G$2*($C108-G$3))),"") -> 0.2733015277 | H108: =IFERROR(H$4+(1-H$4)/(1+EXP(-1.7*H$2*($C108-H$3))),"") -> 0.07318517471 | I108: =IFERROR(I$4+(1-I$4)/(1+EXP(-1.7*I$2*($C108-I$3))),"") ->  | J108: =IFERROR(J$4+(1-J$4)/(1+EXP(-1.7*J$2*($C108-J$3))),"") ->  | K108: =IFERROR(K$4+(1-K$4)/(1+EXP(-1.7*K$2*($C108-K$3))),"") ->  | L108: =IFERROR(L$4+(1-L$4)/(1+EXP(-1.7*L$2*($C108-L$3))),"") ->  | M108: =IFERROR(M$4+(1-M$4)/(1+EXP(-1.7*M$2*($C108-M$3))),"") ->  | N108: =IFERROR(N$4+(1-N$4)/(1+EXP(-1.7*N$2*($C108-N$3))),"") ->  | O108: =IFERROR(O$4+(1-O$4)/(1+EXP(-1.7*O$2*($C108-O$3))),"") ->  | P108: =IFERROR(P$4+(1-P$4)/(1+EXP(-1.7*P$2*($C108-P$3))),"") ->  | Q108: =IFERROR(Q$4+(1-Q$4)/(1+EXP(-1.7*Q$2*($C108-Q$3))),"") ->  | R108: =IFERROR(R$4+(1-R$4)/(1+EXP(-1.7*R$2*($C108-R$3))),"") ->  | S108: =IFERROR(S$4+(1-S$4)/(1+EXP(-1.7*S$2*($C108-S$3))),"") ->  | T108: =IFERROR(T$4+(1-T$4)/(1+EXP(-1.7*T$2*($C108-T$3))),"") ->  | U108: =IFERROR(U$4+(1-U$4)/(1+EXP(-1.7*U$2*($C108-U$3))),"") ->  | V108: =IFERROR(V$4+(1-V$4)/(1+EXP(-1.7*V$2*($C108-V$3))),"") ->  | W108: =IFERROR(W$4+(1-W$4)/(1+EXP(-1.7*W$2*($C108-W$3))),"") ->  | X108: =IFERROR(X$4+(1-X$4)/(1+EXP(-1.7*X$2*($C108-X$3))),"") ->  | Y108: =IFERROR(Y$4+(1-Y$4)/(1+EXP(-1.7*Y$2*($C108-Y$3))),"") ->  | Z108: =IFERROR(Z$4+(1-Z$4)/(1+EXP(-1.7*Z$2*($C108-Z$3))),"") ->  | AA108: =IFERROR(AA$4+(1-AA$4)/(1+EXP(-1.7*AA$2*($C108-AA$3))),"") ->  | AB108: =IFERROR(AB$4+(1-AB$4)/(1+EXP(-1.7*AB$2*($C108-AB$3))),"") ->  | AC108: =IFERROR(AC$4+(1-AC$4)/(1+EXP(-1.7*AC$2*($C108-AC$3))),"") ->  | AD108: =IFERROR(AD$4+(1-AD$4)/(1+EXP(-1.7*AD$2*($C108-AD$3))),"") ->  | AE108: =IFERROR(AE$4+(1-AE$4)/(1+EXP(-1.7*AE$2*($C108-AE$3))),"") ->  | AF108: =IFERROR(AF$4+(1-AF$4)/(1+EXP(-1.7*AF$2*($C108-AF$3))),"") ->  | AG108: =IFERROR(AG$4+(1-AG$4)/(1+EXP(-1.7*AG$2*($C108-AG$3))),"") -> 
A109: 100 | B109: 0.01833969761 | C109: -3.01 | D109: =IFERROR(D$4+(1-D$4)/(1+EXP(-1.7*D$2*($C109-D$3))),"") -> 0.01636948793 | E109: =IFERROR(E$4+(1-E$4)/(1+EXP(-1.7*E$2*($C109-E$3))),"") -> 0.2267741558 | F109: =IFERROR(F$4+(1-F$4)/(1+EXP(-1.7*F$2*($C109-F$3))),"") -> 0.3245871185 | G109: =IFERROR(G$4+(1-G$4)/(1+EXP(-1.7*G$2*($C109-G$3))),"") -> 0.2733017563 | H109: =IFERROR(H$4+(1-H$4)/(1+EXP(-1.7*H$2*($C109-H$3))),"") -> 0.07318529311 | I109: =IFERROR(I$4+(1-I$4)/(1+EXP(-1.7*I$2*($C109-I$3))),"") ->  | J109: =IFERROR(J$4+(1-J$4)/(1+EXP(-1.7*J$2*($C109-J$3))),"") ->  | K109: =IFERROR(K$4+(1-K$4)/(1+EXP(-1.7*K$2*($C109-K$3))),"") ->  | L109: =IFERROR(L$4+(1-L$4)/(1+EXP(-1.7*L$2*($C109-L$3))),"") ->  | M109: =IFERROR(M$4+(1-M$4)/(1+EXP(-1.7*M$2*($C109-M$3))),"") ->  | N109: =IFERROR(N$4+(1-N$4)/(1+EXP(-1.7*N$2*($C109-N$3))),"") ->  | O109: =IFERROR(O$4+(1-O$4)/(1+EXP(-1.7*O$2*($C109-O$3))),"") ->  | P109: =IFERROR(P$4+(1-P$4)/(1+EXP(-1.7*P$2*($C109-P$3))),"") ->  | Q109: =IFERROR(Q$4+(1-Q$4)/(1+EXP(-1.7*Q$2*($C109-Q$3))),"") ->  | R109: =IFERROR(R$4+(1-R$4)/(1+EXP(-1.7*R$2*($C109-R$3))),"") ->  | S109: =IFERROR(S$4+(1-S$4)/(1+EXP(-1.7*S$2*($C109-S$3))),"") ->  | T109: =IFERROR(T$4+(1-T$4)/(1+EXP(-1.7*T$2*($C109-T$3))),"") ->  | U109: =IFERROR(U$4+(1-U$4)/(1+EXP(-1.7*U$2*($C109-U$3))),"") ->  | V109: =IFERROR(V$4+(1-V$4)/(1+EXP(-1.7*V$2*($C109-V$3))),"") ->  | W109: =IFERROR(W$4+(1-W$4)/(1+EXP(-1.7*W$2*($C109-W$3))),"") ->  | X109: =IFERROR(X$4+(1-X$4)/(1+EXP(-1.7*X$2*($C109-X$3))),"") ->  | Y109: =IFERROR(Y$4+(1-Y$4)/(1+EXP(-1.7*Y$2*($C109-Y$3))),"") ->  | Z109: =IFERROR(Z$4+(1-Z$4)/(1+EXP(-1.7*Z$2*($C109-Z$3))),"") ->  | AA109: =IFERROR(AA$4+(1-AA$4)/(1+EXP(-1.7*AA$2*($C109-AA$3))),"") ->  | AB109: =IFERROR(AB$4+(1-AB$4)/(1+EXP(-1.7*AB$2*($C109-AB$3))),"") ->  | AC109: =IFERROR(AC$4+(1-AC$4)/(1+EXP(-1.7*AC$2*($C109-AC$3))),"") ->  | AD109: =IFERROR(AD$4+(1-AD$4)/(1+EXP(-1.7*AD$2*($C109-AD$3))),"") ->  | AE109: =IFERROR(AE$4+(1-AE$4)/(1+EXP(-1.7*AE$2*($C109-AE$3))),"") ->  | AF109: =IFERROR(AF$4+(1-AF$4)/(1+EXP(-1.7*AF$2*($C109-AF$3))),"") ->  | AG109: =IFERROR(AG$4+(1-AG$4)/(1+EXP(-1.7*AG$2*($C109-AG$3))),"") -> 
A110: 101 | B110: 0.01844089989 | C110: -3 | D110: =IFERROR(D$4+(1-D$4)/(1+EXP(-1.7*D$2*($C110-D$3))),"") -> 0.01637507736 | E110: =IFERROR(E$4+(1-E$4)/(1+EXP(-1.7*E$2*($C110-E$3))),"") -> 0.2274046196 | F110: =IFERROR(F$4+(1-F$4)/(1+EXP(-1.7*F$2*($C110-F$3))),"") -> 0.3254750111 | G110: =IFERROR(G$4+(1-G$4)/(1+EXP(-1.7*G$2*($C110-G$3))),"") -> 0.2733019892 | H110: =IFERROR(H$4+(1-H$4)/(1+EXP(-1.7*H$2*($C110-H$3))),"") -> 0.07318541394 | I110: =IFERROR(I$4+(1-I$4)/(1+EXP(-1.7*I$2*($C110-I$3))),"") ->  | J110: =IFERROR(J$4+(1-J$4)/(1+EXP(-1.7*J$2*($C110-J$3))),"") ->  | K110: =IFERROR(K$4+(1-K$4)/(1+EXP(-1.7*K$2*($C110-K$3))),"") ->  | L110: =IFERROR(L$4+(1-L$4)/(1+EXP(-1.7*L$2*($C110-L$3))),"") ->  | M110: =IFERROR(M$4+(1-M$4)/(1+EXP(-1.7*M$2*($C110-M$3))),"") ->  | N110: =IFERROR(N$4+(1-N$4)/(1+EXP(-1.7*N$2*($C110-N$3))),"") ->  | O110: =IFERROR(O$4+(1-O$4)/(1+EXP(-1.7*O$2*($C110-O$3))),"") ->  | P110: =IFERROR(P$4+(1-P$4)/(1+EXP(-1.7*P$2*($C110-P$3))),"") ->  | Q110: =IFERROR(Q$4+(1-Q$4)/(1+EXP(-1.7*Q$2*($C110-Q$3))),"") ->  | R110: =IFERROR(R$4+(1-R$4)/(1+EXP(-1.7*R$2*($C110-R$3))),"") ->  | S110: =IFERROR(S$4+(1-S$4)/(1+EXP(-1.7*S$2*($C110-S$3))),"") ->  | T110: =IFERROR(T$4+(1-T$4)/(1+EXP(-1.7*T$2*($C110-T$3))),"") ->  | U110: =IFERROR(U$4+(1-U$4)/(1+EXP(-1.7*U$2*($C110-U$3))),"") ->  | V110: =IFERROR(V$4+(1-V$4)/(1+EXP(-1.7*V$2*($C110-V$3))),"") ->  | W110: =IFERROR(W$4+(1-W$4)/(1+EXP(-1.7*W$2*($C110-W$3))),"") ->  | X110: =IFERROR(X$4+(1-X$4)/(1+EXP(-1.7*X$2*($C110-X$3))),"") ->  | Y110: =IFERROR(Y$4+(1-Y$4)/(1+EXP(-1.7*Y$2*($C110-Y$3))),"") ->  | Z110: =IFERROR(Z$4+(1-Z$4)/(1+EXP(-1.7*Z$2*($C110-Z$3))),"") ->  | AA110: =IFERROR(AA$4+(1-AA$4)/(1+EXP(-1.7*AA$2*($C110-AA$3))),"") ->  | AB110: =IFERROR(AB$4+(1-AB$4)/(1+EXP(-1.7*AB$2*($C110-AB$3))),"") ->  | AC110: =IFERROR(AC$4+(1-AC$4)/(1+EXP(-1.7*AC$2*($C110-AC$3))),"") ->  | AD110: =IFERROR(AD$4+(1-AD$4)/(1+EXP(-1.7*AD$2*($C110-AD$3))),"") ->  | AE110: =IFERROR(AE$4+(1-AE$4)/(1+EXP(-1.7*AE$2*($C110-AE$3))),"") ->  | AF110: =IFERROR(AF$4+(1-AF$4)/(1+EXP(-1.7*AF$2*($C110-AF$3))),"") ->  | AG110: =IFERROR(AG$4+(1-AG$4)/(1+EXP(-1.7*AG$2*($C110-AG$3))),"") -> 
A111: 102 | B111: 0.01854366834 | C111: -2.99 | D111: =IFERROR(D$4+(1-D$4)/(1+EXP(-1.7*D$2*($C111-D$3))),"") -> 0.01638076496 | E111: =IFERROR(E$4+(1-E$4)/(1+EXP(-1.7*E$2*($C111-E$3))),"") -> 0.2280444986 | F111: =IFERROR(F$4+(1-F$4)/(1+EXP(-1.7*F$2*($C111-F$3))),"") -> 0.3263721304 | G111: =IFERROR(G$4+(1-G$4)/(1+EXP(-1.7*G$2*($C111-G$3))),"") -> 0.2733022265 | H111: =IFERROR(H$4+(1-H$4)/(1+EXP(-1.7*H$2*($C111-H$3))),"") -> 0.07318553726 | I111: =IFERROR(I$4+(1-I$4)/(1+EXP(-1.7*I$2*($C111-I$3))),"") ->  | J111: =IFERROR(J$4+(1-J$4)/(1+EXP(-1.7*J$2*($C111-J$3))),"") ->  | K111: =IFERROR(K$4+(1-K$4)/(1+EXP(-1.7*K$2*($C111-K$3))),"") ->  | L111: =IFERROR(L$4+(1-L$4)/(1+EXP(-1.7*L$2*($C111-L$3))),"") ->  | M111: =IFERROR(M$4+(1-M$4)/(1+EXP(-1.7*M$2*($C111-M$3))),"") ->  | N111: =IFERROR(N$4+(1-N$4)/(1+EXP(-1.7*N$2*($C111-N$3))),"") ->  | O111: =IFERROR(O$4+(1-O$4)/(1+EXP(-1.7*O$2*($C111-O$3))),"") ->  | P111: =IFERROR(P$4+(1-P$4)/(1+EXP(-1.7*P$2*($C111-P$3))),"") ->  | Q111: =IFERROR(Q$4+(1-Q$4)/(1+EXP(-1.7*Q$2*($C111-Q$3))),"") ->  | R111: =IFERROR(R$4+(1-R$4)/(1+EXP(-1.7*R$2*($C111-R$3))),"") ->  | S111: =IFERROR(S$4+(1-S$4)/(1+EXP(-1.7*S$2*($C111-S$3))),"") ->  | T111: =IFERROR(T$4+(1-T$4)/(1+EXP(-1.7*T$2*($C111-T$3))),"") ->  | U111: =IFERROR(U$4+(1-U$4)/(1+EXP(-1.7*U$2*($C111-U$3))),"") ->  | V111: =IFERROR(V$4+(1-V$4)/(1+EXP(-1.7*V$2*($C111-V$3))),"") ->  | W111: =IFERROR(W$4+(1-W$4)/(1+EXP(-1.7*W$2*($C111-W$3))),"") ->  | X111: =IFERROR(X$4+(1-X$4)/(1+EXP(-1.7*X$2*($C111-X$3))),"") ->  | Y111: =IFERROR(Y$4+(1-Y$4)/(1+EXP(-1.7*Y$2*($C111-Y$3))),"") ->  | Z111: =IFERROR(Z$4+(1-Z$4)/(1+EXP(-1.7*Z$2*($C111-Z$3))),"") ->  | AA111: =IFERROR(AA$4+(1-AA$4)/(1+EXP(-1.7*AA$2*($C111-AA$3))),"") ->  | AB111: =IFERROR(AB$4+(1-AB$4)/(1+EXP(-1.7*AB$2*($C111-AB$3))),"") ->  | AC111: =IFERROR(AC$4+(1-AC$4)/(1+EXP(-1.7*AC$2*($C111-AC$3))),"") ->  | AD111: =IFERROR(AD$4+(1-AD$4)/(1+EXP(-1.7*AD$2*($C111-AD$3))),"") ->  | AE111: =IFERROR(AE$4+(1-AE$4)/(1+EXP(-1.7*AE$2*($C111-AE$3))),"") ->  | AF111: =IFERROR(AF$4+(1-AF$4)/(1+EXP(-1.7*AF$2*($C111-AF$3))),"") ->  | AG111: =IFERROR(AG$4+(1-AG$4)/(1+EXP(-1.7*AG$2*($C111-AG$3))),"") -> 
A112: 103 | B112: 0.01864802756 | C112: -2.98 | D112: =IFERROR(D$4+(1-D$4)/(1+EXP(-1.7*D$2*($C112-D$3))),"") -> 0.01638655246 | E112: =IFERROR(E$4+(1-E$4)/(1+EXP(-1.7*E$2*($C112-E$3))),"") -> 0.2286939169 | F112: =IFERROR(F$4+(1-F$4)/(1+EXP(-1.7*F$2*($C112-F$3))),"") -> 0.3272785444 | G112: =IFERROR(G$4+(1-G$4)/(1+EXP(-1.7*G$2*($C112-G$3))),"") -> 0.2733024682 | H112: =IFERROR(H$4+(1-H$4)/(1+EXP(-1.7*H$2*($C112-H$3))),"") -> 0.0731856631 | I112: =IFERROR(I$4+(1-I$4)/(1+EXP(-1.7*I$2*($C112-I$3))),"") ->  | J112: =IFERROR(J$4+(1-J$4)/(1+EXP(-1.7*J$2*($C112-J$3))),"") ->  | K112: =IFERROR(K$4+(1-K$4)/(1+EXP(-1.7*K$2*($C112-K$3))),"") ->  | L112: =IFERROR(L$4+(1-L$4)/(1+EXP(-1.7*L$2*($C112-L$3))),"") ->  | M112: =IFERROR(M$4+(1-M$4)/(1+EXP(-1.7*M$2*($C112-M$3))),"") ->  | N112: =IFERROR(N$4+(1-N$4)/(1+EXP(-1.7*N$2*($C112-N$3))),"") ->  | O112: =IFERROR(O$4+(1-O$4)/(1+EXP(-1.7*O$2*($C112-O$3))),"") ->  | P112: =IFERROR(P$4+(1-P$4)/(1+EXP(-1.7*P$2*($C112-P$3))),"") ->  | Q112: =IFERROR(Q$4+(1-Q$4)/(1+EXP(-1.7*Q$2*($C112-Q$3))),"") ->  | R112: =IFERROR(R$4+(1-R$4)/(1+EXP(-1.7*R$2*($C112-R$3))),"") ->  | S112: =IFERROR(S$4+(1-S$4)/(1+EXP(-1.7*S$2*($C112-S$3))),"") ->  | T112: =IFERROR(T$4+(1-T$4)/(1+EXP(-1.7*T$2*($C112-T$3))),"") ->  | U112: =IFERROR(U$4+(1-U$4)/(1+EXP(-1.7*U$2*($C112-U$3))),"") ->  | V112: =IFERROR(V$4+(1-V$4)/(1+EXP(-1.7*V$2*($C112-V$3))),"") ->  | W112: =IFERROR(W$4+(1-W$4)/(1+EXP(-1.7*W$2*($C112-W$3))),"") ->  | X112: =IFERROR(X$4+(1-X$4)/(1+EXP(-1.7*X$2*($C112-X$3))),"") ->  | Y112: =IFERROR(Y$4+(1-Y$4)/(1+EXP(-1.7*Y$2*($C112-Y$3))),"") ->  | Z112: =IFERROR(Z$4+(1-Z$4)/(1+EXP(-1.7*Z$2*($C112-Z$3))),"") ->  | AA112: =IFERROR(AA$4+(1-AA$4)/(1+EXP(-1.7*AA$2*($C112-AA$3))),"") ->  | AB112: =IFERROR(AB$4+(1-AB$4)/(1+EXP(-1.7*AB$2*($C112-AB$3))),"") ->  | AC112: =IFERROR(AC$4+(1-AC$4)/(1+EXP(-1.7*AC$2*($C112-AC$3))),"") ->  | AD112: =IFERROR(AD$4+(1-AD$4)/(1+EXP(-1.7*AD$2*($C112-AD$3))),"") ->  | AE112: =IFERROR(AE$4+(1-AE$4)/(1+EXP(-1.7*AE$2*($C112-AE$3))),"") ->  | AF112: =IFERROR(AF$4+(1-AF$4)/(1+EXP(-1.7*AF$2*($C112-AF$3))),"") ->  | AG112: =IFERROR(AG$4+(1-AG$4)/(1+EXP(-1.7*AG$2*($C112-AG$3))),"") -> 
A113: 104 | B113: 0.01875400253 | C113: -2.97 | D113: =IFERROR(D$4+(1-D$4)/(1+EXP(-1.7*D$2*($C113-D$3))),"") -> 0.0163924416 | E113: =IFERROR(E$4+(1-E$4)/(1+EXP(-1.7*E$2*($C113-E$3))),"") -> 0.2293529992 | F113: =IFERROR(F$4+(1-F$4)/(1+EXP(-1.7*F$2*($C113-F$3))),"") -> 0.3281943204 | G113: =IFERROR(G$4+(1-G$4)/(1+EXP(-1.7*G$2*($C113-G$3))),"") -> 0.2733027144 | H113: =IFERROR(H$4+(1-H$4)/(1+EXP(-1.7*H$2*($C113-H$3))),"") -> 0.07318579153 | I113: =IFERROR(I$4+(1-I$4)/(1+EXP(-1.7*I$2*($C113-I$3))),"") ->  | J113: =IFERROR(J$4+(1-J$4)/(1+EXP(-1.7*J$2*($C113-J$3))),"") ->  | K113: =IFERROR(K$4+(1-K$4)/(1+EXP(-1.7*K$2*($C113-K$3))),"") ->  | L113: =IFERROR(L$4+(1-L$4)/(1+EXP(-1.7*L$2*($C113-L$3))),"") ->  | M113: =IFERROR(M$4+(1-M$4)/(1+EXP(-1.7*M$2*($C113-M$3))),"") ->  | N113: =IFERROR(N$4+(1-N$4)/(1+EXP(-1.7*N$2*($C113-N$3))),"") ->  | O113: =IFERROR(O$4+(1-O$4)/(1+EXP(-1.7*O$2*($C113-O$3))),"") ->  | P113: =IFERROR(P$4+(1-P$4)/(1+EXP(-1.7*P$2*($C113-P$3))),"") ->  | Q113: =IFERROR(Q$4+(1-Q$4)/(1+EXP(-1.7*Q$2*($C113-Q$3))),"") ->  | R113: =IFERROR(R$4+(1-R$4)/(1+EXP(-1.7*R$2*($C113-R$3))),"") ->  | S113: =IFERROR(S$4+(1-S$4)/(1+EXP(-1.7*S$2*($C113-S$3))),"") ->  | T113: =IFERROR(T$4+(1-T$4)/(1+EXP(-1.7*T$2*($C113-T$3))),"") ->  | U113: =IFERROR(U$4+(1-U$4)/(1+EXP(-1.7*U$2*($C113-U$3))),"") ->  | V113: =IFERROR(V$4+(1-V$4)/(1+EXP(-1.7*V$2*($C113-V$3))),"") ->  | W113: =IFERROR(W$4+(1-W$4)/(1+EXP(-1.7*W$2*($C113-W$3))),"") ->  | X113: =IFERROR(X$4+(1-X$4)/(1+EXP(-1.7*X$2*($C113-X$3))),"") ->  | Y113: =IFERROR(Y$4+(1-Y$4)/(1+EXP(-1.7*Y$2*($C113-Y$3))),"") ->  | Z113: =IFERROR(Z$4+(1-Z$4)/(1+EXP(-1.7*Z$2*($C113-Z$3))),"") ->  | AA113: =IFERROR(AA$4+(1-AA$4)/(1+EXP(-1.7*AA$2*($C113-AA$3))),"") ->  | AB113: =IFERROR(AB$4+(1-AB$4)/(1+EXP(-1.7*AB$2*($C113-AB$3))),"") ->  | AC113: =IFERROR(AC$4+(1-AC$4)/(1+EXP(-1.7*AC$2*($C113-AC$3))),"") ->  | AD113: =IFERROR(AD$4+(1-AD$4)/(1+EXP(-1.7*AD$2*($C113-AD$3))),"") ->  | AE113: =IFERROR(AE$4+(1-AE$4)/(1+EXP(-1.7*AE$2*($C113-AE$3))),"") ->  | AF113: =IFERROR(AF$4+(1-AF$4)/(1+EXP(-1.7*AF$2*($C113-AF$3))),"") ->  | AG113: =IFERROR(AG$4+(1-AG$4)/(1+EXP(-1.7*AG$2*($C113-AG$3))),"") -> 
A114: 105 | B114: 0.01886161857 | C114: -2.96 | D114: =IFERROR(D$4+(1-D$4)/(1+EXP(-1.7*D$2*($C114-D$3))),"") -> 0.01639843417 | E114: =IFERROR(E$4+(1-E$4)/(1+EXP(-1.7*E$2*($C114-E$3))),"") -> 0.2300218714 | F114: =IFERROR(F$4+(1-F$4)/(1+EXP(-1.7*F$2*($C114-F$3))),"") -> 0.329119526 | G114: =IFERROR(G$4+(1-G$4)/(1+EXP(-1.7*G$2*($C114-G$3))),"") -> 0.2733029652 | H114: =IFERROR(H$4+(1-H$4)/(1+EXP(-1.7*H$2*($C114-H$3))),"") -> 0.07318592259 | I114: =IFERROR(I$4+(1-I$4)/(1+EXP(-1.7*I$2*($C114-I$3))),"") ->  | J114: =IFERROR(J$4+(1-J$4)/(1+EXP(-1.7*J$2*($C114-J$3))),"") ->  | K114: =IFERROR(K$4+(1-K$4)/(1+EXP(-1.7*K$2*($C114-K$3))),"") ->  | L114: =IFERROR(L$4+(1-L$4)/(1+EXP(-1.7*L$2*($C114-L$3))),"") ->  | M114: =IFERROR(M$4+(1-M$4)/(1+EXP(-1.7*M$2*($C114-M$3))),"") ->  | N114: =IFERROR(N$4+(1-N$4)/(1+EXP(-1.7*N$2*($C114-N$3))),"") ->  | O114: =IFERROR(O$4+(1-O$4)/(1+EXP(-1.7*O$2*($C114-O$3))),"") ->  | P114: =IFERROR(P$4+(1-P$4)/(1+EXP(-1.7*P$2*($C114-P$3))),"") ->  | Q114: =IFERROR(Q$4+(1-Q$4)/(1+EXP(-1.7*Q$2*($C114-Q$3))),"") ->  | R114: =IFERROR(R$4+(1-R$4)/(1+EXP(-1.7*R$2*($C114-R$3))),"") ->  | S114: =IFERROR(S$4+(1-S$4)/(1+EXP(-1.7*S$2*($C114-S$3))),"") ->  | T114: =IFERROR(T$4+(1-T$4)/(1+EXP(-1.7*T$2*($C114-T$3))),"") ->  | U114: =IFERROR(U$4+(1-U$4)/(1+EXP(-1.7*U$2*($C114-U$3))),"") ->  | V114: =IFERROR(V$4+(1-V$4)/(1+EXP(-1.7*V$2*($C114-V$3))),"") ->  | W114: =IFERROR(W$4+(1-W$4)/(1+EXP(-1.7*W$2*($C114-W$3))),"") ->  | X114: =IFERROR(X$4+(1-X$4)/(1+EXP(-1.7*X$2*($C114-X$3))),"") ->  | Y114: =IFERROR(Y$4+(1-Y$4)/(1+EXP(-1.7*Y$2*($C114-Y$3))),"") ->  | Z114: =IFERROR(Z$4+(1-Z$4)/(1+EXP(-1.7*Z$2*($C114-Z$3))),"") ->  | AA114: =IFERROR(AA$4+(1-AA$4)/(1+EXP(-1.7*AA$2*($C114-AA$3))),"") ->  | AB114: =IFERROR(AB$4+(1-AB$4)/(1+EXP(-1.7*AB$2*($C114-AB$3))),"") ->  | AC114: =IFERROR(AC$4+(1-AC$4)/(1+EXP(-1.7*AC$2*($C114-AC$3))),"") ->  | AD114: =IFERROR(AD$4+(1-AD$4)/(1+EXP(-1.7*AD$2*($C114-AD$3))),"") ->  | AE114: =IFERROR(AE$4+(1-AE$4)/(1+EXP(-1.7*AE$2*($C114-AE$3))),"") ->  | AF114: =IFERROR(AF$4+(1-AF$4)/(1+EXP(-1.7*AF$2*($C114-AF$3))),"") ->  | AG114: =IFERROR(AG$4+(1-AG$4)/(1+EXP(-1.7*AG$2*($C114-AG$3))),"") -> 
A115: 106 | B115: 0.0189709014 | C115: -2.95 | D115: =IFERROR(D$4+(1-D$4)/(1+EXP(-1.7*D$2*($C115-D$3))),"") -> 0.016404532 | E115: =IFERROR(E$4+(1-E$4)/(1+EXP(-1.7*E$2*($C115-E$3))),"") -> 0.2307006607 | F115: =IFERROR(F$4+(1-F$4)/(1+EXP(-1.7*F$2*($C115-F$3))),"") -> 0.3300542282 | G115: =IFERROR(G$4+(1-G$4)/(1+EXP(-1.7*G$2*($C115-G$3))),"") -> 0.2733032207 | H115: =IFERROR(H$4+(1-H$4)/(1+EXP(-1.7*H$2*($C115-H$3))),"") -> 0.07318605634 | I115: =IFERROR(I$4+(1-I$4)/(1+EXP(-1.7*I$2*($C115-I$3))),"") ->  | J115: =IFERROR(J$4+(1-J$4)/(1+EXP(-1.7*J$2*($C115-J$3))),"") ->  | K115: =IFERROR(K$4+(1-K$4)/(1+EXP(-1.7*K$2*($C115-K$3))),"") ->  | L115: =IFERROR(L$4+(1-L$4)/(1+EXP(-1.7*L$2*($C115-L$3))),"") ->  | M115: =IFERROR(M$4+(1-M$4)/(1+EXP(-1.7*M$2*($C115-M$3))),"") ->  | N115: =IFERROR(N$4+(1-N$4)/(1+EXP(-1.7*N$2*($C115-N$3))),"") ->  | O115: =IFERROR(O$4+(1-O$4)/(1+EXP(-1.7*O$2*($C115-O$3))),"") ->  | P115: =IFERROR(P$4+(1-P$4)/(1+EXP(-1.7*P$2*($C115-P$3))),"") ->  | Q115: =IFERROR(Q$4+(1-Q$4)/(1+EXP(-1.7*Q$2*($C115-Q$3))),"") ->  | R115: =IFERROR(R$4+(1-R$4)/(1+EXP(-1.7*R$2*($C115-R$3))),"") ->  | S115: =IFERROR(S$4+(1-S$4)/(1+EXP(-1.7*S$2*($C115-S$3))),"") ->  | T115: =IFERROR(T$4+(1-T$4)/(1+EXP(-1.7*T$2*($C115-T$3))),"") ->  | U115: =IFERROR(U$4+(1-U$4)/(1+EXP(-1.7*U$2*($C115-U$3))),"") ->  | V115: =IFERROR(V$4+(1-V$4)/(1+EXP(-1.7*V$2*($C115-V$3))),"") ->  | W115: =IFERROR(W$4+(1-W$4)/(1+EXP(-1.7*W$2*($C115-W$3))),"") ->  | X115: =IFERROR(X$4+(1-X$4)/(1+EXP(-1.7*X$2*($C115-X$3))),"") ->  | Y115: =IFERROR(Y$4+(1-Y$4)/(1+EXP(-1.7*Y$2*($C115-Y$3))),"") ->  | Z115: =IFERROR(Z$4+(1-Z$4)/(1+EXP(-1.7*Z$2*($C115-Z$3))),"") ->  | AA115: =IFERROR(AA$4+(1-AA$4)/(1+EXP(-1.7*AA$2*($C115-AA$3))),"") ->  | AB115: =IFERROR(AB$4+(1-AB$4)/(1+EXP(-1.7*AB$2*($C115-AB$3))),"") ->  | AC115: =IFERROR(AC$4+(1-AC$4)/(1+EXP(-1.7*AC$2*($C115-AC$3))),"") ->  | AD115: =IFERROR(AD$4+(1-AD$4)/(1+EXP(-1.7*AD$2*($C115-AD$3))),"") ->  | AE115: =IFERROR(AE$4+(1-AE$4)/(1+EXP(-1.7*AE$2*($C115-AE$3))),"") ->  | AF115: =IFERROR(AF$4+(1-AF$4)/(1+EXP(-1.7*AF$2*($C115-AF$3))),"") ->  | AG115: =IFERROR(AG$4+(1-AG$4)/(1+EXP(-1.7*AG$2*($C115-AG$3))),"") -> 
A116: 107 | B116: 0.01908187709 | C116: -2.94 | D116: =IFERROR(D$4+(1-D$4)/(1+EXP(-1.7*D$2*($C116-D$3))),"") -> 0.01641073691 | E116: =IFERROR(E$4+(1-E$4)/(1+EXP(-1.7*E$2*($C116-E$3))),"") -> 0.2313894951 | F116: =IFERROR(F$4+(1-F$4)/(1+EXP(-1.7*F$2*($C116-F$3))),"") -> 0.3309984942 | G116: =IFERROR(G$4+(1-G$4)/(1+EXP(-1.7*G$2*($C116-G$3))),"") -> 0.273303481 | H116: =IFERROR(H$4+(1-H$4)/(1+EXP(-1.7*H$2*($C116-H$3))),"") -> 0.07318619284 | I116: =IFERROR(I$4+(1-I$4)/(1+EXP(-1.7*I$2*($C116-I$3))),"") ->  | J116: =IFERROR(J$4+(1-J$4)/(1+EXP(-1.7*J$2*($C116-J$3))),"") ->  | K116: =IFERROR(K$4+(1-K$4)/(1+EXP(-1.7*K$2*($C116-K$3))),"") ->  | L116: =IFERROR(L$4+(1-L$4)/(1+EXP(-1.7*L$2*($C116-L$3))),"") ->  | M116: =IFERROR(M$4+(1-M$4)/(1+EXP(-1.7*M$2*($C116-M$3))),"") ->  | N116: =IFERROR(N$4+(1-N$4)/(1+EXP(-1.7*N$2*($C116-N$3))),"") ->  | O116: =IFERROR(O$4+(1-O$4)/(1+EXP(-1.7*O$2*($C116-O$3))),"") ->  | P116: =IFERROR(P$4+(1-P$4)/(1+EXP(-1.7*P$2*($C116-P$3))),"") ->  | Q116: =IFERROR(Q$4+(1-Q$4)/(1+EXP(-1.7*Q$2*($C116-Q$3))),"") ->  | R116: =IFERROR(R$4+(1-R$4)/(1+EXP(-1.7*R$2*($C116-R$3))),"") ->  | S116: =IFERROR(S$4+(1-S$4)/(1+EXP(-1.7*S$2*($C116-S$3))),"") ->  | T116: =IFERROR(T$4+(1-T$4)/(1+EXP(-1.7*T$2*($C116-T$3))),"") ->  | U116: =IFERROR(U$4+(1-U$4)/(1+EXP(-1.7*U$2*($C116-U$3))),"") ->  | V116: =IFERROR(V$4+(1-V$4)/(1+EXP(-1.7*V$2*($C116-V$3))),"") ->  | W116: =IFERROR(W$4+(1-W$4)/(1+EXP(-1.7*W$2*($C116-W$3))),"") ->  | X116: =IFERROR(X$4+(1-X$4)/(1+EXP(-1.7*X$2*($C116-X$3))),"") ->  | Y116: =IFERROR(Y$4+(1-Y$4)/(1+EXP(-1.7*Y$2*($C116-Y$3))),"") ->  | Z116: =IFERROR(Z$4+(1-Z$4)/(1+EXP(-1.7*Z$2*($C116-Z$3))),"") ->  | AA116: =IFERROR(AA$4+(1-AA$4)/(1+EXP(-1.7*AA$2*($C116-AA$3))),"") ->  | AB116: =IFERROR(AB$4+(1-AB$4)/(1+EXP(-1.7*AB$2*($C116-AB$3))),"") ->  | AC116: =IFERROR(AC$4+(1-AC$4)/(1+EXP(-1.7*AC$2*($C116-AC$3))),"") ->  | AD116: =IFERROR(AD$4+(1-AD$4)/(1+EXP(-1.7*AD$2*($C116-AD$3))),"") ->  | AE116: =IFERROR(AE$4+(1-AE$4)/(1+EXP(-1.7*AE$2*($C116-AE$3))),"") ->  | AF116: =IFERROR(AF$4+(1-AF$4)/(1+EXP(-1.7*AF$2*($C116-AF$3))),"") ->  | AG116: =IFERROR(AG$4+(1-AG$4)/(1+EXP(-1.7*AG$2*($C116-AG$3))),"") -> 
A117: 108 | B117: 0.0191945721 | C117: -2.93 | D117: =IFERROR(D$4+(1-D$4)/(1+EXP(-1.7*D$2*($C117-D$3))),"") -> 0.0164170508 | E117: =IFERROR(E$4+(1-E$4)/(1+EXP(-1.7*E$2*($C117-E$3))),"") -> 0.2320885037 | F117: =IFERROR(F$4+(1-F$4)/(1+EXP(-1.7*F$2*($C117-F$3))),"") -> 0.3319523906 | G117: =IFERROR(G$4+(1-G$4)/(1+EXP(-1.7*G$2*($C117-G$3))),"") -> 0.2733037462 | H117: =IFERROR(H$4+(1-H$4)/(1+EXP(-1.7*H$2*($C117-H$3))),"") -> 0.07318633214 | I117: =IFERROR(I$4+(1-I$4)/(1+EXP(-1.7*I$2*($C117-I$3))),"") ->  | J117: =IFERROR(J$4+(1-J$4)/(1+EXP(-1.7*J$2*($C117-J$3))),"") ->  | K117: =IFERROR(K$4+(1-K$4)/(1+EXP(-1.7*K$2*($C117-K$3))),"") ->  | L117: =IFERROR(L$4+(1-L$4)/(1+EXP(-1.7*L$2*($C117-L$3))),"") ->  | M117: =IFERROR(M$4+(1-M$4)/(1+EXP(-1.7*M$2*($C117-M$3))),"") ->  | N117: =IFERROR(N$4+(1-N$4)/(1+EXP(-1.7*N$2*($C117-N$3))),"") ->  | O117: =IFERROR(O$4+(1-O$4)/(1+EXP(-1.7*O$2*($C117-O$3))),"") ->  | P117: =IFERROR(P$4+(1-P$4)/(1+EXP(-1.7*P$2*($C117-P$3))),"") ->  | Q117: =IFERROR(Q$4+(1-Q$4)/(1+EXP(-1.7*Q$2*($C117-Q$3))),"") ->  | R117: =IFERROR(R$4+(1-R$4)/(1+EXP(-1.7*R$2*($C117-R$3))),"") ->  | S117: =IFERROR(S$4+(1-S$4)/(1+EXP(-1.7*S$2*($C117-S$3))),"") ->  | T117: =IFERROR(T$4+(1-T$4)/(1+EXP(-1.7*T$2*($C117-T$3))),"") ->  | U117: =IFERROR(U$4+(1-U$4)/(1+EXP(-1.7*U$2*($C117-U$3))),"") ->  | V117: =IFERROR(V$4+(1-V$4)/(1+EXP(-1.7*V$2*($C117-V$3))),"") ->  | W117: =IFERROR(W$4+(1-W$4)/(1+EXP(-1.7*W$2*($C117-W$3))),"") ->  | X117: =IFERROR(X$4+(1-X$4)/(1+EXP(-1.7*X$2*($C117-X$3))),"") ->  | Y117: =IFERROR(Y$4+(1-Y$4)/(1+EXP(-1.7*Y$2*($C117-Y$3))),"") ->  | Z117: =IFERROR(Z$4+(1-Z$4)/(1+EXP(-1.7*Z$2*($C117-Z$3))),"") ->  | AA117: =IFERROR(AA$4+(1-AA$4)/(1+EXP(-1.7*AA$2*($C117-AA$3))),"") ->  | AB117: =IFERROR(AB$4+(1-AB$4)/(1+EXP(-1.7*AB$2*($C117-AB$3))),"") ->  | AC117: =IFERROR(AC$4+(1-AC$4)/(1+EXP(-1.7*AC$2*($C117-AC$3))),"") ->  | AD117: =IFERROR(AD$4+(1-AD$4)/(1+EXP(-1.7*AD$2*($C117-AD$3))),"") ->  | AE117: =IFERROR(AE$4+(1-AE$4)/(1+EXP(-1.7*AE$2*($C117-AE$3))),"") ->  | AF117: =IFERROR(AF$4+(1-AF$4)/(1+EXP(-1.7*AF$2*($C117-AF$3))),"") ->  | AG117: =IFERROR(AG$4+(1-AG$4)/(1+EXP(-1.7*AG$2*($C117-AG$3))),"") -> 
A118: 109 | B118: 0.01930901329 | C118: -2.92 | D118: =IFERROR(D$4+(1-D$4)/(1+EXP(-1.7*D$2*($C118-D$3))),"") -> 0.01642347558 | E118: =IFERROR(E$4+(1-E$4)/(1+EXP(-1.7*E$2*($C118-E$3))),"") -> 0.2327978168 | F118: =IFERROR(F$4+(1-F$4)/(1+EXP(-1.7*F$2*($C118-F$3))),"") -> 0.3329159837 | G118: =IFERROR(G$4+(1-G$4)/(1+EXP(-1.7*G$2*($C118-G$3))),"") -> 0.2733040163 | H118: =IFERROR(H$4+(1-H$4)/(1+EXP(-1.7*H$2*($C118-H$3))),"") -> 0.07318647429 | I118: =IFERROR(I$4+(1-I$4)/(1+EXP(-1.7*I$2*($C118-I$3))),"") ->  | J118: =IFERROR(J$4+(1-J$4)/(1+EXP(-1.7*J$2*($C118-J$3))),"") ->  | K118: =IFERROR(K$4+(1-K$4)/(1+EXP(-1.7*K$2*($C118-K$3))),"") ->  | L118: =IFERROR(L$4+(1-L$4)/(1+EXP(-1.7*L$2*($C118-L$3))),"") ->  | M118: =IFERROR(M$4+(1-M$4)/(1+EXP(-1.7*M$2*($C118-M$3))),"") ->  | N118: =IFERROR(N$4+(1-N$4)/(1+EXP(-1.7*N$2*($C118-N$3))),"") ->  | O118: =IFERROR(O$4+(1-O$4)/(1+EXP(-1.7*O$2*($C118-O$3))),"") ->  | P118: =IFERROR(P$4+(1-P$4)/(1+EXP(-1.7*P$2*($C118-P$3))),"") ->  | Q118: =IFERROR(Q$4+(1-Q$4)/(1+EXP(-1.7*Q$2*($C118-Q$3))),"") ->  | R118: =IFERROR(R$4+(1-R$4)/(1+EXP(-1.7*R$2*($C118-R$3))),"") ->  | S118: =IFERROR(S$4+(1-S$4)/(1+EXP(-1.7*S$2*($C118-S$3))),"") ->  | T118: =IFERROR(T$4+(1-T$4)/(1+EXP(-1.7*T$2*($C118-T$3))),"") ->  | U118: =IFERROR(U$4+(1-U$4)/(1+EXP(-1.7*U$2*($C118-U$3))),"") ->  | V118: =IFERROR(V$4+(1-V$4)/(1+EXP(-1.7*V$2*($C118-V$3))),"") ->  | W118: =IFERROR(W$4+(1-W$4)/(1+EXP(-1.7*W$2*($C118-W$3))),"") ->  | X118: =IFERROR(X$4+(1-X$4)/(1+EXP(-1.7*X$2*($C118-X$3))),"") ->  | Y118: =IFERROR(Y$4+(1-Y$4)/(1+EXP(-1.7*Y$2*($C118-Y$3))),"") ->  | Z118: =IFERROR(Z$4+(1-Z$4)/(1+EXP(-1.7*Z$2*($C118-Z$3))),"") ->  | AA118: =IFERROR(AA$4+(1-AA$4)/(1+EXP(-1.7*AA$2*($C118-AA$3))),"") ->  | AB118: =IFERROR(AB$4+(1-AB$4)/(1+EXP(-1.7*AB$2*($C118-AB$3))),"") ->  | AC118: =IFERROR(AC$4+(1-AC$4)/(1+EXP(-1.7*AC$2*($C118-AC$3))),"") ->  | AD118: =IFERROR(AD$4+(1-AD$4)/(1+EXP(-1.7*AD$2*($C118-AD$3))),"") ->  | AE118: =IFERROR(AE$4+(1-AE$4)/(1+EXP(-1.7*AE$2*($C118-AE$3))),"") ->  | AF118: =IFERROR(AF$4+(1-AF$4)/(1+EXP(-1.7*AF$2*($C118-AF$3))),"") ->  | AG118: =IFERROR(AG$4+(1-AG$4)/(1+EXP(-1.7*AG$2*($C118-AG$3))),"") -> 
A119: 110 | B119: 0.01942522787 | C119: -2.91 | D119: =IFERROR(D$4+(1-D$4)/(1+EXP(-1.7*D$2*($C119-D$3))),"") -> 0.01643001319 | E119: =IFERROR(E$4+(1-E$4)/(1+EXP(-1.7*E$2*($C119-E$3))),"") -> 0.2335175656 | F119: =IFERROR(F$4+(1-F$4)/(1+EXP(-1.7*F$2*($C119-F$3))),"") -> 0.3338893399 | G119: =IFERROR(G$4+(1-G$4)/(1+EXP(-1.7*G$2*($C119-G$3))),"") -> 0.2733042914 | H119: =IFERROR(H$4+(1-H$4)/(1+EXP(-1.7*H$2*($C119-H$3))),"") -> 0.07318661937 | I119: =IFERROR(I$4+(1-I$4)/(1+EXP(-1.7*I$2*($C119-I$3))),"") ->  | J119: =IFERROR(J$4+(1-J$4)/(1+EXP(-1.7*J$2*($C119-J$3))),"") ->  | K119: =IFERROR(K$4+(1-K$4)/(1+EXP(-1.7*K$2*($C119-K$3))),"") ->  | L119: =IFERROR(L$4+(1-L$4)/(1+EXP(-1.7*L$2*($C119-L$3))),"") ->  | M119: =IFERROR(M$4+(1-M$4)/(1+EXP(-1.7*M$2*($C119-M$3))),"") ->  | N119: =IFERROR(N$4+(1-N$4)/(1+EXP(-1.7*N$2*($C119-N$3))),"") ->  | O119: =IFERROR(O$4+(1-O$4)/(1+EXP(-1.7*O$2*($C119-O$3))),"") ->  | P119: =IFERROR(P$4+(1-P$4)/(1+EXP(-1.7*P$2*($C119-P$3))),"") ->  | Q119: =IFERROR(Q$4+(1-Q$4)/(1+EXP(-1.7*Q$2*($C119-Q$3))),"") ->  | R119: =IFERROR(R$4+(1-R$4)/(1+EXP(-1.7*R$2*($C119-R$3))),"") ->  | S119: =IFERROR(S$4+(1-S$4)/(1+EXP(-1.7*S$2*($C119-S$3))),"") ->  | T119: =IFERROR(T$4+(1-T$4)/(1+EXP(-1.7*T$2*($C119-T$3))),"") ->  | U119: =IFERROR(U$4+(1-U$4)/(1+EXP(-1.7*U$2*($C119-U$3))),"") ->  | V119: =IFERROR(V$4+(1-V$4)/(1+EXP(-1.7*V$2*($C119-V$3))),"") ->  | W119: =IFERROR(W$4+(1-W$4)/(1+EXP(-1.7*W$2*($C119-W$3))),"") ->  | X119: =IFERROR(X$4+(1-X$4)/(1+EXP(-1.7*X$2*($C119-X$3))),"") ->  | Y119: =IFERROR(Y$4+(1-Y$4)/(1+EXP(-1.7*Y$2*($C119-Y$3))),"") ->  | Z119: =IFERROR(Z$4+(1-Z$4)/(1+EXP(-1.7*Z$2*($C119-Z$3))),"") ->  | AA119: =IFERROR(AA$4+(1-AA$4)/(1+EXP(-1.7*AA$2*($C119-AA$3))),"") ->  | AB119: =IFERROR(AB$4+(1-AB$4)/(1+EXP(-1.7*AB$2*($C119-AB$3))),"") ->  | AC119: =IFERROR(AC$4+(1-AC$4)/(1+EXP(-1.7*AC$2*($C119-AC$3))),"") ->  | AD119: =IFERROR(AD$4+(1-AD$4)/(1+EXP(-1.7*AD$2*($C119-AD$3))),"") ->  | AE119: =IFERROR(AE$4+(1-AE$4)/(1+EXP(-1.7*AE$2*($C119-AE$3))),"") ->  | AF119: =IFERROR(AF$4+(1-AF$4)/(1+EXP(-1.7*AF$2*($C119-AF$3))),"") ->  | AG119: =IFERROR(AG$4+(1-AG$4)/(1+EXP(-1.7*AG$2*($C119-AG$3))),"") -> 
A120: 111 | B120: 0.01954324348 | C120: -2.9 | D120: =IFERROR(D$4+(1-D$4)/(1+EXP(-1.7*D$2*($C120-D$3))),"") -> 0.01643666561 | E120: =IFERROR(E$4+(1-E$4)/(1+EXP(-1.7*E$2*($C120-E$3))),"") -> 0.2342478823 | F120: =IFERROR(F$4+(1-F$4)/(1+EXP(-1.7*F$2*($C120-F$3))),"") -> 0.3348725248 | G120: =IFERROR(G$4+(1-G$4)/(1+EXP(-1.7*G$2*($C120-G$3))),"") -> 0.2733045717 | H120: =IFERROR(H$4+(1-H$4)/(1+EXP(-1.7*H$2*($C120-H$3))),"") -> 0.07318676742 | I120: =IFERROR(I$4+(1-I$4)/(1+EXP(-1.7*I$2*($C120-I$3))),"") ->  | J120: =IFERROR(J$4+(1-J$4)/(1+EXP(-1.7*J$2*($C120-J$3))),"") ->  | K120: =IFERROR(K$4+(1-K$4)/(1+EXP(-1.7*K$2*($C120-K$3))),"") ->  | L120: =IFERROR(L$4+(1-L$4)/(1+EXP(-1.7*L$2*($C120-L$3))),"") ->  | M120: =IFERROR(M$4+(1-M$4)/(1+EXP(-1.7*M$2*($C120-M$3))),"") ->  | N120: =IFERROR(N$4+(1-N$4)/(1+EXP(-1.7*N$2*($C120-N$3))),"") ->  | O120: =IFERROR(O$4+(1-O$4)/(1+EXP(-1.7*O$2*($C120-O$3))),"") ->  | P120: =IFERROR(P$4+(1-P$4)/(1+EXP(-1.7*P$2*($C120-P$3))),"") ->  | Q120: =IFERROR(Q$4+(1-Q$4)/(1+EXP(-1.7*Q$2*($C120-Q$3))),"") ->  | R120: =IFERROR(R$4+(1-R$4)/(1+EXP(-1.7*R$2*($C120-R$3))),"") ->  | S120: =IFERROR(S$4+(1-S$4)/(1+EXP(-1.7*S$2*($C120-S$3))),"") ->  | T120: =IFERROR(T$4+(1-T$4)/(1+EXP(-1.7*T$2*($C120-T$3))),"") ->  | U120: =IFERROR(U$4+(1-U$4)/(1+EXP(-1.7*U$2*($C120-U$3))),"") ->  | V120: =IFERROR(V$4+(1-V$4)/(1+EXP(-1.7*V$2*($C120-V$3))),"") ->  | W120: =IFERROR(W$4+(1-W$4)/(1+EXP(-1.7*W$2*($C120-W$3))),"") ->  | X120: =IFERROR(X$4+(1-X$4)/(1+EXP(-1.7*X$2*($C120-X$3))),"") ->  | Y120: =IFERROR(Y$4+(1-Y$4)/(1+EXP(-1.7*Y$2*($C120-Y$3))),"") ->  | Z120: =IFERROR(Z$4+(1-Z$4)/(1+EXP(-1.7*Z$2*($C120-Z$3))),"") ->  | AA120: =IFERROR(AA$4+(1-AA$4)/(1+EXP(-1.7*AA$2*($C120-AA$3))),"") ->  | AB120: =IFERROR(AB$4+(1-AB$4)/(1+EXP(-1.7*AB$2*($C120-AB$3))),"") ->  | AC120: =IFERROR(AC$4+(1-AC$4)/(1+EXP(-1.7*AC$2*($C120-AC$3))),"") ->  | AD120: =IFERROR(AD$4+(1-AD$4)/(1+EXP(-1.7*AD$2*($C120-AD$3))),"") ->  | AE120: =IFERROR(AE$4+(1-AE$4)/(1+EXP(-1.7*AE$2*($C120-AE$3))),"") ->  | AF120: =IFERROR(AF$4+(1-AF$4)/(1+EXP(-1.7*AF$2*($C120-AF$3))),"") ->  | AG120: =IFERROR(AG$4+(1-AG$4)/(1+EXP(-1.7*AG$2*($C120-AG$3))),"") -> 
A121: 112 | B121: 0.01966308811 | C121: -2.89 | D121: =IFERROR(D$4+(1-D$4)/(1+EXP(-1.7*D$2*($C121-D$3))),"") -> 0.01644343485 | E121: =IFERROR(E$4+(1-E$4)/(1+EXP(-1.7*E$2*($C121-E$3))),"") -> 0.2349889002 | F121: =IFERROR(F$4+(1-F$4)/(1+EXP(-1.7*F$2*($C121-F$3))),"") -> 0.335865604 | G121: =IFERROR(G$4+(1-G$4)/(1+EXP(-1.7*G$2*($C121-G$3))),"") -> 0.2733048572 | H121: =IFERROR(H$4+(1-H$4)/(1+EXP(-1.7*H$2*($C121-H$3))),"") -> 0.07318691851 | I121: =IFERROR(I$4+(1-I$4)/(1+EXP(-1.7*I$2*($C121-I$3))),"") ->  | J121: =IFERROR(J$4+(1-J$4)/(1+EXP(-1.7*J$2*($C121-J$3))),"") ->  | K121: =IFERROR(K$4+(1-K$4)/(1+EXP(-1.7*K$2*($C121-K$3))),"") ->  | L121: =IFERROR(L$4+(1-L$4)/(1+EXP(-1.7*L$2*($C121-L$3))),"") ->  | M121: =IFERROR(M$4+(1-M$4)/(1+EXP(-1.7*M$2*($C121-M$3))),"") ->  | N121: =IFERROR(N$4+(1-N$4)/(1+EXP(-1.7*N$2*($C121-N$3))),"") ->  | O121: =IFERROR(O$4+(1-O$4)/(1+EXP(-1.7*O$2*($C121-O$3))),"") ->  | P121: =IFERROR(P$4+(1-P$4)/(1+EXP(-1.7*P$2*($C121-P$3))),"") ->  | Q121: =IFERROR(Q$4+(1-Q$4)/(1+EXP(-1.7*Q$2*($C121-Q$3))),"") ->  | R121: =IFERROR(R$4+(1-R$4)/(1+EXP(-1.7*R$2*($C121-R$3))),"") ->  | S121: =IFERROR(S$4+(1-S$4)/(1+EXP(-1.7*S$2*($C121-S$3))),"") ->  | T121: =IFERROR(T$4+(1-T$4)/(1+EXP(-1.7*T$2*($C121-T$3))),"") ->  | U121: =IFERROR(U$4+(1-U$4)/(1+EXP(-1.7*U$2*($C121-U$3))),"") ->  | V121: =IFERROR(V$4+(1-V$4)/(1+EXP(-1.7*V$2*($C121-V$3))),"") ->  | W121: =IFERROR(W$4+(1-W$4)/(1+EXP(-1.7*W$2*($C121-W$3))),"") ->  | X121: =IFERROR(X$4+(1-X$4)/(1+EXP(-1.7*X$2*($C121-X$3))),"") ->  | Y121: =IFERROR(Y$4+(1-Y$4)/(1+EXP(-1.7*Y$2*($C121-Y$3))),"") ->  | Z121: =IFERROR(Z$4+(1-Z$4)/(1+EXP(-1.7*Z$2*($C121-Z$3))),"") ->  | AA121: =IFERROR(AA$4+(1-AA$4)/(1+EXP(-1.7*AA$2*($C121-AA$3))),"") ->  | AB121: =IFERROR(AB$4+(1-AB$4)/(1+EXP(-1.7*AB$2*($C121-AB$3))),"") ->  | AC121: =IFERROR(AC$4+(1-AC$4)/(1+EXP(-1.7*AC$2*($C121-AC$3))),"") ->  | AD121: =IFERROR(AD$4+(1-AD$4)/(1+EXP(-1.7*AD$2*($C121-AD$3))),"") ->  | AE121: =IFERROR(AE$4+(1-AE$4)/(1+EXP(-1.7*AE$2*($C121-AE$3))),"") ->  | AF121: =IFERROR(AF$4+(1-AF$4)/(1+EXP(-1.7*AF$2*($C121-AF$3))),"") ->  | AG121: =IFERROR(AG$4+(1-AG$4)/(1+EXP(-1.7*AG$2*($C121-AG$3))),"") -> 
A122: 113 | B122: 0.01978479018 | C122: -2.88 | D122: =IFERROR(D$4+(1-D$4)/(1+EXP(-1.7*D$2*($C122-D$3))),"") -> 0.01645032298 | E122: =IFERROR(E$4+(1-E$4)/(1+EXP(-1.7*E$2*($C122-E$3))),"") -> 0.2357407534 | F122: =IFERROR(F$4+(1-F$4)/(1+EXP(-1.7*F$2*($C122-F$3))),"") -> 0.3368686426 | G122: =IFERROR(G$4+(1-G$4)/(1+EXP(-1.7*G$2*($C122-G$3))),"") -> 0.2733051481 | H122: =IFERROR(H$4+(1-H$4)/(1+EXP(-1.7*H$2*($C122-H$3))),"") -> 0.07318707271 | I122: =IFERROR(I$4+(1-I$4)/(1+EXP(-1.7*I$2*($C122-I$3))),"") ->  | J122: =IFERROR(J$4+(1-J$4)/(1+EXP(-1.7*J$2*($C122-J$3))),"") ->  | K122: =IFERROR(K$4+(1-K$4)/(1+EXP(-1.7*K$2*($C122-K$3))),"") ->  | L122: =IFERROR(L$4+(1-L$4)/(1+EXP(-1.7*L$2*($C122-L$3))),"") ->  | M122: =IFERROR(M$4+(1-M$4)/(1+EXP(-1.7*M$2*($C122-M$3))),"") ->  | N122: =IFERROR(N$4+(1-N$4)/(1+EXP(-1.7*N$2*($C122-N$3))),"") ->  | O122: =IFERROR(O$4+(1-O$4)/(1+EXP(-1.7*O$2*($C122-O$3))),"") ->  | P122: =IFERROR(P$4+(1-P$4)/(1+EXP(-1.7*P$2*($C122-P$3))),"") ->  | Q122: =IFERROR(Q$4+(1-Q$4)/(1+EXP(-1.7*Q$2*($C122-Q$3))),"") ->  | R122: =IFERROR(R$4+(1-R$4)/(1+EXP(-1.7*R$2*($C122-R$3))),"") ->  | S122: =IFERROR(S$4+(1-S$4)/(1+EXP(-1.7*S$2*($C122-S$3))),"") ->  | T122: =IFERROR(T$4+(1-T$4)/(1+EXP(-1.7*T$2*($C122-T$3))),"") ->  | U122: =IFERROR(U$4+(1-U$4)/(1+EXP(-1.7*U$2*($C122-U$3))),"") ->  | V122: =IFERROR(V$4+(1-V$4)/(1+EXP(-1.7*V$2*($C122-V$3))),"") ->  | W122: =IFERROR(W$4+(1-W$4)/(1+EXP(-1.7*W$2*($C122-W$3))),"") ->  | X122: =IFERROR(X$4+(1-X$4)/(1+EXP(-1.7*X$2*($C122-X$3))),"") ->  | Y122: =IFERROR(Y$4+(1-Y$4)/(1+EXP(-1.7*Y$2*($C122-Y$3))),"") ->  | Z122: =IFERROR(Z$4+(1-Z$4)/(1+EXP(-1.7*Z$2*($C122-Z$3))),"") ->  | AA122: =IFERROR(AA$4+(1-AA$4)/(1+EXP(-1.7*AA$2*($C122-AA$3))),"") ->  | AB122: =IFERROR(AB$4+(1-AB$4)/(1+EXP(-1.7*AB$2*($C122-AB$3))),"") ->  | AC122: =IFERROR(AC$4+(1-AC$4)/(1+EXP(-1.7*AC$2*($C122-AC$3))),"") ->  | AD122: =IFERROR(AD$4+(1-AD$4)/(1+EXP(-1.7*AD$2*($C122-AD$3))),"") ->  | AE122: =IFERROR(AE$4+(1-AE$4)/(1+EXP(-1.7*AE$2*($C122-AE$3))),"") ->  | AF122: =IFERROR(AF$4+(1-AF$4)/(1+EXP(-1.7*AF$2*($C122-AF$3))),"") ->  | AG122: =IFERROR(AG$4+(1-AG$4)/(1+EXP(-1.7*AG$2*($C122-AG$3))),"") -> 
A123: 114 | B123: 0.0199083785 | C123: -2.87 | D123: =IFERROR(D$4+(1-D$4)/(1+EXP(-1.7*D$2*($C123-D$3))),"") -> 0.01645733206 | E123: =IFERROR(E$4+(1-E$4)/(1+EXP(-1.7*E$2*($C123-E$3))),"") -> 0.2365035773 | F123: =IFERROR(F$4+(1-F$4)/(1+EXP(-1.7*F$2*($C123-F$3))),"") -> 0.3378817054 | G123: =IFERROR(G$4+(1-G$4)/(1+EXP(-1.7*G$2*($C123-G$3))),"") -> 0.2733054444 | H123: =IFERROR(H$4+(1-H$4)/(1+EXP(-1.7*H$2*($C123-H$3))),"") -> 0.07318723006 | I123: =IFERROR(I$4+(1-I$4)/(1+EXP(-1.7*I$2*($C123-I$3))),"") ->  | J123: =IFERROR(J$4+(1-J$4)/(1+EXP(-1.7*J$2*($C123-J$3))),"") ->  | K123: =IFERROR(K$4+(1-K$4)/(1+EXP(-1.7*K$2*($C123-K$3))),"") ->  | L123: =IFERROR(L$4+(1-L$4)/(1+EXP(-1.7*L$2*($C123-L$3))),"") ->  | M123: =IFERROR(M$4+(1-M$4)/(1+EXP(-1.7*M$2*($C123-M$3))),"") ->  | N123: =IFERROR(N$4+(1-N$4)/(1+EXP(-1.7*N$2*($C123-N$3))),"") ->  | O123: =IFERROR(O$4+(1-O$4)/(1+EXP(-1.7*O$2*($C123-O$3))),"") ->  | P123: =IFERROR(P$4+(1-P$4)/(1+EXP(-1.7*P$2*($C123-P$3))),"") ->  | Q123: =IFERROR(Q$4+(1-Q$4)/(1+EXP(-1.7*Q$2*($C123-Q$3))),"") ->  | R123: =IFERROR(R$4+(1-R$4)/(1+EXP(-1.7*R$2*($C123-R$3))),"") ->  | S123: =IFERROR(S$4+(1-S$4)/(1+EXP(-1.7*S$2*($C123-S$3))),"") ->  | T123: =IFERROR(T$4+(1-T$4)/(1+EXP(-1.7*T$2*($C123-T$3))),"") ->  | U123: =IFERROR(U$4+(1-U$4)/(1+EXP(-1.7*U$2*($C123-U$3))),"") ->  | V123: =IFERROR(V$4+(1-V$4)/(1+EXP(-1.7*V$2*($C123-V$3))),"") ->  | W123: =IFERROR(W$4+(1-W$4)/(1+EXP(-1.7*W$2*($C123-W$3))),"") ->  | X123: =IFERROR(X$4+(1-X$4)/(1+EXP(-1.7*X$2*($C123-X$3))),"") ->  | Y123: =IFERROR(Y$4+(1-Y$4)/(1+EXP(-1.7*Y$2*($C123-Y$3))),"") ->  | Z123: =IFERROR(Z$4+(1-Z$4)/(1+EXP(-1.7*Z$2*($C123-Z$3))),"") ->  | AA123: =IFERROR(AA$4+(1-AA$4)/(1+EXP(-1.7*AA$2*($C123-AA$3))),"") ->  | AB123: =IFERROR(AB$4+(1-AB$4)/(1+EXP(-1.7*AB$2*($C123-AB$3))),"") ->  | AC123: =IFERROR(AC$4+(1-AC$4)/(1+EXP(-1.7*AC$2*($C123-AC$3))),"") ->  | AD123: =IFERROR(AD$4+(1-AD$4)/(1+EXP(-1.7*AD$2*($C123-AD$3))),"") ->  | AE123: =IFERROR(AE$4+(1-AE$4)/(1+EXP(-1.7*AE$2*($C123-AE$3))),"") ->  | AF123: =IFERROR(AF$4+(1-AF$4)/(1+EXP(-1.7*AF$2*($C123-AF$3))),"") ->  | AG123: =IFERROR(AG$4+(1-AG$4)/(1+EXP(-1.7*AG$2*($C123-AG$3))),"") -> 
A124: 115 | B124: 0.02003388227 | C124: -2.86 | D124: =IFERROR(D$4+(1-D$4)/(1+EXP(-1.7*D$2*($C124-D$3))),"") -> 0.01646446423 | E124: =IFERROR(E$4+(1-E$4)/(1+EXP(-1.7*E$2*($C124-E$3))),"") -> 0.237277508 | F124: =IFERROR(F$4+(1-F$4)/(1+EXP(-1.7*F$2*($C124-F$3))),"") -> 0.3389048567 | G124: =IFERROR(G$4+(1-G$4)/(1+EXP(-1.7*G$2*($C124-G$3))),"") -> 0.2733057462 | H124: =IFERROR(H$4+(1-H$4)/(1+EXP(-1.7*H$2*($C124-H$3))),"") -> 0.07318739065 | I124: =IFERROR(I$4+(1-I$4)/(1+EXP(-1.7*I$2*($C124-I$3))),"") ->  | J124: =IFERROR(J$4+(1-J$4)/(1+EXP(-1.7*J$2*($C124-J$3))),"") ->  | K124: =IFERROR(K$4+(1-K$4)/(1+EXP(-1.7*K$2*($C124-K$3))),"") ->  | L124: =IFERROR(L$4+(1-L$4)/(1+EXP(-1.7*L$2*($C124-L$3))),"") ->  | M124: =IFERROR(M$4+(1-M$4)/(1+EXP(-1.7*M$2*($C124-M$3))),"") ->  | N124: =IFERROR(N$4+(1-N$4)/(1+EXP(-1.7*N$2*($C124-N$3))),"") ->  | O124: =IFERROR(O$4+(1-O$4)/(1+EXP(-1.7*O$2*($C124-O$3))),"") ->  | P124: =IFERROR(P$4+(1-P$4)/(1+EXP(-1.7*P$2*($C124-P$3))),"") ->  | Q124: =IFERROR(Q$4+(1-Q$4)/(1+EXP(-1.7*Q$2*($C124-Q$3))),"") ->  | R124: =IFERROR(R$4+(1-R$4)/(1+EXP(-1.7*R$2*($C124-R$3))),"") ->  | S124: =IFERROR(S$4+(1-S$4)/(1+EXP(-1.7*S$2*($C124-S$3))),"") ->  | T124: =IFERROR(T$4+(1-T$4)/(1+EXP(-1.7*T$2*($C124-T$3))),"") ->  | U124: =IFERROR(U$4+(1-U$4)/(1+EXP(-1.7*U$2*($C124-U$3))),"") ->  | V124: =IFERROR(V$4+(1-V$4)/(1+EXP(-1.7*V$2*($C124-V$3))),"") ->  | W124: =IFERROR(W$4+(1-W$4)/(1+EXP(-1.7*W$2*($C124-W$3))),"") ->  | X124: =IFERROR(X$4+(1-X$4)/(1+EXP(-1.7*X$2*($C124-X$3))),"") ->  | Y124: =IFERROR(Y$4+(1-Y$4)/(1+EXP(-1.7*Y$2*($C124-Y$3))),"") ->  | Z124: =IFERROR(Z$4+(1-Z$4)/(1+EXP(-1.7*Z$2*($C124-Z$3))),"") ->  | AA124: =IFERROR(AA$4+(1-AA$4)/(1+EXP(-1.7*AA$2*($C124-AA$3))),"") ->  | AB124: =IFERROR(AB$4+(1-AB$4)/(1+EXP(-1.7*AB$2*($C124-AB$3))),"") ->  | AC124: =IFERROR(AC$4+(1-AC$4)/(1+EXP(-1.7*AC$2*($C124-AC$3))),"") ->  | AD124: =IFERROR(AD$4+(1-AD$4)/(1+EXP(-1.7*AD$2*($C124-AD$3))),"") ->  | AE124: =IFERROR(AE$4+(1-AE$4)/(1+EXP(-1.7*AE$2*($C124-AE$3))),"") ->  | AF124: =IFERROR(AF$4+(1-AF$4)/(1+EXP(-1.7*AF$2*($C124-AF$3))),"") ->  | AG124: =IFERROR(AG$4+(1-AG$4)/(1+EXP(-1.7*AG$2*($C124-AG$3))),"") -> 
A125: 116 | B125: 0.02016133112 | C125: -2.85 | D125: =IFERROR(D$4+(1-D$4)/(1+EXP(-1.7*D$2*($C125-D$3))),"") -> 0.01647172165 | E125: =IFERROR(E$4+(1-E$4)/(1+EXP(-1.7*E$2*($C125-E$3))),"") -> 0.2380626825 | F125: =IFERROR(F$4+(1-F$4)/(1+EXP(-1.7*F$2*($C125-F$3))),"") -> 0.3399381603 | G125: =IFERROR(G$4+(1-G$4)/(1+EXP(-1.7*G$2*($C125-G$3))),"") -> 0.2733060537 | H125: =IFERROR(H$4+(1-H$4)/(1+EXP(-1.7*H$2*($C125-H$3))),"") -> 0.07318755453 | I125: =IFERROR(I$4+(1-I$4)/(1+EXP(-1.7*I$2*($C125-I$3))),"") ->  | J125: =IFERROR(J$4+(1-J$4)/(1+EXP(-1.7*J$2*($C125-J$3))),"") ->  | K125: =IFERROR(K$4+(1-K$4)/(1+EXP(-1.7*K$2*($C125-K$3))),"") ->  | L125: =IFERROR(L$4+(1-L$4)/(1+EXP(-1.7*L$2*($C125-L$3))),"") ->  | M125: =IFERROR(M$4+(1-M$4)/(1+EXP(-1.7*M$2*($C125-M$3))),"") ->  | N125: =IFERROR(N$4+(1-N$4)/(1+EXP(-1.7*N$2*($C125-N$3))),"") ->  | O125: =IFERROR(O$4+(1-O$4)/(1+EXP(-1.7*O$2*($C125-O$3))),"") ->  | P125: =IFERROR(P$4+(1-P$4)/(1+EXP(-1.7*P$2*($C125-P$3))),"") ->  | Q125: =IFERROR(Q$4+(1-Q$4)/(1+EXP(-1.7*Q$2*($C125-Q$3))),"") ->  | R125: =IFERROR(R$4+(1-R$4)/(1+EXP(-1.7*R$2*($C125-R$3))),"") ->  | S125: =IFERROR(S$4+(1-S$4)/(1+EXP(-1.7*S$2*($C125-S$3))),"") ->  | T125: =IFERROR(T$4+(1-T$4)/(1+EXP(-1.7*T$2*($C125-T$3))),"") ->  | U125: =IFERROR(U$4+(1-U$4)/(1+EXP(-1.7*U$2*($C125-U$3))),"") ->  | V125: =IFERROR(V$4+(1-V$4)/(1+EXP(-1.7*V$2*($C125-V$3))),"") ->  | W125: =IFERROR(W$4+(1-W$4)/(1+EXP(-1.7*W$2*($C125-W$3))),"") ->  | X125: =IFERROR(X$4+(1-X$4)/(1+EXP(-1.7*X$2*($C125-X$3))),"") ->  | Y125: =IFERROR(Y$4+(1-Y$4)/(1+EXP(-1.7*Y$2*($C125-Y$3))),"") ->  | Z125: =IFERROR(Z$4+(1-Z$4)/(1+EXP(-1.7*Z$2*($C125-Z$3))),"") ->  | AA125: =IFERROR(AA$4+(1-AA$4)/(1+EXP(-1.7*AA$2*($C125-AA$3))),"") ->  | AB125: =IFERROR(AB$4+(1-AB$4)/(1+EXP(-1.7*AB$2*($C125-AB$3))),"") ->  | AC125: =IFERROR(AC$4+(1-AC$4)/(1+EXP(-1.7*AC$2*($C125-AC$3))),"") ->  | AD125: =IFERROR(AD$4+(1-AD$4)/(1+EXP(-1.7*AD$2*($C125-AD$3))),"") ->  | AE125: =IFERROR(AE$4+(1-AE$4)/(1+EXP(-1.7*AE$2*($C125-AE$3))),"") ->  | AF125: =IFERROR(AF$4+(1-AF$4)/(1+EXP(-1.7*AF$2*($C125-AF$3))),"") ->  | AG125: =IFERROR(AG$4+(1-AG$4)/(1+EXP(-1.7*AG$2*($C125-AG$3))),"") -> 
A126: 117 | B126: 0.02029075506 | C126: -2.84 | D126: =IFERROR(D$4+(1-D$4)/(1+EXP(-1.7*D$2*($C126-D$3))),"") -> 0.01647910651 | E126: =IFERROR(E$4+(1-E$4)/(1+EXP(-1.7*E$2*($C126-E$3))),"") -> 0.238859239 | F126: =IFERROR(F$4+(1-F$4)/(1+EXP(-1.7*F$2*($C126-F$3))),"") -> 0.3409816799 | G126: =IFERROR(G$4+(1-G$4)/(1+EXP(-1.7*G$2*($C126-G$3))),"") -> 0.2733063669 | H126: =IFERROR(H$4+(1-H$4)/(1+EXP(-1.7*H$2*($C126-H$3))),"") -> 0.07318772178 | I126: =IFERROR(I$4+(1-I$4)/(1+EXP(-1.7*I$2*($C126-I$3))),"") ->  | J126: =IFERROR(J$4+(1-J$4)/(1+EXP(-1.7*J$2*($C126-J$3))),"") ->  | K126: =IFERROR(K$4+(1-K$4)/(1+EXP(-1.7*K$2*($C126-K$3))),"") ->  | L126: =IFERROR(L$4+(1-L$4)/(1+EXP(-1.7*L$2*($C126-L$3))),"") ->  | M126: =IFERROR(M$4+(1-M$4)/(1+EXP(-1.7*M$2*($C126-M$3))),"") ->  | N126: =IFERROR(N$4+(1-N$4)/(1+EXP(-1.7*N$2*($C126-N$3))),"") ->  | O126: =IFERROR(O$4+(1-O$4)/(1+EXP(-1.7*O$2*($C126-O$3))),"") ->  | P126: =IFERROR(P$4+(1-P$4)/(1+EXP(-1.7*P$2*($C126-P$3))),"") ->  | Q126: =IFERROR(Q$4+(1-Q$4)/(1+EXP(-1.7*Q$2*($C126-Q$3))),"") ->  | R126: =IFERROR(R$4+(1-R$4)/(1+EXP(-1.7*R$2*($C126-R$3))),"") ->  | S126: =IFERROR(S$4+(1-S$4)/(1+EXP(-1.7*S$2*($C126-S$3))),"") ->  | T126: =IFERROR(T$4+(1-T$4)/(1+EXP(-1.7*T$2*($C126-T$3))),"") ->  | U126: =IFERROR(U$4+(1-U$4)/(1+EXP(-1.7*U$2*($C126-U$3))),"") ->  | V126: =IFERROR(V$4+(1-V$4)/(1+EXP(-1.7*V$2*($C126-V$3))),"") ->  | W126: =IFERROR(W$4+(1-W$4)/(1+EXP(-1.7*W$2*($C126-W$3))),"") ->  | X126: =IFERROR(X$4+(1-X$4)/(1+EXP(-1.7*X$2*($C126-X$3))),"") ->  | Y126: =IFERROR(Y$4+(1-Y$4)/(1+EXP(-1.7*Y$2*($C126-Y$3))),"") ->  | Z126: =IFERROR(Z$4+(1-Z$4)/(1+EXP(-1.7*Z$2*($C126-Z$3))),"") ->  | AA126: =IFERROR(AA$4+(1-AA$4)/(1+EXP(-1.7*AA$2*($C126-AA$3))),"") ->  | AB126: =IFERROR(AB$4+(1-AB$4)/(1+EXP(-1.7*AB$2*($C126-AB$3))),"") ->  | AC126: =IFERROR(AC$4+(1-AC$4)/(1+EXP(-1.7*AC$2*($C126-AC$3))),"") ->  | AD126: =IFERROR(AD$4+(1-AD$4)/(1+EXP(-1.7*AD$2*($C126-AD$3))),"") ->  | AE126: =IFERROR(AE$4+(1-AE$4)/(1+EXP(-1.7*AE$2*($C126-AE$3))),"") ->  | AF126: =IFERROR(AF$4+(1-AF$4)/(1+EXP(-1.7*AF$2*($C126-AF$3))),"") ->  | AG126: =IFERROR(AG$4+(1-AG$4)/(1+EXP(-1.7*AG$2*($C126-AG$3))),"") -> 
A127: 118 | B127: 0.02042218452 | C127: -2.83 | D127: =IFERROR(D$4+(1-D$4)/(1+EXP(-1.7*D$2*($C127-D$3))),"") -> 0.01648662105 | E127: =IFERROR(E$4+(1-E$4)/(1+EXP(-1.7*E$2*($C127-E$3))),"") -> 0.2396673162 | F127: =IFERROR(F$4+(1-F$4)/(1+EXP(-1.7*F$2*($C127-F$3))),"") -> 0.3420354782 | G127: =IFERROR(G$4+(1-G$4)/(1+EXP(-1.7*G$2*($C127-G$3))),"") -> 0.273306686 | H127: =IFERROR(H$4+(1-H$4)/(1+EXP(-1.7*H$2*($C127-H$3))),"") -> 0.07318789246 | I127: =IFERROR(I$4+(1-I$4)/(1+EXP(-1.7*I$2*($C127-I$3))),"") ->  | J127: =IFERROR(J$4+(1-J$4)/(1+EXP(-1.7*J$2*($C127-J$3))),"") ->  | K127: =IFERROR(K$4+(1-K$4)/(1+EXP(-1.7*K$2*($C127-K$3))),"") ->  | L127: =IFERROR(L$4+(1-L$4)/(1+EXP(-1.7*L$2*($C127-L$3))),"") ->  | M127: =IFERROR(M$4+(1-M$4)/(1+EXP(-1.7*M$2*($C127-M$3))),"") ->  | N127: =IFERROR(N$4+(1-N$4)/(1+EXP(-1.7*N$2*($C127-N$3))),"") ->  | O127: =IFERROR(O$4+(1-O$4)/(1+EXP(-1.7*O$2*($C127-O$3))),"") ->  | P127: =IFERROR(P$4+(1-P$4)/(1+EXP(-1.7*P$2*($C127-P$3))),"") ->  | Q127: =IFERROR(Q$4+(1-Q$4)/(1+EXP(-1.7*Q$2*($C127-Q$3))),"") ->  | R127: =IFERROR(R$4+(1-R$4)/(1+EXP(-1.7*R$2*($C127-R$3))),"") ->  | S127: =IFERROR(S$4+(1-S$4)/(1+EXP(-1.7*S$2*($C127-S$3))),"") ->  | T127: =IFERROR(T$4+(1-T$4)/(1+EXP(-1.7*T$2*($C127-T$3))),"") ->  | U127: =IFERROR(U$4+(1-U$4)/(1+EXP(-1.7*U$2*($C127-U$3))),"") ->  | V127: =IFERROR(V$4+(1-V$4)/(1+EXP(-1.7*V$2*($C127-V$3))),"") ->  | W127: =IFERROR(W$4+(1-W$4)/(1+EXP(-1.7*W$2*($C127-W$3))),"") ->  | X127: =IFERROR(X$4+(1-X$4)/(1+EXP(-1.7*X$2*($C127-X$3))),"") ->  | Y127: =IFERROR(Y$4+(1-Y$4)/(1+EXP(-1.7*Y$2*($C127-Y$3))),"") ->  | Z127: =IFERROR(Z$4+(1-Z$4)/(1+EXP(-1.7*Z$2*($C127-Z$3))),"") ->  | AA127: =IFERROR(AA$4+(1-AA$4)/(1+EXP(-1.7*AA$2*($C127-AA$3))),"") ->  | AB127: =IFERROR(AB$4+(1-AB$4)/(1+EXP(-1.7*AB$2*($C127-AB$3))),"") ->  | AC127: =IFERROR(AC$4+(1-AC$4)/(1+EXP(-1.7*AC$2*($C127-AC$3))),"") ->  | AD127: =IFERROR(AD$4+(1-AD$4)/(1+EXP(-1.7*AD$2*($C127-AD$3))),"") ->  | AE127: =IFERROR(AE$4+(1-AE$4)/(1+EXP(-1.7*AE$2*($C127-AE$3))),"") ->  | AF127: =IFERROR(AF$4+(1-AF$4)/(1+EXP(-1.7*AF$2*($C127-AF$3))),"") ->  | AG127: =IFERROR(AG$4+(1-AG$4)/(1+EXP(-1.7*AG$2*($C127-AG$3))),"") -> 
A128: 119 | B128: 0.02055565036 | C128: -2.82 | D128: =IFERROR(D$4+(1-D$4)/(1+EXP(-1.7*D$2*($C128-D$3))),"") -> 0.01649426753 | E128: =IFERROR(E$4+(1-E$4)/(1+EXP(-1.7*E$2*($C128-E$3))),"") -> 0.2404870541 | F128: =IFERROR(F$4+(1-F$4)/(1+EXP(-1.7*F$2*($C128-F$3))),"") -> 0.3430996179 | G128: =IFERROR(G$4+(1-G$4)/(1+EXP(-1.7*G$2*($C128-G$3))),"") -> 0.273307011 | H128: =IFERROR(H$4+(1-H$4)/(1+EXP(-1.7*H$2*($C128-H$3))),"") -> 0.07318806664 | I128: =IFERROR(I$4+(1-I$4)/(1+EXP(-1.7*I$2*($C128-I$3))),"") ->  | J128: =IFERROR(J$4+(1-J$4)/(1+EXP(-1.7*J$2*($C128-J$3))),"") ->  | K128: =IFERROR(K$4+(1-K$4)/(1+EXP(-1.7*K$2*($C128-K$3))),"") ->  | L128: =IFERROR(L$4+(1-L$4)/(1+EXP(-1.7*L$2*($C128-L$3))),"") ->  | M128: =IFERROR(M$4+(1-M$4)/(1+EXP(-1.7*M$2*($C128-M$3))),"") ->  | N128: =IFERROR(N$4+(1-N$4)/(1+EXP(-1.7*N$2*($C128-N$3))),"") ->  | O128: =IFERROR(O$4+(1-O$4)/(1+EXP(-1.7*O$2*($C128-O$3))),"") ->  | P128: =IFERROR(P$4+(1-P$4)/(1+EXP(-1.7*P$2*($C128-P$3))),"") ->  | Q128: =IFERROR(Q$4+(1-Q$4)/(1+EXP(-1.7*Q$2*($C128-Q$3))),"") ->  | R128: =IFERROR(R$4+(1-R$4)/(1+EXP(-1.7*R$2*($C128-R$3))),"") ->  | S128: =IFERROR(S$4+(1-S$4)/(1+EXP(-1.7*S$2*($C128-S$3))),"") ->  | T128: =IFERROR(T$4+(1-T$4)/(1+EXP(-1.7*T$2*($C128-T$3))),"") ->  | U128: =IFERROR(U$4+(1-U$4)/(1+EXP(-1.7*U$2*($C128-U$3))),"") ->  | V128: =IFERROR(V$4+(1-V$4)/(1+EXP(-1.7*V$2*($C128-V$3))),"") ->  | W128: =IFERROR(W$4+(1-W$4)/(1+EXP(-1.7*W$2*($C128-W$3))),"") ->  | X128: =IFERROR(X$4+(1-X$4)/(1+EXP(-1.7*X$2*($C128-X$3))),"") ->  | Y128: =IFERROR(Y$4+(1-Y$4)/(1+EXP(-1.7*Y$2*($C128-Y$3))),"") ->  | Z128: =IFERROR(Z$4+(1-Z$4)/(1+EXP(-1.7*Z$2*($C128-Z$3))),"") ->  | AA128: =IFERROR(AA$4+(1-AA$4)/(1+EXP(-1.7*AA$2*($C128-AA$3))),"") ->  | AB128: =IFERROR(AB$4+(1-AB$4)/(1+EXP(-1.7*AB$2*($C128-AB$3))),"") ->  | AC128: =IFERROR(AC$4+(1-AC$4)/(1+EXP(-1.7*AC$2*($C128-AC$3))),"") ->  | AD128: =IFERROR(AD$4+(1-AD$4)/(1+EXP(-1.7*AD$2*($C128-AD$3))),"") ->  | AE128: =IFERROR(AE$4+(1-AE$4)/(1+EXP(-1.7*AE$2*($C128-AE$3))),"") ->  | AF128: =IFERROR(AF$4+(1-AF$4)/(1+EXP(-1.7*AF$2*($C128-AF$3))),"") ->  | AG128: =IFERROR(AG$4+(1-AG$4)/(1+EXP(-1.7*AG$2*($C128-AG$3))),"") -> 
A129: 120 | B129: 0.02069118384 | C129: -2.81 | D129: =IFERROR(D$4+(1-D$4)/(1+EXP(-1.7*D$2*($C129-D$3))),"") -> 0.01650204829 | E129: =IFERROR(E$4+(1-E$4)/(1+EXP(-1.7*E$2*($C129-E$3))),"") -> 0.2413185933 | F129: =IFERROR(F$4+(1-F$4)/(1+EXP(-1.7*F$2*($C129-F$3))),"") -> 0.3441741608 | G129: =IFERROR(G$4+(1-G$4)/(1+EXP(-1.7*G$2*($C129-G$3))),"") -> 0.2733073421 | H129: =IFERROR(H$4+(1-H$4)/(1+EXP(-1.7*H$2*($C129-H$3))),"") -> 0.0731882444 | I129: =IFERROR(I$4+(1-I$4)/(1+EXP(-1.7*I$2*($C129-I$3))),"") ->  | J129: =IFERROR(J$4+(1-J$4)/(1+EXP(-1.7*J$2*($C129-J$3))),"") ->  | K129: =IFERROR(K$4+(1-K$4)/(1+EXP(-1.7*K$2*($C129-K$3))),"") ->  | L129: =IFERROR(L$4+(1-L$4)/(1+EXP(-1.7*L$2*($C129-L$3))),"") ->  | M129: =IFERROR(M$4+(1-M$4)/(1+EXP(-1.7*M$2*($C129-M$3))),"") ->  | N129: =IFERROR(N$4+(1-N$4)/(1+EXP(-1.7*N$2*($C129-N$3))),"") ->  | O129: =IFERROR(O$4+(1-O$4)/(1+EXP(-1.7*O$2*($C129-O$3))),"") ->  | P129: =IFERROR(P$4+(1-P$4)/(1+EXP(-1.7*P$2*($C129-P$3))),"") ->  | Q129: =IFERROR(Q$4+(1-Q$4)/(1+EXP(-1.7*Q$2*($C129-Q$3))),"") ->  | R129: =IFERROR(R$4+(1-R$4)/(1+EXP(-1.7*R$2*($C129-R$3))),"") ->  | S129: =IFERROR(S$4+(1-S$4)/(1+EXP(-1.7*S$2*($C129-S$3))),"") ->  | T129: =IFERROR(T$4+(1-T$4)/(1+EXP(-1.7*T$2*($C129-T$3))),"") ->  | U129: =IFERROR(U$4+(1-U$4)/(1+EXP(-1.7*U$2*($C129-U$3))),"") ->  | V129: =IFERROR(V$4+(1-V$4)/(1+EXP(-1.7*V$2*($C129-V$3))),"") ->  | W129: =IFERROR(W$4+(1-W$4)/(1+EXP(-1.7*W$2*($C129-W$3))),"") ->  | X129: =IFERROR(X$4+(1-X$4)/(1+EXP(-1.7*X$2*($C129-X$3))),"") ->  | Y129: =IFERROR(Y$4+(1-Y$4)/(1+EXP(-1.7*Y$2*($C129-Y$3))),"") ->  | Z129: =IFERROR(Z$4+(1-Z$4)/(1+EXP(-1.7*Z$2*($C129-Z$3))),"") ->  | AA129: =IFERROR(AA$4+(1-AA$4)/(1+EXP(-1.7*AA$2*($C129-AA$3))),"") ->  | AB129: =IFERROR(AB$4+(1-AB$4)/(1+EXP(-1.7*AB$2*($C129-AB$3))),"") ->  | AC129: =IFERROR(AC$4+(1-AC$4)/(1+EXP(-1.7*AC$2*($C129-AC$3))),"") ->  | AD129: =IFERROR(AD$4+(1-AD$4)/(1+EXP(-1.7*AD$2*($C129-AD$3))),"") ->  | AE129: =IFERROR(AE$4+(1-AE$4)/(1+EXP(-1.7*AE$2*($C129-AE$3))),"") ->  | AF129: =IFERROR(AF$4+(1-AF$4)/(1+EXP(-1.7*AF$2*($C129-AF$3))),"") ->  | AG129: =IFERROR(AG$4+(1-AG$4)/(1+EXP(-1.7*AG$2*($C129-AG$3))),"") -> 
A130: 121 | B130: 0.02082881664 | C130: -2.8 | D130: =IFERROR(D$4+(1-D$4)/(1+EXP(-1.7*D$2*($C130-D$3))),"") -> 0.01650996567 | E130: =IFERROR(E$4+(1-E$4)/(1+EXP(-1.7*E$2*($C130-E$3))),"") -> 0.2421620752 | F130: =IFERROR(F$4+(1-F$4)/(1+EXP(-1.7*F$2*($C130-F$3))),"") -> 0.3452591684 | G130: =IFERROR(G$4+(1-G$4)/(1+EXP(-1.7*G$2*($C130-G$3))),"") -> 0.2733076794 | H130: =IFERROR(H$4+(1-H$4)/(1+EXP(-1.7*H$2*($C130-H$3))),"") -> 0.07318842581 | I130: =IFERROR(I$4+(1-I$4)/(1+EXP(-1.7*I$2*($C130-I$3))),"") ->  | J130: =IFERROR(J$4+(1-J$4)/(1+EXP(-1.7*J$2*($C130-J$3))),"") ->  | K130: =IFERROR(K$4+(1-K$4)/(1+EXP(-1.7*K$2*($C130-K$3))),"") ->  | L130: =IFERROR(L$4+(1-L$4)/(1+EXP(-1.7*L$2*($C130-L$3))),"") ->  | M130: =IFERROR(M$4+(1-M$4)/(1+EXP(-1.7*M$2*($C130-M$3))),"") ->  | N130: =IFERROR(N$4+(1-N$4)/(1+EXP(-1.7*N$2*($C130-N$3))),"") ->  | O130: =IFERROR(O$4+(1-O$4)/(1+EXP(-1.7*O$2*($C130-O$3))),"") ->  | P130: =IFERROR(P$4+(1-P$4)/(1+EXP(-1.7*P$2*($C130-P$3))),"") ->  | Q130: =IFERROR(Q$4+(1-Q$4)/(1+EXP(-1.7*Q$2*($C130-Q$3))),"") ->  | R130: =IFERROR(R$4+(1-R$4)/(1+EXP(-1.7*R$2*($C130-R$3))),"") ->  | S130: =IFERROR(S$4+(1-S$4)/(1+EXP(-1.7*S$2*($C130-S$3))),"") ->  | T130: =IFERROR(T$4+(1-T$4)/(1+EXP(-1.7*T$2*($C130-T$3))),"") ->  | U130: =IFERROR(U$4+(1-U$4)/(1+EXP(-1.7*U$2*($C130-U$3))),"") ->  | V130: =IFERROR(V$4+(1-V$4)/(1+EXP(-1.7*V$2*($C130-V$3))),"") ->  | W130: =IFERROR(W$4+(1-W$4)/(1+EXP(-1.7*W$2*($C130-W$3))),"") ->  | X130: =IFERROR(X$4+(1-X$4)/(1+EXP(-1.7*X$2*($C130-X$3))),"") ->  | Y130: =IFERROR(Y$4+(1-Y$4)/(1+EXP(-1.7*Y$2*($C130-Y$3))),"") ->  | Z130: =IFERROR(Z$4+(1-Z$4)/(1+EXP(-1.7*Z$2*($C130-Z$3))),"") ->  | AA130: =IFERROR(AA$4+(1-AA$4)/(1+EXP(-1.7*AA$2*($C130-AA$3))),"") ->  | AB130: =IFERROR(AB$4+(1-AB$4)/(1+EXP(-1.7*AB$2*($C130-AB$3))),"") ->  | AC130: =IFERROR(AC$4+(1-AC$4)/(1+EXP(-1.7*AC$2*($C130-AC$3))),"") ->  | AD130: =IFERROR(AD$4+(1-AD$4)/(1+EXP(-1.7*AD$2*($C130-AD$3))),"") ->  | AE130: =IFERROR(AE$4+(1-AE$4)/(1+EXP(-1.7*AE$2*($C130-AE$3))),"") ->  | AF130: =IFERROR(AF$4+(1-AF$4)/(1+EXP(-1.7*AF$2*($C130-AF$3))),"") ->  | AG130: =IFERROR(AG$4+(1-AG$4)/(1+EXP(-1.7*AG$2*($C130-AG$3))),"") -> 
A131: 122 | B131: 0.02096858086 | C131: -2.79 | D131: =IFERROR(D$4+(1-D$4)/(1+EXP(-1.7*D$2*($C131-D$3))),"") -> 0.01651802208 | E131: =IFERROR(E$4+(1-E$4)/(1+EXP(-1.7*E$2*($C131-E$3))),"") -> 0.2430176422 | F131: =IFERROR(F$4+(1-F$4)/(1+EXP(-1.7*F$2*($C131-F$3))),"") -> 0.3463547014 | G131: =IFERROR(G$4+(1-G$4)/(1+EXP(-1.7*G$2*($C131-G$3))),"") -> 0.273308023 | H131: =IFERROR(H$4+(1-H$4)/(1+EXP(-1.7*H$2*($C131-H$3))),"") -> 0.07318861093 | I131: =IFERROR(I$4+(1-I$4)/(1+EXP(-1.7*I$2*($C131-I$3))),"") ->  | J131: =IFERROR(J$4+(1-J$4)/(1+EXP(-1.7*J$2*($C131-J$3))),"") ->  | K131: =IFERROR(K$4+(1-K$4)/(1+EXP(-1.7*K$2*($C131-K$3))),"") ->  | L131: =IFERROR(L$4+(1-L$4)/(1+EXP(-1.7*L$2*($C131-L$3))),"") ->  | M131: =IFERROR(M$4+(1-M$4)/(1+EXP(-1.7*M$2*($C131-M$3))),"") ->  | N131: =IFERROR(N$4+(1-N$4)/(1+EXP(-1.7*N$2*($C131-N$3))),"") ->  | O131: =IFERROR(O$4+(1-O$4)/(1+EXP(-1.7*O$2*($C131-O$3))),"") ->  | P131: =IFERROR(P$4+(1-P$4)/(1+EXP(-1.7*P$2*($C131-P$3))),"") ->  | Q131: =IFERROR(Q$4+(1-Q$4)/(1+EXP(-1.7*Q$2*($C131-Q$3))),"") ->  | R131: =IFERROR(R$4+(1-R$4)/(1+EXP(-1.7*R$2*($C131-R$3))),"") ->  | S131: =IFERROR(S$4+(1-S$4)/(1+EXP(-1.7*S$2*($C131-S$3))),"") ->  | T131: =IFERROR(T$4+(1-T$4)/(1+EXP(-1.7*T$2*($C131-T$3))),"") ->  | U131: =IFERROR(U$4+(1-U$4)/(1+EXP(-1.7*U$2*($C131-U$3))),"") ->  | V131: =IFERROR(V$4+(1-V$4)/(1+EXP(-1.7*V$2*($C131-V$3))),"") ->  | W131: =IFERROR(W$4+(1-W$4)/(1+EXP(-1.7*W$2*($C131-W$3))),"") ->  | X131: =IFERROR(X$4+(1-X$4)/(1+EXP(-1.7*X$2*($C131-X$3))),"") ->  | Y131: =IFERROR(Y$4+(1-Y$4)/(1+EXP(-1.7*Y$2*($C131-Y$3))),"") ->  | Z131: =IFERROR(Z$4+(1-Z$4)/(1+EXP(-1.7*Z$2*($C131-Z$3))),"") ->  | AA131: =IFERROR(AA$4+(1-AA$4)/(1+EXP(-1.7*AA$2*($C131-AA$3))),"") ->  | AB131: =IFERROR(AB$4+(1-AB$4)/(1+EXP(-1.7*AB$2*($C131-AB$3))),"") ->  | AC131: =IFERROR(AC$4+(1-AC$4)/(1+EXP(-1.7*AC$2*($C131-AC$3))),"") ->  | AD131: =IFERROR(AD$4+(1-AD$4)/(1+EXP(-1.7*AD$2*($C131-AD$3))),"") ->  | AE131: =IFERROR(AE$4+(1-AE$4)/(1+EXP(-1.7*AE$2*($C131-AE$3))),"") ->  | AF131: =IFERROR(AF$4+(1-AF$4)/(1+EXP(-1.7*AF$2*($C131-AF$3))),"") ->  | AG131: =IFERROR(AG$4+(1-AG$4)/(1+EXP(-1.7*AG$2*($C131-AG$3))),"") -> 
A132: 123 | B132: 0.02111050903 | C132: -2.78 | D132: =IFERROR(D$4+(1-D$4)/(1+EXP(-1.7*D$2*($C132-D$3))),"") -> 0.01652621994 | E132: =IFERROR(E$4+(1-E$4)/(1+EXP(-1.7*E$2*($C132-E$3))),"") -> 0.2438854373 | F132: =IFERROR(F$4+(1-F$4)/(1+EXP(-1.7*F$2*($C132-F$3))),"") -> 0.3474608201 | G132: =IFERROR(G$4+(1-G$4)/(1+EXP(-1.7*G$2*($C132-G$3))),"") -> 0.273308373 | H132: =IFERROR(H$4+(1-H$4)/(1+EXP(-1.7*H$2*($C132-H$3))),"") -> 0.07318879986 | I132: =IFERROR(I$4+(1-I$4)/(1+EXP(-1.7*I$2*($C132-I$3))),"") ->  | J132: =IFERROR(J$4+(1-J$4)/(1+EXP(-1.7*J$2*($C132-J$3))),"") ->  | K132: =IFERROR(K$4+(1-K$4)/(1+EXP(-1.7*K$2*($C132-K$3))),"") ->  | L132: =IFERROR(L$4+(1-L$4)/(1+EXP(-1.7*L$2*($C132-L$3))),"") ->  | M132: =IFERROR(M$4+(1-M$4)/(1+EXP(-1.7*M$2*($C132-M$3))),"") ->  | N132: =IFERROR(N$4+(1-N$4)/(1+EXP(-1.7*N$2*($C132-N$3))),"") ->  | O132: =IFERROR(O$4+(1-O$4)/(1+EXP(-1.7*O$2*($C132-O$3))),"") ->  | P132: =IFERROR(P$4+(1-P$4)/(1+EXP(-1.7*P$2*($C132-P$3))),"") ->  | Q132: =IFERROR(Q$4+(1-Q$4)/(1+EXP(-1.7*Q$2*($C132-Q$3))),"") ->  | R132: =IFERROR(R$4+(1-R$4)/(1+EXP(-1.7*R$2*($C132-R$3))),"") ->  | S132: =IFERROR(S$4+(1-S$4)/(1+EXP(-1.7*S$2*($C132-S$3))),"") ->  | T132: =IFERROR(T$4+(1-T$4)/(1+EXP(-1.7*T$2*($C132-T$3))),"") ->  | U132: =IFERROR(U$4+(1-U$4)/(1+EXP(-1.7*U$2*($C132-U$3))),"") ->  | V132: =IFERROR(V$4+(1-V$4)/(1+EXP(-1.7*V$2*($C132-V$3))),"") ->  | W132: =IFERROR(W$4+(1-W$4)/(1+EXP(-1.7*W$2*($C132-W$3))),"") ->  | X132: =IFERROR(X$4+(1-X$4)/(1+EXP(-1.7*X$2*($C132-X$3))),"") ->  | Y132: =IFERROR(Y$4+(1-Y$4)/(1+EXP(-1.7*Y$2*($C132-Y$3))),"") ->  | Z132: =IFERROR(Z$4+(1-Z$4)/(1+EXP(-1.7*Z$2*($C132-Z$3))),"") ->  | AA132: =IFERROR(AA$4+(1-AA$4)/(1+EXP(-1.7*AA$2*($C132-AA$3))),"") ->  | AB132: =IFERROR(AB$4+(1-AB$4)/(1+EXP(-1.7*AB$2*($C132-AB$3))),"") ->  | AC132: =IFERROR(AC$4+(1-AC$4)/(1+EXP(-1.7*AC$2*($C132-AC$3))),"") ->  | AD132: =IFERROR(AD$4+(1-AD$4)/(1+EXP(-1.7*AD$2*($C132-AD$3))),"") ->  | AE132: =IFERROR(AE$4+(1-AE$4)/(1+EXP(-1.7*AE$2*($C132-AE$3))),"") ->  | AF132: =IFERROR(AF$4+(1-AF$4)/(1+EXP(-1.7*AF$2*($C132-AF$3))),"") ->  | AG132: =IFERROR(AG$4+(1-AG$4)/(1+EXP(-1.7*AG$2*($C132-AG$3))),"") -> 
A133: 124 | B133: 0.0212546341 | C133: -2.77 | D133: =IFERROR(D$4+(1-D$4)/(1+EXP(-1.7*D$2*($C133-D$3))),"") -> 0.01653456174 | E133: =IFERROR(E$4+(1-E$4)/(1+EXP(-1.7*E$2*($C133-E$3))),"") -> 0.2447656044 | F133: =IFERROR(F$4+(1-F$4)/(1+EXP(-1.7*F$2*($C133-F$3))),"") -> 0.348577584 | G133: =IFERROR(G$4+(1-G$4)/(1+EXP(-1.7*G$2*($C133-G$3))),"") -> 0.2733087296 | H133: =IFERROR(H$4+(1-H$4)/(1+EXP(-1.7*H$2*($C133-H$3))),"") -> 0.07318899267 | I133: =IFERROR(I$4+(1-I$4)/(1+EXP(-1.7*I$2*($C133-I$3))),"") ->  | J133: =IFERROR(J$4+(1-J$4)/(1+EXP(-1.7*J$2*($C133-J$3))),"") ->  | K133: =IFERROR(K$4+(1-K$4)/(1+EXP(-1.7*K$2*($C133-K$3))),"") ->  | L133: =IFERROR(L$4+(1-L$4)/(1+EXP(-1.7*L$2*($C133-L$3))),"") ->  | M133: =IFERROR(M$4+(1-M$4)/(1+EXP(-1.7*M$2*($C133-M$3))),"") ->  | N133: =IFERROR(N$4+(1-N$4)/(1+EXP(-1.7*N$2*($C133-N$3))),"") ->  | O133: =IFERROR(O$4+(1-O$4)/(1+EXP(-1.7*O$2*($C133-O$3))),"") ->  | P133: =IFERROR(P$4+(1-P$4)/(1+EXP(-1.7*P$2*($C133-P$3))),"") ->  | Q133: =IFERROR(Q$4+(1-Q$4)/(1+EXP(-1.7*Q$2*($C133-Q$3))),"") ->  | R133: =IFERROR(R$4+(1-R$4)/(1+EXP(-1.7*R$2*($C133-R$3))),"") ->  | S133: =IFERROR(S$4+(1-S$4)/(1+EXP(-1.7*S$2*($C133-S$3))),"") ->  | T133: =IFERROR(T$4+(1-T$4)/(1+EXP(-1.7*T$2*($C133-T$3))),"") ->  | U133: =IFERROR(U$4+(1-U$4)/(1+EXP(-1.7*U$2*($C133-U$3))),"") ->  | V133: =IFERROR(V$4+(1-V$4)/(1+EXP(-1.7*V$2*($C133-V$3))),"") ->  | W133: =IFERROR(W$4+(1-W$4)/(1+EXP(-1.7*W$2*($C133-W$3))),"") ->  | X133: =IFERROR(X$4+(1-X$4)/(1+EXP(-1.7*X$2*($C133-X$3))),"") ->  | Y133: =IFERROR(Y$4+(1-Y$4)/(1+EXP(-1.7*Y$2*($C133-Y$3))),"") ->  | Z133: =IFERROR(Z$4+(1-Z$4)/(1+EXP(-1.7*Z$2*($C133-Z$3))),"") ->  | AA133: =IFERROR(AA$4+(1-AA$4)/(1+EXP(-1.7*AA$2*($C133-AA$3))),"") ->  | AB133: =IFERROR(AB$4+(1-AB$4)/(1+EXP(-1.7*AB$2*($C133-AB$3))),"") ->  | AC133: =IFERROR(AC$4+(1-AC$4)/(1+EXP(-1.7*AC$2*($C133-AC$3))),"") ->  | AD133: =IFERROR(AD$4+(1-AD$4)/(1+EXP(-1.7*AD$2*($C133-AD$3))),"") ->  | AE133: =IFERROR(AE$4+(1-AE$4)/(1+EXP(-1.7*AE$2*($C133-AE$3))),"") ->  | AF133: =IFERROR(AF$4+(1-AF$4)/(1+EXP(-1.7*AF$2*($C133-AF$3))),"") ->  | AG133: =IFERROR(AG$4+(1-AG$4)/(1+EXP(-1.7*AG$2*($C133-AG$3))),"") -> 
A134: 125 | B134: 0.02140098944 | C134: -2.76 | D134: =IFERROR(D$4+(1-D$4)/(1+EXP(-1.7*D$2*($C134-D$3))),"") -> 0.01654305001 | E134: =IFERROR(E$4+(1-E$4)/(1+EXP(-1.7*E$2*($C134-E$3))),"") -> 0.245658288 | F134: =IFERROR(F$4+(1-F$4)/(1+EXP(-1.7*F$2*($C134-F$3))),"") -> 0.3497050521 | G134: =IFERROR(G$4+(1-G$4)/(1+EXP(-1.7*G$2*($C134-G$3))),"") -> 0.2733090928 | H134: =IFERROR(H$4+(1-H$4)/(1+EXP(-1.7*H$2*($C134-H$3))),"") -> 0.07318918943 | I134: =IFERROR(I$4+(1-I$4)/(1+EXP(-1.7*I$2*($C134-I$3))),"") ->  | J134: =IFERROR(J$4+(1-J$4)/(1+EXP(-1.7*J$2*($C134-J$3))),"") ->  | K134: =IFERROR(K$4+(1-K$4)/(1+EXP(-1.7*K$2*($C134-K$3))),"") ->  | L134: =IFERROR(L$4+(1-L$4)/(1+EXP(-1.7*L$2*($C134-L$3))),"") ->  | M134: =IFERROR(M$4+(1-M$4)/(1+EXP(-1.7*M$2*($C134-M$3))),"") ->  | N134: =IFERROR(N$4+(1-N$4)/(1+EXP(-1.7*N$2*($C134-N$3))),"") ->  | O134: =IFERROR(O$4+(1-O$4)/(1+EXP(-1.7*O$2*($C134-O$3))),"") ->  | P134: =IFERROR(P$4+(1-P$4)/(1+EXP(-1.7*P$2*($C134-P$3))),"") ->  | Q134: =IFERROR(Q$4+(1-Q$4)/(1+EXP(-1.7*Q$2*($C134-Q$3))),"") ->  | R134: =IFERROR(R$4+(1-R$4)/(1+EXP(-1.7*R$2*($C134-R$3))),"") ->  | S134: =IFERROR(S$4+(1-S$4)/(1+EXP(-1.7*S$2*($C134-S$3))),"") ->  | T134: =IFERROR(T$4+(1-T$4)/(1+EXP(-1.7*T$2*($C134-T$3))),"") ->  | U134: =IFERROR(U$4+(1-U$4)/(1+EXP(-1.7*U$2*($C134-U$3))),"") ->  | V134: =IFERROR(V$4+(1-V$4)/(1+EXP(-1.7*V$2*($C134-V$3))),"") ->  | W134: =IFERROR(W$4+(1-W$4)/(1+EXP(-1.7*W$2*($C134-W$3))),"") ->  | X134: =IFERROR(X$4+(1-X$4)/(1+EXP(-1.7*X$2*($C134-X$3))),"") ->  | Y134: =IFERROR(Y$4+(1-Y$4)/(1+EXP(-1.7*Y$2*($C134-Y$3))),"") ->  | Z134: =IFERROR(Z$4+(1-Z$4)/(1+EXP(-1.7*Z$2*($C134-Z$3))),"") ->  | AA134: =IFERROR(AA$4+(1-AA$4)/(1+EXP(-1.7*AA$2*($C134-AA$3))),"") ->  | AB134: =IFERROR(AB$4+(1-AB$4)/(1+EXP(-1.7*AB$2*($C134-AB$3))),"") ->  | AC134: =IFERROR(AC$4+(1-AC$4)/(1+EXP(-1.7*AC$2*($C134-AC$3))),"") ->  | AD134: =IFERROR(AD$4+(1-AD$4)/(1+EXP(-1.7*AD$2*($C134-AD$3))),"") ->  | AE134: =IFERROR(AE$4+(1-AE$4)/(1+EXP(-1.7*AE$2*($C134-AE$3))),"") ->  | AF134: =IFERROR(AF$4+(1-AF$4)/(1+EXP(-1.7*AF$2*($C134-AF$3))),"") ->  | AG134: =IFERROR(AG$4+(1-AG$4)/(1+EXP(-1.7*AG$2*($C134-AG$3))),"") -> 
A135: 126 | B135: 0.02154960886 | C135: -2.75 | D135: =IFERROR(D$4+(1-D$4)/(1+EXP(-1.7*D$2*($C135-D$3))),"") -> 0.01655168731 | E135: =IFERROR(E$4+(1-E$4)/(1+EXP(-1.7*E$2*($C135-E$3))),"") -> 0.2465636334 | F135: =IFERROR(F$4+(1-F$4)/(1+EXP(-1.7*F$2*($C135-F$3))),"") -> 0.3508432826 | G135: =IFERROR(G$4+(1-G$4)/(1+EXP(-1.7*G$2*($C135-G$3))),"") -> 0.2733094628 | H135: =IFERROR(H$4+(1-H$4)/(1+EXP(-1.7*H$2*($C135-H$3))),"") -> 0.07318939023 | I135: =IFERROR(I$4+(1-I$4)/(1+EXP(-1.7*I$2*($C135-I$3))),"") ->  | J135: =IFERROR(J$4+(1-J$4)/(1+EXP(-1.7*J$2*($C135-J$3))),"") ->  | K135: =IFERROR(K$4+(1-K$4)/(1+EXP(-1.7*K$2*($C135-K$3))),"") ->  | L135: =IFERROR(L$4+(1-L$4)/(1+EXP(-1.7*L$2*($C135-L$3))),"") ->  | M135: =IFERROR(M$4+(1-M$4)/(1+EXP(-1.7*M$2*($C135-M$3))),"") ->  | N135: =IFERROR(N$4+(1-N$4)/(1+EXP(-1.7*N$2*($C135-N$3))),"") ->  | O135: =IFERROR(O$4+(1-O$4)/(1+EXP(-1.7*O$2*($C135-O$3))),"") ->  | P135: =IFERROR(P$4+(1-P$4)/(1+EXP(-1.7*P$2*($C135-P$3))),"") ->  | Q135: =IFERROR(Q$4+(1-Q$4)/(1+EXP(-1.7*Q$2*($C135-Q$3))),"") ->  | R135: =IFERROR(R$4+(1-R$4)/(1+EXP(-1.7*R$2*($C135-R$3))),"") ->  | S135: =IFERROR(S$4+(1-S$4)/(1+EXP(-1.7*S$2*($C135-S$3))),"") ->  | T135: =IFERROR(T$4+(1-T$4)/(1+EXP(-1.7*T$2*($C135-T$3))),"") ->  | U135: =IFERROR(U$4+(1-U$4)/(1+EXP(-1.7*U$2*($C135-U$3))),"") ->  | V135: =IFERROR(V$4+(1-V$4)/(1+EXP(-1.7*V$2*($C135-V$3))),"") ->  | W135: =IFERROR(W$4+(1-W$4)/(1+EXP(-1.7*W$2*($C135-W$3))),"") ->  | X135: =IFERROR(X$4+(1-X$4)/(1+EXP(-1.7*X$2*($C135-X$3))),"") ->  | Y135: =IFERROR(Y$4+(1-Y$4)/(1+EXP(-1.7*Y$2*($C135-Y$3))),"") ->  | Z135: =IFERROR(Z$4+(1-Z$4)/(1+EXP(-1.7*Z$2*($C135-Z$3))),"") ->  | AA135: =IFERROR(AA$4+(1-AA$4)/(1+EXP(-1.7*AA$2*($C135-AA$3))),"") ->  | AB135: =IFERROR(AB$4+(1-AB$4)/(1+EXP(-1.7*AB$2*($C135-AB$3))),"") ->  | AC135: =IFERROR(AC$4+(1-AC$4)/(1+EXP(-1.7*AC$2*($C135-AC$3))),"") ->  | AD135: =IFERROR(AD$4+(1-AD$4)/(1+EXP(-1.7*AD$2*($C135-AD$3))),"") ->  | AE135: =IFERROR(AE$4+(1-AE$4)/(1+EXP(-1.7*AE$2*($C135-AE$3))),"") ->  | AF135: =IFERROR(AF$4+(1-AF$4)/(1+EXP(-1.7*AF$2*($C135-AF$3))),"") ->  | AG135: =IFERROR(AG$4+(1-AG$4)/(1+EXP(-1.7*AG$2*($C135-AG$3))),"") -> 
A136: 127 | B136: 0.0217005266 | C136: -2.74 | D136: =IFERROR(D$4+(1-D$4)/(1+EXP(-1.7*D$2*($C136-D$3))),"") -> 0.01656047626 | E136: =IFERROR(E$4+(1-E$4)/(1+EXP(-1.7*E$2*($C136-E$3))),"") -> 0.2474817865 | F136: =IFERROR(F$4+(1-F$4)/(1+EXP(-1.7*F$2*($C136-F$3))),"") -> 0.3519923329 | G136: =IFERROR(G$4+(1-G$4)/(1+EXP(-1.7*G$2*($C136-G$3))),"") -> 0.2733098398 | H136: =IFERROR(H$4+(1-H$4)/(1+EXP(-1.7*H$2*($C136-H$3))),"") -> 0.07318959516 | I136: =IFERROR(I$4+(1-I$4)/(1+EXP(-1.7*I$2*($C136-I$3))),"") ->  | J136: =IFERROR(J$4+(1-J$4)/(1+EXP(-1.7*J$2*($C136-J$3))),"") ->  | K136: =IFERROR(K$4+(1-K$4)/(1+EXP(-1.7*K$2*($C136-K$3))),"") ->  | L136: =IFERROR(L$4+(1-L$4)/(1+EXP(-1.7*L$2*($C136-L$3))),"") ->  | M136: =IFERROR(M$4+(1-M$4)/(1+EXP(-1.7*M$2*($C136-M$3))),"") ->  | N136: =IFERROR(N$4+(1-N$4)/(1+EXP(-1.7*N$2*($C136-N$3))),"") ->  | O136: =IFERROR(O$4+(1-O$4)/(1+EXP(-1.7*O$2*($C136-O$3))),"") ->  | P136: =IFERROR(P$4+(1-P$4)/(1+EXP(-1.7*P$2*($C136-P$3))),"") ->  | Q136: =IFERROR(Q$4+(1-Q$4)/(1+EXP(-1.7*Q$2*($C136-Q$3))),"") ->  | R136: =IFERROR(R$4+(1-R$4)/(1+EXP(-1.7*R$2*($C136-R$3))),"") ->  | S136: =IFERROR(S$4+(1-S$4)/(1+EXP(-1.7*S$2*($C136-S$3))),"") ->  | T136: =IFERROR(T$4+(1-T$4)/(1+EXP(-1.7*T$2*($C136-T$3))),"") ->  | U136: =IFERROR(U$4+(1-U$4)/(1+EXP(-1.7*U$2*($C136-U$3))),"") ->  | V136: =IFERROR(V$4+(1-V$4)/(1+EXP(-1.7*V$2*($C136-V$3))),"") ->  | W136: =IFERROR(W$4+(1-W$4)/(1+EXP(-1.7*W$2*($C136-W$3))),"") ->  | X136: =IFERROR(X$4+(1-X$4)/(1+EXP(-1.7*X$2*($C136-X$3))),"") ->  | Y136: =IFERROR(Y$4+(1-Y$4)/(1+EXP(-1.7*Y$2*($C136-Y$3))),"") ->  | Z136: =IFERROR(Z$4+(1-Z$4)/(1+EXP(-1.7*Z$2*($C136-Z$3))),"") ->  | AA136: =IFERROR(AA$4+(1-AA$4)/(1+EXP(-1.7*AA$2*($C136-AA$3))),"") ->  | AB136: =IFERROR(AB$4+(1-AB$4)/(1+EXP(-1.7*AB$2*($C136-AB$3))),"") ->  | AC136: =IFERROR(AC$4+(1-AC$4)/(1+EXP(-1.7*AC$2*($C136-AC$3))),"") ->  | AD136: =IFERROR(AD$4+(1-AD$4)/(1+EXP(-1.7*AD$2*($C136-AD$3))),"") ->  | AE136: =IFERROR(AE$4+(1-AE$4)/(1+EXP(-1.7*AE$2*($C136-AE$3))),"") ->  | AF136: =IFERROR(AF$4+(1-AF$4)/(1+EXP(-1.7*AF$2*($C136-AF$3))),"") ->  | AG136: =IFERROR(AG$4+(1-AG$4)/(1+EXP(-1.7*AG$2*($C136-AG$3))),"") -> 
A137: 128 | B137: 0.0218537773 | C137: -2.73 | D137: =IFERROR(D$4+(1-D$4)/(1+EXP(-1.7*D$2*($C137-D$3))),"") -> 0.01656941952 | E137: =IFERROR(E$4+(1-E$4)/(1+EXP(-1.7*E$2*($C137-E$3))),"") -> 0.2484128939 | F137: =IFERROR(F$4+(1-F$4)/(1+EXP(-1.7*F$2*($C137-F$3))),"") -> 0.3531522598 | G137: =IFERROR(G$4+(1-G$4)/(1+EXP(-1.7*G$2*($C137-G$3))),"") -> 0.2733102237 | H137: =IFERROR(H$4+(1-H$4)/(1+EXP(-1.7*H$2*($C137-H$3))),"") -> 0.07318980429 | I137: =IFERROR(I$4+(1-I$4)/(1+EXP(-1.7*I$2*($C137-I$3))),"") ->  | J137: =IFERROR(J$4+(1-J$4)/(1+EXP(-1.7*J$2*($C137-J$3))),"") ->  | K137: =IFERROR(K$4+(1-K$4)/(1+EXP(-1.7*K$2*($C137-K$3))),"") ->  | L137: =IFERROR(L$4+(1-L$4)/(1+EXP(-1.7*L$2*($C137-L$3))),"") ->  | M137: =IFERROR(M$4+(1-M$4)/(1+EXP(-1.7*M$2*($C137-M$3))),"") ->  | N137: =IFERROR(N$4+(1-N$4)/(1+EXP(-1.7*N$2*($C137-N$3))),"") ->  | O137: =IFERROR(O$4+(1-O$4)/(1+EXP(-1.7*O$2*($C137-O$3))),"") ->  | P137: =IFERROR(P$4+(1-P$4)/(1+EXP(-1.7*P$2*($C137-P$3))),"") ->  | Q137: =IFERROR(Q$4+(1-Q$4)/(1+EXP(-1.7*Q$2*($C137-Q$3))),"") ->  | R137: =IFERROR(R$4+(1-R$4)/(1+EXP(-1.7*R$2*($C137-R$3))),"") ->  | S137: =IFERROR(S$4+(1-S$4)/(1+EXP(-1.7*S$2*($C137-S$3))),"") ->  | T137: =IFERROR(T$4+(1-T$4)/(1+EXP(-1.7*T$2*($C137-T$3))),"") ->  | U137: =IFERROR(U$4+(1-U$4)/(1+EXP(-1.7*U$2*($C137-U$3))),"") ->  | V137: =IFERROR(V$4+(1-V$4)/(1+EXP(-1.7*V$2*($C137-V$3))),"") ->  | W137: =IFERROR(W$4+(1-W$4)/(1+EXP(-1.7*W$2*($C137-W$3))),"") ->  | X137: =IFERROR(X$4+(1-X$4)/(1+EXP(-1.7*X$2*($C137-X$3))),"") ->  | Y137: =IFERROR(Y$4+(1-Y$4)/(1+EXP(-1.7*Y$2*($C137-Y$3))),"") ->  | Z137: =IFERROR(Z$4+(1-Z$4)/(1+EXP(-1.7*Z$2*($C137-Z$3))),"") ->  | AA137: =IFERROR(AA$4+(1-AA$4)/(1+EXP(-1.7*AA$2*($C137-AA$3))),"") ->  | AB137: =IFERROR(AB$4+(1-AB$4)/(1+EXP(-1.7*AB$2*($C137-AB$3))),"") ->  | AC137: =IFERROR(AC$4+(1-AC$4)/(1+EXP(-1.7*AC$2*($C137-AC$3))),"") ->  | AD137: =IFERROR(AD$4+(1-AD$4)/(1+EXP(-1.7*AD$2*($C137-AD$3))),"") ->  | AE137: =IFERROR(AE$4+(1-AE$4)/(1+EXP(-1.7*AE$2*($C137-AE$3))),"") ->  | AF137: =IFERROR(AF$4+(1-AF$4)/(1+EXP(-1.7*AF$2*($C137-AF$3))),"") ->  | AG137: =IFERROR(AG$4+(1-AG$4)/(1+EXP(-1.7*AG$2*($C137-AG$3))),"") -> 
A138: 129 | B138: 0.02200939608 | C138: -2.72 | D138: =IFERROR(D$4+(1-D$4)/(1+EXP(-1.7*D$2*($C138-D$3))),"") -> 0.01657851979 | E138: =IFERROR(E$4+(1-E$4)/(1+EXP(-1.7*E$2*($C138-E$3))),"") -> 0.2493571028 | F138: =IFERROR(F$4+(1-F$4)/(1+EXP(-1.7*F$2*($C138-F$3))),"") -> 0.3543231194 | G138: =IFERROR(G$4+(1-G$4)/(1+EXP(-1.7*G$2*($C138-G$3))),"") -> 0.2733106149 | H138: =IFERROR(H$4+(1-H$4)/(1+EXP(-1.7*H$2*($C138-H$3))),"") -> 0.07319001771 | I138: =IFERROR(I$4+(1-I$4)/(1+EXP(-1.7*I$2*($C138-I$3))),"") ->  | J138: =IFERROR(J$4+(1-J$4)/(1+EXP(-1.7*J$2*($C138-J$3))),"") ->  | K138: =IFERROR(K$4+(1-K$4)/(1+EXP(-1.7*K$2*($C138-K$3))),"") ->  | L138: =IFERROR(L$4+(1-L$4)/(1+EXP(-1.7*L$2*($C138-L$3))),"") ->  | M138: =IFERROR(M$4+(1-M$4)/(1+EXP(-1.7*M$2*($C138-M$3))),"") ->  | N138: =IFERROR(N$4+(1-N$4)/(1+EXP(-1.7*N$2*($C138-N$3))),"") ->  | O138: =IFERROR(O$4+(1-O$4)/(1+EXP(-1.7*O$2*($C138-O$3))),"") ->  | P138: =IFERROR(P$4+(1-P$4)/(1+EXP(-1.7*P$2*($C138-P$3))),"") ->  | Q138: =IFERROR(Q$4+(1-Q$4)/(1+EXP(-1.7*Q$2*($C138-Q$3))),"") ->  | R138: =IFERROR(R$4+(1-R$4)/(1+EXP(-1.7*R$2*($C138-R$3))),"") ->  | S138: =IFERROR(S$4+(1-S$4)/(1+EXP(-1.7*S$2*($C138-S$3))),"") ->  | T138: =IFERROR(T$4+(1-T$4)/(1+EXP(-1.7*T$2*($C138-T$3))),"") ->  | U138: =IFERROR(U$4+(1-U$4)/(1+EXP(-1.7*U$2*($C138-U$3))),"") ->  | V138: =IFERROR(V$4+(1-V$4)/(1+EXP(-1.7*V$2*($C138-V$3))),"") ->  | W138: =IFERROR(W$4+(1-W$4)/(1+EXP(-1.7*W$2*($C138-W$3))),"") ->  | X138: =IFERROR(X$4+(1-X$4)/(1+EXP(-1.7*X$2*($C138-X$3))),"") ->  | Y138: =IFERROR(Y$4+(1-Y$4)/(1+EXP(-1.7*Y$2*($C138-Y$3))),"") ->  | Z138: =IFERROR(Z$4+(1-Z$4)/(1+EXP(-1.7*Z$2*($C138-Z$3))),"") ->  | AA138: =IFERROR(AA$4+(1-AA$4)/(1+EXP(-1.7*AA$2*($C138-AA$3))),"") ->  | AB138: =IFERROR(AB$4+(1-AB$4)/(1+EXP(-1.7*AB$2*($C138-AB$3))),"") ->  | AC138: =IFERROR(AC$4+(1-AC$4)/(1+EXP(-1.7*AC$2*($C138-AC$3))),"") ->  | AD138: =IFERROR(AD$4+(1-AD$4)/(1+EXP(-1.7*AD$2*($C138-AD$3))),"") ->  | AE138: =IFERROR(AE$4+(1-AE$4)/(1+EXP(-1.7*AE$2*($C138-AE$3))),"") ->  | AF138: =IFERROR(AF$4+(1-AF$4)/(1+EXP(-1.7*AF$2*($C138-AF$3))),"") ->  | AG138: =IFERROR(AG$4+(1-AG$4)/(1+EXP(-1.7*AG$2*($C138-AG$3))),"") -> 
A139: 130 | B139: 0.02216741846 | C139: -2.71 | D139: =IFERROR(D$4+(1-D$4)/(1+EXP(-1.7*D$2*($C139-D$3))),"") -> 0.01658777983 | E139: =IFERROR(E$4+(1-E$4)/(1+EXP(-1.7*E$2*($C139-E$3))),"") -> 0.2503145608 | F139: =IFERROR(F$4+(1-F$4)/(1+EXP(-1.7*F$2*($C139-F$3))),"") -> 0.3555049669 | G139: =IFERROR(G$4+(1-G$4)/(1+EXP(-1.7*G$2*($C139-G$3))),"") -> 0.2733110133 | H139: =IFERROR(H$4+(1-H$4)/(1+EXP(-1.7*H$2*($C139-H$3))),"") -> 0.07319023551 | I139: =IFERROR(I$4+(1-I$4)/(1+EXP(-1.7*I$2*($C139-I$3))),"") ->  | J139: =IFERROR(J$4+(1-J$4)/(1+EXP(-1.7*J$2*($C139-J$3))),"") ->  | K139: =IFERROR(K$4+(1-K$4)/(1+EXP(-1.7*K$2*($C139-K$3))),"") ->  | L139: =IFERROR(L$4+(1-L$4)/(1+EXP(-1.7*L$2*($C139-L$3))),"") ->  | M139: =IFERROR(M$4+(1-M$4)/(1+EXP(-1.7*M$2*($C139-M$3))),"") ->  | N139: =IFERROR(N$4+(1-N$4)/(1+EXP(-1.7*N$2*($C139-N$3))),"") ->  | O139: =IFERROR(O$4+(1-O$4)/(1+EXP(-1.7*O$2*($C139-O$3))),"") ->  | P139: =IFERROR(P$4+(1-P$4)/(1+EXP(-1.7*P$2*($C139-P$3))),"") ->  | Q139: =IFERROR(Q$4+(1-Q$4)/(1+EXP(-1.7*Q$2*($C139-Q$3))),"") ->  | R139: =IFERROR(R$4+(1-R$4)/(1+EXP(-1.7*R$2*($C139-R$3))),"") ->  | S139: =IFERROR(S$4+(1-S$4)/(1+EXP(-1.7*S$2*($C139-S$3))),"") ->  | T139: =IFERROR(T$4+(1-T$4)/(1+EXP(-1.7*T$2*($C139-T$3))),"") ->  | U139: =IFERROR(U$4+(1-U$4)/(1+EXP(-1.7*U$2*($C139-U$3))),"") ->  | V139: =IFERROR(V$4+(1-V$4)/(1+EXP(-1.7*V$2*($C139-V$3))),"") ->  | W139: =IFERROR(W$4+(1-W$4)/(1+EXP(-1.7*W$2*($C139-W$3))),"") ->  | X139: =IFERROR(X$4+(1-X$4)/(1+EXP(-1.7*X$2*($C139-X$3))),"") ->  | Y139: =IFERROR(Y$4+(1-Y$4)/(1+EXP(-1.7*Y$2*($C139-Y$3))),"") ->  | Z139: =IFERROR(Z$4+(1-Z$4)/(1+EXP(-1.7*Z$2*($C139-Z$3))),"") ->  | AA139: =IFERROR(AA$4+(1-AA$4)/(1+EXP(-1.7*AA$2*($C139-AA$3))),"") ->  | AB139: =IFERROR(AB$4+(1-AB$4)/(1+EXP(-1.7*AB$2*($C139-AB$3))),"") ->  | AC139: =IFERROR(AC$4+(1-AC$4)/(1+EXP(-1.7*AC$2*($C139-AC$3))),"") ->  | AD139: =IFERROR(AD$4+(1-AD$4)/(1+EXP(-1.7*AD$2*($C139-AD$3))),"") ->  | AE139: =IFERROR(AE$4+(1-AE$4)/(1+EXP(-1.7*AE$2*($C139-AE$3))),"") ->  | AF139: =IFERROR(AF$4+(1-AF$4)/(1+EXP(-1.7*AF$2*($C139-AF$3))),"") ->  | AG139: =IFERROR(AG$4+(1-AG$4)/(1+EXP(-1.7*AG$2*($C139-AG$3))),"") -> 
A140: 131 | B140: 0.0223278804 | C140: =C139+0.01 -> -2.7 | D140: =IFERROR(D$4+(1-D$4)/(1+EXP(-1.7*D$2*($C140-D$3))),"") -> 0.01659720245 | E140: =IFERROR(E$4+(1-E$4)/(1+EXP(-1.7*E$2*($C140-E$3))),"") -> 0.2512854162 | F140: =IFERROR(F$4+(1-F$4)/(1+EXP(-1.7*F$2*($C140-F$3))),"") -> 0.3566978566 | G140: =IFERROR(G$4+(1-G$4)/(1+EXP(-1.7*G$2*($C140-G$3))),"") -> 0.2733114192 | H140: =IFERROR(H$4+(1-H$4)/(1+EXP(-1.7*H$2*($C140-H$3))),"") -> 0.07319045778 | I140: =IFERROR(I$4+(1-I$4)/(1+EXP(-1.7*I$2*($C140-I$3))),"") ->  | J140: =IFERROR(J$4+(1-J$4)/(1+EXP(-1.7*J$2*($C140-J$3))),"") ->  | K140: =IFERROR(K$4+(1-K$4)/(1+EXP(-1.7*K$2*($C140-K$3))),"") ->  | L140: =IFERROR(L$4+(1-L$4)/(1+EXP(-1.7*L$2*($C140-L$3))),"") ->  | M140: =IFERROR(M$4+(1-M$4)/(1+EXP(-1.7*M$2*($C140-M$3))),"") ->  | N140: =IFERROR(N$4+(1-N$4)/(1+EXP(-1.7*N$2*($C140-N$3))),"") ->  | O140: =IFERROR(O$4+(1-O$4)/(1+EXP(-1.7*O$2*($C140-O$3))),"") ->  | P140: =IFERROR(P$4+(1-P$4)/(1+EXP(-1.7*P$2*($C140-P$3))),"") ->  | Q140: =IFERROR(Q$4+(1-Q$4)/(1+EXP(-1.7*Q$2*($C140-Q$3))),"") ->  | R140: =IFERROR(R$4+(1-R$4)/(1+EXP(-1.7*R$2*($C140-R$3))),"") ->  | S140: =IFERROR(S$4+(1-S$4)/(1+EXP(-1.7*S$2*($C140-S$3))),"") ->  | T140: =IFERROR(T$4+(1-T$4)/(1+EXP(-1.7*T$2*($C140-T$3))),"") ->  | U140: =IFERROR(U$4+(1-U$4)/(1+EXP(-1.7*U$2*($C140-U$3))),"") ->  | V140: =IFERROR(V$4+(1-V$4)/(1+EXP(-1.7*V$2*($C140-V$3))),"") ->  | W140: =IFERROR(W$4+(1-W$4)/(1+EXP(-1.7*W$2*($C140-W$3))),"") ->  | X140: =IFERROR(X$4+(1-X$4)/(1+EXP(-1.7*X$2*($C140-X$3))),"") ->  | Y140: =IFERROR(Y$4+(1-Y$4)/(1+EXP(-1.7*Y$2*($C140-Y$3))),"") ->  | Z140: =IFERROR(Z$4+(1-Z$4)/(1+EXP(-1.7*Z$2*($C140-Z$3))),"") ->  | AA140: =IFERROR(AA$4+(1-AA$4)/(1+EXP(-1.7*AA$2*($C140-AA$3))),"") ->  | AB140: =IFERROR(AB$4+(1-AB$4)/(1+EXP(-1.7*AB$2*($C140-AB$3))),"") ->  | AC140: =IFERROR(AC$4+(1-AC$4)/(1+EXP(-1.7*AC$2*($C140-AC$3))),"") ->  | AD140: =IFERROR(AD$4+(1-AD$4)/(1+EXP(-1.7*AD$2*($C140-AD$3))),"") ->  | AE140: =IFERROR(AE$4+(1-AE$4)/(1+EXP(-1.7*AE$2*($C140-AE$3))),"") ->  | AF140: =IFERROR(AF$4+(1-AF$4)/(1+EXP(-1.7*AF$2*($C140-AF$3))),"") ->  | AG140: =IFERROR(AG$4+(1-AG$4)/(1+EXP(-1.7*AG$2*($C140-AG$3))),"") -> 
A141: 132 | B141: 0.02249081829 | C141: -2.69 | D141: =IFERROR(D$4+(1-D$4)/(1+EXP(-1.7*D$2*($C141-D$3))),"") -> 0.01660679048 | E141: =IFERROR(E$4+(1-E$4)/(1+EXP(-1.7*E$2*($C141-E$3))),"") -> 0.2522698178 | F141: =IFERROR(F$4+(1-F$4)/(1+EXP(-1.7*F$2*($C141-F$3))),"") -> 0.3579018419 | G141: =IFERROR(G$4+(1-G$4)/(1+EXP(-1.7*G$2*($C141-G$3))),"") -> 0.2733118327 | H141: =IFERROR(H$4+(1-H$4)/(1+EXP(-1.7*H$2*($C141-H$3))),"") -> 0.07319068462 | I141: =IFERROR(I$4+(1-I$4)/(1+EXP(-1.7*I$2*($C141-I$3))),"") ->  | J141: =IFERROR(J$4+(1-J$4)/(1+EXP(-1.7*J$2*($C141-J$3))),"") ->  | K141: =IFERROR(K$4+(1-K$4)/(1+EXP(-1.7*K$2*($C141-K$3))),"") ->  | L141: =IFERROR(L$4+(1-L$4)/(1+EXP(-1.7*L$2*($C141-L$3))),"") ->  | M141: =IFERROR(M$4+(1-M$4)/(1+EXP(-1.7*M$2*($C141-M$3))),"") ->  | N141: =IFERROR(N$4+(1-N$4)/(1+EXP(-1.7*N$2*($C141-N$3))),"") ->  | O141: =IFERROR(O$4+(1-O$4)/(1+EXP(-1.7*O$2*($C141-O$3))),"") ->  | P141: =IFERROR(P$4+(1-P$4)/(1+EXP(-1.7*P$2*($C141-P$3))),"") ->  | Q141: =IFERROR(Q$4+(1-Q$4)/(1+EXP(-1.7*Q$2*($C141-Q$3))),"") ->  | R141: =IFERROR(R$4+(1-R$4)/(1+EXP(-1.7*R$2*($C141-R$3))),"") ->  | S141: =IFERROR(S$4+(1-S$4)/(1+EXP(-1.7*S$2*($C141-S$3))),"") ->  | T141: =IFERROR(T$4+(1-T$4)/(1+EXP(-1.7*T$2*($C141-T$3))),"") ->  | U141: =IFERROR(U$4+(1-U$4)/(1+EXP(-1.7*U$2*($C141-U$3))),"") ->  | V141: =IFERROR(V$4+(1-V$4)/(1+EXP(-1.7*V$2*($C141-V$3))),"") ->  | W141: =IFERROR(W$4+(1-W$4)/(1+EXP(-1.7*W$2*($C141-W$3))),"") ->  | X141: =IFERROR(X$4+(1-X$4)/(1+EXP(-1.7*X$2*($C141-X$3))),"") ->  | Y141: =IFERROR(Y$4+(1-Y$4)/(1+EXP(-1.7*Y$2*($C141-Y$3))),"") ->  | Z141: =IFERROR(Z$4+(1-Z$4)/(1+EXP(-1.7*Z$2*($C141-Z$3))),"") ->  | AA141: =IFERROR(AA$4+(1-AA$4)/(1+EXP(-1.7*AA$2*($C141-AA$3))),"") ->  | AB141: =IFERROR(AB$4+(1-AB$4)/(1+EXP(-1.7*AB$2*($C141-AB$3))),"") ->  | AC141: =IFERROR(AC$4+(1-AC$4)/(1+EXP(-1.7*AC$2*($C141-AC$3))),"") ->  | AD141: =IFERROR(AD$4+(1-AD$4)/(1+EXP(-1.7*AD$2*($C141-AD$3))),"") ->  | AE141: =IFERROR(AE$4+(1-AE$4)/(1+EXP(-1.7*AE$2*($C141-AE$3))),"") ->  | AF141: =IFERROR(AF$4+(1-AF$4)/(1+EXP(-1.7*AF$2*($C141-AF$3))),"") ->  | AG141: =IFERROR(AG$4+(1-AG$4)/(1+EXP(-1.7*AG$2*($C141-AG$3))),"") -> 
A142: 133 | B142: 0.02265626895 | C142: -2.68 | D142: =IFERROR(D$4+(1-D$4)/(1+EXP(-1.7*D$2*($C142-D$3))),"") -> 0.01661654683 | E142: =IFERROR(E$4+(1-E$4)/(1+EXP(-1.7*E$2*($C142-E$3))),"") -> 0.2532679148 | F142: =IFERROR(F$4+(1-F$4)/(1+EXP(-1.7*F$2*($C142-F$3))),"") -> 0.3591169756 | G142: =IFERROR(G$4+(1-G$4)/(1+EXP(-1.7*G$2*($C142-G$3))),"") -> 0.2733122539 | H142: =IFERROR(H$4+(1-H$4)/(1+EXP(-1.7*H$2*($C142-H$3))),"") -> 0.07319091611 | I142: =IFERROR(I$4+(1-I$4)/(1+EXP(-1.7*I$2*($C142-I$3))),"") ->  | J142: =IFERROR(J$4+(1-J$4)/(1+EXP(-1.7*J$2*($C142-J$3))),"") ->  | K142: =IFERROR(K$4+(1-K$4)/(1+EXP(-1.7*K$2*($C142-K$3))),"") ->  | L142: =IFERROR(L$4+(1-L$4)/(1+EXP(-1.7*L$2*($C142-L$3))),"") ->  | M142: =IFERROR(M$4+(1-M$4)/(1+EXP(-1.7*M$2*($C142-M$3))),"") ->  | N142: =IFERROR(N$4+(1-N$4)/(1+EXP(-1.7*N$2*($C142-N$3))),"") ->  | O142: =IFERROR(O$4+(1-O$4)/(1+EXP(-1.7*O$2*($C142-O$3))),"") ->  | P142: =IFERROR(P$4+(1-P$4)/(1+EXP(-1.7*P$2*($C142-P$3))),"") ->  | Q142: =IFERROR(Q$4+(1-Q$4)/(1+EXP(-1.7*Q$2*($C142-Q$3))),"") ->  | R142: =IFERROR(R$4+(1-R$4)/(1+EXP(-1.7*R$2*($C142-R$3))),"") ->  | S142: =IFERROR(S$4+(1-S$4)/(1+EXP(-1.7*S$2*($C142-S$3))),"") ->  | T142: =IFERROR(T$4+(1-T$4)/(1+EXP(-1.7*T$2*($C142-T$3))),"") ->  | U142: =IFERROR(U$4+(1-U$4)/(1+EXP(-1.7*U$2*($C142-U$3))),"") ->  | V142: =IFERROR(V$4+(1-V$4)/(1+EXP(-1.7*V$2*($C142-V$3))),"") ->  | W142: =IFERROR(W$4+(1-W$4)/(1+EXP(-1.7*W$2*($C142-W$3))),"") ->  | X142: =IFERROR(X$4+(1-X$4)/(1+EXP(-1.7*X$2*($C142-X$3))),"") ->  | Y142: =IFERROR(Y$4+(1-Y$4)/(1+EXP(-1.7*Y$2*($C142-Y$3))),"") ->  | Z142: =IFERROR(Z$4+(1-Z$4)/(1+EXP(-1.7*Z$2*($C142-Z$3))),"") ->  | AA142: =IFERROR(AA$4+(1-AA$4)/(1+EXP(-1.7*AA$2*($C142-AA$3))),"") ->  | AB142: =IFERROR(AB$4+(1-AB$4)/(1+EXP(-1.7*AB$2*($C142-AB$3))),"") ->  | AC142: =IFERROR(AC$4+(1-AC$4)/(1+EXP(-1.7*AC$2*($C142-AC$3))),"") ->  | AD142: =IFERROR(AD$4+(1-AD$4)/(1+EXP(-1.7*AD$2*($C142-AD$3))),"") ->  | AE142: =IFERROR(AE$4+(1-AE$4)/(1+EXP(-1.7*AE$2*($C142-AE$3))),"") ->  | AF142: =IFERROR(AF$4+(1-AF$4)/(1+EXP(-1.7*AF$2*($C142-AF$3))),"") ->  | AG142: =IFERROR(AG$4+(1-AG$4)/(1+EXP(-1.7*AG$2*($C142-AG$3))),"") -> 
A143: 134 | B143: 0.02282426965 | C143: -2.67 | D143: =IFERROR(D$4+(1-D$4)/(1+EXP(-1.7*D$2*($C143-D$3))),"") -> 0.01662647446 | E143: =IFERROR(E$4+(1-E$4)/(1+EXP(-1.7*E$2*($C143-E$3))),"") -> 0.2542798569 | F143: =IFERROR(F$4+(1-F$4)/(1+EXP(-1.7*F$2*($C143-F$3))),"") -> 0.3603433094 | G143: =IFERROR(G$4+(1-G$4)/(1+EXP(-1.7*G$2*($C143-G$3))),"") -> 0.273312683 | H143: =IFERROR(H$4+(1-H$4)/(1+EXP(-1.7*H$2*($C143-H$3))),"") -> 0.07319115235 | I143: =IFERROR(I$4+(1-I$4)/(1+EXP(-1.7*I$2*($C143-I$3))),"") ->  | J143: =IFERROR(J$4+(1-J$4)/(1+EXP(-1.7*J$2*($C143-J$3))),"") ->  | K143: =IFERROR(K$4+(1-K$4)/(1+EXP(-1.7*K$2*($C143-K$3))),"") ->  | L143: =IFERROR(L$4+(1-L$4)/(1+EXP(-1.7*L$2*($C143-L$3))),"") ->  | M143: =IFERROR(M$4+(1-M$4)/(1+EXP(-1.7*M$2*($C143-M$3))),"") ->  | N143: =IFERROR(N$4+(1-N$4)/(1+EXP(-1.7*N$2*($C143-N$3))),"") ->  | O143: =IFERROR(O$4+(1-O$4)/(1+EXP(-1.7*O$2*($C143-O$3))),"") ->  | P143: =IFERROR(P$4+(1-P$4)/(1+EXP(-1.7*P$2*($C143-P$3))),"") ->  | Q143: =IFERROR(Q$4+(1-Q$4)/(1+EXP(-1.7*Q$2*($C143-Q$3))),"") ->  | R143: =IFERROR(R$4+(1-R$4)/(1+EXP(-1.7*R$2*($C143-R$3))),"") ->  | S143: =IFERROR(S$4+(1-S$4)/(1+EXP(-1.7*S$2*($C143-S$3))),"") ->  | T143: =IFERROR(T$4+(1-T$4)/(1+EXP(-1.7*T$2*($C143-T$3))),"") ->  | U143: =IFERROR(U$4+(1-U$4)/(1+EXP(-1.7*U$2*($C143-U$3))),"") ->  | V143: =IFERROR(V$4+(1-V$4)/(1+EXP(-1.7*V$2*($C143-V$3))),"") ->  | W143: =IFERROR(W$4+(1-W$4)/(1+EXP(-1.7*W$2*($C143-W$3))),"") ->  | X143: =IFERROR(X$4+(1-X$4)/(1+EXP(-1.7*X$2*($C143-X$3))),"") ->  | Y143: =IFERROR(Y$4+(1-Y$4)/(1+EXP(-1.7*Y$2*($C143-Y$3))),"") ->  | Z143: =IFERROR(Z$4+(1-Z$4)/(1+EXP(-1.7*Z$2*($C143-Z$3))),"") ->  | AA143: =IFERROR(AA$4+(1-AA$4)/(1+EXP(-1.7*AA$2*($C143-AA$3))),"") ->  | AB143: =IFERROR(AB$4+(1-AB$4)/(1+EXP(-1.7*AB$2*($C143-AB$3))),"") ->  | AC143: =IFERROR(AC$4+(1-AC$4)/(1+EXP(-1.7*AC$2*($C143-AC$3))),"") ->  | AD143: =IFERROR(AD$4+(1-AD$4)/(1+EXP(-1.7*AD$2*($C143-AD$3))),"") ->  | AE143: =IFERROR(AE$4+(1-AE$4)/(1+EXP(-1.7*AE$2*($C143-AE$3))),"") ->  | AF143: =IFERROR(AF$4+(1-AF$4)/(1+EXP(-1.7*AF$2*($C143-AF$3))),"") ->  | AG143: =IFERROR(AG$4+(1-AG$4)/(1+EXP(-1.7*AG$2*($C143-AG$3))),"") -> 
A144: 135 | B144: 0.02299485809 | C144: -2.66 | D144: =IFERROR(D$4+(1-D$4)/(1+EXP(-1.7*D$2*($C144-D$3))),"") -> 0.01663657637 | E144: =IFERROR(E$4+(1-E$4)/(1+EXP(-1.7*E$2*($C144-E$3))),"") -> 0.2553057939 | F144: =IFERROR(F$4+(1-F$4)/(1+EXP(-1.7*F$2*($C144-F$3))),"") -> 0.3615808939 | G144: =IFERROR(G$4+(1-G$4)/(1+EXP(-1.7*G$2*($C144-G$3))),"") -> 0.2733131201 | H144: =IFERROR(H$4+(1-H$4)/(1+EXP(-1.7*H$2*($C144-H$3))),"") -> 0.07319139343 | I144: =IFERROR(I$4+(1-I$4)/(1+EXP(-1.7*I$2*($C144-I$3))),"") ->  | J144: =IFERROR(J$4+(1-J$4)/(1+EXP(-1.7*J$2*($C144-J$3))),"") ->  | K144: =IFERROR(K$4+(1-K$4)/(1+EXP(-1.7*K$2*($C144-K$3))),"") ->  | L144: =IFERROR(L$4+(1-L$4)/(1+EXP(-1.7*L$2*($C144-L$3))),"") ->  | M144: =IFERROR(M$4+(1-M$4)/(1+EXP(-1.7*M$2*($C144-M$3))),"") ->  | N144: =IFERROR(N$4+(1-N$4)/(1+EXP(-1.7*N$2*($C144-N$3))),"") ->  | O144: =IFERROR(O$4+(1-O$4)/(1+EXP(-1.7*O$2*($C144-O$3))),"") ->  | P144: =IFERROR(P$4+(1-P$4)/(1+EXP(-1.7*P$2*($C144-P$3))),"") ->  | Q144: =IFERROR(Q$4+(1-Q$4)/(1+EXP(-1.7*Q$2*($C144-Q$3))),"") ->  | R144: =IFERROR(R$4+(1-R$4)/(1+EXP(-1.7*R$2*($C144-R$3))),"") ->  | S144: =IFERROR(S$4+(1-S$4)/(1+EXP(-1.7*S$2*($C144-S$3))),"") ->  | T144: =IFERROR(T$4+(1-T$4)/(1+EXP(-1.7*T$2*($C144-T$3))),"") ->  | U144: =IFERROR(U$4+(1-U$4)/(1+EXP(-1.7*U$2*($C144-U$3))),"") ->  | V144: =IFERROR(V$4+(1-V$4)/(1+EXP(-1.7*V$2*($C144-V$3))),"") ->  | W144: =IFERROR(W$4+(1-W$4)/(1+EXP(-1.7*W$2*($C144-W$3))),"") ->  | X144: =IFERROR(X$4+(1-X$4)/(1+EXP(-1.7*X$2*($C144-X$3))),"") ->  | Y144: =IFERROR(Y$4+(1-Y$4)/(1+EXP(-1.7*Y$2*($C144-Y$3))),"") ->  | Z144: =IFERROR(Z$4+(1-Z$4)/(1+EXP(-1.7*Z$2*($C144-Z$3))),"") ->  | AA144: =IFERROR(AA$4+(1-AA$4)/(1+EXP(-1.7*AA$2*($C144-AA$3))),"") ->  | AB144: =IFERROR(AB$4+(1-AB$4)/(1+EXP(-1.7*AB$2*($C144-AB$3))),"") ->  | AC144: =IFERROR(AC$4+(1-AC$4)/(1+EXP(-1.7*AC$2*($C144-AC$3))),"") ->  | AD144: =IFERROR(AD$4+(1-AD$4)/(1+EXP(-1.7*AD$2*($C144-AD$3))),"") ->  | AE144: =IFERROR(AE$4+(1-AE$4)/(1+EXP(-1.7*AE$2*($C144-AE$3))),"") ->  | AF144: =IFERROR(AF$4+(1-AF$4)/(1+EXP(-1.7*AF$2*($C144-AF$3))),"") ->  | AG144: =IFERROR(AG$4+(1-AG$4)/(1+EXP(-1.7*AG$2*($C144-AG$3))),"") -> 
A145: 136 | B145: 0.02316807237 | C145: -2.65 | D145: =IFERROR(D$4+(1-D$4)/(1+EXP(-1.7*D$2*($C145-D$3))),"") -> 0.0166468556 | E145: =IFERROR(E$4+(1-E$4)/(1+EXP(-1.7*E$2*($C145-E$3))),"") -> 0.2563458763 | F145: =IFERROR(F$4+(1-F$4)/(1+EXP(-1.7*F$2*($C145-F$3))),"") -> 0.362829779 | G145: =IFERROR(G$4+(1-G$4)/(1+EXP(-1.7*G$2*($C145-G$3))),"") -> 0.2733135654 | H145: =IFERROR(H$4+(1-H$4)/(1+EXP(-1.7*H$2*($C145-H$3))),"") -> 0.07319163947 | I145: =IFERROR(I$4+(1-I$4)/(1+EXP(-1.7*I$2*($C145-I$3))),"") ->  | J145: =IFERROR(J$4+(1-J$4)/(1+EXP(-1.7*J$2*($C145-J$3))),"") ->  | K145: =IFERROR(K$4+(1-K$4)/(1+EXP(-1.7*K$2*($C145-K$3))),"") ->  | L145: =IFERROR(L$4+(1-L$4)/(1+EXP(-1.7*L$2*($C145-L$3))),"") ->  | M145: =IFERROR(M$4+(1-M$4)/(1+EXP(-1.7*M$2*($C145-M$3))),"") ->  | N145: =IFERROR(N$4+(1-N$4)/(1+EXP(-1.7*N$2*($C145-N$3))),"") ->  | O145: =IFERROR(O$4+(1-O$4)/(1+EXP(-1.7*O$2*($C145-O$3))),"") ->  | P145: =IFERROR(P$4+(1-P$4)/(1+EXP(-1.7*P$2*($C145-P$3))),"") ->  | Q145: =IFERROR(Q$4+(1-Q$4)/(1+EXP(-1.7*Q$2*($C145-Q$3))),"") ->  | R145: =IFERROR(R$4+(1-R$4)/(1+EXP(-1.7*R$2*($C145-R$3))),"") ->  | S145: =IFERROR(S$4+(1-S$4)/(1+EXP(-1.7*S$2*($C145-S$3))),"") ->  | T145: =IFERROR(T$4+(1-T$4)/(1+EXP(-1.7*T$2*($C145-T$3))),"") ->  | U145: =IFERROR(U$4+(1-U$4)/(1+EXP(-1.7*U$2*($C145-U$3))),"") ->  | V145: =IFERROR(V$4+(1-V$4)/(1+EXP(-1.7*V$2*($C145-V$3))),"") ->  | W145: =IFERROR(W$4+(1-W$4)/(1+EXP(-1.7*W$2*($C145-W$3))),"") ->  | X145: =IFERROR(X$4+(1-X$4)/(1+EXP(-1.7*X$2*($C145-X$3))),"") ->  | Y145: =IFERROR(Y$4+(1-Y$4)/(1+EXP(-1.7*Y$2*($C145-Y$3))),"") ->  | Z145: =IFERROR(Z$4+(1-Z$4)/(1+EXP(-1.7*Z$2*($C145-Z$3))),"") ->  | AA145: =IFERROR(AA$4+(1-AA$4)/(1+EXP(-1.7*AA$2*($C145-AA$3))),"") ->  | AB145: =IFERROR(AB$4+(1-AB$4)/(1+EXP(-1.7*AB$2*($C145-AB$3))),"") ->  | AC145: =IFERROR(AC$4+(1-AC$4)/(1+EXP(-1.7*AC$2*($C145-AC$3))),"") ->  | AD145: =IFERROR(AD$4+(1-AD$4)/(1+EXP(-1.7*AD$2*($C145-AD$3))),"") ->  | AE145: =IFERROR(AE$4+(1-AE$4)/(1+EXP(-1.7*AE$2*($C145-AE$3))),"") ->  | AF145: =IFERROR(AF$4+(1-AF$4)/(1+EXP(-1.7*AF$2*($C145-AF$3))),"") ->  | AG145: =IFERROR(AG$4+(1-AG$4)/(1+EXP(-1.7*AG$2*($C145-AG$3))),"") -> 
A146: 137 | B146: 0.02334395106 | C146: -2.64 | D146: =IFERROR(D$4+(1-D$4)/(1+EXP(-1.7*D$2*($C146-D$3))),"") -> 0.01665731528 | E146: =IFERROR(E$4+(1-E$4)/(1+EXP(-1.7*E$2*($C146-E$3))),"") -> 0.2574002547 | F146: =IFERROR(F$4+(1-F$4)/(1+EXP(-1.7*F$2*($C146-F$3))),"") -> 0.3640900134 | G146: =IFERROR(G$4+(1-G$4)/(1+EXP(-1.7*G$2*($C146-G$3))),"") -> 0.273314019 | H146: =IFERROR(H$4+(1-H$4)/(1+EXP(-1.7*H$2*($C146-H$3))),"") -> 0.07319189056 | I146: =IFERROR(I$4+(1-I$4)/(1+EXP(-1.7*I$2*($C146-I$3))),"") ->  | J146: =IFERROR(J$4+(1-J$4)/(1+EXP(-1.7*J$2*($C146-J$3))),"") ->  | K146: =IFERROR(K$4+(1-K$4)/(1+EXP(-1.7*K$2*($C146-K$3))),"") ->  | L146: =IFERROR(L$4+(1-L$4)/(1+EXP(-1.7*L$2*($C146-L$3))),"") ->  | M146: =IFERROR(M$4+(1-M$4)/(1+EXP(-1.7*M$2*($C146-M$3))),"") ->  | N146: =IFERROR(N$4+(1-N$4)/(1+EXP(-1.7*N$2*($C146-N$3))),"") ->  | O146: =IFERROR(O$4+(1-O$4)/(1+EXP(-1.7*O$2*($C146-O$3))),"") ->  | P146: =IFERROR(P$4+(1-P$4)/(1+EXP(-1.7*P$2*($C146-P$3))),"") ->  | Q146: =IFERROR(Q$4+(1-Q$4)/(1+EXP(-1.7*Q$2*($C146-Q$3))),"") ->  | R146: =IFERROR(R$4+(1-R$4)/(1+EXP(-1.7*R$2*($C146-R$3))),"") ->  | S146: =IFERROR(S$4+(1-S$4)/(1+EXP(-1.7*S$2*($C146-S$3))),"") ->  | T146: =IFERROR(T$4+(1-T$4)/(1+EXP(-1.7*T$2*($C146-T$3))),"") ->  | U146: =IFERROR(U$4+(1-U$4)/(1+EXP(-1.7*U$2*($C146-U$3))),"") ->  | V146: =IFERROR(V$4+(1-V$4)/(1+EXP(-1.7*V$2*($C146-V$3))),"") ->  | W146: =IFERROR(W$4+(1-W$4)/(1+EXP(-1.7*W$2*($C146-W$3))),"") ->  | X146: =IFERROR(X$4+(1-X$4)/(1+EXP(-1.7*X$2*($C146-X$3))),"") ->  | Y146: =IFERROR(Y$4+(1-Y$4)/(1+EXP(-1.7*Y$2*($C146-Y$3))),"") ->  | Z146: =IFERROR(Z$4+(1-Z$4)/(1+EXP(-1.7*Z$2*($C146-Z$3))),"") ->  | AA146: =IFERROR(AA$4+(1-AA$4)/(1+EXP(-1.7*AA$2*($C146-AA$3))),"") ->  | AB146: =IFERROR(AB$4+(1-AB$4)/(1+EXP(-1.7*AB$2*($C146-AB$3))),"") ->  | AC146: =IFERROR(AC$4+(1-AC$4)/(1+EXP(-1.7*AC$2*($C146-AC$3))),"") ->  | AD146: =IFERROR(AD$4+(1-AD$4)/(1+EXP(-1.7*AD$2*($C146-AD$3))),"") ->  | AE146: =IFERROR(AE$4+(1-AE$4)/(1+EXP(-1.7*AE$2*($C146-AE$3))),"") ->  | AF146: =IFERROR(AF$4+(1-AF$4)/(1+EXP(-1.7*AF$2*($C146-AF$3))),"") ->  | AG146: =IFERROR(AG$4+(1-AG$4)/(1+EXP(-1.7*AG$2*($C146-AG$3))),"") -> 
A147: 138 | B147: 0.02352253314 | C147: -2.63 | D147: =IFERROR(D$4+(1-D$4)/(1+EXP(-1.7*D$2*($C147-D$3))),"") -> 0.01666795857 | E147: =IFERROR(E$4+(1-E$4)/(1+EXP(-1.7*E$2*($C147-E$3))),"") -> 0.2584690799 | F147: =IFERROR(F$4+(1-F$4)/(1+EXP(-1.7*F$2*($C147-F$3))),"") -> 0.3653616449 | G147: =IFERROR(G$4+(1-G$4)/(1+EXP(-1.7*G$2*($C147-G$3))),"") -> 0.273314481 | H147: =IFERROR(H$4+(1-H$4)/(1+EXP(-1.7*H$2*($C147-H$3))),"") -> 0.0731921468 | I147: =IFERROR(I$4+(1-I$4)/(1+EXP(-1.7*I$2*($C147-I$3))),"") ->  | J147: =IFERROR(J$4+(1-J$4)/(1+EXP(-1.7*J$2*($C147-J$3))),"") ->  | K147: =IFERROR(K$4+(1-K$4)/(1+EXP(-1.7*K$2*($C147-K$3))),"") ->  | L147: =IFERROR(L$4+(1-L$4)/(1+EXP(-1.7*L$2*($C147-L$3))),"") ->  | M147: =IFERROR(M$4+(1-M$4)/(1+EXP(-1.7*M$2*($C147-M$3))),"") ->  | N147: =IFERROR(N$4+(1-N$4)/(1+EXP(-1.7*N$2*($C147-N$3))),"") ->  | O147: =IFERROR(O$4+(1-O$4)/(1+EXP(-1.7*O$2*($C147-O$3))),"") ->  | P147: =IFERROR(P$4+(1-P$4)/(1+EXP(-1.7*P$2*($C147-P$3))),"") ->  | Q147: =IFERROR(Q$4+(1-Q$4)/(1+EXP(-1.7*Q$2*($C147-Q$3))),"") ->  | R147: =IFERROR(R$4+(1-R$4)/(1+EXP(-1.7*R$2*($C147-R$3))),"") ->  | S147: =IFERROR(S$4+(1-S$4)/(1+EXP(-1.7*S$2*($C147-S$3))),"") ->  | T147: =IFERROR(T$4+(1-T$4)/(1+EXP(-1.7*T$2*($C147-T$3))),"") ->  | U147: =IFERROR(U$4+(1-U$4)/(1+EXP(-1.7*U$2*($C147-U$3))),"") ->  | V147: =IFERROR(V$4+(1-V$4)/(1+EXP(-1.7*V$2*($C147-V$3))),"") ->  | W147: =IFERROR(W$4+(1-W$4)/(1+EXP(-1.7*W$2*($C147-W$3))),"") ->  | X147: =IFERROR(X$4+(1-X$4)/(1+EXP(-1.7*X$2*($C147-X$3))),"") ->  | Y147: =IFERROR(Y$4+(1-Y$4)/(1+EXP(-1.7*Y$2*($C147-Y$3))),"") ->  | Z147: =IFERROR(Z$4+(1-Z$4)/(1+EXP(-1.7*Z$2*($C147-Z$3))),"") ->  | AA147: =IFERROR(AA$4+(1-AA$4)/(1+EXP(-1.7*AA$2*($C147-AA$3))),"") ->  | AB147: =IFERROR(AB$4+(1-AB$4)/(1+EXP(-1.7*AB$2*($C147-AB$3))),"") ->  | AC147: =IFERROR(AC$4+(1-AC$4)/(1+EXP(-1.7*AC$2*($C147-AC$3))),"") ->  | AD147: =IFERROR(AD$4+(1-AD$4)/(1+EXP(-1.7*AD$2*($C147-AD$3))),"") ->  | AE147: =IFERROR(AE$4+(1-AE$4)/(1+EXP(-1.7*AE$2*($C147-AE$3))),"") ->  | AF147: =IFERROR(AF$4+(1-AF$4)/(1+EXP(-1.7*AF$2*($C147-AF$3))),"") ->  | AG147: =IFERROR(AG$4+(1-AG$4)/(1+EXP(-1.7*AG$2*($C147-AG$3))),"") -> 
A148: 139 | B148: 0.02370385802 | C148: -2.62 | D148: =IFERROR(D$4+(1-D$4)/(1+EXP(-1.7*D$2*($C148-D$3))),"") -> 0.01667878867 | E148: =IFERROR(E$4+(1-E$4)/(1+EXP(-1.7*E$2*($C148-E$3))),"") -> 0.259552503 | F148: =IFERROR(F$4+(1-F$4)/(1+EXP(-1.7*F$2*($C148-F$3))),"") -> 0.3666447202 | G148: =IFERROR(G$4+(1-G$4)/(1+EXP(-1.7*G$2*($C148-G$3))),"") -> 0.2733149517 | H148: =IFERROR(H$4+(1-H$4)/(1+EXP(-1.7*H$2*($C148-H$3))),"") -> 0.0731924083 | I148: =IFERROR(I$4+(1-I$4)/(1+EXP(-1.7*I$2*($C148-I$3))),"") ->  | J148: =IFERROR(J$4+(1-J$4)/(1+EXP(-1.7*J$2*($C148-J$3))),"") ->  | K148: =IFERROR(K$4+(1-K$4)/(1+EXP(-1.7*K$2*($C148-K$3))),"") ->  | L148: =IFERROR(L$4+(1-L$4)/(1+EXP(-1.7*L$2*($C148-L$3))),"") ->  | M148: =IFERROR(M$4+(1-M$4)/(1+EXP(-1.7*M$2*($C148-M$3))),"") ->  | N148: =IFERROR(N$4+(1-N$4)/(1+EXP(-1.7*N$2*($C148-N$3))),"") ->  | O148: =IFERROR(O$4+(1-O$4)/(1+EXP(-1.7*O$2*($C148-O$3))),"") ->  | P148: =IFERROR(P$4+(1-P$4)/(1+EXP(-1.7*P$2*($C148-P$3))),"") ->  | Q148: =IFERROR(Q$4+(1-Q$4)/(1+EXP(-1.7*Q$2*($C148-Q$3))),"") ->  | R148: =IFERROR(R$4+(1-R$4)/(1+EXP(-1.7*R$2*($C148-R$3))),"") ->  | S148: =IFERROR(S$4+(1-S$4)/(1+EXP(-1.7*S$2*($C148-S$3))),"") ->  | T148: =IFERROR(T$4+(1-T$4)/(1+EXP(-1.7*T$2*($C148-T$3))),"") ->  | U148: =IFERROR(U$4+(1-U$4)/(1+EXP(-1.7*U$2*($C148-U$3))),"") ->  | V148: =IFERROR(V$4+(1-V$4)/(1+EXP(-1.7*V$2*($C148-V$3))),"") ->  | W148: =IFERROR(W$4+(1-W$4)/(1+EXP(-1.7*W$2*($C148-W$3))),"") ->  | X148: =IFERROR(X$4+(1-X$4)/(1+EXP(-1.7*X$2*($C148-X$3))),"") ->  | Y148: =IFERROR(Y$4+(1-Y$4)/(1+EXP(-1.7*Y$2*($C148-Y$3))),"") ->  | Z148: =IFERROR(Z$4+(1-Z$4)/(1+EXP(-1.7*Z$2*($C148-Z$3))),"") ->  | AA148: =IFERROR(AA$4+(1-AA$4)/(1+EXP(-1.7*AA$2*($C148-AA$3))),"") ->  | AB148: =IFERROR(AB$4+(1-AB$4)/(1+EXP(-1.7*AB$2*($C148-AB$3))),"") ->  | AC148: =IFERROR(AC$4+(1-AC$4)/(1+EXP(-1.7*AC$2*($C148-AC$3))),"") ->  | AD148: =IFERROR(AD$4+(1-AD$4)/(1+EXP(-1.7*AD$2*($C148-AD$3))),"") ->  | AE148: =IFERROR(AE$4+(1-AE$4)/(1+EXP(-1.7*AE$2*($C148-AE$3))),"") ->  | AF148: =IFERROR(AF$4+(1-AF$4)/(1+EXP(-1.7*AF$2*($C148-AF$3))),"") ->  | AG148: =IFERROR(AG$4+(1-AG$4)/(1+EXP(-1.7*AG$2*($C148-AG$3))),"") -> 
